Workbook

Sheet HOM
F1: LISTING pour les MASTERS HOMMES | Q1: DATE :
A5: SEXE | B5: ZONE | C5: REG. | D5: Cl. | E5: LICENCE | F5: NOMS | G5: Prénoms | H5: AN | I5: POIDS | J5: CLUB | K5: NAT | L5: 1 | M5: 2 | N5: 3 | O5: ARR | P5: 1 | Q5: 2 | R5: 3 | S5: EP-J | T5: Total | U5: IWF SMM | V5: SERIE | X5: Caté | Y5: Catég | AA5: N.CL. | AB5: REG + | AC5: FRA + | AD5: EUR + | AE5: MON + | AF5: INTB + | AG5: INTA + | AH5: OLY + | AI5: NCL
A6: H | H6: 1982 | I6: 85 | K6: F | N6: 102 | O6: =IF(I6="","",IF(MAXA(L6:N6)<=0,0,MAXA(L6:N6))) -> 102 | P6: 133 | S6: =IF(I6="","",IF(MAXA(P6:R6)<=0,0,MAXA(P6:R6))) -> 133 | T6: =IF(I6="","",IF(OR(O6=0,S6=0),0,O6+S6)) -> 235 | U6: =IF(I6="","",IF(A6="H",10^(0.794358141*LOG(I6/174.393)^2)*T6*AS6,IF(A6="F",10^(0.89726074 * LOG(I6/148.026)^2)*T6*AS6,""))) -> 301.0531958 | V6: =IF(I6="","",AP6) -> MON + | W6: =IF(I6="","",IF(AH6>=0,AH6,IF(AG6>=0,AG6,IF(AF6>=0,AF6,IF(AE6>=0,AE6,IF(AD6>=0,AD6,IF(AC6>=0,AC6,IF(AB6>=0,AB6,AA6)))))))) -> 20 | X6: =IF(AQ6<95,IF(AQ6<=90,VLOOKUP(AQ6,$AQ$255:$AR$444,2))) -> V1 H35 | Y6: =IF(AND(H6<1920),VLOOKUP(I6,Feuil2!$F$10:$P$28,11),IF(AND(H6>=1920,H6<1939),VLOOKUP(I6,Feuil2!$F$10:$P$28,11),IF(AND(H6>=1938,H6<1943),VLOOKUP(I6,Feuil2!$F$10:$P$28,10),IF(AND(H6>=1943,H6<1948),VLOOKUP(I6,Feuil2!$F$10:$P$28,9),IF(AND(H6>=1948,H6<1953),VLOOKUP(I6,Feuil2!$F$10:$P$28,8),IF(AND(H6>=1953,H6<1958),VLOOKUP(I6,Feuil2!$F$10:$P$28,7),IF(AND(H6>=1958,H6<1963),VLOOKUP(I6,Feuil2!$F$10:$P$28,6),IF(AND(H6>=1963,H6<1968),VLOOKUP(I6,Feuil2!$F$10:$P$28,5),IF(AND(H6>=1968,H6<1973),VLOOKUP(I6,Feuil2!$F$10:$P$28,4),IF(AND(H6>=1973,H6<1978),VLOOKUP(I6,Feuil2!$F$10:$P$28,3),IF(AND(H6>=1978,H6<1983),VLOOKUP(I6,Feuil2!$F$10:$P$28,2),VLOOKUP(I6,Feuil2!$F$10:$P$28,2)))))))))))) -> VH35-85 | AA6: =T6-HLOOKUP(Y6,Feuil2!$C$1:$CD$9,2,FALSE) -> 235 | AB6: =T6-HLOOKUP(Y6,Feuil2!$C$1:$CD$9,3,FALSE) -> 63 | AC6: =T6-HLOOKUP(Y6,Feuil2!$C$1:$CD$9,4,FALSE) -> 53 | AD6: =T6-HLOOKUP(Y6,Feuil2!$C$1:$CD$9,5,FALSE) -> 43 | AE6: =T6-HLOOKUP(Y6,Feuil2!$C$1:$CD$9,6,FALSE) -> 20 | AF6: =T6-HLOOKUP(Y6,Feuil2!$C$1:$CD$9,7,FALSE) -> -765 | AG6: =T6-HLOOKUP(Y6,Feuil2!$C$1:$CD$9,8,FALSE) -> -765 | AH6: =T6-HLOOKUP(Y6,Feuil2!$C$1:$CD$9,9,FALSE) -> -765 | AP6: =IF(AH6>=0,$AH$5,IF(AG6>=0,$AG$5,IF(AF6>=0,$AF$5,IF(AE6>=0,$AE$5,IF(AD6>=0,$AD$5,IF(AC6>=0,$AC$5,IF(AB6>=0,$AB$5,IF(AA6>=0,$AA$5,$AI$5)))))))) -> MON + | AQ6: =2017-H6 -> 35 | AS6: =IF(AQ6,VLOOKUP(AQ6,HOM!$AS$389:$AT$444,2)) -> 1.072
A7: H | H7: 1977 | I7: 77 | K7: F | N7: 90 | O7: 90 | P7: 120 | S7: 120 | T7: 210 | U7: 300.1551204 | V7: MON + | W7: 18 | X7: V2 H40 | Y7: =IF(AND(H7<1920),VLOOKUP(I7,Feuil2!$F$10:$P$28,11),IF(AND(H7>=1920,H7<1939),VLOOKUP(I7,Feuil2!$F$10:$P$28,11),IF(AND(H7>=1938,H7<1943),VLOOKUP(I7,Feuil2!$F$10:$P$28,10),IF(AND(H7>=1943,H7<1948),VLOOKUP(I7,Feuil2!$F$10:$P$28,9),IF(AND(H7>=1948,H7<1953),VLOOKUP(I7,Feuil2!$F$10:$P$28,8),IF(AND(H7>=1953,H7<1958),VLOOKUP(I7,Feuil2!$F$10:$P$28,7),IF(AND(H7>=1958,H7<1963),VLOOKUP(I7,Feuil2!$F$10:$P$28,6),IF(AND(H7>=1963,H7<1968),VLOOKUP(I7,Feuil2!$F$10:$P$28,5),IF(AND(H7>=1968,H7<1973),VLOOKUP(I7,Feuil2!$F$10:$P$28,4),IF(AND(H7>=1973,H7<1978),VLOOKUP(I7,Feuil2!$F$10:$P$28,3),IF(AND(H7>=1978,H7<1983),VLOOKUP(I7,Feuil2!$F$10:$P$28,2),VLOOKUP(I7,Feuil2!$F$10:$P$28,2)))))))))))) -> VH40-77 | AA7: =T7-HLOOKUP(Y7,Feuil2!$C$1:$CD$9,2,FALSE) -> 210 | AB7: =T7-HLOOKUP(Y7,Feuil2!$C$1:$CD$9,3,FALSE) -> 58 | AC7: =T7-HLOOKUP(Y7,Feuil2!$C$1:$CD$9,4,FALSE) -> 48 | AD7: =T7-HLOOKUP(Y7,Feuil2!$C$1:$CD$9,5,FALSE) -> 38 | AE7: =T7-HLOOKUP(Y7,Feuil2!$C$1:$CD$9,6,FALSE) -> 18 | AF7: =T7-HLOOKUP(Y7,Feuil2!$C$1:$CD$9,7,FALSE) -> -790 | AG7: =T7-HLOOKUP(Y7,Feuil2!$C$1:$CD$9,8,FALSE) -> -790 | AH7: =T7-HLOOKUP(Y7,Feuil2!$C$1:$CD$9,9,FALSE) -> -790 | AP7: MON + | AQ7: 40 | AS7: =IF(AQ7,VLOOKUP(AQ7,HOM!$AS$389:$AT$444,2)) -> 1.135
A8: H | H8: 1972 | I8: 77 | K8: F | N8: 85 | O8: 85 | P8: 100 | S8: 100 | T8: 185 | U8: 280.2644129 | V8: MON + | W8: 0 | X8: V3 H45 | Y8: =IF(AND(H8<1920),VLOOKUP(I8,Feuil2!$F$10:$P$28,11),IF(AND(H8>=1920,H8<1939),VLOOKUP(I8,Feuil2!$F$10:$P$28,11),IF(AND(H8>=1938,H8<1943),VLOOKUP(I8,Feuil2!$F$10:$P$28,10),IF(AND(H8>=1943,H8<1948),VLOOKUP(I8,Feuil2!$F$10:$P$28,9),IF(AND(H8>=1948,H8<1953),VLOOKUP(I8,Feuil2!$F$10:$P$28,8),IF(AND(H8>=1953,H8<1958),VLOOKUP(I8,Feuil2!$F$10:$P$28,7),IF(AND(H8>=1958,H8<1963),VLOOKUP(I8,Feuil2!$F$10:$P$28,6),IF(AND(H8>=1963,H8<1968),VLOOKUP(I8,Feuil2!$F$10:$P$28,5),IF(AND(H8>=1968,H8<1973),VLOOKUP(I8,Feuil2!$F$10:$P$28,4),IF(AND(H8>=1973,H8<1978),VLOOKUP(I8,Feuil2!$F$10:$P$28,3),IF(AND(H8>=1978,H8<1983),VLOOKUP(I8,Feuil2!$F$10:$P$28,2),VLOOKUP(I8,Feuil2!$F$10:$P$28,2)))))))))))) -> VH45-77 | AA8: =T8-HLOOKUP(Y8,Feuil2!$C$1:$CD$9,2,FALSE) -> 185 | AB8: =T8-HLOOKUP(Y8,Feuil2!$C$1:$CD$9,3,FALSE) -> 40 | AC8: =T8-HLOOKUP(Y8,Feuil2!$C$1:$CD$9,4,FALSE) -> 30 | AD8: =T8-HLOOKUP(Y8,Feuil2!$C$1:$CD$9,5,FALSE) -> 20 | AE8: =T8-HLOOKUP(Y8,Feuil2!$C$1:$CD$9,6,FALSE) -> 0 | AF8: =T8-HLOOKUP(Y8,Feuil2!$C$1:$CD$9,7,FALSE) -> -815 | AG8: =T8-HLOOKUP(Y8,Feuil2!$C$1:$CD$9,8,FALSE) -> -815 | AH8: =T8-HLOOKUP(Y8,Feuil2!$C$1:$CD$9,9,FALSE) -> -815 | AP8: MON + | AQ8: 45 | AS8: =IF(AQ8,VLOOKUP(AQ8,HOM!$AS$389:$AT$444,2)) -> 1.203
A9: H | H9: 1967 | I9: 85 | K9: F | N9: 65 | O9: 65 | P9: 80 | S9: 80 | T9: 145 | U9: 221.6252002 | V9: REG + | W9: 5 | X9: V4 H50 | Y9: =IF(AND(H9<1920),VLOOKUP(I9,Feuil2!$F$10:$P$28,11),IF(AND(H9>=1920,H9<1939),VLOOKUP(I9,Feuil2!$F$10:$P$28,11),IF(AND(H9>=1938,H9<1943),VLOOKUP(I9,Feuil2!$F$10:$P$28,10),IF(AND(H9>=1943,H9<1948),VLOOKUP(I9,Feuil2!$F$10:$P$28,9),IF(AND(H9>=1948,H9<1953),VLOOKUP(I9,Feuil2!$F$10:$P$28,8),IF(AND(H9>=1953,H9<1958),VLOOKUP(I9,Feuil2!$F$10:$P$28,7),IF(AND(H9>=1958,H9<1963),VLOOKUP(I9,Feuil2!$F$10:$P$28,6),IF(AND(H9>=1963,H9<1968),VLOOKUP(I9,Feuil2!$F$10:$P$28,5),IF(AND(H9>=1968,H9<1973),VLOOKUP(I9,Feuil2!$F$10:$P$28,4),IF(AND(H9>=1973,H9<1978),VLOOKUP(I9,Feuil2!$F$10:$P$28,3),IF(AND(H9>=1978,H9<1983),VLOOKUP(I9,Feuil2!$F$10:$P$28,2),VLOOKUP(I9,Feuil2!$F$10:$P$28,2)))))))))))) -> VH50-85 | AA9: =T9-HLOOKUP(Y9,Feuil2!$C$1:$CD$9,2,FALSE) -> 145 | AB9: =T9-HLOOKUP(Y9,Feuil2!$C$1:$CD$9,3,FALSE) -> 5 | AC9: =T9-HLOOKUP(Y9,Feuil2!$C$1:$CD$9,4,FALSE) -> -5 | AD9: =T9-HLOOKUP(Y9,Feuil2!$C$1:$CD$9,5,FALSE) -> -15 | AE9: =T9-HLOOKUP(Y9,Feuil2!$C$1:$CD$9,6,FALSE) -> -35 | AF9: =T9-HLOOKUP(Y9,Feuil2!$C$1:$CD$9,7,FALSE) -> -855 | AG9: =T9-HLOOKUP(Y9,Feuil2!$C$1:$CD$9,8,FALSE) -> -855 | AH9: =T9-HLOOKUP(Y9,Feuil2!$C$1:$CD$9,9,FALSE) -> -855 | AP9: REG + | AQ9: 50 | AS9: =IF(AQ9,VLOOKUP(AQ9,HOM!$AS$389:$AT$444,2)) -> 1.279
A10: H | H10: 1962 | I10: 69 | K10: F | N10: 89 | O10: 89 | P10: 110 | S10: 110 | T10: 199 | U10: 370.7737118 | V10: MON + | W10: 59 | X10: V5 H55 | Y10: =IF(AND(H10<1920),VLOOKUP(I10,Feuil2!$F$10:$P$28,11),IF(AND(H10>=1920,H10<1939),VLOOKUP(I10,Feuil2!$F$10:$P$28,11),IF(AND(H10>=1938,H10<1943),VLOOKUP(I10,Feuil2!$F$10:$P$28,10),IF(AND(H10>=1943,H10<1948),VLOOKUP(I10,Feuil2!$F$10:$P$28,9),IF(AND(H10>=1948,H10<1953),VLOOKUP(I10,Feuil2!$F$10:$P$28,8),IF(AND(H10>=1953,H10<1958),VLOOKUP(I10,Feuil2!$F$10:$P$28,7),IF(AND(H10>=1958,H10<1963),VLOOKUP(I10,Feuil2!$F$10:$P$28,6),IF(AND(H10>=1963,H10<1968),VLOOKUP(I10,Feuil2!$F$10:$P$28,5),IF(AND(H10>=1968,H10<1973),VLOOKUP(I10,Feuil2!$F$10:$P$28,4),IF(AND(H10>=1973,H10<1978),VLOOKUP(I10,Feuil2!$F$10:$P$28,3),IF(AND(H10>=1978,H10<1983),VLOOKUP(I10,Feuil2!$F$10:$P$28,2),VLOOKUP(I10,Feuil2!$F$10:$P$28,2)))))))))))) -> VH55-69 | AA10: =T10-HLOOKUP(Y10,Feuil2!$C$1:$CD$9,2,FALSE) -> 199 | AB10: =T10-HLOOKUP(Y10,Feuil2!$C$1:$CD$9,3,FALSE) -> 94 | AC10: =T10-HLOOKUP(Y10,Feuil2!$C$1:$CD$9,4,FALSE) -> 84 | AD10: =T10-HLOOKUP(Y10,Feuil2!$C$1:$CD$9,5,FALSE) -> 74 | AE10: =T10-HLOOKUP(Y10,Feuil2!$C$1:$CD$9,6,FALSE) -> 59 | AF10: =T10-HLOOKUP(Y10,Feuil2!$C$1:$CD$9,7,FALSE) -> -801 | AG10: =T10-HLOOKUP(Y10,Feuil2!$C$1:$CD$9,8,FALSE) -> -801 | AH10: =T10-HLOOKUP(Y10,Feuil2!$C$1:$CD$9,9,FALSE) -> -801 | AP10: MON + | AQ10: 55 | AS10: =IF(AQ10,VLOOKUP(AQ10,HOM!$AS$389:$AT$444,2)) -> 1.385
A11: H | H11: 1957 | I11: 77 | K11: F | N11: 65 | O11: =IF(I11="","",IF(MAXA(L11:N11)<=0,0,MAXA(L11:N11))) -> 65 | P11: 80 | S11: 80 | T11: 145 | U11: 276.4550181 | V11: MON + | W11: 8 | X11: V6 H60 | Y11: =IF(AND(H11<1920),VLOOKUP(I11,Feuil2!$F$10:$P$28,11),IF(AND(H11>=1920,H11<1939),VLOOKUP(I11,Feuil2!$F$10:$P$28,11),IF(AND(H11>=1938,H11<1943),VLOOKUP(I11,Feuil2!$F$10:$P$28,10),IF(AND(H11>=1943,H11<1948),VLOOKUP(I11,Feuil2!$F$10:$P$28,9),IF(AND(H11>=1948,H11<1953),VLOOKUP(I11,Feuil2!$F$10:$P$28,8),IF(AND(H11>=1953,H11<1958),VLOOKUP(I11,Feuil2!$F$10:$P$28,7),IF(AND(H11>=1958,H11<1963),VLOOKUP(I11,Feuil2!$F$10:$P$28,6),IF(AND(H11>=1963,H11<1968),VLOOKUP(I11,Feuil2!$F$10:$P$28,5),IF(AND(H11>=1968,H11<1973),VLOOKUP(I11,Feuil2!$F$10:$P$28,4),IF(AND(H11>=1973,H11<1978),VLOOKUP(I11,Feuil2!$F$10:$P$28,3),IF(AND(H11>=1978,H11<1983),VLOOKUP(I11,Feuil2!$F$10:$P$28,2),VLOOKUP(I11,Feuil2!$F$10:$P$28,2)))))))))))) -> VH60-77 | AA11: =T11-HLOOKUP(Y11,Feuil2!$C$1:$CD$9,2,FALSE) -> 145 | AB11: =T11-HLOOKUP(Y11,Feuil2!$C$1:$CD$9,3,FALSE) -> 43 | AC11: =T11-HLOOKUP(Y11,Feuil2!$C$1:$CD$9,4,FALSE) -> 33 | AD11: =T11-HLOOKUP(Y11,Feuil2!$C$1:$CD$9,5,FALSE) -> 23 | AE11: =T11-HLOOKUP(Y11,Feuil2!$C$1:$CD$9,6,FALSE) -> 8 | AF11: =T11-HLOOKUP(Y11,Feuil2!$C$1:$CD$9,7,FALSE) -> -855 | AG11: =T11-HLOOKUP(Y11,Feuil2!$C$1:$CD$9,8,FALSE) -> -855 | AH11: =T11-HLOOKUP(Y11,Feuil2!$C$1:$CD$9,9,FALSE) -> -855 | AP11: MON + | AQ11: 60 | AS11: =IF(AQ11,VLOOKUP(AQ11,HOM!$AS$389:$AT$444,2)) -> 1.514
A12: H | H12: 1952 | I12: 69 | K12: F | N12: 65 | O12: 65 | P12: 80 | S12: 80 | T12: 145 | U12: 324.3891624 | V12: MON + | W12: 33 | X12: V7 H65 | Y12: =IF(AND(H12<1920),VLOOKUP(I12,Feuil2!$F$10:$P$28,11),IF(AND(H12>=1920,H12<1939),VLOOKUP(I12,Feuil2!$F$10:$P$28,11),IF(AND(H12>=1938,H12<1943),VLOOKUP(I12,Feuil2!$F$10:$P$28,10),IF(AND(H12>=1943,H12<1948),VLOOKUP(I12,Feuil2!$F$10:$P$28,9),IF(AND(H12>=1948,H12<1953),VLOOKUP(I12,Feuil2!$F$10:$P$28,8),IF(AND(H12>=1953,H12<1958),VLOOKUP(I12,Feuil2!$F$10:$P$28,7),IF(AND(H12>=1958,H12<1963),VLOOKUP(I12,Feuil2!$F$10:$P$28,6),IF(AND(H12>=1963,H12<1968),VLOOKUP(I12,Feuil2!$F$10:$P$28,5),IF(AND(H12>=1968,H12<1973),VLOOKUP(I12,Feuil2!$F$10:$P$28,4),IF(AND(H12>=1973,H12<1978),VLOOKUP(I12,Feuil2!$F$10:$P$28,3),IF(AND(H12>=1978,H12<1983),VLOOKUP(I12,Feuil2!$F$10:$P$28,2),VLOOKUP(I12,Feuil2!$F$10:$P$28,2)))))))))))) -> VH65-69 | AA12: =T12-HLOOKUP(Y12,Feuil2!$C$1:$CD$9,2,FALSE) -> 145 | AB12: =T12-HLOOKUP(Y12,Feuil2!$C$1:$CD$9,3,FALSE) -> 68 | AC12: =T12-HLOOKUP(Y12,Feuil2!$C$1:$CD$9,4,FALSE) -> 58 | AD12: =T12-HLOOKUP(Y12,Feuil2!$C$1:$CD$9,5,FALSE) -> 48 | AE12: =T12-HLOOKUP(Y12,Feuil2!$C$1:$CD$9,6,FALSE) -> 33 | AF12: =T12-HLOOKUP(Y12,Feuil2!$C$1:$CD$9,7,FALSE) -> -855 | AG12: =T12-HLOOKUP(Y12,Feuil2!$C$1:$CD$9,8,FALSE) -> -855 | AH12: =T12-HLOOKUP(Y12,Feuil2!$C$1:$CD$9,9,FALSE) -> -855 | AP12: MON + | AQ12: 65 | AS12: =IF(AQ12,VLOOKUP(AQ12,HOM!$AS$389:$AT$444,2)) -> 1.663
A13: H | H13: 1947 | I13: 77 | K13: F | N13: 65 | O13: 65 | P13: 80 | S13: 80 | T13: 145 | U13: 340.9124959 | V13: MON + | W13: 48 | X13: V8 H70 | Y13: =IF(AND(H13<1920),VLOOKUP(I13,Feuil2!$F$10:$P$28,11),IF(AND(H13>=1920,H13<1939),VLOOKUP(I13,Feuil2!$F$10:$P$28,11),IF(AND(H13>=1938,H13<1943),VLOOKUP(I13,Feuil2!$F$10:$P$28,10),IF(AND(H13>=1943,H13<1948),VLOOKUP(I13,Feuil2!$F$10:$P$28,9),IF(AND(H13>=1948,H13<1953),VLOOKUP(I13,Feuil2!$F$10:$P$28,8),IF(AND(H13>=1953,H13<1958),VLOOKUP(I13,Feuil2!$F$10:$P$28,7),IF(AND(H13>=1958,H13<1963),VLOOKUP(I13,Feuil2!$F$10:$P$28,6),IF(AND(H13>=1963,H13<1968),VLOOKUP(I13,Feuil2!$F$10:$P$28,5),IF(AND(H13>=1968,H13<1973),VLOOKUP(I13,Feuil2!$F$10:$P$28,4),IF(AND(H13>=1973,H13<1978),VLOOKUP(I13,Feuil2!$F$10:$P$28,3),IF(AND(H13>=1978,H13<1983),VLOOKUP(I13,Feuil2!$F$10:$P$28,2),VLOOKUP(I13,Feuil2!$F$10:$P$28,2)))))))))))) -> VH70-77 | AA13: =T13-HLOOKUP(Y13,Feuil2!$C$1:$CD$9,2,FALSE) -> 145 | AB13: =T13-HLOOKUP(Y13,Feuil2!$C$1:$CD$9,3,FALSE) -> 75 | AC13: =T13-HLOOKUP(Y13,Feuil2!$C$1:$CD$9,4,FALSE) -> 65 | AD13: =T13-HLOOKUP(Y13,Feuil2!$C$1:$CD$9,5,FALSE) -> 55 | AE13: =T13-HLOOKUP(Y13,Feuil2!$C$1:$CD$9,6,FALSE) -> 48 | AF13: =T13-HLOOKUP(Y13,Feuil2!$C$1:$CD$9,7,FALSE) -> -855 | AG13: =T13-HLOOKUP(Y13,Feuil2!$C$1:$CD$9,8,FALSE) -> -855 | AH13: =T13-HLOOKUP(Y13,Feuil2!$C$1:$CD$9,9,FALSE) -> -855 | AP13: MON + | AQ13: 70 | AS13: =IF(AQ13,VLOOKUP(AQ13,HOM!$AS$389:$AT$444,2)) -> 1.867
A14: H | H14: 1942 | I14: 75 | K14: F | N14: 65 | O14: 65 | P14: 80 | S14: 80 | T14: 145 | U14: 392.4371169 | V14: MON + | W14: 58 | X14: V9 H75 | Y14: =IF(AND(H14<1920),VLOOKUP(I14,Feuil2!$F$10:$P$28,11),IF(AND(H14>=1920,H14<1939),VLOOKUP(I14,Feuil2!$F$10:$P$28,11),IF(AND(H14>=1938,H14<1943),VLOOKUP(I14,Feuil2!$F$10:$P$28,10),IF(AND(H14>=1943,H14<1948),VLOOKUP(I14,Feuil2!$F$10:$P$28,9),IF(AND(H14>=1948,H14<1953),VLOOKUP(I14,Feuil2!$F$10:$P$28,8),IF(AND(H14>=1953,H14<1958),VLOOKUP(I14,Feuil2!$F$10:$P$28,7),IF(AND(H14>=1958,H14<1963),VLOOKUP(I14,Feuil2!$F$10:$P$28,6),IF(AND(H14>=1963,H14<1968),VLOOKUP(I14,Feuil2!$F$10:$P$28,5),IF(AND(H14>=1968,H14<1973),VLOOKUP(I14,Feuil2!$F$10:$P$28,4),IF(AND(H14>=1973,H14<1978),VLOOKUP(I14,Feuil2!$F$10:$P$28,3),IF(AND(H14>=1978,H14<1983),VLOOKUP(I14,Feuil2!$F$10:$P$28,2),VLOOKUP(I14,Feuil2!$F$10:$P$28,2)))))))))))) -> VH75-77 | AA14: =T14-HLOOKUP(Y14,Feuil2!$C$1:$CD$9,2,FALSE) -> 145 | AB14: =T14-HLOOKUP(Y14,Feuil2!$C$1:$CD$9,3,FALSE) -> 83 | AC14: =T14-HLOOKUP(Y14,Feuil2!$C$1:$CD$9,4,FALSE) -> 73 | AD14: =T14-HLOOKUP(Y14,Feuil2!$C$1:$CD$9,5,FALSE) -> 63 | AE14: =T14-HLOOKUP(Y14,Feuil2!$C$1:$CD$9,6,FALSE) -> 58 | AF14: =T14-HLOOKUP(Y14,Feuil2!$C$1:$CD$9,7,FALSE) -> -855 | AG14: =T14-HLOOKUP(Y14,Feuil2!$C$1:$CD$9,8,FALSE) -> -855 | AH14: =T14-HLOOKUP(Y14,Feuil2!$C$1:$CD$9,9,FALSE) -> -855 | AP14: MON + | AQ14: 75 | AS14: =IF(AQ14,VLOOKUP(AQ14,HOM!$AS$389:$AT$444,2)) -> 2.117
A15: H | H15: 1937 | I15: 65 | K15: F | N15: 30 | O15: 30 | P15: 40 | S15: 40 | T15: 70 | U15: 245.2816279 | V15: MON + | W15: 10 | X15: V10 H80+ | Y15: =IF(AND(H15<1920),VLOOKUP(I15,Feuil2!$F$10:$P$28,11),IF(AND(H15>=1920,H15<1939),VLOOKUP(I15,Feuil2!$F$10:$P$28,11),IF(AND(H15>=1938,H15<1943),VLOOKUP(I15,Feuil2!$F$10:$P$28,10),IF(AND(H15>=1943,H15<1948),VLOOKUP(I15,Feuil2!$F$10:$P$28,9),IF(AND(H15>=1948,H15<1953),VLOOKUP(I15,Feuil2!$F$10:$P$28,8),IF(AND(H15>=1953,H15<1958),VLOOKUP(I15,Feuil2!$F$10:$P$28,7),IF(AND(H15>=1958,H15<1963),VLOOKUP(I15,Feuil2!$F$10:$P$28,6),IF(AND(H15>=1963,H15<1968),VLOOKUP(I15,Feuil2!$F$10:$P$28,5),IF(AND(H15>=1968,H15<1973),VLOOKUP(I15,Feuil2!$F$10:$P$28,4),IF(AND(H15>=1973,H15<1978),VLOOKUP(I15,Feuil2!$F$10:$P$28,3),IF(AND(H15>=1978,H15<1983),VLOOKUP(I15,Feuil2!$F$10:$P$28,2),VLOOKUP(I15,Feuil2!$F$10:$P$28,2)))))))))))) -> VH80+-69 | AA15: =T15-HLOOKUP(Y15,Feuil2!$C$1:$CD$9,2,FALSE) -> 70 | AB15: =T15-HLOOKUP(Y15,Feuil2!$C$1:$CD$9,3,FALSE) -> 20 | AC15: =T15-HLOOKUP(Y15,Feuil2!$C$1:$CD$9,4,FALSE) -> 12 | AD15: =T15-HLOOKUP(Y15,Feuil2!$C$1:$CD$9,5,FALSE) -> 11 | AE15: =T15-HLOOKUP(Y15,Feuil2!$C$1:$CD$9,6,FALSE) -> 10 | AF15: =T15-HLOOKUP(Y15,Feuil2!$C$1:$CD$9,7,FALSE) -> -930 | AG15: =T15-HLOOKUP(Y15,Feuil2!$C$1:$CD$9,8,FALSE) -> -930 | AH15: =T15-HLOOKUP(Y15,Feuil2!$C$1:$CD$9,9,FALSE) -> -930 | AP15: MON + | AQ15: 80 | AS15: =IF(AQ15,VLOOKUP(AQ15,HOM!$AS$389:$AT$444,2)) -> 2.504
A16: H | X16: FALSE | Y16: =IF(AND(H16<1920),VLOOKUP(I16,Feuil2!$F$10:$P$28,11),IF(AND(H16>=1920,H16<1939),VLOOKUP(I16,Feuil2!$F$10:$P$28,11),IF(AND(H16>=1938,H16<1943),VLOOKUP(I16,Feuil2!$F$10:$P$28,10),IF(AND(H16>=1943,H16<1948),VLOOKUP(I16,Feuil2!$F$10:$P$28,9),IF(AND(H16>=1948,H16<1953),VLOOKUP(I16,Feuil2!$F$10:$P$28,8),IF(AND(H16>=1953,H16<1958),VLOOKUP(I16,Feuil2!$F$10:$P$28,7),IF(AND(H16>=1958,H16<1963),VLOOKUP(I16,Feuil2!$F$10:$P$28,6),IF(AND(H16>=1963,H16<1968),VLOOKUP(I16,Feuil2!$F$10:$P$28,5),IF(AND(H16>=1968,H16<1973),VLOOKUP(I16,Feuil2!$F$10:$P$28,4),IF(AND(H16>=1973,H16<1978),VLOOKUP(I16,Feuil2!$F$10:$P$28,3),IF(AND(H16>=1978,H16<1983),VLOOKUP(I16,Feuil2!$F$10:$P$28,2),VLOOKUP(I16,Feuil2!$F$10:$P$28,2)))))))))))) ->  | AA16: =T16-HLOOKUP(Y16,Feuil2!$C$1:$CD$9,2,FALSE) ->  | AB16: =T16-HLOOKUP(Y16,Feuil2!$C$1:$CD$9,3,FALSE) ->  | AC16: =T16-HLOOKUP(Y16,Feuil2!$C$1:$CD$9,4,FALSE) ->  | AD16: =T16-HLOOKUP(Y16,Feuil2!$C$1:$CD$9,5,FALSE) ->  | AE16: =T16-HLOOKUP(Y16,Feuil2!$C$1:$CD$9,6,FALSE) ->  | AF16: =T16-HLOOKUP(Y16,Feuil2!$C$1:$CD$9,7,FALSE) ->  | AG16: =T16-HLOOKUP(Y16,Feuil2!$C$1:$CD$9,8,FALSE) ->  | AH16: =T16-HLOOKUP(Y16,Feuil2!$C$1:$CD$9,9,FALSE) ->  | AQ16: 2017 | AS16: =IF(AQ16,VLOOKUP(AQ16,HOM!$AS$389:$AT$444,2)) -> 4.493
A17: H | X17: FALSE | Y17: =IF(AND(H17<1920),VLOOKUP(I17,Feuil2!$F$10:$P$28,11),IF(AND(H17>=1920,H17<1939),VLOOKUP(I17,Feuil2!$F$10:$P$28,11),IF(AND(H17>=1938,H17<1943),VLOOKUP(I17,Feuil2!$F$10:$P$28,10),IF(AND(H17>=1943,H17<1948),VLOOKUP(I17,Feuil2!$F$10:$P$28,9),IF(AND(H17>=1948,H17<1953),VLOOKUP(I17,Feuil2!$F$10:$P$28,8),IF(AND(H17>=1953,H17<1958),VLOOKUP(I17,Feuil2!$F$10:$P$28,7),IF(AND(H17>=1958,H17<1963),VLOOKUP(I17,Feuil2!$F$10:$P$28,6),IF(AND(H17>=1963,H17<1968),VLOOKUP(I17,Feuil2!$F$10:$P$28,5),IF(AND(H17>=1968,H17<1973),VLOOKUP(I17,Feuil2!$F$10:$P$28,4),IF(AND(H17>=1973,H17<1978),VLOOKUP(I17,Feuil2!$F$10:$P$28,3),IF(AND(H17>=1978,H17<1983),VLOOKUP(I17,Feuil2!$F$10:$P$28,2),VLOOKUP(I17,Feuil2!$F$10:$P$28,2)))))))))))) ->  | AA17: =T17-HLOOKUP(Y17,Feuil2!$C$1:$CD$9,2,FALSE) ->  | AB17: =T17-HLOOKUP(Y17,Feuil2!$C$1:$CD$9,3,FALSE) ->  | AC17: =T17-HLOOKUP(Y17,Feuil2!$C$1:$CD$9,4,FALSE) ->  | AD17: =T17-HLOOKUP(Y17,Feuil2!$C$1:$CD$9,5,FALSE) ->  | AE17: =T17-HLOOKUP(Y17,Feuil2!$C$1:$CD$9,6,FALSE) ->  | AF17: =T17-HLOOKUP(Y17,Feuil2!$C$1:$CD$9,7,FALSE) ->  | AG17: =T17-HLOOKUP(Y17,Feuil2!$C$1:$CD$9,8,FALSE) ->  | AH17: =T17-HLOOKUP(Y17,Feuil2!$C$1:$CD$9,9,FALSE) ->  | AQ17: 2017 | AS17: =IF(AQ17,VLOOKUP(AQ17,HOM!$AS$389:$AT$444,2)) -> 4.493
A18: H | X18: FALSE | Y18: =IF(AND(H18<1920),VLOOKUP(I18,Feuil2!$F$10:$P$28,11),IF(AND(H18>=1920,H18<1939),VLOOKUP(I18,Feuil2!$F$10:$P$28,11),IF(AND(H18>=1938,H18<1943),VLOOKUP(I18,Feuil2!$F$10:$P$28,10),IF(AND(H18>=1943,H18<1948),VLOOKUP(I18,Feuil2!$F$10:$P$28,9),IF(AND(H18>=1948,H18<1953),VLOOKUP(I18,Feuil2!$F$10:$P$28,8),IF(AND(H18>=1953,H18<1958),VLOOKUP(I18,Feuil2!$F$10:$P$28,7),IF(AND(H18>=1958,H18<1963),VLOOKUP(I18,Feuil2!$F$10:$P$28,6),IF(AND(H18>=1963,H18<1968),VLOOKUP(I18,Feuil2!$F$10:$P$28,5),IF(AND(H18>=1968,H18<1973),VLOOKUP(I18,Feuil2!$F$10:$P$28,4),IF(AND(H18>=1973,H18<1978),VLOOKUP(I18,Feuil2!$F$10:$P$28,3),IF(AND(H18>=1978,H18<1983),VLOOKUP(I18,Feuil2!$F$10:$P$28,2),VLOOKUP(I18,Feuil2!$F$10:$P$28,2)))))))))))) ->  | AA18: =T18-HLOOKUP(Y18,Feuil2!$C$1:$CD$9,2,FALSE) ->  | AB18: =T18-HLOOKUP(Y18,Feuil2!$C$1:$CD$9,3,FALSE) ->  | AC18: =T18-HLOOKUP(Y18,Feuil2!$C$1:$CD$9,4,FALSE) ->  | AD18: =T18-HLOOKUP(Y18,Feuil2!$C$1:$CD$9,5,FALSE) ->  | AE18: =T18-HLOOKUP(Y18,Feuil2!$C$1:$CD$9,6,FALSE) ->  | AF18: =T18-HLOOKUP(Y18,Feuil2!$C$1:$CD$9,7,FALSE) ->  | AG18: =T18-HLOOKUP(Y18,Feuil2!$C$1:$CD$9,8,FALSE) ->  | AH18: =T18-HLOOKUP(Y18,Feuil2!$C$1:$CD$9,9,FALSE) ->  | AQ18: 2017 | AS18: =IF(AQ18,VLOOKUP(AQ18,HOM!$AS$389:$AT$444,2)) -> 4.493
A19: H | X19: FALSE | Y19: =IF(AND(H19<1920),VLOOKUP(I19,Feuil2!$F$10:$P$28,11),IF(AND(H19>=1920,H19<1939),VLOOKUP(I19,Feuil2!$F$10:$P$28,11),IF(AND(H19>=1938,H19<1943),VLOOKUP(I19,Feuil2!$F$10:$P$28,10),IF(AND(H19>=1943,H19<1948),VLOOKUP(I19,Feuil2!$F$10:$P$28,9),IF(AND(H19>=1948,H19<1953),VLOOKUP(I19,Feuil2!$F$10:$P$28,8),IF(AND(H19>=1953,H19<1958),VLOOKUP(I19,Feuil2!$F$10:$P$28,7),IF(AND(H19>=1958,H19<1963),VLOOKUP(I19,Feuil2!$F$10:$P$28,6),IF(AND(H19>=1963,H19<1968),VLOOKUP(I19,Feuil2!$F$10:$P$28,5),IF(AND(H19>=1968,H19<1973),VLOOKUP(I19,Feuil2!$F$10:$P$28,4),IF(AND(H19>=1973,H19<1978),VLOOKUP(I19,Feuil2!$F$10:$P$28,3),IF(AND(H19>=1978,H19<1983),VLOOKUP(I19,Feuil2!$F$10:$P$28,2),VLOOKUP(I19,Feuil2!$F$10:$P$28,2)))))))))))) ->  | AA19: =T19-HLOOKUP(Y19,Feuil2!$C$1:$CD$9,2,FALSE) ->  | AB19: =T19-HLOOKUP(Y19,Feuil2!$C$1:$CD$9,3,FALSE) ->  | AC19: =T19-HLOOKUP(Y19,Feuil2!$C$1:$CD$9,4,FALSE) ->  | AD19: =T19-HLOOKUP(Y19,Feuil2!$C$1:$CD$9,5,FALSE) ->  | AE19: =T19-HLOOKUP(Y19,Feuil2!$C$1:$CD$9,6,FALSE) ->  | AF19: =T19-HLOOKUP(Y19,Feuil2!$C$1:$CD$9,7,FALSE) ->  | AG19: =T19-HLOOKUP(Y19,Feuil2!$C$1:$CD$9,8,FALSE) ->  | AH19: =T19-HLOOKUP(Y19,Feuil2!$C$1:$CD$9,9,FALSE) ->  | AQ19: 2017 | AS19: =IF(AQ19,VLOOKUP(AQ19,HOM!$AS$389:$AT$444,2)) -> 4.493
A20: H | X20: FALSE | Y20: =IF(AND(H20<1920),VLOOKUP(I20,Feuil2!$F$10:$P$28,11),IF(AND(H20>=1920,H20<1939),VLOOKUP(I20,Feuil2!$F$10:$P$28,11),IF(AND(H20>=1938,H20<1943),VLOOKUP(I20,Feuil2!$F$10:$P$28,10),IF(AND(H20>=1943,H20<1948),VLOOKUP(I20,Feuil2!$F$10:$P$28,9),IF(AND(H20>=1948,H20<1953),VLOOKUP(I20,Feuil2!$F$10:$P$28,8),IF(AND(H20>=1953,H20<1958),VLOOKUP(I20,Feuil2!$F$10:$P$28,7),IF(AND(H20>=1958,H20<1963),VLOOKUP(I20,Feuil2!$F$10:$P$28,6),IF(AND(H20>=1963,H20<1968),VLOOKUP(I20,Feuil2!$F$10:$P$28,5),IF(AND(H20>=1968,H20<1973),VLOOKUP(I20,Feuil2!$F$10:$P$28,4),IF(AND(H20>=1973,H20<1978),VLOOKUP(I20,Feuil2!$F$10:$P$28,3),IF(AND(H20>=1978,H20<1983),VLOOKUP(I20,Feuil2!$F$10:$P$28,2),VLOOKUP(I20,Feuil2!$F$10:$P$28,2)))))))))))) ->  | AA20: =T20-HLOOKUP(Y20,Feuil2!$C$1:$CD$9,2,FALSE) ->  | AB20: =T20-HLOOKUP(Y20,Feuil2!$C$1:$CD$9,3,FALSE) ->  | AC20: =T20-HLOOKUP(Y20,Feuil2!$C$1:$CD$9,4,FALSE) ->  | AD20: =T20-HLOOKUP(Y20,Feuil2!$C$1:$CD$9,5,FALSE) ->  | AE20: =T20-HLOOKUP(Y20,Feuil2!$C$1:$CD$9,6,FALSE) ->  | AF20: =T20-HLOOKUP(Y20,Feuil2!$C$1:$CD$9,7,FALSE) ->  | AG20: =T20-HLOOKUP(Y20,Feuil2!$C$1:$CD$9,8,FALSE) ->  | AH20: =T20-HLOOKUP(Y20,Feuil2!$C$1:$CD$9,9,FALSE) ->  | AQ20: 2017 | AS20: =IF(AQ20,VLOOKUP(AQ20,HOM!$AS$389:$AT$444,2)) -> 4.493
A21: H | X21: FALSE | Y21: =IF(AND(H21<1920),VLOOKUP(I21,Feuil2!$F$10:$P$28,11),IF(AND(H21>=1920,H21<1939),VLOOKUP(I21,Feuil2!$F$10:$P$28,11),IF(AND(H21>=1938,H21<1943),VLOOKUP(I21,Feuil2!$F$10:$P$28,10),IF(AND(H21>=1943,H21<1948),VLOOKUP(I21,Feuil2!$F$10:$P$28,9),IF(AND(H21>=1948,H21<1953),VLOOKUP(I21,Feuil2!$F$10:$P$28,8),IF(AND(H21>=1953,H21<1958),VLOOKUP(I21,Feuil2!$F$10:$P$28,7),IF(AND(H21>=1958,H21<1963),VLOOKUP(I21,Feuil2!$F$10:$P$28,6),IF(AND(H21>=1963,H21<1968),VLOOKUP(I21,Feuil2!$F$10:$P$28,5),IF(AND(H21>=1968,H21<1973),VLOOKUP(I21,Feuil2!$F$10:$P$28,4),IF(AND(H21>=1973,H21<1978),VLOOKUP(I21,Feuil2!$F$10:$P$28,3),IF(AND(H21>=1978,H21<1983),VLOOKUP(I21,Feuil2!$F$10:$P$28,2),VLOOKUP(I21,Feuil2!$F$10:$P$28,2)))))))))))) ->  | AA21: =T21-HLOOKUP(Y21,Feuil2!$C$1:$CD$9,2,FALSE) ->  | AB21: =T21-HLOOKUP(Y21,Feuil2!$C$1:$CD$9,3,FALSE) ->  | AC21: =T21-HLOOKUP(Y21,Feuil2!$C$1:$CD$9,4,FALSE) ->  | AD21: =T21-HLOOKUP(Y21,Feuil2!$C$1:$CD$9,5,FALSE) ->  | AE21: =T21-HLOOKUP(Y21,Feuil2!$C$1:$CD$9,6,FALSE) ->  | AF21: =T21-HLOOKUP(Y21,Feuil2!$C$1:$CD$9,7,FALSE) ->  | AG21: =T21-HLOOKUP(Y21,Feuil2!$C$1:$CD$9,8,FALSE) ->  | AH21: =T21-HLOOKUP(Y21,Feuil2!$C$1:$CD$9,9,FALSE) ->  | AQ21: 2017 | AS21: =IF(AQ21,VLOOKUP(AQ21,HOM!$AS$389:$AT$444,2)) -> 4.493
A22: H | X22: FALSE | Y22: =IF(AND(H22<1920),VLOOKUP(I22,Feuil2!$F$10:$P$28,11),IF(AND(H22>=1920,H22<1939),VLOOKUP(I22,Feuil2!$F$10:$P$28,11),IF(AND(H22>=1938,H22<1943),VLOOKUP(I22,Feuil2!$F$10:$P$28,10),IF(AND(H22>=1943,H22<1948),VLOOKUP(I22,Feuil2!$F$10:$P$28,9),IF(AND(H22>=1948,H22<1953),VLOOKUP(I22,Feuil2!$F$10:$P$28,8),IF(AND(H22>=1953,H22<1958),VLOOKUP(I22,Feuil2!$F$10:$P$28,7),IF(AND(H22>=1958,H22<1963),VLOOKUP(I22,Feuil2!$F$10:$P$28,6),IF(AND(H22>=1963,H22<1968),VLOOKUP(I22,Feuil2!$F$10:$P$28,5),IF(AND(H22>=1968,H22<1973),VLOOKUP(I22,Feuil2!$F$10:$P$28,4),IF(AND(H22>=1973,H22<1978),VLOOKUP(I22,Feuil2!$F$10:$P$28,3),IF(AND(H22>=1978,H22<1983),VLOOKUP(I22,Feuil2!$F$10:$P$28,2),VLOOKUP(I22,Feuil2!$F$10:$P$28,2)))))))))))) ->  | AA22: =T22-HLOOKUP(Y22,Feuil2!$C$1:$CD$9,2,FALSE) ->  | AB22: =T22-HLOOKUP(Y22,Feuil2!$C$1:$CD$9,3,FALSE) ->  | AC22: =T22-HLOOKUP(Y22,Feuil2!$C$1:$CD$9,4,FALSE) ->  | AD22: =T22-HLOOKUP(Y22,Feuil2!$C$1:$CD$9,5,FALSE) ->  | AE22: =T22-HLOOKUP(Y22,Feuil2!$C$1:$CD$9,6,FALSE) ->  | AF22: =T22-HLOOKUP(Y22,Feuil2!$C$1:$CD$9,7,FALSE) ->  | AG22: =T22-HLOOKUP(Y22,Feuil2!$C$1:$CD$9,8,FALSE) ->  | AH22: =T22-HLOOKUP(Y22,Feuil2!$C$1:$CD$9,9,FALSE) ->  | AQ22: 2017 | AS22: =IF(AQ22,VLOOKUP(AQ22,HOM!$AS$389:$AT$444,2)) -> 4.493
A23: H | X23: FALSE | Y23: =IF(AND(H23<1920),VLOOKUP(I23,Feuil2!$F$10:$P$28,11),IF(AND(H23>=1920,H23<1939),VLOOKUP(I23,Feuil2!$F$10:$P$28,11),IF(AND(H23>=1938,H23<1943),VLOOKUP(I23,Feuil2!$F$10:$P$28,10),IF(AND(H23>=1943,H23<1948),VLOOKUP(I23,Feuil2!$F$10:$P$28,9),IF(AND(H23>=1948,H23<1953),VLOOKUP(I23,Feuil2!$F$10:$P$28,8),IF(AND(H23>=1953,H23<1958),VLOOKUP(I23,Feuil2!$F$10:$P$28,7),IF(AND(H23>=1958,H23<1963),VLOOKUP(I23,Feuil2!$F$10:$P$28,6),IF(AND(H23>=1963,H23<1968),VLOOKUP(I23,Feuil2!$F$10:$P$28,5),IF(AND(H23>=1968,H23<1973),VLOOKUP(I23,Feuil2!$F$10:$P$28,4),IF(AND(H23>=1973,H23<1978),VLOOKUP(I23,Feuil2!$F$10:$P$28,3),IF(AND(H23>=1978,H23<1983),VLOOKUP(I23,Feuil2!$F$10:$P$28,2),VLOOKUP(I23,Feuil2!$F$10:$P$28,2)))))))))))) ->  | AA23: =T23-HLOOKUP(Y23,Feuil2!$C$1:$CD$9,2,FALSE) ->  | AB23: =T23-HLOOKUP(Y23,Feuil2!$C$1:$CD$9,3,FALSE) ->  | AC23: =T23-HLOOKUP(Y23,Feuil2!$C$1:$CD$9,4,FALSE) ->  | AD23: =T23-HLOOKUP(Y23,Feuil2!$C$1:$CD$9,5,FALSE) ->  | AE23: =T23-HLOOKUP(Y23,Feuil2!$C$1:$CD$9,6,FALSE) ->  | AF23: =T23-HLOOKUP(Y23,Feuil2!$C$1:$CD$9,7,FALSE) ->  | AG23: =T23-HLOOKUP(Y23,Feuil2!$C$1:$CD$9,8,FALSE) ->  | AH23: =T23-HLOOKUP(Y23,Feuil2!$C$1:$CD$9,9,FALSE) ->  | AQ23: 2017 | AS23: =IF(AQ23,VLOOKUP(AQ23,HOM!$AS$389:$AT$444,2)) -> 4.493
A24: H | X24: FALSE | Y24: =IF(AND(H24<1920),VLOOKUP(I24,Feuil2!$F$10:$P$28,11),IF(AND(H24>=1920,H24<1939),VLOOKUP(I24,Feuil2!$F$10:$P$28,11),IF(AND(H24>=1938,H24<1943),VLOOKUP(I24,Feuil2!$F$10:$P$28,10),IF(AND(H24>=1943,H24<1948),VLOOKUP(I24,Feuil2!$F$10:$P$28,9),IF(AND(H24>=1948,H24<1953),VLOOKUP(I24,Feuil2!$F$10:$P$28,8),IF(AND(H24>=1953,H24<1958),VLOOKUP(I24,Feuil2!$F$10:$P$28,7),IF(AND(H24>=1958,H24<1963),VLOOKUP(I24,Feuil2!$F$10:$P$28,6),IF(AND(H24>=1963,H24<1968),VLOOKUP(I24,Feuil2!$F$10:$P$28,5),IF(AND(H24>=1968,H24<1973),VLOOKUP(I24,Feuil2!$F$10:$P$28,4),IF(AND(H24>=1973,H24<1978),VLOOKUP(I24,Feuil2!$F$10:$P$28,3),IF(AND(H24>=1978,H24<1983),VLOOKUP(I24,Feuil2!$F$10:$P$28,2),VLOOKUP(I24,Feuil2!$F$10:$P$28,2)))))))))))) ->  | AA24: =T24-HLOOKUP(Y24,Feuil2!$C$1:$CD$9,2,FALSE) ->  | AB24: =T24-HLOOKUP(Y24,Feuil2!$C$1:$CD$9,3,FALSE) ->  | AC24: =T24-HLOOKUP(Y24,Feuil2!$C$1:$CD$9,4,FALSE) ->  | AD24: =T24-HLOOKUP(Y24,Feuil2!$C$1:$CD$9,5,FALSE) ->  | AE24: =T24-HLOOKUP(Y24,Feuil2!$C$1:$CD$9,6,FALSE) ->  | AF24: =T24-HLOOKUP(Y24,Feuil2!$C$1:$CD$9,7,FALSE) ->  | AG24: =T24-HLOOKUP(Y24,Feuil2!$C$1:$CD$9,8,FALSE) ->  | AH24: =T24-HLOOKUP(Y24,Feuil2!$C$1:$CD$9,9,FALSE) ->  | AQ24: 2017 | AS24: =IF(AQ24,VLOOKUP(AQ24,HOM!$AS$389:$AT$444,2)) -> 4.493
A25: H | X25: FALSE | Y25: =IF(AND(H25<1920),VLOOKUP(I25,Feuil2!$F$10:$P$28,11),IF(AND(H25>=1920,H25<1939),VLOOKUP(I25,Feuil2!$F$10:$P$28,11),IF(AND(H25>=1938,H25<1943),VLOOKUP(I25,Feuil2!$F$10:$P$28,10),IF(AND(H25>=1943,H25<1948),VLOOKUP(I25,Feuil2!$F$10:$P$28,9),IF(AND(H25>=1948,H25<1953),VLOOKUP(I25,Feuil2!$F$10:$P$28,8),IF(AND(H25>=1953,H25<1958),VLOOKUP(I25,Feuil2!$F$10:$P$28,7),IF(AND(H25>=1958,H25<1963),VLOOKUP(I25,Feuil2!$F$10:$P$28,6),IF(AND(H25>=1963,H25<1968),VLOOKUP(I25,Feuil2!$F$10:$P$28,5),IF(AND(H25>=1968,H25<1973),VLOOKUP(I25,Feuil2!$F$10:$P$28,4),IF(AND(H25>=1973,H25<1978),VLOOKUP(I25,Feuil2!$F$10:$P$28,3),IF(AND(H25>=1978,H25<1983),VLOOKUP(I25,Feuil2!$F$10:$P$28,2),VLOOKUP(I25,Feuil2!$F$10:$P$28,2)))))))))))) ->  | AA25: =T25-HLOOKUP(Y25,Feuil2!$C$1:$CD$9,2,FALSE) ->  | AB25: =T25-HLOOKUP(Y25,Feuil2!$C$1:$CD$9,3,FALSE) ->  | AC25: =T25-HLOOKUP(Y25,Feuil2!$C$1:$CD$9,4,FALSE) ->  | AD25: =T25-HLOOKUP(Y25,Feuil2!$C$1:$CD$9,5,FALSE) ->  | AE25: =T25-HLOOKUP(Y25,Feuil2!$C$1:$CD$9,6,FALSE) ->  | AF25: =T25-HLOOKUP(Y25,Feuil2!$C$1:$CD$9,7,FALSE) ->  | AG25: =T25-HLOOKUP(Y25,Feuil2!$C$1:$CD$9,8,FALSE) ->  | AH25: =T25-HLOOKUP(Y25,Feuil2!$C$1:$CD$9,9,FALSE) ->  | AQ25: 2017 | AS25: =IF(AQ25,VLOOKUP(AQ25,HOM!$AS$389:$AT$444,2)) -> 4.493
A26: H | X26: FALSE | Y26: =IF(AND(H26<1920),VLOOKUP(I26,Feuil2!$F$10:$P$28,11),IF(AND(H26>=1920,H26<1939),VLOOKUP(I26,Feuil2!$F$10:$P$28,11),IF(AND(H26>=1938,H26<1943),VLOOKUP(I26,Feuil2!$F$10:$P$28,10),IF(AND(H26>=1943,H26<1948),VLOOKUP(I26,Feuil2!$F$10:$P$28,9),IF(AND(H26>=1948,H26<1953),VLOOKUP(I26,Feuil2!$F$10:$P$28,8),IF(AND(H26>=1953,H26<1958),VLOOKUP(I26,Feuil2!$F$10:$P$28,7),IF(AND(H26>=1958,H26<1963),VLOOKUP(I26,Feuil2!$F$10:$P$28,6),IF(AND(H26>=1963,H26<1968),VLOOKUP(I26,Feuil2!$F$10:$P$28,5),IF(AND(H26>=1968,H26<1973),VLOOKUP(I26,Feuil2!$F$10:$P$28,4),IF(AND(H26>=1973,H26<1978),VLOOKUP(I26,Feuil2!$F$10:$P$28,3),IF(AND(H26>=1978,H26<1983),VLOOKUP(I26,Feuil2!$F$10:$P$28,2),VLOOKUP(I26,Feuil2!$F$10:$P$28,2)))))))))))) ->  | AA26: =T26-HLOOKUP(Y26,Feuil2!$C$1:$CD$9,2,FALSE) ->  | AB26: =T26-HLOOKUP(Y26,Feuil2!$C$1:$CD$9,3,FALSE) ->  | AC26: =T26-HLOOKUP(Y26,Feuil2!$C$1:$CD$9,4,FALSE) ->  | AD26: =T26-HLOOKUP(Y26,Feuil2!$C$1:$CD$9,5,FALSE) ->  | AE26: =T26-HLOOKUP(Y26,Feuil2!$C$1:$CD$9,6,FALSE) ->  | AF26: =T26-HLOOKUP(Y26,Feuil2!$C$1:$CD$9,7,FALSE) ->  | AG26: =T26-HLOOKUP(Y26,Feuil2!$C$1:$CD$9,8,FALSE) ->  | AH26: =T26-HLOOKUP(Y26,Feuil2!$C$1:$CD$9,9,FALSE) ->  | AQ26: 2017 | AS26: =IF(AQ26,VLOOKUP(AQ26,HOM!$AS$389:$AT$444,2)) -> 4.493
A27: H | X27: FALSE | Y27: =IF(AND(H27<1920),VLOOKUP(I27,Feuil2!$F$10:$P$28,11),IF(AND(H27>=1920,H27<1939),VLOOKUP(I27,Feuil2!$F$10:$P$28,11),IF(AND(H27>=1938,H27<1943),VLOOKUP(I27,Feuil2!$F$10:$P$28,10),IF(AND(H27>=1943,H27<1948),VLOOKUP(I27,Feuil2!$F$10:$P$28,9),IF(AND(H27>=1948,H27<1953),VLOOKUP(I27,Feuil2!$F$10:$P$28,8),IF(AND(H27>=1953,H27<1958),VLOOKUP(I27,Feuil2!$F$10:$P$28,7),IF(AND(H27>=1958,H27<1963),VLOOKUP(I27,Feuil2!$F$10:$P$28,6),IF(AND(H27>=1963,H27<1968),VLOOKUP(I27,Feuil2!$F$10:$P$28,5),IF(AND(H27>=1968,H27<1973),VLOOKUP(I27,Feuil2!$F$10:$P$28,4),IF(AND(H27>=1973,H27<1978),VLOOKUP(I27,Feuil2!$F$10:$P$28,3),IF(AND(H27>=1978,H27<1983),VLOOKUP(I27,Feuil2!$F$10:$P$28,2),VLOOKUP(I27,Feuil2!$F$10:$P$28,2)))))))))))) ->  | AA27: =T27-HLOOKUP(Y27,Feuil2!$C$1:$CD$9,2,FALSE) ->  | AB27: =T27-HLOOKUP(Y27,Feuil2!$C$1:$CD$9,3,FALSE) ->  | AC27: =T27-HLOOKUP(Y27,Feuil2!$C$1:$CD$9,4,FALSE) ->  | AD27: =T27-HLOOKUP(Y27,Feuil2!$C$1:$CD$9,5,FALSE) ->  | AE27: =T27-HLOOKUP(Y27,Feuil2!$C$1:$CD$9,6,FALSE) ->  | AF27: =T27-HLOOKUP(Y27,Feuil2!$C$1:$CD$9,7,FALSE) ->  | AG27: =T27-HLOOKUP(Y27,Feuil2!$C$1:$CD$9,8,FALSE) ->  | AH27: =T27-HLOOKUP(Y27,Feuil2!$C$1:$CD$9,9,FALSE) ->  | AQ27: 2017 | AS27: =IF(AQ27,VLOOKUP(AQ27,HOM!$AS$389:$AT$444,2)) -> 4.493
A28: H | X28: FALSE | Y28: =IF(AND(H28<1920),VLOOKUP(I28,Feuil2!$F$10:$P$28,11),IF(AND(H28>=1920,H28<1939),VLOOKUP(I28,Feuil2!$F$10:$P$28,11),IF(AND(H28>=1938,H28<1943),VLOOKUP(I28,Feuil2!$F$10:$P$28,10),IF(AND(H28>=1943,H28<1948),VLOOKUP(I28,Feuil2!$F$10:$P$28,9),IF(AND(H28>=1948,H28<1953),VLOOKUP(I28,Feuil2!$F$10:$P$28,8),IF(AND(H28>=1953,H28<1958),VLOOKUP(I28,Feuil2!$F$10:$P$28,7),IF(AND(H28>=1958,H28<1963),VLOOKUP(I28,Feuil2!$F$10:$P$28,6),IF(AND(H28>=1963,H28<1968),VLOOKUP(I28,Feuil2!$F$10:$P$28,5),IF(AND(H28>=1968,H28<1973),VLOOKUP(I28,Feuil2!$F$10:$P$28,4),IF(AND(H28>=1973,H28<1978),VLOOKUP(I28,Feuil2!$F$10:$P$28,3),IF(AND(H28>=1978,H28<1983),VLOOKUP(I28,Feuil2!$F$10:$P$28,2),VLOOKUP(I28,Feuil2!$F$10:$P$28,2)))))))))))) ->  | AA28: =T28-HLOOKUP(Y28,Feuil2!$C$1:$CD$9,2,FALSE) ->  | AB28: =T28-HLOOKUP(Y28,Feuil2!$C$1:$CD$9,3,FALSE) ->  | AC28: =T28-HLOOKUP(Y28,Feuil2!$C$1:$CD$9,4,FALSE) ->  | AD28: =T28-HLOOKUP(Y28,Feuil2!$C$1:$CD$9,5,FALSE) ->  | AE28: =T28-HLOOKUP(Y28,Feuil2!$C$1:$CD$9,6,FALSE) ->  | AF28: =T28-HLOOKUP(Y28,Feuil2!$C$1:$CD$9,7,FALSE) ->  | AG28: =T28-HLOOKUP(Y28,Feuil2!$C$1:$CD$9,8,FALSE) ->  | AH28: =T28-HLOOKUP(Y28,Feuil2!$C$1:$CD$9,9,FALSE) ->  | AQ28: 2017 | AS28: =IF(AQ28,VLOOKUP(AQ28,HOM!$AS$389:$AT$444,2)) -> 4.493
A29: H | X29: FALSE | Y29: =IF(AND(H29<1920),VLOOKUP(I29,Feuil2!$F$10:$P$28,11),IF(AND(H29>=1920,H29<1939),VLOOKUP(I29,Feuil2!$F$10:$P$28,11),IF(AND(H29>=1938,H29<1943),VLOOKUP(I29,Feuil2!$F$10:$P$28,10),IF(AND(H29>=1943,H29<1948),VLOOKUP(I29,Feuil2!$F$10:$P$28,9),IF(AND(H29>=1948,H29<1953),VLOOKUP(I29,Feuil2!$F$10:$P$28,8),IF(AND(H29>=1953,H29<1958),VLOOKUP(I29,Feuil2!$F$10:$P$28,7),IF(AND(H29>=1958,H29<1963),VLOOKUP(I29,Feuil2!$F$10:$P$28,6),IF(AND(H29>=1963,H29<1968),VLOOKUP(I29,Feuil2!$F$10:$P$28,5),IF(AND(H29>=1968,H29<1973),VLOOKUP(I29,Feuil2!$F$10:$P$28,4),IF(AND(H29>=1973,H29<1978),VLOOKUP(I29,Feuil2!$F$10:$P$28,3),IF(AND(H29>=1978,H29<1983),VLOOKUP(I29,Feuil2!$F$10:$P$28,2),VLOOKUP(I29,Feuil2!$F$10:$P$28,2)))))))))))) ->  | AA29: =T29-HLOOKUP(Y29,Feuil2!$C$1:$CD$9,2,FALSE) ->  | AB29: =T29-HLOOKUP(Y29,Feuil2!$C$1:$CD$9,3,FALSE) ->  | AC29: =T29-HLOOKUP(Y29,Feuil2!$C$1:$CD$9,4,FALSE) ->  | AD29: =T29-HLOOKUP(Y29,Feuil2!$C$1:$CD$9,5,FALSE) ->  | AE29: =T29-HLOOKUP(Y29,Feuil2!$C$1:$CD$9,6,FALSE) ->  | AF29: =T29-HLOOKUP(Y29,Feuil2!$C$1:$CD$9,7,FALSE) ->  | AG29: =T29-HLOOKUP(Y29,Feuil2!$C$1:$CD$9,8,FALSE) ->  | AH29: =T29-HLOOKUP(Y29,Feuil2!$C$1:$CD$9,9,FALSE) ->  | AQ29: 2017 | AS29: =IF(AQ29,VLOOKUP(AQ29,HOM!$AS$389:$AT$444,2)) -> 4.493
A30: H | X30: FALSE | Y30: =IF(AND(H30<1920),VLOOKUP(I30,Feuil2!$F$10:$P$28,11),IF(AND(H30>=1920,H30<1939),VLOOKUP(I30,Feuil2!$F$10:$P$28,11),IF(AND(H30>=1938,H30<1943),VLOOKUP(I30,Feuil2!$F$10:$P$28,10),IF(AND(H30>=1943,H30<1948),VLOOKUP(I30,Feuil2!$F$10:$P$28,9),IF(AND(H30>=1948,H30<1953),VLOOKUP(I30,Feuil2!$F$10:$P$28,8),IF(AND(H30>=1953,H30<1958),VLOOKUP(I30,Feuil2!$F$10:$P$28,7),IF(AND(H30>=1958,H30<1963),VLOOKUP(I30,Feuil2!$F$10:$P$28,6),IF(AND(H30>=1963,H30<1968),VLOOKUP(I30,Feuil2!$F$10:$P$28,5),IF(AND(H30>=1968,H30<1973),VLOOKUP(I30,Feuil2!$F$10:$P$28,4),IF(AND(H30>=1973,H30<1978),VLOOKUP(I30,Feuil2!$F$10:$P$28,3),IF(AND(H30>=1978,H30<1983),VLOOKUP(I30,Feuil2!$F$10:$P$28,2),VLOOKUP(I30,Feuil2!$F$10:$P$28,2)))))))))))) ->  | AA30: =T30-HLOOKUP(Y30,Feuil2!$C$1:$CD$9,2,FALSE) ->  | AB30: =T30-HLOOKUP(Y30,Feuil2!$C$1:$CD$9,3,FALSE) ->  | AC30: =T30-HLOOKUP(Y30,Feuil2!$C$1:$CD$9,4,FALSE) ->  | AD30: =T30-HLOOKUP(Y30,Feuil2!$C$1:$CD$9,5,FALSE) ->  | AE30: =T30-HLOOKUP(Y30,Feuil2!$C$1:$CD$9,6,FALSE) ->  | AF30: =T30-HLOOKUP(Y30,Feuil2!$C$1:$CD$9,7,FALSE) ->  | AG30: =T30-HLOOKUP(Y30,Feuil2!$C$1:$CD$9,8,FALSE) ->  | AH30: =T30-HLOOKUP(Y30,Feuil2!$C$1:$CD$9,9,FALSE) ->  | AQ30: 2017 | AS30: =IF(AQ30,VLOOKUP(AQ30,HOM!$AS$389:$AT$444,2)) -> 4.493
A31: H | X31: FALSE | Y31: =IF(AND(H31<1920),VLOOKUP(I31,Feuil2!$F$10:$P$28,11),IF(AND(H31>=1920,H31<1939),VLOOKUP(I31,Feuil2!$F$10:$P$28,11),IF(AND(H31>=1938,H31<1943),VLOOKUP(I31,Feuil2!$F$10:$P$28,10),IF(AND(H31>=1943,H31<1948),VLOOKUP(I31,Feuil2!$F$10:$P$28,9),IF(AND(H31>=1948,H31<1953),VLOOKUP(I31,Feuil2!$F$10:$P$28,8),IF(AND(H31>=1953,H31<1958),VLOOKUP(I31,Feuil2!$F$10:$P$28,7),IF(AND(H31>=1958,H31<1963),VLOOKUP(I31,Feuil2!$F$10:$P$28,6),IF(AND(H31>=1963,H31<1968),VLOOKUP(I31,Feuil2!$F$10:$P$28,5),IF(AND(H31>=1968,H31<1973),VLOOKUP(I31,Feuil2!$F$10:$P$28,4),IF(AND(H31>=1973,H31<1978),VLOOKUP(I31,Feuil2!$F$10:$P$28,3),IF(AND(H31>=1978,H31<1983),VLOOKUP(I31,Feuil2!$F$10:$P$28,2),VLOOKUP(I31,Feuil2!$F$10:$P$28,2)))))))))))) ->  | AA31: =T31-HLOOKUP(Y31,Feuil2!$C$1:$CD$9,2,FALSE) ->  | AB31: =T31-HLOOKUP(Y31,Feuil2!$C$1:$CD$9,3,FALSE) ->  | AC31: =T31-HLOOKUP(Y31,Feuil2!$C$1:$CD$9,4,FALSE) ->  | AD31: =T31-HLOOKUP(Y31,Feuil2!$C$1:$CD$9,5,FALSE) ->  | AE31: =T31-HLOOKUP(Y31,Feuil2!$C$1:$CD$9,6,FALSE) ->  | AF31: =T31-HLOOKUP(Y31,Feuil2!$C$1:$CD$9,7,FALSE) ->  | AG31: =T31-HLOOKUP(Y31,Feuil2!$C$1:$CD$9,8,FALSE) ->  | AH31: =T31-HLOOKUP(Y31,Feuil2!$C$1:$CD$9,9,FALSE) ->  | AQ31: 2017 | AS31: =IF(AQ31,VLOOKUP(AQ31,HOM!$AS$389:$AT$444,2)) -> 4.493
A32: H | X32: FALSE | Y32: =IF(AND(H32<1920),VLOOKUP(I32,Feuil2!$F$10:$P$28,11),IF(AND(H32>=1920,H32<1939),VLOOKUP(I32,Feuil2!$F$10:$P$28,11),IF(AND(H32>=1938,H32<1943),VLOOKUP(I32,Feuil2!$F$10:$P$28,10),IF(AND(H32>=1943,H32<1948),VLOOKUP(I32,Feuil2!$F$10:$P$28,9),IF(AND(H32>=1948,H32<1953),VLOOKUP(I32,Feuil2!$F$10:$P$28,8),IF(AND(H32>=1953,H32<1958),VLOOKUP(I32,Feuil2!$F$10:$P$28,7),IF(AND(H32>=1958,H32<1963),VLOOKUP(I32,Feuil2!$F$10:$P$28,6),IF(AND(H32>=1963,H32<1968),VLOOKUP(I32,Feuil2!$F$10:$P$28,5),IF(AND(H32>=1968,H32<1973),VLOOKUP(I32,Feuil2!$F$10:$P$28,4),IF(AND(H32>=1973,H32<1978),VLOOKUP(I32,Feuil2!$F$10:$P$28,3),IF(AND(H32>=1978,H32<1983),VLOOKUP(I32,Feuil2!$F$10:$P$28,2),VLOOKUP(I32,Feuil2!$F$10:$P$28,2)))))))))))) ->  | AA32: =T32-HLOOKUP(Y32,Feuil2!$C$1:$CD$9,2,FALSE) ->  | AB32: =T32-HLOOKUP(Y32,Feuil2!$C$1:$CD$9,3,FALSE) ->  | AC32: =T32-HLOOKUP(Y32,Feuil2!$C$1:$CD$9,4,FALSE) ->  | AD32: =T32-HLOOKUP(Y32,Feuil2!$C$1:$CD$9,5,FALSE) ->  | AE32: =T32-HLOOKUP(Y32,Feuil2!$C$1:$CD$9,6,FALSE) ->  | AF32: =T32-HLOOKUP(Y32,Feuil2!$C$1:$CD$9,7,FALSE) ->  | AG32: =T32-HLOOKUP(Y32,Feuil2!$C$1:$CD$9,8,FALSE) ->  | AH32: =T32-HLOOKUP(Y32,Feuil2!$C$1:$CD$9,9,FALSE) ->  | AQ32: 2017 | AS32: =IF(AQ32,VLOOKUP(AQ32,HOM!$AS$389:$AT$444,2)) -> 4.493
A33: H | X33: FALSE | Y33: =IF(AND(H33<1920),VLOOKUP(I33,Feuil2!$F$10:$P$28,11),IF(AND(H33>=1920,H33<1939),VLOOKUP(I33,Feuil2!$F$10:$P$28,11),IF(AND(H33>=1938,H33<1943),VLOOKUP(I33,Feuil2!$F$10:$P$28,10),IF(AND(H33>=1943,H33<1948),VLOOKUP(I33,Feuil2!$F$10:$P$28,9),IF(AND(H33>=1948,H33<1953),VLOOKUP(I33,Feuil2!$F$10:$P$28,8),IF(AND(H33>=1953,H33<1958),VLOOKUP(I33,Feuil2!$F$10:$P$28,7),IF(AND(H33>=1958,H33<1963),VLOOKUP(I33,Feuil2!$F$10:$P$28,6),IF(AND(H33>=1963,H33<1968),VLOOKUP(I33,Feuil2!$F$10:$P$28,5),IF(AND(H33>=1968,H33<1973),VLOOKUP(I33,Feuil2!$F$10:$P$28,4),IF(AND(H33>=1973,H33<1978),VLOOKUP(I33,Feuil2!$F$10:$P$28,3),IF(AND(H33>=1978,H33<1983),VLOOKUP(I33,Feuil2!$F$10:$P$28,2),VLOOKUP(I33,Feuil2!$F$10:$P$28,2)))))))))))) ->  | AA33: =T33-HLOOKUP(Y33,Feuil2!$C$1:$CD$9,2,FALSE) ->  | AB33: =T33-HLOOKUP(Y33,Feuil2!$C$1:$CD$9,3,FALSE) ->  | AC33: =T33-HLOOKUP(Y33,Feuil2!$C$1:$CD$9,4,FALSE) ->  | AD33: =T33-HLOOKUP(Y33,Feuil2!$C$1:$CD$9,5,FALSE) ->  | AE33: =T33-HLOOKUP(Y33,Feuil2!$C$1:$CD$9,6,FALSE) ->  | AF33: =T33-HLOOKUP(Y33,Feuil2!$C$1:$CD$9,7,FALSE) ->  | AG33: =T33-HLOOKUP(Y33,Feuil2!$C$1:$CD$9,8,FALSE) ->  | AH33: =T33-HLOOKUP(Y33,Feuil2!$C$1:$CD$9,9,FALSE) ->  | AQ33: 2017 | AS33: =IF(AQ33,VLOOKUP(AQ33,HOM!$AS$389:$AT$444,2)) -> 4.493
A34: H | X34: FALSE | Y34: =IF(AND(H34<1920),VLOOKUP(I34,Feuil2!$F$10:$P$28,11),IF(AND(H34>=1920,H34<1939),VLOOKUP(I34,Feuil2!$F$10:$P$28,11),IF(AND(H34>=1938,H34<1943),VLOOKUP(I34,Feuil2!$F$10:$P$28,10),IF(AND(H34>=1943,H34<1948),VLOOKUP(I34,Feuil2!$F$10:$P$28,9),IF(AND(H34>=1948,H34<1953),VLOOKUP(I34,Feuil2!$F$10:$P$28,8),IF(AND(H34>=1953,H34<1958),VLOOKUP(I34,Feuil2!$F$10:$P$28,7),IF(AND(H34>=1958,H34<1963),VLOOKUP(I34,Feuil2!$F$10:$P$28,6),IF(AND(H34>=1963,H34<1968),VLOOKUP(I34,Feuil2!$F$10:$P$28,5),IF(AND(H34>=1968,H34<1973),VLOOKUP(I34,Feuil2!$F$10:$P$28,4),IF(AND(H34>=1973,H34<1978),VLOOKUP(I34,Feuil2!$F$10:$P$28,3),IF(AND(H34>=1978,H34<1983),VLOOKUP(I34,Feuil2!$F$10:$P$28,2),VLOOKUP(I34,Feuil2!$F$10:$P$28,2)))))))))))) ->  | AA34: =T34-HLOOKUP(Y34,Feuil2!$C$1:$CD$9,2,FALSE) ->  | AB34: =T34-HLOOKUP(Y34,Feuil2!$C$1:$CD$9,3,FALSE) ->  | AC34: =T34-HLOOKUP(Y34,Feuil2!$C$1:$CD$9,4,FALSE) ->  | AD34: =T34-HLOOKUP(Y34,Feuil2!$C$1:$CD$9,5,FALSE) ->  | AE34: =T34-HLOOKUP(Y34,Feuil2!$C$1:$CD$9,6,FALSE) ->  | AF34: =T34-HLOOKUP(Y34,Feuil2!$C$1:$CD$9,7,FALSE) ->  | AG34: =T34-HLOOKUP(Y34,Feuil2!$C$1:$CD$9,8,FALSE) ->  | AH34: =T34-HLOOKUP(Y34,Feuil2!$C$1:$CD$9,9,FALSE) ->  | AQ34: 2017 | AS34: =IF(AQ34,VLOOKUP(AQ34,HOM!$AS$389:$AT$444,2)) -> 4.493
A35: H | X35: FALSE | Y35: =IF(AND(H35<1920),VLOOKUP(I35,Feuil2!$F$10:$P$28,11),IF(AND(H35>=1920,H35<1939),VLOOKUP(I35,Feuil2!$F$10:$P$28,11),IF(AND(H35>=1938,H35<1943),VLOOKUP(I35,Feuil2!$F$10:$P$28,10),IF(AND(H35>=1943,H35<1948),VLOOKUP(I35,Feuil2!$F$10:$P$28,9),IF(AND(H35>=1948,H35<1953),VLOOKUP(I35,Feuil2!$F$10:$P$28,8),IF(AND(H35>=1953,H35<1958),VLOOKUP(I35,Feuil2!$F$10:$P$28,7),IF(AND(H35>=1958,H35<1963),VLOOKUP(I35,Feuil2!$F$10:$P$28,6),IF(AND(H35>=1963,H35<1968),VLOOKUP(I35,Feuil2!$F$10:$P$28,5),IF(AND(H35>=1968,H35<1973),VLOOKUP(I35,Feuil2!$F$10:$P$28,4),IF(AND(H35>=1973,H35<1978),VLOOKUP(I35,Feuil2!$F$10:$P$28,3),IF(AND(H35>=1978,H35<1983),VLOOKUP(I35,Feuil2!$F$10:$P$28,2),VLOOKUP(I35,Feuil2!$F$10:$P$28,2)))))))))))) ->  | AA35: =T35-HLOOKUP(Y35,Feuil2!$C$1:$CD$9,2,FALSE) ->  | AB35: =T35-HLOOKUP(Y35,Feuil2!$C$1:$CD$9,3,FALSE) ->  | AC35: =T35-HLOOKUP(Y35,Feuil2!$C$1:$CD$9,4,FALSE) ->  | AD35: =T35-HLOOKUP(Y35,Feuil2!$C$1:$CD$9,5,FALSE) ->  | AE35: =T35-HLOOKUP(Y35,Feuil2!$C$1:$CD$9,6,FALSE) ->  | AF35: =T35-HLOOKUP(Y35,Feuil2!$C$1:$CD$9,7,FALSE) ->  | AG35: =T35-HLOOKUP(Y35,Feuil2!$C$1:$CD$9,8,FALSE) ->  | AH35: =T35-HLOOKUP(Y35,Feuil2!$C$1:$CD$9,9,FALSE) ->  | AQ35: 2017 | AS35: =IF(AQ35,VLOOKUP(AQ35,HOM!$AS$389:$AT$444,2)) -> 4.493
A36: H | X36: FALSE | Y36: =IF(AND(H36<1920),VLOOKUP(I36,Feuil2!$F$10:$P$28,11),IF(AND(H36>=1920,H36<1939),VLOOKUP(I36,Feuil2!$F$10:$P$28,11),IF(AND(H36>=1938,H36<1943),VLOOKUP(I36,Feuil2!$F$10:$P$28,10),IF(AND(H36>=1943,H36<1948),VLOOKUP(I36,Feuil2!$F$10:$P$28,9),IF(AND(H36>=1948,H36<1953),VLOOKUP(I36,Feuil2!$F$10:$P$28,8),IF(AND(H36>=1953,H36<1958),VLOOKUP(I36,Feuil2!$F$10:$P$28,7),IF(AND(H36>=1958,H36<1963),VLOOKUP(I36,Feuil2!$F$10:$P$28,6),IF(AND(H36>=1963,H36<1968),VLOOKUP(I36,Feuil2!$F$10:$P$28,5),IF(AND(H36>=1968,H36<1973),VLOOKUP(I36,Feuil2!$F$10:$P$28,4),IF(AND(H36>=1973,H36<1978),VLOOKUP(I36,Feuil2!$F$10:$P$28,3),IF(AND(H36>=1978,H36<1983),VLOOKUP(I36,Feuil2!$F$10:$P$28,2),VLOOKUP(I36,Feuil2!$F$10:$P$28,2)))))))))))) ->  | AA36: =T36-HLOOKUP(Y36,Feuil2!$C$1:$CD$9,2,FALSE) ->  | AB36: =T36-HLOOKUP(Y36,Feuil2!$C$1:$CD$9,3,FALSE) ->  | AC36: =T36-HLOOKUP(Y36,Feuil2!$C$1:$CD$9,4,FALSE) ->  | AD36: =T36-HLOOKUP(Y36,Feuil2!$C$1:$CD$9,5,FALSE) ->  | AE36: =T36-HLOOKUP(Y36,Feuil2!$C$1:$CD$9,6,FALSE) ->  | AF36: =T36-HLOOKUP(Y36,Feuil2!$C$1:$CD$9,7,FALSE) ->  | AG36: =T36-HLOOKUP(Y36,Feuil2!$C$1:$CD$9,8,FALSE) ->  | AH36: =T36-HLOOKUP(Y36,Feuil2!$C$1:$CD$9,9,FALSE) ->  | AQ36: 2017 | AS36: =IF(AQ36,VLOOKUP(AQ36,HOM!$AS$389:$AT$444,2)) -> 4.493
A37: H | X37: FALSE | Y37: =IF(AND(H37<1920),VLOOKUP(I37,Feuil2!$F$10:$P$28,11),IF(AND(H37>=1920,H37<1939),VLOOKUP(I37,Feuil2!$F$10:$P$28,11),IF(AND(H37>=1938,H37<1943),VLOOKUP(I37,Feuil2!$F$10:$P$28,10),IF(AND(H37>=1943,H37<1948),VLOOKUP(I37,Feuil2!$F$10:$P$28,9),IF(AND(H37>=1948,H37<1953),VLOOKUP(I37,Feuil2!$F$10:$P$28,8),IF(AND(H37>=1953,H37<1958),VLOOKUP(I37,Feuil2!$F$10:$P$28,7),IF(AND(H37>=1958,H37<1963),VLOOKUP(I37,Feuil2!$F$10:$P$28,6),IF(AND(H37>=1963,H37<1968),VLOOKUP(I37,Feuil2!$F$10:$P$28,5),IF(AND(H37>=1968,H37<1973),VLOOKUP(I37,Feuil2!$F$10:$P$28,4),IF(AND(H37>=1973,H37<1978),VLOOKUP(I37,Feuil2!$F$10:$P$28,3),IF(AND(H37>=1978,H37<1983),VLOOKUP(I37,Feuil2!$F$10:$P$28,2),VLOOKUP(I37,Feuil2!$F$10:$P$28,2)))))))))))) ->  | AA37: =T37-HLOOKUP(Y37,Feuil2!$C$1:$CD$9,2,FALSE) ->  | AB37: =T37-HLOOKUP(Y37,Feuil2!$C$1:$CD$9,3,FALSE) ->  | AC37: =T37-HLOOKUP(Y37,Feuil2!$C$1:$CD$9,4,FALSE) ->  | AD37: =T37-HLOOKUP(Y37,Feuil2!$C$1:$CD$9,5,FALSE) ->  | AE37: =T37-HLOOKUP(Y37,Feuil2!$C$1:$CD$9,6,FALSE) ->  | AF37: =T37-HLOOKUP(Y37,Feuil2!$C$1:$CD$9,7,FALSE) ->  | AG37: =T37-HLOOKUP(Y37,Feuil2!$C$1:$CD$9,8,FALSE) ->  | AH37: =T37-HLOOKUP(Y37,Feuil2!$C$1:$CD$9,9,FALSE) ->  | AQ37: 2017 | AS37: =IF(AQ37,VLOOKUP(AQ37,HOM!$AS$389:$AT$444,2)) -> 4.493
A38: H | O38: =IF(I38="","",IF(MAXA(L38:N38)<=0,0,MAXA(L38:N38))) ->  | S38: =IF(I38="","",IF(MAXA(P38:R38)<=0,0,MAXA(P38:R38))) ->  | T38: =IF(I38="","",IF(OR(O38=0,S38=0),0,O38+S38)) ->  | V38: =IF(I38="","",AP38) ->  | W38: =IF(I38="","",IF(AH38>=0,AH38,IF(AG38>=0,AG38,IF(AF38>=0,AF38,IF(AE38>=0,AE38,IF(AD38>=0,AD38,IF(AC38>=0,AC38,IF(AB38>=0,AB38,AA38)))))))) ->  | X38: =IF(AQ38<95,IF(AQ38<=90,VLOOKUP(AQ38,$AQ$255:$AR$444,2))) -> FALSE | Y38: =IF(AND(H38<1920),VLOOKUP(I38,Feuil2!$F$10:$P$28,11),IF(AND(H38>=1920,H38<1939),VLOOKUP(I38,Feuil2!$F$10:$P$28,11),IF(AND(H38>=1938,H38<1943),VLOOKUP(I38,Feuil2!$F$10:$P$28,10),IF(AND(H38>=1943,H38<1948),VLOOKUP(I38,Feuil2!$F$10:$P$28,9),IF(AND(H38>=1948,H38<1953),VLOOKUP(I38,Feuil2!$F$10:$P$28,8),IF(AND(H38>=1953,H38<1958),VLOOKUP(I38,Feuil2!$F$10:$P$28,7),IF(AND(H38>=1958,H38<1963),VLOOKUP(I38,Feuil2!$F$10:$P$28,6),IF(AND(H38>=1963,H38<1968),VLOOKUP(I38,Feuil2!$F$10:$P$28,5),IF(AND(H38>=1968,H38<1973),VLOOKUP(I38,Feuil2!$F$10:$P$28,4),IF(AND(H38>=1973,H38<1978),VLOOKUP(I38,Feuil2!$F$10:$P$28,3),IF(AND(H38>=1978,H38<1983),VLOOKUP(I38,Feuil2!$F$10:$P$28,2),VLOOKUP(I38,Feuil2!$F$10:$P$28,2)))))))))))) ->  | AA38: =T38-HLOOKUP(Y38,Feuil2!$C$1:$CD$9,2,FALSE) ->  | AB38: =T38-HLOOKUP(Y38,Feuil2!$C$1:$CD$9,3,FALSE) ->  | AC38: =T38-HLOOKUP(Y38,Feuil2!$C$1:$CD$9,4,FALSE) ->  | AD38: =T38-HLOOKUP(Y38,Feuil2!$C$1:$CD$9,5,FALSE) ->  | AE38: =T38-HLOOKUP(Y38,Feuil2!$C$1:$CD$9,6,FALSE) ->  | AF38: =T38-HLOOKUP(Y38,Feuil2!$C$1:$CD$9,7,FALSE) ->  | AG38: =T38-HLOOKUP(Y38,Feuil2!$C$1:$CD$9,8,FALSE) ->  | AH38: =T38-HLOOKUP(Y38,Feuil2!$C$1:$CD$9,9,FALSE) ->  | AP38: =IF(AH38>=0,$AH$5,IF(AG38>=0,$AG$5,IF(AF38>=0,$AF$5,IF(AE38>=0,$AE$5,IF(AD38>=0,$AD$5,IF(AC38>=0,$AC$5,IF(AB38>=0,$AB$5,IF(AA38>=0,$AA$5,$AI$5)))))))) ->  | AQ38: =2017-H38 -> 2017 | AS38: =IF(AQ38,VLOOKUP(AQ38,HOM!$AS$389:$AT$444,2)) -> 4.493
A39: H | X39: FALSE | Y39: =IF(AND(H39<1920),VLOOKUP(I39,Feuil2!$F$10:$P$28,11),IF(AND(H39>=1920,H39<1939),VLOOKUP(I39,Feuil2!$F$10:$P$28,11),IF(AND(H39>=1938,H39<1943),VLOOKUP(I39,Feuil2!$F$10:$P$28,10),IF(AND(H39>=1943,H39<1948),VLOOKUP(I39,Feuil2!$F$10:$P$28,9),IF(AND(H39>=1948,H39<1953),VLOOKUP(I39,Feuil2!$F$10:$P$28,8),IF(AND(H39>=1953,H39<1958),VLOOKUP(I39,Feuil2!$F$10:$P$28,7),IF(AND(H39>=1958,H39<1963),VLOOKUP(I39,Feuil2!$F$10:$P$28,6),IF(AND(H39>=1963,H39<1968),VLOOKUP(I39,Feuil2!$F$10:$P$28,5),IF(AND(H39>=1968,H39<1973),VLOOKUP(I39,Feuil2!$F$10:$P$28,4),IF(AND(H39>=1973,H39<1978),VLOOKUP(I39,Feuil2!$F$10:$P$28,3),IF(AND(H39>=1978,H39<1983),VLOOKUP(I39,Feuil2!$F$10:$P$28,2),VLOOKUP(I39,Feuil2!$F$10:$P$28,2)))))))))))) ->  | AA39: =T39-HLOOKUP(Y39,Feuil2!$C$1:$CD$9,2,FALSE) ->  | AB39: =T39-HLOOKUP(Y39,Feuil2!$C$1:$CD$9,3,FALSE) ->  | AC39: =T39-HLOOKUP(Y39,Feuil2!$C$1:$CD$9,4,FALSE) ->  | AD39: =T39-HLOOKUP(Y39,Feuil2!$C$1:$CD$9,5,FALSE) ->  | AE39: =T39-HLOOKUP(Y39,Feuil2!$C$1:$CD$9,6,FALSE) ->  | AF39: =T39-HLOOKUP(Y39,Feuil2!$C$1:$CD$9,7,FALSE) ->  | AG39: =T39-HLOOKUP(Y39,Feuil2!$C$1:$CD$9,8,FALSE) ->  | AH39: =T39-HLOOKUP(Y39,Feuil2!$C$1:$CD$9,9,FALSE) ->  | AQ39: 2017 | AS39: =IF(AQ39,VLOOKUP(AQ39,HOM!$AS$389:$AT$444,2)) -> 4.493
A40: H | X40: FALSE | Y40: =IF(AND(H40<1920),VLOOKUP(I40,Feuil2!$F$10:$P$28,11),IF(AND(H40>=1920,H40<1939),VLOOKUP(I40,Feuil2!$F$10:$P$28,11),IF(AND(H40>=1938,H40<1943),VLOOKUP(I40,Feuil2!$F$10:$P$28,10),IF(AND(H40>=1943,H40<1948),VLOOKUP(I40,Feuil2!$F$10:$P$28,9),IF(AND(H40>=1948,H40<1953),VLOOKUP(I40,Feuil2!$F$10:$P$28,8),IF(AND(H40>=1953,H40<1958),VLOOKUP(I40,Feuil2!$F$10:$P$28,7),IF(AND(H40>=1958,H40<1963),VLOOKUP(I40,Feuil2!$F$10:$P$28,6),IF(AND(H40>=1963,H40<1968),VLOOKUP(I40,Feuil2!$F$10:$P$28,5),IF(AND(H40>=1968,H40<1973),VLOOKUP(I40,Feuil2!$F$10:$P$28,4),IF(AND(H40>=1973,H40<1978),VLOOKUP(I40,Feuil2!$F$10:$P$28,3),IF(AND(H40>=1978,H40<1983),VLOOKUP(I40,Feuil2!$F$10:$P$28,2),VLOOKUP(I40,Feuil2!$F$10:$P$28,2)))))))))))) ->  | AA40: =T40-HLOOKUP(Y40,Feuil2!$C$1:$CD$9,2,FALSE) ->  | AB40: =T40-HLOOKUP(Y40,Feuil2!$C$1:$CD$9,3,FALSE) ->  | AC40: =T40-HLOOKUP(Y40,Feuil2!$C$1:$CD$9,4,FALSE) ->  | AD40: =T40-HLOOKUP(Y40,Feuil2!$C$1:$CD$9,5,FALSE) ->  | AE40: =T40-HLOOKUP(Y40,Feuil2!$C$1:$CD$9,6,FALSE) ->  | AF40: =T40-HLOOKUP(Y40,Feuil2!$C$1:$CD$9,7,FALSE) ->  | AG40: =T40-HLOOKUP(Y40,Feuil2!$C$1:$CD$9,8,FALSE) ->  | AH40: =T40-HLOOKUP(Y40,Feuil2!$C$1:$CD$9,9,FALSE) ->  | AQ40: 2017 | AS40: =IF(AQ40,VLOOKUP(AQ40,HOM!$AS$389:$AT$444,2)) -> 4.493
A41: H | X41: FALSE | Y41: =IF(AND(H41<1920),VLOOKUP(I41,Feuil2!$F$10:$P$28,11),IF(AND(H41>=1920,H41<1939),VLOOKUP(I41,Feuil2!$F$10:$P$28,11),IF(AND(H41>=1938,H41<1943),VLOOKUP(I41,Feuil2!$F$10:$P$28,10),IF(AND(H41>=1943,H41<1948),VLOOKUP(I41,Feuil2!$F$10:$P$28,9),IF(AND(H41>=1948,H41<1953),VLOOKUP(I41,Feuil2!$F$10:$P$28,8),IF(AND(H41>=1953,H41<1958),VLOOKUP(I41,Feuil2!$F$10:$P$28,7),IF(AND(H41>=1958,H41<1963),VLOOKUP(I41,Feuil2!$F$10:$P$28,6),IF(AND(H41>=1963,H41<1968),VLOOKUP(I41,Feuil2!$F$10:$P$28,5),IF(AND(H41>=1968,H41<1973),VLOOKUP(I41,Feuil2!$F$10:$P$28,4),IF(AND(H41>=1973,H41<1978),VLOOKUP(I41,Feuil2!$F$10:$P$28,3),IF(AND(H41>=1978,H41<1983),VLOOKUP(I41,Feuil2!$F$10:$P$28,2),VLOOKUP(I41,Feuil2!$F$10:$P$28,2)))))))))))) ->  | AA41: =T41-HLOOKUP(Y41,Feuil2!$C$1:$CD$9,2,FALSE) ->  | AB41: =T41-HLOOKUP(Y41,Feuil2!$C$1:$CD$9,3,FALSE) ->  | AC41: =T41-HLOOKUP(Y41,Feuil2!$C$1:$CD$9,4,FALSE) ->  | AD41: =T41-HLOOKUP(Y41,Feuil2!$C$1:$CD$9,5,FALSE) ->  | AE41: =T41-HLOOKUP(Y41,Feuil2!$C$1:$CD$9,6,FALSE) ->  | AF41: =T41-HLOOKUP(Y41,Feuil2!$C$1:$CD$9,7,FALSE) ->  | AG41: =T41-HLOOKUP(Y41,Feuil2!$C$1:$CD$9,8,FALSE) ->  | AH41: =T41-HLOOKUP(Y41,Feuil2!$C$1:$CD$9,9,FALSE) ->  | AQ41: 2017 | AS41: =IF(AQ41,VLOOKUP(AQ41,HOM!$AS$389:$AT$444,2)) -> 4.493
A42: H | X42: FALSE | Y42: =IF(AND(H42<1920),VLOOKUP(I42,Feuil2!$F$10:$P$28,11),IF(AND(H42>=1920,H42<1939),VLOOKUP(I42,Feuil2!$F$10:$P$28,11),IF(AND(H42>=1938,H42<1943),VLOOKUP(I42,Feuil2!$F$10:$P$28,10),IF(AND(H42>=1943,H42<1948),VLOOKUP(I42,Feuil2!$F$10:$P$28,9),IF(AND(H42>=1948,H42<1953),VLOOKUP(I42,Feuil2!$F$10:$P$28,8),IF(AND(H42>=1953,H42<1958),VLOOKUP(I42,Feuil2!$F$10:$P$28,7),IF(AND(H42>=1958,H42<1963),VLOOKUP(I42,Feuil2!$F$10:$P$28,6),IF(AND(H42>=1963,H42<1968),VLOOKUP(I42,Feuil2!$F$10:$P$28,5),IF(AND(H42>=1968,H42<1973),VLOOKUP(I42,Feuil2!$F$10:$P$28,4),IF(AND(H42>=1973,H42<1978),VLOOKUP(I42,Feuil2!$F$10:$P$28,3),IF(AND(H42>=1978,H42<1983),VLOOKUP(I42,Feuil2!$F$10:$P$28,2),VLOOKUP(I42,Feuil2!$F$10:$P$28,2)))))))))))) ->  | AA42: =T42-HLOOKUP(Y42,Feuil2!$C$1:$CD$9,2,FALSE) ->  | AB42: =T42-HLOOKUP(Y42,Feuil2!$C$1:$CD$9,3,FALSE) ->  | AC42: =T42-HLOOKUP(Y42,Feuil2!$C$1:$CD$9,4,FALSE) ->  | AD42: =T42-HLOOKUP(Y42,Feuil2!$C$1:$CD$9,5,FALSE) ->  | AE42: =T42-HLOOKUP(Y42,Feuil2!$C$1:$CD$9,6,FALSE) ->  | AF42: =T42-HLOOKUP(Y42,Feuil2!$C$1:$CD$9,7,FALSE) ->  | AG42: =T42-HLOOKUP(Y42,Feuil2!$C$1:$CD$9,8,FALSE) ->  | AH42: =T42-HLOOKUP(Y42,Feuil2!$C$1:$CD$9,9,FALSE) ->  | AQ42: 2017 | AS42: =IF(AQ42,VLOOKUP(AQ42,HOM!$AS$389:$AT$444,2)) -> 4.493
A43: H | X43: FALSE | Y43: =IF(AND(H43<1920),VLOOKUP(I43,Feuil2!$F$10:$P$28,11),IF(AND(H43>=1920,H43<1939),VLOOKUP(I43,Feuil2!$F$10:$P$28,11),IF(AND(H43>=1938,H43<1943),VLOOKUP(I43,Feuil2!$F$10:$P$28,10),IF(AND(H43>=1943,H43<1948),VLOOKUP(I43,Feuil2!$F$10:$P$28,9),IF(AND(H43>=1948,H43<1953),VLOOKUP(I43,Feuil2!$F$10:$P$28,8),IF(AND(H43>=1953,H43<1958),VLOOKUP(I43,Feuil2!$F$10:$P$28,7),IF(AND(H43>=1958,H43<1963),VLOOKUP(I43,Feuil2!$F$10:$P$28,6),IF(AND(H43>=1963,H43<1968),VLOOKUP(I43,Feuil2!$F$10:$P$28,5),IF(AND(H43>=1968,H43<1973),VLOOKUP(I43,Feuil2!$F$10:$P$28,4),IF(AND(H43>=1973,H43<1978),VLOOKUP(I43,Feuil2!$F$10:$P$28,3),IF(AND(H43>=1978,H43<1983),VLOOKUP(I43,Feuil2!$F$10:$P$28,2),VLOOKUP(I43,Feuil2!$F$10:$P$28,2)))))))))))) ->  | AA43: =T43-HLOOKUP(Y43,Feuil2!$C$1:$CD$9,2,FALSE) ->  | AB43: =T43-HLOOKUP(Y43,Feuil2!$C$1:$CD$9,3,FALSE) ->  | AC43: =T43-HLOOKUP(Y43,Feuil2!$C$1:$CD$9,4,FALSE) ->  | AD43: =T43-HLOOKUP(Y43,Feuil2!$C$1:$CD$9,5,FALSE) ->  | AE43: =T43-HLOOKUP(Y43,Feuil2!$C$1:$CD$9,6,FALSE) ->  | AF43: =T43-HLOOKUP(Y43,Feuil2!$C$1:$CD$9,7,FALSE) ->  | AG43: =T43-HLOOKUP(Y43,Feuil2!$C$1:$CD$9,8,FALSE) ->  | AH43: =T43-HLOOKUP(Y43,Feuil2!$C$1:$CD$9,9,FALSE) ->  | AQ43: 2017 | AS43: =IF(AQ43,VLOOKUP(AQ43,HOM!$AS$389:$AT$444,2)) -> 4.493
A44: H | X44: FALSE | Y44: =IF(AND(H44<1920),VLOOKUP(I44,Feuil2!$F$10:$P$28,11),IF(AND(H44>=1920,H44<1939),VLOOKUP(I44,Feuil2!$F$10:$P$28,11),IF(AND(H44>=1938,H44<1943),VLOOKUP(I44,Feuil2!$F$10:$P$28,10),IF(AND(H44>=1943,H44<1948),VLOOKUP(I44,Feuil2!$F$10:$P$28,9),IF(AND(H44>=1948,H44<1953),VLOOKUP(I44,Feuil2!$F$10:$P$28,8),IF(AND(H44>=1953,H44<1958),VLOOKUP(I44,Feuil2!$F$10:$P$28,7),IF(AND(H44>=1958,H44<1963),VLOOKUP(I44,Feuil2!$F$10:$P$28,6),IF(AND(H44>=1963,H44<1968),VLOOKUP(I44,Feuil2!$F$10:$P$28,5),IF(AND(H44>=1968,H44<1973),VLOOKUP(I44,Feuil2!$F$10:$P$28,4),IF(AND(H44>=1973,H44<1978),VLOOKUP(I44,Feuil2!$F$10:$P$28,3),IF(AND(H44>=1978,H44<1983),VLOOKUP(I44,Feuil2!$F$10:$P$28,2),VLOOKUP(I44,Feuil2!$F$10:$P$28,2)))))))))))) ->  | AA44: =T44-HLOOKUP(Y44,Feuil2!$C$1:$CD$9,2,FALSE) ->  | AB44: =T44-HLOOKUP(Y44,Feuil2!$C$1:$CD$9,3,FALSE) ->  | AC44: =T44-HLOOKUP(Y44,Feuil2!$C$1:$CD$9,4,FALSE) ->  | AD44: =T44-HLOOKUP(Y44,Feuil2!$C$1:$CD$9,5,FALSE) ->  | AE44: =T44-HLOOKUP(Y44,Feuil2!$C$1:$CD$9,6,FALSE) ->  | AF44: =T44-HLOOKUP(Y44,Feuil2!$C$1:$CD$9,7,FALSE) ->  | AG44: =T44-HLOOKUP(Y44,Feuil2!$C$1:$CD$9,8,FALSE) ->  | AH44: =T44-HLOOKUP(Y44,Feuil2!$C$1:$CD$9,9,FALSE) ->  | AQ44: 2017 | AS44: =IF(AQ44,VLOOKUP(AQ44,HOM!$AS$389:$AT$444,2)) -> 4.493
A45: H | H45: 1952 | I45: 69 | K45: F | N45: 65 | O45: 65 | P45: 80 | S45: 80 | T45: 145 | U45: 324.3891624 | V45: MON + | W45: 33 | X45: V7 H65 | Y45: =IF(AND(H45<1920),VLOOKUP(I45,Feuil2!$F$10:$P$28,11),IF(AND(H45>=1920,H45<1939),VLOOKUP(I45,Feuil2!$F$10:$P$28,11),IF(AND(H45>=1938,H45<1943),VLOOKUP(I45,Feuil2!$F$10:$P$28,10),IF(AND(H45>=1943,H45<1948),VLOOKUP(I45,Feuil2!$F$10:$P$28,9),IF(AND(H45>=1948,H45<1953),VLOOKUP(I45,Feuil2!$F$10:$P$28,8),IF(AND(H45>=1953,H45<1958),VLOOKUP(I45,Feuil2!$F$10:$P$28,7),IF(AND(H45>=1958,H45<1963),VLOOKUP(I45,Feuil2!$F$10:$P$28,6),IF(AND(H45>=1963,H45<1968),VLOOKUP(I45,Feuil2!$F$10:$P$28,5),IF(AND(H45>=1968,H45<1973),VLOOKUP(I45,Feuil2!$F$10:$P$28,4),IF(AND(H45>=1973,H45<1978),VLOOKUP(I45,Feuil2!$F$10:$P$28,3),IF(AND(H45>=1978,H45<1983),VLOOKUP(I45,Feuil2!$F$10:$P$28,2),VLOOKUP(I45,Feuil2!$F$10:$P$28,2)))))))))))) -> VH65-69 | AA45: =T45-HLOOKUP(Y45,Feuil2!$C$1:$CD$9,2,FALSE) -> 145 | AB45: =T45-HLOOKUP(Y45,Feuil2!$C$1:$CD$9,3,FALSE) -> 68 | AC45: =T45-HLOOKUP(Y45,Feuil2!$C$1:$CD$9,4,FALSE) -> 58 | AD45: =T45-HLOOKUP(Y45,Feuil2!$C$1:$CD$9,5,FALSE) -> 48 | AE45: =T45-HLOOKUP(Y45,Feuil2!$C$1:$CD$9,6,FALSE) -> 33 | AF45: =T45-HLOOKUP(Y45,Feuil2!$C$1:$CD$9,7,FALSE) -> -855 | AG45: =T45-HLOOKUP(Y45,Feuil2!$C$1:$CD$9,8,FALSE) -> -855 | AH45: =T45-HLOOKUP(Y45,Feuil2!$C$1:$CD$9,9,FALSE) -> -855 | AP45: MON + | AQ45: 65 | AS45: =IF(AQ45,VLOOKUP(AQ45,HOM!$AS$389:$AT$444,2)) -> 1.663
A46: H | X46: FALSE | Y46: =IF(AND(H46<1920),VLOOKUP(I46,Feuil2!$F$10:$P$28,11),IF(AND(H46>=1920,H46<1939),VLOOKUP(I46,Feuil2!$F$10:$P$28,11),IF(AND(H46>=1938,H46<1943),VLOOKUP(I46,Feuil2!$F$10:$P$28,10),IF(AND(H46>=1943,H46<1948),VLOOKUP(I46,Feuil2!$F$10:$P$28,9),IF(AND(H46>=1948,H46<1953),VLOOKUP(I46,Feuil2!$F$10:$P$28,8),IF(AND(H46>=1953,H46<1958),VLOOKUP(I46,Feuil2!$F$10:$P$28,7),IF(AND(H46>=1958,H46<1963),VLOOKUP(I46,Feuil2!$F$10:$P$28,6),IF(AND(H46>=1963,H46<1968),VLOOKUP(I46,Feuil2!$F$10:$P$28,5),IF(AND(H46>=1968,H46<1973),VLOOKUP(I46,Feuil2!$F$10:$P$28,4),IF(AND(H46>=1973,H46<1978),VLOOKUP(I46,Feuil2!$F$10:$P$28,3),IF(AND(H46>=1978,H46<1983),VLOOKUP(I46,Feuil2!$F$10:$P$28,2),VLOOKUP(I46,Feuil2!$F$10:$P$28,2)))))))))))) ->  | AA46: =T46-HLOOKUP(Y46,Feuil2!$C$1:$CD$9,2,FALSE) ->  | AB46: =T46-HLOOKUP(Y46,Feuil2!$C$1:$CD$9,3,FALSE) ->  | AC46: =T46-HLOOKUP(Y46,Feuil2!$C$1:$CD$9,4,FALSE) ->  | AD46: =T46-HLOOKUP(Y46,Feuil2!$C$1:$CD$9,5,FALSE) ->  | AE46: =T46-HLOOKUP(Y46,Feuil2!$C$1:$CD$9,6,FALSE) ->  | AF46: =T46-HLOOKUP(Y46,Feuil2!$C$1:$CD$9,7,FALSE) ->  | AG46: =T46-HLOOKUP(Y46,Feuil2!$C$1:$CD$9,8,FALSE) ->  | AH46: =T46-HLOOKUP(Y46,Feuil2!$C$1:$CD$9,9,FALSE) ->  | AQ46: 2017 | AS46: =IF(AQ46,VLOOKUP(AQ46,HOM!$AS$389:$AT$444,2)) -> 4.493
A47: H | X47: FALSE | Y47: =IF(AND(H47<1920),VLOOKUP(I47,Feuil2!$F$10:$P$28,11),IF(AND(H47>=1920,H47<1939),VLOOKUP(I47,Feuil2!$F$10:$P$28,11),IF(AND(H47>=1938,H47<1943),VLOOKUP(I47,Feuil2!$F$10:$P$28,10),IF(AND(H47>=1943,H47<1948),VLOOKUP(I47,Feuil2!$F$10:$P$28,9),IF(AND(H47>=1948,H47<1953),VLOOKUP(I47,Feuil2!$F$10:$P$28,8),IF(AND(H47>=1953,H47<1958),VLOOKUP(I47,Feuil2!$F$10:$P$28,7),IF(AND(H47>=1958,H47<1963),VLOOKUP(I47,Feuil2!$F$10:$P$28,6),IF(AND(H47>=1963,H47<1968),VLOOKUP(I47,Feuil2!$F$10:$P$28,5),IF(AND(H47>=1968,H47<1973),VLOOKUP(I47,Feuil2!$F$10:$P$28,4),IF(AND(H47>=1973,H47<1978),VLOOKUP(I47,Feuil2!$F$10:$P$28,3),IF(AND(H47>=1978,H47<1983),VLOOKUP(I47,Feuil2!$F$10:$P$28,2),VLOOKUP(I47,Feuil2!$F$10:$P$28,2)))))))))))) ->  | AA47: =T47-HLOOKUP(Y47,Feuil2!$C$1:$CD$9,2,FALSE) ->  | AB47: =T47-HLOOKUP(Y47,Feuil2!$C$1:$CD$9,3,FALSE) ->  | AC47: =T47-HLOOKUP(Y47,Feuil2!$C$1:$CD$9,4,FALSE) ->  | AD47: =T47-HLOOKUP(Y47,Feuil2!$C$1:$CD$9,5,FALSE) ->  | AE47: =T47-HLOOKUP(Y47,Feuil2!$C$1:$CD$9,6,FALSE) ->  | AF47: =T47-HLOOKUP(Y47,Feuil2!$C$1:$CD$9,7,FALSE) ->  | AG47: =T47-HLOOKUP(Y47,Feuil2!$C$1:$CD$9,8,FALSE) ->  | AH47: =T47-HLOOKUP(Y47,Feuil2!$C$1:$CD$9,9,FALSE) ->  | AQ47: 2017 | AS47: =IF(AQ47,VLOOKUP(AQ47,HOM!$AS$389:$AT$444,2)) -> 4.493
A48: H | X48: FALSE | Y48: =IF(AND(H48<1920),VLOOKUP(I48,Feuil2!$F$10:$P$28,11),IF(AND(H48>=1920,H48<1939),VLOOKUP(I48,Feuil2!$F$10:$P$28,11),IF(AND(H48>=1938,H48<1943),VLOOKUP(I48,Feuil2!$F$10:$P$28,10),IF(AND(H48>=1943,H48<1948),VLOOKUP(I48,Feuil2!$F$10:$P$28,9),IF(AND(H48>=1948,H48<1953),VLOOKUP(I48,Feuil2!$F$10:$P$28,8),IF(AND(H48>=1953,H48<1958),VLOOKUP(I48,Feuil2!$F$10:$P$28,7),IF(AND(H48>=1958,H48<1963),VLOOKUP(I48,Feuil2!$F$10:$P$28,6),IF(AND(H48>=1963,H48<1968),VLOOKUP(I48,Feuil2!$F$10:$P$28,5),IF(AND(H48>=1968,H48<1973),VLOOKUP(I48,Feuil2!$F$10:$P$28,4),IF(AND(H48>=1973,H48<1978),VLOOKUP(I48,Feuil2!$F$10:$P$28,3),IF(AND(H48>=1978,H48<1983),VLOOKUP(I48,Feuil2!$F$10:$P$28,2),VLOOKUP(I48,Feuil2!$F$10:$P$28,2)))))))))))) ->  | AA48: =T48-HLOOKUP(Y48,Feuil2!$C$1:$CD$9,2,FALSE) ->  | AB48: =T48-HLOOKUP(Y48,Feuil2!$C$1:$CD$9,3,FALSE) ->  | AC48: =T48-HLOOKUP(Y48,Feuil2!$C$1:$CD$9,4,FALSE) ->  | AD48: =T48-HLOOKUP(Y48,Feuil2!$C$1:$CD$9,5,FALSE) ->  | AE48: =T48-HLOOKUP(Y48,Feuil2!$C$1:$CD$9,6,FALSE) ->  | AF48: =T48-HLOOKUP(Y48,Feuil2!$C$1:$CD$9,7,FALSE) ->  | AG48: =T48-HLOOKUP(Y48,Feuil2!$C$1:$CD$9,8,FALSE) ->  | AH48: =T48-HLOOKUP(Y48,Feuil2!$C$1:$CD$9,9,FALSE) ->  | AQ48: 2017 | AS48: =IF(AQ48,VLOOKUP(AQ48,HOM!$AS$389:$AT$444,2)) -> 4.493
A49: H | X49: FALSE | Y49: =IF(AND(H49<1920),VLOOKUP(I49,Feuil2!$F$10:$P$28,11),IF(AND(H49>=1920,H49<1939),VLOOKUP(I49,Feuil2!$F$10:$P$28,11),IF(AND(H49>=1938,H49<1943),VLOOKUP(I49,Feuil2!$F$10:$P$28,10),IF(AND(H49>=1943,H49<1948),VLOOKUP(I49,Feuil2!$F$10:$P$28,9),IF(AND(H49>=1948,H49<1953),VLOOKUP(I49,Feuil2!$F$10:$P$28,8),IF(AND(H49>=1953,H49<1958),VLOOKUP(I49,Feuil2!$F$10:$P$28,7),IF(AND(H49>=1958,H49<1963),VLOOKUP(I49,Feuil2!$F$10:$P$28,6),IF(AND(H49>=1963,H49<1968),VLOOKUP(I49,Feuil2!$F$10:$P$28,5),IF(AND(H49>=1968,H49<1973),VLOOKUP(I49,Feuil2!$F$10:$P$28,4),IF(AND(H49>=1973,H49<1978),VLOOKUP(I49,Feuil2!$F$10:$P$28,3),IF(AND(H49>=1978,H49<1983),VLOOKUP(I49,Feuil2!$F$10:$P$28,2),VLOOKUP(I49,Feuil2!$F$10:$P$28,2)))))))))))) ->  | AA49: =T49-HLOOKUP(Y49,Feuil2!$C$1:$CD$9,2,FALSE) ->  | AB49: =T49-HLOOKUP(Y49,Feuil2!$C$1:$CD$9,3,FALSE) ->  | AC49: =T49-HLOOKUP(Y49,Feuil2!$C$1:$CD$9,4,FALSE) ->  | AD49: =T49-HLOOKUP(Y49,Feuil2!$C$1:$CD$9,5,FALSE) ->  | AE49: =T49-HLOOKUP(Y49,Feuil2!$C$1:$CD$9,6,FALSE) ->  | AF49: =T49-HLOOKUP(Y49,Feuil2!$C$1:$CD$9,7,FALSE) ->  | AG49: =T49-HLOOKUP(Y49,Feuil2!$C$1:$CD$9,8,FALSE) ->  | AH49: =T49-HLOOKUP(Y49,Feuil2!$C$1:$CD$9,9,FALSE) ->  | AQ49: 2017 | AS49: =IF(AQ49,VLOOKUP(AQ49,HOM!$AS$389:$AT$444,2)) -> 4.493
A50: H | X50: FALSE | Y50: =IF(AND(H50<1920),VLOOKUP(I50,Feuil2!$F$10:$P$28,11),IF(AND(H50>=1920,H50<1939),VLOOKUP(I50,Feuil2!$F$10:$P$28,11),IF(AND(H50>=1938,H50<1943),VLOOKUP(I50,Feuil2!$F$10:$P$28,10),IF(AND(H50>=1943,H50<1948),VLOOKUP(I50,Feuil2!$F$10:$P$28,9),IF(AND(H50>=1948,H50<1953),VLOOKUP(I50,Feuil2!$F$10:$P$28,8),IF(AND(H50>=1953,H50<1958),VLOOKUP(I50,Feuil2!$F$10:$P$28,7),IF(AND(H50>=1958,H50<1963),VLOOKUP(I50,Feuil2!$F$10:$P$28,6),IF(AND(H50>=1963,H50<1968),VLOOKUP(I50,Feuil2!$F$10:$P$28,5),IF(AND(H50>=1968,H50<1973),VLOOKUP(I50,Feuil2!$F$10:$P$28,4),IF(AND(H50>=1973,H50<1978),VLOOKUP(I50,Feuil2!$F$10:$P$28,3),IF(AND(H50>=1978,H50<1983),VLOOKUP(I50,Feuil2!$F$10:$P$28,2),VLOOKUP(I50,Feuil2!$F$10:$P$28,2)))))))))))) ->  | AA50: =T50-HLOOKUP(Y50,Feuil2!$C$1:$CD$9,2,FALSE) ->  | AB50: =T50-HLOOKUP(Y50,Feuil2!$C$1:$CD$9,3,FALSE) ->  | AC50: =T50-HLOOKUP(Y50,Feuil2!$C$1:$CD$9,4,FALSE) ->  | AD50: =T50-HLOOKUP(Y50,Feuil2!$C$1:$CD$9,5,FALSE) ->  | AE50: =T50-HLOOKUP(Y50,Feuil2!$C$1:$CD$9,6,FALSE) ->  | AF50: =T50-HLOOKUP(Y50,Feuil2!$C$1:$CD$9,7,FALSE) ->  | AG50: =T50-HLOOKUP(Y50,Feuil2!$C$1:$CD$9,8,FALSE) ->  | AH50: =T50-HLOOKUP(Y50,Feuil2!$C$1:$CD$9,9,FALSE) ->  | AQ50: 2017 | AS50: =IF(AQ50,VLOOKUP(AQ50,HOM!$AS$389:$AT$444,2)) -> 4.493
A51: H | X51: FALSE | Y51: =IF(AND(H51<1920),VLOOKUP(I51,Feuil2!$F$10:$P$28,11),IF(AND(H51>=1920,H51<1939),VLOOKUP(I51,Feuil2!$F$10:$P$28,11),IF(AND(H51>=1938,H51<1943),VLOOKUP(I51,Feuil2!$F$10:$P$28,10),IF(AND(H51>=1943,H51<1948),VLOOKUP(I51,Feuil2!$F$10:$P$28,9),IF(AND(H51>=1948,H51<1953),VLOOKUP(I51,Feuil2!$F$10:$P$28,8),IF(AND(H51>=1953,H51<1958),VLOOKUP(I51,Feuil2!$F$10:$P$28,7),IF(AND(H51>=1958,H51<1963),VLOOKUP(I51,Feuil2!$F$10:$P$28,6),IF(AND(H51>=1963,H51<1968),VLOOKUP(I51,Feuil2!$F$10:$P$28,5),IF(AND(H51>=1968,H51<1973),VLOOKUP(I51,Feuil2!$F$10:$P$28,4),IF(AND(H51>=1973,H51<1978),VLOOKUP(I51,Feuil2!$F$10:$P$28,3),IF(AND(H51>=1978,H51<1983),VLOOKUP(I51,Feuil2!$F$10:$P$28,2),VLOOKUP(I51,Feuil2!$F$10:$P$28,2)))))))))))) ->  | AA51: =T51-HLOOKUP(Y51,Feuil2!$C$1:$CD$9,2,FALSE) ->  | AB51: =T51-HLOOKUP(Y51,Feuil2!$C$1:$CD$9,3,FALSE) ->  | AC51: =T51-HLOOKUP(Y51,Feuil2!$C$1:$CD$9,4,FALSE) ->  | AD51: =T51-HLOOKUP(Y51,Feuil2!$C$1:$CD$9,5,FALSE) ->  | AE51: =T51-HLOOKUP(Y51,Feuil2!$C$1:$CD$9,6,FALSE) ->  | AF51: =T51-HLOOKUP(Y51,Feuil2!$C$1:$CD$9,7,FALSE) ->  | AG51: =T51-HLOOKUP(Y51,Feuil2!$C$1:$CD$9,8,FALSE) ->  | AH51: =T51-HLOOKUP(Y51,Feuil2!$C$1:$CD$9,9,FALSE) ->  | AQ51: 2017 | AS51: =IF(AQ51,VLOOKUP(AQ51,HOM!$AS$389:$AT$444,2)) -> 4.493
A52: H | X52: FALSE | Y52: =IF(AND(H52<1920),VLOOKUP(I52,Feuil2!$F$10:$P$28,11),IF(AND(H52>=1920,H52<1939),VLOOKUP(I52,Feuil2!$F$10:$P$28,11),IF(AND(H52>=1938,H52<1943),VLOOKUP(I52,Feuil2!$F$10:$P$28,10),IF(AND(H52>=1943,H52<1948),VLOOKUP(I52,Feuil2!$F$10:$P$28,9),IF(AND(H52>=1948,H52<1953),VLOOKUP(I52,Feuil2!$F$10:$P$28,8),IF(AND(H52>=1953,H52<1958),VLOOKUP(I52,Feuil2!$F$10:$P$28,7),IF(AND(H52>=1958,H52<1963),VLOOKUP(I52,Feuil2!$F$10:$P$28,6),IF(AND(H52>=1963,H52<1968),VLOOKUP(I52,Feuil2!$F$10:$P$28,5),IF(AND(H52>=1968,H52<1973),VLOOKUP(I52,Feuil2!$F$10:$P$28,4),IF(AND(H52>=1973,H52<1978),VLOOKUP(I52,Feuil2!$F$10:$P$28,3),IF(AND(H52>=1978,H52<1983),VLOOKUP(I52,Feuil2!$F$10:$P$28,2),VLOOKUP(I52,Feuil2!$F$10:$P$28,2)))))))))))) ->  | AA52: =T52-HLOOKUP(Y52,Feuil2!$C$1:$CD$9,2,FALSE) ->  | AB52: =T52-HLOOKUP(Y52,Feuil2!$C$1:$CD$9,3,FALSE) ->  | AC52: =T52-HLOOKUP(Y52,Feuil2!$C$1:$CD$9,4,FALSE) ->  | AD52: =T52-HLOOKUP(Y52,Feuil2!$C$1:$CD$9,5,FALSE) ->  | AE52: =T52-HLOOKUP(Y52,Feuil2!$C$1:$CD$9,6,FALSE) ->  | AF52: =T52-HLOOKUP(Y52,Feuil2!$C$1:$CD$9,7,FALSE) ->  | AG52: =T52-HLOOKUP(Y52,Feuil2!$C$1:$CD$9,8,FALSE) ->  | AH52: =T52-HLOOKUP(Y52,Feuil2!$C$1:$CD$9,9,FALSE) ->  | AQ52: 2017 | AS52: =IF(AQ52,VLOOKUP(AQ52,HOM!$AS$389:$AT$444,2)) -> 4.493
A53: H | X53: FALSE | Y53: =IF(AND(H53<1920),VLOOKUP(I53,Feuil2!$F$10:$P$28,11),IF(AND(H53>=1920,H53<1939),VLOOKUP(I53,Feuil2!$F$10:$P$28,11),IF(AND(H53>=1938,H53<1943),VLOOKUP(I53,Feuil2!$F$10:$P$28,10),IF(AND(H53>=1943,H53<1948),VLOOKUP(I53,Feuil2!$F$10:$P$28,9),IF(AND(H53>=1948,H53<1953),VLOOKUP(I53,Feuil2!$F$10:$P$28,8),IF(AND(H53>=1953,H53<1958),VLOOKUP(I53,Feuil2!$F$10:$P$28,7),IF(AND(H53>=1958,H53<1963),VLOOKUP(I53,Feuil2!$F$10:$P$28,6),IF(AND(H53>=1963,H53<1968),VLOOKUP(I53,Feuil2!$F$10:$P$28,5),IF(AND(H53>=1968,H53<1973),VLOOKUP(I53,Feuil2!$F$10:$P$28,4),IF(AND(H53>=1973,H53<1978),VLOOKUP(I53,Feuil2!$F$10:$P$28,3),IF(AND(H53>=1978,H53<1983),VLOOKUP(I53,Feuil2!$F$10:$P$28,2),VLOOKUP(I53,Feuil2!$F$10:$P$28,2)))))))))))) ->  | AA53: =T53-HLOOKUP(Y53,Feuil2!$C$1:$CD$9,2,FALSE) ->  | AB53: =T53-HLOOKUP(Y53,Feuil2!$C$1:$CD$9,3,FALSE) ->  | AC53: =T53-HLOOKUP(Y53,Feuil2!$C$1:$CD$9,4,FALSE) ->  | AD53: =T53-HLOOKUP(Y53,Feuil2!$C$1:$CD$9,5,FALSE) ->  | AE53: =T53-HLOOKUP(Y53,Feuil2!$C$1:$CD$9,6,FALSE) ->  | AF53: =T53-HLOOKUP(Y53,Feuil2!$C$1:$CD$9,7,FALSE) ->  | AG53: =T53-HLOOKUP(Y53,Feuil2!$C$1:$CD$9,8,FALSE) ->  | AH53: =T53-HLOOKUP(Y53,Feuil2!$C$1:$CD$9,9,FALSE) ->  | AQ53: 2017 | AS53: =IF(AQ53,VLOOKUP(AQ53,HOM!$AS$389:$AT$444,2)) -> 4.493
A54: H | X54: FALSE | Y54: =IF(AND(H54<1920),VLOOKUP(I54,Feuil2!$F$10:$P$28,11),IF(AND(H54>=1920,H54<1939),VLOOKUP(I54,Feuil2!$F$10:$P$28,11),IF(AND(H54>=1938,H54<1943),VLOOKUP(I54,Feuil2!$F$10:$P$28,10),IF(AND(H54>=1943,H54<1948),VLOOKUP(I54,Feuil2!$F$10:$P$28,9),IF(AND(H54>=1948,H54<1953),VLOOKUP(I54,Feuil2!$F$10:$P$28,8),IF(AND(H54>=1953,H54<1958),VLOOKUP(I54,Feuil2!$F$10:$P$28,7),IF(AND(H54>=1958,H54<1963),VLOOKUP(I54,Feuil2!$F$10:$P$28,6),IF(AND(H54>=1963,H54<1968),VLOOKUP(I54,Feuil2!$F$10:$P$28,5),IF(AND(H54>=1968,H54<1973),VLOOKUP(I54,Feuil2!$F$10:$P$28,4),IF(AND(H54>=1973,H54<1978),VLOOKUP(I54,Feuil2!$F$10:$P$28,3),IF(AND(H54>=1978,H54<1983),VLOOKUP(I54,Feuil2!$F$10:$P$28,2),VLOOKUP(I54,Feuil2!$F$10:$P$28,2)))))))))))) ->  | AA54: =T54-HLOOKUP(Y54,Feuil2!$C$1:$CD$9,2,FALSE) ->  | AB54: =T54-HLOOKUP(Y54,Feuil2!$C$1:$CD$9,3,FALSE) ->  | AC54: =T54-HLOOKUP(Y54,Feuil2!$C$1:$CD$9,4,FALSE) ->  | AD54: =T54-HLOOKUP(Y54,Feuil2!$C$1:$CD$9,5,FALSE) ->  | AE54: =T54-HLOOKUP(Y54,Feuil2!$C$1:$CD$9,6,FALSE) ->  | AF54: =T54-HLOOKUP(Y54,Feuil2!$C$1:$CD$9,7,FALSE) ->  | AG54: =T54-HLOOKUP(Y54,Feuil2!$C$1:$CD$9,8,FALSE) ->  | AH54: =T54-HLOOKUP(Y54,Feuil2!$C$1:$CD$9,9,FALSE) ->  | AQ54: 2017 | AS54: =IF(AQ54,VLOOKUP(AQ54,HOM!$AS$389:$AT$444,2)) -> 4.493
A55: H | X55: FALSE | Y55: =IF(AND(H55<1920),VLOOKUP(I55,Feuil2!$F$10:$P$28,11),IF(AND(H55>=1920,H55<1939),VLOOKUP(I55,Feuil2!$F$10:$P$28,11),IF(AND(H55>=1938,H55<1943),VLOOKUP(I55,Feuil2!$F$10:$P$28,10),IF(AND(H55>=1943,H55<1948),VLOOKUP(I55,Feuil2!$F$10:$P$28,9),IF(AND(H55>=1948,H55<1953),VLOOKUP(I55,Feuil2!$F$10:$P$28,8),IF(AND(H55>=1953,H55<1958),VLOOKUP(I55,Feuil2!$F$10:$P$28,7),IF(AND(H55>=1958,H55<1963),VLOOKUP(I55,Feuil2!$F$10:$P$28,6),IF(AND(H55>=1963,H55<1968),VLOOKUP(I55,Feuil2!$F$10:$P$28,5),IF(AND(H55>=1968,H55<1973),VLOOKUP(I55,Feuil2!$F$10:$P$28,4),IF(AND(H55>=1973,H55<1978),VLOOKUP(I55,Feuil2!$F$10:$P$28,3),IF(AND(H55>=1978,H55<1983),VLOOKUP(I55,Feuil2!$F$10:$P$28,2),VLOOKUP(I55,Feuil2!$F$10:$P$28,2)))))))))))) ->  | AA55: =T55-HLOOKUP(Y55,Feuil2!$C$1:$CD$9,2,FALSE) ->  | AB55: =T55-HLOOKUP(Y55,Feuil2!$C$1:$CD$9,3,FALSE) ->  | AC55: =T55-HLOOKUP(Y55,Feuil2!$C$1:$CD$9,4,FALSE) ->  | AD55: =T55-HLOOKUP(Y55,Feuil2!$C$1:$CD$9,5,FALSE) ->  | AE55: =T55-HLOOKUP(Y55,Feuil2!$C$1:$CD$9,6,FALSE) ->  | AF55: =T55-HLOOKUP(Y55,Feuil2!$C$1:$CD$9,7,FALSE) ->  | AG55: =T55-HLOOKUP(Y55,Feuil2!$C$1:$CD$9,8,FALSE) ->  | AH55: =T55-HLOOKUP(Y55,Feuil2!$C$1:$CD$9,9,FALSE) ->  | AQ55: 2017 | AS55: =IF(AQ55,VLOOKUP(AQ55,HOM!$AS$389:$AT$444,2)) -> 4.493
A56: H | X56: FALSE | Y56: =IF(AND(H56<1920),VLOOKUP(I56,Feuil2!$F$10:$P$28,11),IF(AND(H56>=1920,H56<1939),VLOOKUP(I56,Feuil2!$F$10:$P$28,11),IF(AND(H56>=1938,H56<1943),VLOOKUP(I56,Feuil2!$F$10:$P$28,10),IF(AND(H56>=1943,H56<1948),VLOOKUP(I56,Feuil2!$F$10:$P$28,9),IF(AND(H56>=1948,H56<1953),VLOOKUP(I56,Feuil2!$F$10:$P$28,8),IF(AND(H56>=1953,H56<1958),VLOOKUP(I56,Feuil2!$F$10:$P$28,7),IF(AND(H56>=1958,H56<1963),VLOOKUP(I56,Feuil2!$F$10:$P$28,6),IF(AND(H56>=1963,H56<1968),VLOOKUP(I56,Feuil2!$F$10:$P$28,5),IF(AND(H56>=1968,H56<1973),VLOOKUP(I56,Feuil2!$F$10:$P$28,4),IF(AND(H56>=1973,H56<1978),VLOOKUP(I56,Feuil2!$F$10:$P$28,3),IF(AND(H56>=1978,H56<1983),VLOOKUP(I56,Feuil2!$F$10:$P$28,2),VLOOKUP(I56,Feuil2!$F$10:$P$28,2)))))))))))) ->  | AA56: =T56-HLOOKUP(Y56,Feuil2!$C$1:$CD$9,2,FALSE) ->  | AB56: =T56-HLOOKUP(Y56,Feuil2!$C$1:$CD$9,3,FALSE) ->  | AC56: =T56-HLOOKUP(Y56,Feuil2!$C$1:$CD$9,4,FALSE) ->  | AD56: =T56-HLOOKUP(Y56,Feuil2!$C$1:$CD$9,5,FALSE) ->  | AE56: =T56-HLOOKUP(Y56,Feuil2!$C$1:$CD$9,6,FALSE) ->  | AF56: =T56-HLOOKUP(Y56,Feuil2!$C$1:$CD$9,7,FALSE) ->  | AG56: =T56-HLOOKUP(Y56,Feuil2!$C$1:$CD$9,8,FALSE) ->  | AH56: =T56-HLOOKUP(Y56,Feuil2!$C$1:$CD$9,9,FALSE) ->  | AQ56: 2017 | AS56: =IF(AQ56,VLOOKUP(AQ56,HOM!$AS$389:$AT$444,2)) -> 4.493
A57: H | X57: FALSE | Y57: =IF(AND(H57<1920),VLOOKUP(I57,Feuil2!$F$10:$P$28,11),IF(AND(H57>=1920,H57<1939),VLOOKUP(I57,Feuil2!$F$10:$P$28,11),IF(AND(H57>=1938,H57<1943),VLOOKUP(I57,Feuil2!$F$10:$P$28,10),IF(AND(H57>=1943,H57<1948),VLOOKUP(I57,Feuil2!$F$10:$P$28,9),IF(AND(H57>=1948,H57<1953),VLOOKUP(I57,Feuil2!$F$10:$P$28,8),IF(AND(H57>=1953,H57<1958),VLOOKUP(I57,Feuil2!$F$10:$P$28,7),IF(AND(H57>=1958,H57<1963),VLOOKUP(I57,Feuil2!$F$10:$P$28,6),IF(AND(H57>=1963,H57<1968),VLOOKUP(I57,Feuil2!$F$10:$P$28,5),IF(AND(H57>=1968,H57<1973),VLOOKUP(I57,Feuil2!$F$10:$P$28,4),IF(AND(H57>=1973,H57<1978),VLOOKUP(I57,Feuil2!$F$10:$P$28,3),IF(AND(H57>=1978,H57<1983),VLOOKUP(I57,Feuil2!$F$10:$P$28,2),VLOOKUP(I57,Feuil2!$F$10:$P$28,2)))))))))))) ->  | AA57: =T57-HLOOKUP(Y57,Feuil2!$C$1:$CD$9,2,FALSE) ->  | AB57: =T57-HLOOKUP(Y57,Feuil2!$C$1:$CD$9,3,FALSE) ->  | AC57: =T57-HLOOKUP(Y57,Feuil2!$C$1:$CD$9,4,FALSE) ->  | AD57: =T57-HLOOKUP(Y57,Feuil2!$C$1:$CD$9,5,FALSE) ->  | AE57: =T57-HLOOKUP(Y57,Feuil2!$C$1:$CD$9,6,FALSE) ->  | AF57: =T57-HLOOKUP(Y57,Feuil2!$C$1:$CD$9,7,FALSE) ->  | AG57: =T57-HLOOKUP(Y57,Feuil2!$C$1:$CD$9,8,FALSE) ->  | AH57: =T57-HLOOKUP(Y57,Feuil2!$C$1:$CD$9,9,FALSE) ->  | AQ57: 2017 | AS57: =IF(AQ57,VLOOKUP(AQ57,HOM!$AS$389:$AT$444,2)) -> 4.493
A58: H | X58: FALSE | Y58: =IF(AND(H58<1920),VLOOKUP(I58,Feuil2!$F$10:$P$28,11),IF(AND(H58>=1920,H58<1939),VLOOKUP(I58,Feuil2!$F$10:$P$28,11),IF(AND(H58>=1938,H58<1943),VLOOKUP(I58,Feuil2!$F$10:$P$28,10),IF(AND(H58>=1943,H58<1948),VLOOKUP(I58,Feuil2!$F$10:$P$28,9),IF(AND(H58>=1948,H58<1953),VLOOKUP(I58,Feuil2!$F$10:$P$28,8),IF(AND(H58>=1953,H58<1958),VLOOKUP(I58,Feuil2!$F$10:$P$28,7),IF(AND(H58>=1958,H58<1963),VLOOKUP(I58,Feuil2!$F$10:$P$28,6),IF(AND(H58>=1963,H58<1968),VLOOKUP(I58,Feuil2!$F$10:$P$28,5),IF(AND(H58>=1968,H58<1973),VLOOKUP(I58,Feuil2!$F$10:$P$28,4),IF(AND(H58>=1973,H58<1978),VLOOKUP(I58,Feuil2!$F$10:$P$28,3),IF(AND(H58>=1978,H58<1983),VLOOKUP(I58,Feuil2!$F$10:$P$28,2),VLOOKUP(I58,Feuil2!$F$10:$P$28,2)))))))))))) ->  | AA58: =T58-HLOOKUP(Y58,Feuil2!$C$1:$CD$9,2,FALSE) ->  | AB58: =T58-HLOOKUP(Y58,Feuil2!$C$1:$CD$9,3,FALSE) ->  | AC58: =T58-HLOOKUP(Y58,Feuil2!$C$1:$CD$9,4,FALSE) ->  | AD58: =T58-HLOOKUP(Y58,Feuil2!$C$1:$CD$9,5,FALSE) ->  | AE58: =T58-HLOOKUP(Y58,Feuil2!$C$1:$CD$9,6,FALSE) ->  | AF58: =T58-HLOOKUP(Y58,Feuil2!$C$1:$CD$9,7,FALSE) ->  | AG58: =T58-HLOOKUP(Y58,Feuil2!$C$1:$CD$9,8,FALSE) ->  | AH58: =T58-HLOOKUP(Y58,Feuil2!$C$1:$CD$9,9,FALSE) ->  | AQ58: 2017 | AS58: =IF(AQ58,VLOOKUP(AQ58,HOM!$AS$389:$AT$444,2)) -> 4.493
A59: H | X59: FALSE | Y59: =IF(AND(H59<1920),VLOOKUP(I59,Feuil2!$F$10:$P$28,11),IF(AND(H59>=1920,H59<1939),VLOOKUP(I59,Feuil2!$F$10:$P$28,11),IF(AND(H59>=1938,H59<1943),VLOOKUP(I59,Feuil2!$F$10:$P$28,10),IF(AND(H59>=1943,H59<1948),VLOOKUP(I59,Feuil2!$F$10:$P$28,9),IF(AND(H59>=1948,H59<1953),VLOOKUP(I59,Feuil2!$F$10:$P$28,8),IF(AND(H59>=1953,H59<1958),VLOOKUP(I59,Feuil2!$F$10:$P$28,7),IF(AND(H59>=1958,H59<1963),VLOOKUP(I59,Feuil2!$F$10:$P$28,6),IF(AND(H59>=1963,H59<1968),VLOOKUP(I59,Feuil2!$F$10:$P$28,5),IF(AND(H59>=1968,H59<1973),VLOOKUP(I59,Feuil2!$F$10:$P$28,4),IF(AND(H59>=1973,H59<1978),VLOOKUP(I59,Feuil2!$F$10:$P$28,3),IF(AND(H59>=1978,H59<1983),VLOOKUP(I59,Feuil2!$F$10:$P$28,2),VLOOKUP(I59,Feuil2!$F$10:$P$28,2)))))))))))) ->  | AA59: =T59-HLOOKUP(Y59,Feuil2!$C$1:$CD$9,2,FALSE) ->  | AB59: =T59-HLOOKUP(Y59,Feuil2!$C$1:$CD$9,3,FALSE) ->  | AC59: =T59-HLOOKUP(Y59,Feuil2!$C$1:$CD$9,4,FALSE) ->  | AD59: =T59-HLOOKUP(Y59,Feuil2!$C$1:$CD$9,5,FALSE) ->  | AE59: =T59-HLOOKUP(Y59,Feuil2!$C$1:$CD$9,6,FALSE) ->  | AF59: =T59-HLOOKUP(Y59,Feuil2!$C$1:$CD$9,7,FALSE) ->  | AG59: =T59-HLOOKUP(Y59,Feuil2!$C$1:$CD$9,8,FALSE) ->  | AH59: =T59-HLOOKUP(Y59,Feuil2!$C$1:$CD$9,9,FALSE) ->  | AQ59: 2017 | AS59: =IF(AQ59,VLOOKUP(AQ59,HOM!$AS$389:$AT$444,2)) -> 4.493
A60: H | X60: FALSE | Y60: =IF(AND(H60<1920),VLOOKUP(I60,Feuil2!$F$10:$P$28,11),IF(AND(H60>=1920,H60<1939),VLOOKUP(I60,Feuil2!$F$10:$P$28,11),IF(AND(H60>=1938,H60<1943),VLOOKUP(I60,Feuil2!$F$10:$P$28,10),IF(AND(H60>=1943,H60<1948),VLOOKUP(I60,Feuil2!$F$10:$P$28,9),IF(AND(H60>=1948,H60<1953),VLOOKUP(I60,Feuil2!$F$10:$P$28,8),IF(AND(H60>=1953,H60<1958),VLOOKUP(I60,Feuil2!$F$10:$P$28,7),IF(AND(H60>=1958,H60<1963),VLOOKUP(I60,Feuil2!$F$10:$P$28,6),IF(AND(H60>=1963,H60<1968),VLOOKUP(I60,Feuil2!$F$10:$P$28,5),IF(AND(H60>=1968,H60<1973),VLOOKUP(I60,Feuil2!$F$10:$P$28,4),IF(AND(H60>=1973,H60<1978),VLOOKUP(I60,Feuil2!$F$10:$P$28,3),IF(AND(H60>=1978,H60<1983),VLOOKUP(I60,Feuil2!$F$10:$P$28,2),VLOOKUP(I60,Feuil2!$F$10:$P$28,2)))))))))))) ->  | AA60: =T60-HLOOKUP(Y60,Feuil2!$C$1:$CD$9,2,FALSE) ->  | AB60: =T60-HLOOKUP(Y60,Feuil2!$C$1:$CD$9,3,FALSE) ->  | AC60: =T60-HLOOKUP(Y60,Feuil2!$C$1:$CD$9,4,FALSE) ->  | AD60: =T60-HLOOKUP(Y60,Feuil2!$C$1:$CD$9,5,FALSE) ->  | AE60: =T60-HLOOKUP(Y60,Feuil2!$C$1:$CD$9,6,FALSE) ->  | AF60: =T60-HLOOKUP(Y60,Feuil2!$C$1:$CD$9,7,FALSE) ->  | AG60: =T60-HLOOKUP(Y60,Feuil2!$C$1:$CD$9,8,FALSE) ->  | AH60: =T60-HLOOKUP(Y60,Feuil2!$C$1:$CD$9,9,FALSE) ->  | AQ60: 2017 | AS60: =IF(AQ60,VLOOKUP(AQ60,HOM!$AS$389:$AT$444,2)) -> 4.493
A61: H | X61: FALSE | Y61: =IF(AND(H61<1920),VLOOKUP(I61,Feuil2!$F$10:$P$28,11),IF(AND(H61>=1920,H61<1939),VLOOKUP(I61,Feuil2!$F$10:$P$28,11),IF(AND(H61>=1938,H61<1943),VLOOKUP(I61,Feuil2!$F$10:$P$28,10),IF(AND(H61>=1943,H61<1948),VLOOKUP(I61,Feuil2!$F$10:$P$28,9),IF(AND(H61>=1948,H61<1953),VLOOKUP(I61,Feuil2!$F$10:$P$28,8),IF(AND(H61>=1953,H61<1958),VLOOKUP(I61,Feuil2!$F$10:$P$28,7),IF(AND(H61>=1958,H61<1963),VLOOKUP(I61,Feuil2!$F$10:$P$28,6),IF(AND(H61>=1963,H61<1968),VLOOKUP(I61,Feuil2!$F$10:$P$28,5),IF(AND(H61>=1968,H61<1973),VLOOKUP(I61,Feuil2!$F$10:$P$28,4),IF(AND(H61>=1973,H61<1978),VLOOKUP(I61,Feuil2!$F$10:$P$28,3),IF(AND(H61>=1978,H61<1983),VLOOKUP(I61,Feuil2!$F$10:$P$28,2),VLOOKUP(I61,Feuil2!$F$10:$P$28,2)))))))))))) ->  | AA61: =T61-HLOOKUP(Y61,Feuil2!$C$1:$CD$9,2,FALSE) ->  | AB61: =T61-HLOOKUP(Y61,Feuil2!$C$1:$CD$9,3,FALSE) ->  | AC61: =T61-HLOOKUP(Y61,Feuil2!$C$1:$CD$9,4,FALSE) ->  | AD61: =T61-HLOOKUP(Y61,Feuil2!$C$1:$CD$9,5,FALSE) ->  | AE61: =T61-HLOOKUP(Y61,Feuil2!$C$1:$CD$9,6,FALSE) ->  | AF61: =T61-HLOOKUP(Y61,Feuil2!$C$1:$CD$9,7,FALSE) ->  | AG61: =T61-HLOOKUP(Y61,Feuil2!$C$1:$CD$9,8,FALSE) ->  | AH61: =T61-HLOOKUP(Y61,Feuil2!$C$1:$CD$9,9,FALSE) ->  | AQ61: 2017 | AS61: =IF(AQ61,VLOOKUP(AQ61,HOM!$AS$389:$AT$444,2)) -> 4.493
A62: H | X62: FALSE | Y62: =IF(AND(H62<1920),VLOOKUP(I62,Feuil2!$F$10:$P$28,11),IF(AND(H62>=1920,H62<1939),VLOOKUP(I62,Feuil2!$F$10:$P$28,11),IF(AND(H62>=1938,H62<1943),VLOOKUP(I62,Feuil2!$F$10:$P$28,10),IF(AND(H62>=1943,H62<1948),VLOOKUP(I62,Feuil2!$F$10:$P$28,9),IF(AND(H62>=1948,H62<1953),VLOOKUP(I62,Feuil2!$F$10:$P$28,8),IF(AND(H62>=1953,H62<1958),VLOOKUP(I62,Feuil2!$F$10:$P$28,7),IF(AND(H62>=1958,H62<1963),VLOOKUP(I62,Feuil2!$F$10:$P$28,6),IF(AND(H62>=1963,H62<1968),VLOOKUP(I62,Feuil2!$F$10:$P$28,5),IF(AND(H62>=1968,H62<1973),VLOOKUP(I62,Feuil2!$F$10:$P$28,4),IF(AND(H62>=1973,H62<1978),VLOOKUP(I62,Feuil2!$F$10:$P$28,3),IF(AND(H62>=1978,H62<1983),VLOOKUP(I62,Feuil2!$F$10:$P$28,2),VLOOKUP(I62,Feuil2!$F$10:$P$28,2)))))))))))) ->  | AA62: =T62-HLOOKUP(Y62,Feuil2!$C$1:$CD$9,2,FALSE) ->  | AB62: =T62-HLOOKUP(Y62,Feuil2!$C$1:$CD$9,3,FALSE) ->  | AC62: =T62-HLOOKUP(Y62,Feuil2!$C$1:$CD$9,4,FALSE) ->  | AD62: =T62-HLOOKUP(Y62,Feuil2!$C$1:$CD$9,5,FALSE) ->  | AE62: =T62-HLOOKUP(Y62,Feuil2!$C$1:$CD$9,6,FALSE) ->  | AF62: =T62-HLOOKUP(Y62,Feuil2!$C$1:$CD$9,7,FALSE) ->  | AG62: =T62-HLOOKUP(Y62,Feuil2!$C$1:$CD$9,8,FALSE) ->  | AH62: =T62-HLOOKUP(Y62,Feuil2!$C$1:$CD$9,9,FALSE) ->  | AQ62: 2017 | AS62: =IF(AQ62,VLOOKUP(AQ62,HOM!$AS$389:$AT$444,2)) -> 4.493
A63: H | X63: FALSE | Y63: =IF(AND(H63<1920),VLOOKUP(I63,Feuil2!$F$10:$P$28,11),IF(AND(H63>=1920,H63<1939),VLOOKUP(I63,Feuil2!$F$10:$P$28,11),IF(AND(H63>=1938,H63<1943),VLOOKUP(I63,Feuil2!$F$10:$P$28,10),IF(AND(H63>=1943,H63<1948),VLOOKUP(I63,Feuil2!$F$10:$P$28,9),IF(AND(H63>=1948,H63<1953),VLOOKUP(I63,Feuil2!$F$10:$P$28,8),IF(AND(H63>=1953,H63<1958),VLOOKUP(I63,Feuil2!$F$10:$P$28,7),IF(AND(H63>=1958,H63<1963),VLOOKUP(I63,Feuil2!$F$10:$P$28,6),IF(AND(H63>=1963,H63<1968),VLOOKUP(I63,Feuil2!$F$10:$P$28,5),IF(AND(H63>=1968,H63<1973),VLOOKUP(I63,Feuil2!$F$10:$P$28,4),IF(AND(H63>=1973,H63<1978),VLOOKUP(I63,Feuil2!$F$10:$P$28,3),IF(AND(H63>=1978,H63<1983),VLOOKUP(I63,Feuil2!$F$10:$P$28,2),VLOOKUP(I63,Feuil2!$F$10:$P$28,2)))))))))))) ->  | AA63: =T63-HLOOKUP(Y63,Feuil2!$C$1:$CD$9,2,FALSE) ->  | AB63: =T63-HLOOKUP(Y63,Feuil2!$C$1:$CD$9,3,FALSE) ->  | AC63: =T63-HLOOKUP(Y63,Feuil2!$C$1:$CD$9,4,FALSE) ->  | AD63: =T63-HLOOKUP(Y63,Feuil2!$C$1:$CD$9,5,FALSE) ->  | AE63: =T63-HLOOKUP(Y63,Feuil2!$C$1:$CD$9,6,FALSE) ->  | AF63: =T63-HLOOKUP(Y63,Feuil2!$C$1:$CD$9,7,FALSE) ->  | AG63: =T63-HLOOKUP(Y63,Feuil2!$C$1:$CD$9,8,FALSE) ->  | AH63: =T63-HLOOKUP(Y63,Feuil2!$C$1:$CD$9,9,FALSE) ->  | AQ63: 2017 | AS63: =IF(AQ63,VLOOKUP(AQ63,HOM!$AS$389:$AT$444,2)) -> 4.493
A64: H | X64: FALSE | Y64: =IF(AND(H64<1920),VLOOKUP(I64,Feuil2!$F$10:$P$28,11),IF(AND(H64>=1920,H64<1939),VLOOKUP(I64,Feuil2!$F$10:$P$28,11),IF(AND(H64>=1938,H64<1943),VLOOKUP(I64,Feuil2!$F$10:$P$28,10),IF(AND(H64>=1943,H64<1948),VLOOKUP(I64,Feuil2!$F$10:$P$28,9),IF(AND(H64>=1948,H64<1953),VLOOKUP(I64,Feuil2!$F$10:$P$28,8),IF(AND(H64>=1953,H64<1958),VLOOKUP(I64,Feuil2!$F$10:$P$28,7),IF(AND(H64>=1958,H64<1963),VLOOKUP(I64,Feuil2!$F$10:$P$28,6),IF(AND(H64>=1963,H64<1968),VLOOKUP(I64,Feuil2!$F$10:$P$28,5),IF(AND(H64>=1968,H64<1973),VLOOKUP(I64,Feuil2!$F$10:$P$28,4),IF(AND(H64>=1973,H64<1978),VLOOKUP(I64,Feuil2!$F$10:$P$28,3),IF(AND(H64>=1978,H64<1983),VLOOKUP(I64,Feuil2!$F$10:$P$28,2),VLOOKUP(I64,Feuil2!$F$10:$P$28,2)))))))))))) ->  | AA64: =T64-HLOOKUP(Y64,Feuil2!$C$1:$CD$9,2,FALSE) ->  | AB64: =T64-HLOOKUP(Y64,Feuil2!$C$1:$CD$9,3,FALSE) ->  | AC64: =T64-HLOOKUP(Y64,Feuil2!$C$1:$CD$9,4,FALSE) ->  | AD64: =T64-HLOOKUP(Y64,Feuil2!$C$1:$CD$9,5,FALSE) ->  | AE64: =T64-HLOOKUP(Y64,Feuil2!$C$1:$CD$9,6,FALSE) ->  | AF64: =T64-HLOOKUP(Y64,Feuil2!$C$1:$CD$9,7,FALSE) ->  | AG64: =T64-HLOOKUP(Y64,Feuil2!$C$1:$CD$9,8,FALSE) ->  | AH64: =T64-HLOOKUP(Y64,Feuil2!$C$1:$CD$9,9,FALSE) ->  | AQ64: 2017 | AS64: =IF(AQ64,VLOOKUP(AQ64,HOM!$AS$389:$AT$444,2)) -> 4.493
A65: H | X65: FALSE | Y65: =IF(AND(H65<1920),VLOOKUP(I65,Feuil2!$F$10:$P$28,11),IF(AND(H65>=1920,H65<1939),VLOOKUP(I65,Feuil2!$F$10:$P$28,11),IF(AND(H65>=1938,H65<1943),VLOOKUP(I65,Feuil2!$F$10:$P$28,10),IF(AND(H65>=1943,H65<1948),VLOOKUP(I65,Feuil2!$F$10:$P$28,9),IF(AND(H65>=1948,H65<1953),VLOOKUP(I65,Feuil2!$F$10:$P$28,8),IF(AND(H65>=1953,H65<1958),VLOOKUP(I65,Feuil2!$F$10:$P$28,7),IF(AND(H65>=1958,H65<1963),VLOOKUP(I65,Feuil2!$F$10:$P$28,6),IF(AND(H65>=1963,H65<1968),VLOOKUP(I65,Feuil2!$F$10:$P$28,5),IF(AND(H65>=1968,H65<1973),VLOOKUP(I65,Feuil2!$F$10:$P$28,4),IF(AND(H65>=1973,H65<1978),VLOOKUP(I65,Feuil2!$F$10:$P$28,3),IF(AND(H65>=1978,H65<1983),VLOOKUP(I65,Feuil2!$F$10:$P$28,2),VLOOKUP(I65,Feuil2!$F$10:$P$28,2)))))))))))) ->  | AA65: =T65-HLOOKUP(Y65,Feuil2!$C$1:$CD$9,2,FALSE) ->  | AB65: =T65-HLOOKUP(Y65,Feuil2!$C$1:$CD$9,3,FALSE) ->  | AC65: =T65-HLOOKUP(Y65,Feuil2!$C$1:$CD$9,4,FALSE) ->  | AD65: =T65-HLOOKUP(Y65,Feuil2!$C$1:$CD$9,5,FALSE) ->  | AE65: =T65-HLOOKUP(Y65,Feuil2!$C$1:$CD$9,6,FALSE) ->  | AF65: =T65-HLOOKUP(Y65,Feuil2!$C$1:$CD$9,7,FALSE) ->  | AG65: =T65-HLOOKUP(Y65,Feuil2!$C$1:$CD$9,8,FALSE) ->  | AH65: =T65-HLOOKUP(Y65,Feuil2!$C$1:$CD$9,9,FALSE) ->  | AQ65: 2017 | AS65: =IF(AQ65,VLOOKUP(AQ65,HOM!$AS$389:$AT$444,2)) -> 4.493
A66: H | X66: FALSE | Y66: =IF(AND(H66<1920),VLOOKUP(I66,Feuil2!$F$10:$P$28,11),IF(AND(H66>=1920,H66<1939),VLOOKUP(I66,Feuil2!$F$10:$P$28,11),IF(AND(H66>=1938,H66<1943),VLOOKUP(I66,Feuil2!$F$10:$P$28,10),IF(AND(H66>=1943,H66<1948),VLOOKUP(I66,Feuil2!$F$10:$P$28,9),IF(AND(H66>=1948,H66<1953),VLOOKUP(I66,Feuil2!$F$10:$P$28,8),IF(AND(H66>=1953,H66<1958),VLOOKUP(I66,Feuil2!$F$10:$P$28,7),IF(AND(H66>=1958,H66<1963),VLOOKUP(I66,Feuil2!$F$10:$P$28,6),IF(AND(H66>=1963,H66<1968),VLOOKUP(I66,Feuil2!$F$10:$P$28,5),IF(AND(H66>=1968,H66<1973),VLOOKUP(I66,Feuil2!$F$10:$P$28,4),IF(AND(H66>=1973,H66<1978),VLOOKUP(I66,Feuil2!$F$10:$P$28,3),IF(AND(H66>=1978,H66<1983),VLOOKUP(I66,Feuil2!$F$10:$P$28,2),VLOOKUP(I66,Feuil2!$F$10:$P$28,2)))))))))))) ->  | AA66: =T66-HLOOKUP(Y66,Feuil2!$C$1:$CD$9,2,FALSE) ->  | AB66: =T66-HLOOKUP(Y66,Feuil2!$C$1:$CD$9,3,FALSE) ->  | AC66: =T66-HLOOKUP(Y66,Feuil2!$C$1:$CD$9,4,FALSE) ->  | AD66: =T66-HLOOKUP(Y66,Feuil2!$C$1:$CD$9,5,FALSE) ->  | AE66: =T66-HLOOKUP(Y66,Feuil2!$C$1:$CD$9,6,FALSE) ->  | AF66: =T66-HLOOKUP(Y66,Feuil2!$C$1:$CD$9,7,FALSE) ->  | AG66: =T66-HLOOKUP(Y66,Feuil2!$C$1:$CD$9,8,FALSE) ->  | AH66: =T66-HLOOKUP(Y66,Feuil2!$C$1:$CD$9,9,FALSE) ->  | AQ66: 2017 | AS66: =IF(AQ66,VLOOKUP(AQ66,HOM!$AS$389:$AT$444,2)) -> 4.493
A67: H | X67: FALSE | Y67: =IF(AND(H67<1920),VLOOKUP(I67,Feuil2!$F$10:$P$28,11),IF(AND(H67>=1920,H67<1939),VLOOKUP(I67,Feuil2!$F$10:$P$28,11),IF(AND(H67>=1938,H67<1943),VLOOKUP(I67,Feuil2!$F$10:$P$28,10),IF(AND(H67>=1943,H67<1948),VLOOKUP(I67,Feuil2!$F$10:$P$28,9),IF(AND(H67>=1948,H67<1953),VLOOKUP(I67,Feuil2!$F$10:$P$28,8),IF(AND(H67>=1953,H67<1958),VLOOKUP(I67,Feuil2!$F$10:$P$28,7),IF(AND(H67>=1958,H67<1963),VLOOKUP(I67,Feuil2!$F$10:$P$28,6),IF(AND(H67>=1963,H67<1968),VLOOKUP(I67,Feuil2!$F$10:$P$28,5),IF(AND(H67>=1968,H67<1973),VLOOKUP(I67,Feuil2!$F$10:$P$28,4),IF(AND(H67>=1973,H67<1978),VLOOKUP(I67,Feuil2!$F$10:$P$28,3),IF(AND(H67>=1978,H67<1983),VLOOKUP(I67,Feuil2!$F$10:$P$28,2),VLOOKUP(I67,Feuil2!$F$10:$P$28,2)))))))))))) ->  | AA67: =T67-HLOOKUP(Y67,Feuil2!$C$1:$CD$9,2,FALSE) ->  | AB67: =T67-HLOOKUP(Y67,Feuil2!$C$1:$CD$9,3,FALSE) ->  | AC67: =T67-HLOOKUP(Y67,Feuil2!$C$1:$CD$9,4,FALSE) ->  | AD67: =T67-HLOOKUP(Y67,Feuil2!$C$1:$CD$9,5,FALSE) ->  | AE67: =T67-HLOOKUP(Y67,Feuil2!$C$1:$CD$9,6,FALSE) ->  | AF67: =T67-HLOOKUP(Y67,Feuil2!$C$1:$CD$9,7,FALSE) ->  | AG67: =T67-HLOOKUP(Y67,Feuil2!$C$1:$CD$9,8,FALSE) ->  | AH67: =T67-HLOOKUP(Y67,Feuil2!$C$1:$CD$9,9,FALSE) ->  | AQ67: 2017 | AS67: =IF(AQ67,VLOOKUP(AQ67,HOM!$AS$389:$AT$444,2)) -> 4.493
A68: H | X68: FALSE | Y68: =IF(AND(H68<1920),VLOOKUP(I68,Feuil2!$F$10:$P$28,11),IF(AND(H68>=1920,H68<1939),VLOOKUP(I68,Feuil2!$F$10:$P$28,11),IF(AND(H68>=1938,H68<1943),VLOOKUP(I68,Feuil2!$F$10:$P$28,10),IF(AND(H68>=1943,H68<1948),VLOOKUP(I68,Feuil2!$F$10:$P$28,9),IF(AND(H68>=1948,H68<1953),VLOOKUP(I68,Feuil2!$F$10:$P$28,8),IF(AND(H68>=1953,H68<1958),VLOOKUP(I68,Feuil2!$F$10:$P$28,7),IF(AND(H68>=1958,H68<1963),VLOOKUP(I68,Feuil2!$F$10:$P$28,6),IF(AND(H68>=1963,H68<1968),VLOOKUP(I68,Feuil2!$F$10:$P$28,5),IF(AND(H68>=1968,H68<1973),VLOOKUP(I68,Feuil2!$F$10:$P$28,4),IF(AND(H68>=1973,H68<1978),VLOOKUP(I68,Feuil2!$F$10:$P$28,3),IF(AND(H68>=1978,H68<1983),VLOOKUP(I68,Feuil2!$F$10:$P$28,2),VLOOKUP(I68,Feuil2!$F$10:$P$28,2)))))))))))) ->  | AA68: =T68-HLOOKUP(Y68,Feuil2!$C$1:$CD$9,2,FALSE) ->  | AB68: =T68-HLOOKUP(Y68,Feuil2!$C$1:$CD$9,3,FALSE) ->  | AC68: =T68-HLOOKUP(Y68,Feuil2!$C$1:$CD$9,4,FALSE) ->  | AD68: =T68-HLOOKUP(Y68,Feuil2!$C$1:$CD$9,5,FALSE) ->  | AE68: =T68-HLOOKUP(Y68,Feuil2!$C$1:$CD$9,6,FALSE) ->  | AF68: =T68-HLOOKUP(Y68,Feuil2!$C$1:$CD$9,7,FALSE) ->  | AG68: =T68-HLOOKUP(Y68,Feuil2!$C$1:$CD$9,8,FALSE) ->  | AH68: =T68-HLOOKUP(Y68,Feuil2!$C$1:$CD$9,9,FALSE) ->  | AQ68: 2017 | AS68: =IF(AQ68,VLOOKUP(AQ68,HOM!$AS$389:$AT$444,2)) -> 4.493
A69: H | X69: FALSE | Y69: =IF(AND(H69<1920),VLOOKUP(I69,Feuil2!$F$10:$P$28,11),IF(AND(H69>=1920,H69<1939),VLOOKUP(I69,Feuil2!$F$10:$P$28,11),IF(AND(H69>=1938,H69<1943),VLOOKUP(I69,Feuil2!$F$10:$P$28,10),IF(AND(H69>=1943,H69<1948),VLOOKUP(I69,Feuil2!$F$10:$P$28,9),IF(AND(H69>=1948,H69<1953),VLOOKUP(I69,Feuil2!$F$10:$P$28,8),IF(AND(H69>=1953,H69<1958),VLOOKUP(I69,Feuil2!$F$10:$P$28,7),IF(AND(H69>=1958,H69<1963),VLOOKUP(I69,Feuil2!$F$10:$P$28,6),IF(AND(H69>=1963,H69<1968),VLOOKUP(I69,Feuil2!$F$10:$P$28,5),IF(AND(H69>=1968,H69<1973),VLOOKUP(I69,Feuil2!$F$10:$P$28,4),IF(AND(H69>=1973,H69<1978),VLOOKUP(I69,Feuil2!$F$10:$P$28,3),IF(AND(H69>=1978,H69<1983),VLOOKUP(I69,Feuil2!$F$10:$P$28,2),VLOOKUP(I69,Feuil2!$F$10:$P$28,2)))))))))))) ->  | AA69: =T69-HLOOKUP(Y69,Feuil2!$C$1:$CD$9,2,FALSE) ->  | AB69: =T69-HLOOKUP(Y69,Feuil2!$C$1:$CD$9,3,FALSE) ->  | AC69: =T69-HLOOKUP(Y69,Feuil2!$C$1:$CD$9,4,FALSE) ->  | AD69: =T69-HLOOKUP(Y69,Feuil2!$C$1:$CD$9,5,FALSE) ->  | AE69: =T69-HLOOKUP(Y69,Feuil2!$C$1:$CD$9,6,FALSE) ->  | AF69: =T69-HLOOKUP(Y69,Feuil2!$C$1:$CD$9,7,FALSE) ->  | AG69: =T69-HLOOKUP(Y69,Feuil2!$C$1:$CD$9,8,FALSE) ->  | AH69: =T69-HLOOKUP(Y69,Feuil2!$C$1:$CD$9,9,FALSE) ->  | AQ69: 2017 | AS69: =IF(AQ69,VLOOKUP(AQ69,HOM!$AS$389:$AT$444,2)) -> 4.493
A70: H | O70: =IF(I70="","",IF(MAXA(L70:N70)<=0,0,MAXA(L70:N70))) ->  | S70: =IF(I70="","",IF(MAXA(P70:R70)<=0,0,MAXA(P70:R70))) ->  | T70: =IF(I70="","",IF(OR(O70=0,S70=0),0,O70+S70)) ->  | U70: =IF(I70="","",IF(A70="H",10^(0.794358141*LOG(I70/174.393)^2)*T70*AS70,IF(A70="F",10^(0.89726074 * LOG(I70/148.026)^2)*T70*AS70,""))) ->  | V70: =IF(I70="","",AP70) ->  | W70: =IF(I70="","",IF(AH70>=0,AH70,IF(AG70>=0,AG70,IF(AF70>=0,AF70,IF(AE70>=0,AE70,IF(AD70>=0,AD70,IF(AC70>=0,AC70,IF(AB70>=0,AB70,AA70)))))))) ->  | X70: =IF(AQ70<95,IF(AQ70<=90,VLOOKUP(AQ70,$AQ$255:$AR$444,2))) -> FALSE | Y70: =IF(AND(H70<1920),VLOOKUP(I70,Feuil2!$F$10:$P$28,11),IF(AND(H70>=1920,H70<1939),VLOOKUP(I70,Feuil2!$F$10:$P$28,11),IF(AND(H70>=1938,H70<1943),VLOOKUP(I70,Feuil2!$F$10:$P$28,10),IF(AND(H70>=1943,H70<1948),VLOOKUP(I70,Feuil2!$F$10:$P$28,9),IF(AND(H70>=1948,H70<1953),VLOOKUP(I70,Feuil2!$F$10:$P$28,8),IF(AND(H70>=1953,H70<1958),VLOOKUP(I70,Feuil2!$F$10:$P$28,7),IF(AND(H70>=1958,H70<1963),VLOOKUP(I70,Feuil2!$F$10:$P$28,6),IF(AND(H70>=1963,H70<1968),VLOOKUP(I70,Feuil2!$F$10:$P$28,5),IF(AND(H70>=1968,H70<1973),VLOOKUP(I70,Feuil2!$F$10:$P$28,4),IF(AND(H70>=1973,H70<1978),VLOOKUP(I70,Feuil2!$F$10:$P$28,3),IF(AND(H70>=1978,H70<1983),VLOOKUP(I70,Feuil2!$F$10:$P$28,2),VLOOKUP(I70,Feuil2!$F$10:$P$28,2)))))))))))) ->  | AA70: =T70-HLOOKUP(Y70,Feuil2!$C$1:$CD$9,2,FALSE) ->  | AB70: =T70-HLOOKUP(Y70,Feuil2!$C$1:$CD$9,3,FALSE) ->  | AC70: =T70-HLOOKUP(Y70,Feuil2!$C$1:$CD$9,4,FALSE) ->  | AD70: =T70-HLOOKUP(Y70,Feuil2!$C$1:$CD$9,5,FALSE) ->  | AE70: =T70-HLOOKUP(Y70,Feuil2!$C$1:$CD$9,6,FALSE) ->  | AF70: =T70-HLOOKUP(Y70,Feuil2!$C$1:$CD$9,7,FALSE) ->  | AG70: =T70-HLOOKUP(Y70,Feuil2!$C$1:$CD$9,8,FALSE) ->  | AH70: =T70-HLOOKUP(Y70,Feuil2!$C$1:$CD$9,9,FALSE) ->  | AP70: =IF(AH70>=0,$AH$5,IF(AG70>=0,$AG$5,IF(AF70>=0,$AF$5,IF(AE70>=0,$AE$5,IF(AD70>=0,$AD$5,IF(AC70>=0,$AC$5,IF(AB70>=0,$AB$5,IF(AA70>=0,$AA$5,$AI$5)))))))) ->  | AQ70: =2017-H70 -> 2017 | AS70: =IF(AQ70,VLOOKUP(AQ70,HOM!$AS$389:$AT$444,2)) -> 4.493
A71: H | O71: =IF(I71="","",IF(MAXA(L71:N71)<=0,0,MAXA(L71:N71))) ->  | X71: FALSE | Y71: =IF(AND(H71<1920),VLOOKUP(I71,Feuil2!$F$10:$P$28,11),IF(AND(H71>=1920,H71<1939),VLOOKUP(I71,Feuil2!$F$10:$P$28,11),IF(AND(H71>=1938,H71<1943),VLOOKUP(I71,Feuil2!$F$10:$P$28,10),IF(AND(H71>=1943,H71<1948),VLOOKUP(I71,Feuil2!$F$10:$P$28,9),IF(AND(H71>=1948,H71<1953),VLOOKUP(I71,Feuil2!$F$10:$P$28,8),IF(AND(H71>=1953,H71<1958),VLOOKUP(I71,Feuil2!$F$10:$P$28,7),IF(AND(H71>=1958,H71<1963),VLOOKUP(I71,Feuil2!$F$10:$P$28,6),IF(AND(H71>=1963,H71<1968),VLOOKUP(I71,Feuil2!$F$10:$P$28,5),IF(AND(H71>=1968,H71<1973),VLOOKUP(I71,Feuil2!$F$10:$P$28,4),IF(AND(H71>=1973,H71<1978),VLOOKUP(I71,Feuil2!$F$10:$P$28,3),IF(AND(H71>=1978,H71<1983),VLOOKUP(I71,Feuil2!$F$10:$P$28,2),VLOOKUP(I71,Feuil2!$F$10:$P$28,2)))))))))))) ->  | AA71: =T71-HLOOKUP(Y71,Feuil2!$C$1:$CD$9,2,FALSE) ->  | AB71: =T71-HLOOKUP(Y71,Feuil2!$C$1:$CD$9,3,FALSE) ->  | AC71: =T71-HLOOKUP(Y71,Feuil2!$C$1:$CD$9,4,FALSE) ->  | AD71: =T71-HLOOKUP(Y71,Feuil2!$C$1:$CD$9,5,FALSE) ->  | AE71: =T71-HLOOKUP(Y71,Feuil2!$C$1:$CD$9,6,FALSE) ->  | AF71: =T71-HLOOKUP(Y71,Feuil2!$C$1:$CD$9,7,FALSE) ->  | AG71: =T71-HLOOKUP(Y71,Feuil2!$C$1:$CD$9,8,FALSE) ->  | AH71: =T71-HLOOKUP(Y71,Feuil2!$C$1:$CD$9,9,FALSE) ->  | AQ71: 2017 | AS71: =IF(AQ71,VLOOKUP(AQ71,HOM!$AS$389:$AT$444,2)) -> 4.493
A72: H | X72: FALSE | Y72: =IF(AND(H72<1920),VLOOKUP(I72,Feuil2!$F$10:$P$28,11),IF(AND(H72>=1920,H72<1939),VLOOKUP(I72,Feuil2!$F$10:$P$28,11),IF(AND(H72>=1938,H72<1943),VLOOKUP(I72,Feuil2!$F$10:$P$28,10),IF(AND(H72>=1943,H72<1948),VLOOKUP(I72,Feuil2!$F$10:$P$28,9),IF(AND(H72>=1948,H72<1953),VLOOKUP(I72,Feuil2!$F$10:$P$28,8),IF(AND(H72>=1953,H72<1958),VLOOKUP(I72,Feuil2!$F$10:$P$28,7),IF(AND(H72>=1958,H72<1963),VLOOKUP(I72,Feuil2!$F$10:$P$28,6),IF(AND(H72>=1963,H72<1968),VLOOKUP(I72,Feuil2!$F$10:$P$28,5),IF(AND(H72>=1968,H72<1973),VLOOKUP(I72,Feuil2!$F$10:$P$28,4),IF(AND(H72>=1973,H72<1978),VLOOKUP(I72,Feuil2!$F$10:$P$28,3),IF(AND(H72>=1978,H72<1983),VLOOKUP(I72,Feuil2!$F$10:$P$28,2),VLOOKUP(I72,Feuil2!$F$10:$P$28,2)))))))))))) ->  | AA72: =T72-HLOOKUP(Y72,Feuil2!$C$1:$CD$9,2,FALSE) ->  | AB72: =T72-HLOOKUP(Y72,Feuil2!$C$1:$CD$9,3,FALSE) ->  | AC72: =T72-HLOOKUP(Y72,Feuil2!$C$1:$CD$9,4,FALSE) ->  | AD72: =T72-HLOOKUP(Y72,Feuil2!$C$1:$CD$9,5,FALSE) ->  | AE72: =T72-HLOOKUP(Y72,Feuil2!$C$1:$CD$9,6,FALSE) ->  | AF72: =T72-HLOOKUP(Y72,Feuil2!$C$1:$CD$9,7,FALSE) ->  | AG72: =T72-HLOOKUP(Y72,Feuil2!$C$1:$CD$9,8,FALSE) ->  | AH72: =T72-HLOOKUP(Y72,Feuil2!$C$1:$CD$9,9,FALSE) ->  | AQ72: 2017 | AS72: =IF(AQ72,VLOOKUP(AQ72,HOM!$AS$389:$AT$444,2)) -> 4.493
A73: H | X73: FALSE | Y73: =IF(AND(H73<1920),VLOOKUP(I73,Feuil2!$F$10:$P$28,11),IF(AND(H73>=1920,H73<1939),VLOOKUP(I73,Feuil2!$F$10:$P$28,11),IF(AND(H73>=1938,H73<1943),VLOOKUP(I73,Feuil2!$F$10:$P$28,10),IF(AND(H73>=1943,H73<1948),VLOOKUP(I73,Feuil2!$F$10:$P$28,9),IF(AND(H73>=1948,H73<1953),VLOOKUP(I73,Feuil2!$F$10:$P$28,8),IF(AND(H73>=1953,H73<1958),VLOOKUP(I73,Feuil2!$F$10:$P$28,7),IF(AND(H73>=1958,H73<1963),VLOOKUP(I73,Feuil2!$F$10:$P$28,6),IF(AND(H73>=1963,H73<1968),VLOOKUP(I73,Feuil2!$F$10:$P$28,5),IF(AND(H73>=1968,H73<1973),VLOOKUP(I73,Feuil2!$F$10:$P$28,4),IF(AND(H73>=1973,H73<1978),VLOOKUP(I73,Feuil2!$F$10:$P$28,3),IF(AND(H73>=1978,H73<1983),VLOOKUP(I73,Feuil2!$F$10:$P$28,2),VLOOKUP(I73,Feuil2!$F$10:$P$28,2)))))))))))) ->  | AA73: =T73-HLOOKUP(Y73,Feuil2!$C$1:$CD$9,2,FALSE) ->  | AB73: =T73-HLOOKUP(Y73,Feuil2!$C$1:$CD$9,3,FALSE) ->  | AC73: =T73-HLOOKUP(Y73,Feuil2!$C$1:$CD$9,4,FALSE) ->  | AD73: =T73-HLOOKUP(Y73,Feuil2!$C$1:$CD$9,5,FALSE) ->  | AE73: =T73-HLOOKUP(Y73,Feuil2!$C$1:$CD$9,6,FALSE) ->  | AF73: =T73-HLOOKUP(Y73,Feuil2!$C$1:$CD$9,7,FALSE) ->  | AG73: =T73-HLOOKUP(Y73,Feuil2!$C$1:$CD$9,8,FALSE) ->  | AH73: =T73-HLOOKUP(Y73,Feuil2!$C$1:$CD$9,9,FALSE) ->  | AQ73: 2017 | AS73: =IF(AQ73,VLOOKUP(AQ73,HOM!$AS$389:$AT$444,2)) -> 4.493
A74: H | X74: FALSE | Y74: =IF(AND(H74<1920),VLOOKUP(I74,Feuil2!$F$10:$P$28,11),IF(AND(H74>=1920,H74<1939),VLOOKUP(I74,Feuil2!$F$10:$P$28,11),IF(AND(H74>=1938,H74<1943),VLOOKUP(I74,Feuil2!$F$10:$P$28,10),IF(AND(H74>=1943,H74<1948),VLOOKUP(I74,Feuil2!$F$10:$P$28,9),IF(AND(H74>=1948,H74<1953),VLOOKUP(I74,Feuil2!$F$10:$P$28,8),IF(AND(H74>=1953,H74<1958),VLOOKUP(I74,Feuil2!$F$10:$P$28,7),IF(AND(H74>=1958,H74<1963),VLOOKUP(I74,Feuil2!$F$10:$P$28,6),IF(AND(H74>=1963,H74<1968),VLOOKUP(I74,Feuil2!$F$10:$P$28,5),IF(AND(H74>=1968,H74<1973),VLOOKUP(I74,Feuil2!$F$10:$P$28,4),IF(AND(H74>=1973,H74<1978),VLOOKUP(I74,Feuil2!$F$10:$P$28,3),IF(AND(H74>=1978,H74<1983),VLOOKUP(I74,Feuil2!$F$10:$P$28,2),VLOOKUP(I74,Feuil2!$F$10:$P$28,2)))))))))))) ->  | AA74: =T74-HLOOKUP(Y74,Feuil2!$C$1:$CD$9,2,FALSE) ->  | AB74: =T74-HLOOKUP(Y74,Feuil2!$C$1:$CD$9,3,FALSE) ->  | AC74: =T74-HLOOKUP(Y74,Feuil2!$C$1:$CD$9,4,FALSE) ->  | AD74: =T74-HLOOKUP(Y74,Feuil2!$C$1:$CD$9,5,FALSE) ->  | AE74: =T74-HLOOKUP(Y74,Feuil2!$C$1:$CD$9,6,FALSE) ->  | AF74: =T74-HLOOKUP(Y74,Feuil2!$C$1:$CD$9,7,FALSE) ->  | AG74: =T74-HLOOKUP(Y74,Feuil2!$C$1:$CD$9,8,FALSE) ->  | AH74: =T74-HLOOKUP(Y74,Feuil2!$C$1:$CD$9,9,FALSE) ->  | AQ74: 2017 | AS74: =IF(AQ74,VLOOKUP(AQ74,HOM!$AS$389:$AT$444,2)) -> 4.493
A75: H | X75: FALSE | Y75: =IF(AND(H75<1920),VLOOKUP(I75,Feuil2!$F$10:$P$28,11),IF(AND(H75>=1920,H75<1939),VLOOKUP(I75,Feuil2!$F$10:$P$28,11),IF(AND(H75>=1938,H75<1943),VLOOKUP(I75,Feuil2!$F$10:$P$28,10),IF(AND(H75>=1943,H75<1948),VLOOKUP(I75,Feuil2!$F$10:$P$28,9),IF(AND(H75>=1948,H75<1953),VLOOKUP(I75,Feuil2!$F$10:$P$28,8),IF(AND(H75>=1953,H75<1958),VLOOKUP(I75,Feuil2!$F$10:$P$28,7),IF(AND(H75>=1958,H75<1963),VLOOKUP(I75,Feuil2!$F$10:$P$28,6),IF(AND(H75>=1963,H75<1968),VLOOKUP(I75,Feuil2!$F$10:$P$28,5),IF(AND(H75>=1968,H75<1973),VLOOKUP(I75,Feuil2!$F$10:$P$28,4),IF(AND(H75>=1973,H75<1978),VLOOKUP(I75,Feuil2!$F$10:$P$28,3),IF(AND(H75>=1978,H75<1983),VLOOKUP(I75,Feuil2!$F$10:$P$28,2),VLOOKUP(I75,Feuil2!$F$10:$P$28,2)))))))))))) ->  | AA75: =T75-HLOOKUP(Y75,Feuil2!$C$1:$CD$9,2,FALSE) ->  | AB75: =T75-HLOOKUP(Y75,Feuil2!$C$1:$CD$9,3,FALSE) ->  | AC75: =T75-HLOOKUP(Y75,Feuil2!$C$1:$CD$9,4,FALSE) ->  | AD75: =T75-HLOOKUP(Y75,Feuil2!$C$1:$CD$9,5,FALSE) ->  | AE75: =T75-HLOOKUP(Y75,Feuil2!$C$1:$CD$9,6,FALSE) ->  | AF75: =T75-HLOOKUP(Y75,Feuil2!$C$1:$CD$9,7,FALSE) ->  | AG75: =T75-HLOOKUP(Y75,Feuil2!$C$1:$CD$9,8,FALSE) ->  | AH75: =T75-HLOOKUP(Y75,Feuil2!$C$1:$CD$9,9,FALSE) ->  | AQ75: 2017 | AS75: =IF(AQ75,VLOOKUP(AQ75,HOM!$AS$389:$AT$444,2)) -> 4.493
A76: H | X76: FALSE | Y76: =IF(AND(H76<1920),VLOOKUP(I76,Feuil2!$F$10:$P$28,11),IF(AND(H76>=1920,H76<1939),VLOOKUP(I76,Feuil2!$F$10:$P$28,11),IF(AND(H76>=1938,H76<1943),VLOOKUP(I76,Feuil2!$F$10:$P$28,10),IF(AND(H76>=1943,H76<1948),VLOOKUP(I76,Feuil2!$F$10:$P$28,9),IF(AND(H76>=1948,H76<1953),VLOOKUP(I76,Feuil2!$F$10:$P$28,8),IF(AND(H76>=1953,H76<1958),VLOOKUP(I76,Feuil2!$F$10:$P$28,7),IF(AND(H76>=1958,H76<1963),VLOOKUP(I76,Feuil2!$F$10:$P$28,6),IF(AND(H76>=1963,H76<1968),VLOOKUP(I76,Feuil2!$F$10:$P$28,5),IF(AND(H76>=1968,H76<1973),VLOOKUP(I76,Feuil2!$F$10:$P$28,4),IF(AND(H76>=1973,H76<1978),VLOOKUP(I76,Feuil2!$F$10:$P$28,3),IF(AND(H76>=1978,H76<1983),VLOOKUP(I76,Feuil2!$F$10:$P$28,2),VLOOKUP(I76,Feuil2!$F$10:$P$28,2)))))))))))) ->  | AA76: =T76-HLOOKUP(Y76,Feuil2!$C$1:$CD$9,2,FALSE) ->  | AB76: =T76-HLOOKUP(Y76,Feuil2!$C$1:$CD$9,3,FALSE) ->  | AC76: =T76-HLOOKUP(Y76,Feuil2!$C$1:$CD$9,4,FALSE) ->  | AD76: =T76-HLOOKUP(Y76,Feuil2!$C$1:$CD$9,5,FALSE) ->  | AE76: =T76-HLOOKUP(Y76,Feuil2!$C$1:$CD$9,6,FALSE) ->  | AF76: =T76-HLOOKUP(Y76,Feuil2!$C$1:$CD$9,7,FALSE) ->  | AG76: =T76-HLOOKUP(Y76,Feuil2!$C$1:$CD$9,8,FALSE) ->  | AH76: =T76-HLOOKUP(Y76,Feuil2!$C$1:$CD$9,9,FALSE) ->  | AQ76: 2017 | AS76: =IF(AQ76,VLOOKUP(AQ76,HOM!$AS$389:$AT$444,2)) -> 4.493
A77: H | X77: FALSE | Y77: =IF(AND(H77<1920),VLOOKUP(I77,Feuil2!$F$10:$P$28,11),IF(AND(H77>=1920,H77<1939),VLOOKUP(I77,Feuil2!$F$10:$P$28,11),IF(AND(H77>=1938,H77<1943),VLOOKUP(I77,Feuil2!$F$10:$P$28,10),IF(AND(H77>=1943,H77<1948),VLOOKUP(I77,Feuil2!$F$10:$P$28,9),IF(AND(H77>=1948,H77<1953),VLOOKUP(I77,Feuil2!$F$10:$P$28,8),IF(AND(H77>=1953,H77<1958),VLOOKUP(I77,Feuil2!$F$10:$P$28,7),IF(AND(H77>=1958,H77<1963),VLOOKUP(I77,Feuil2!$F$10:$P$28,6),IF(AND(H77>=1963,H77<1968),VLOOKUP(I77,Feuil2!$F$10:$P$28,5),IF(AND(H77>=1968,H77<1973),VLOOKUP(I77,Feuil2!$F$10:$P$28,4),IF(AND(H77>=1973,H77<1978),VLOOKUP(I77,Feuil2!$F$10:$P$28,3),IF(AND(H77>=1978,H77<1983),VLOOKUP(I77,Feuil2!$F$10:$P$28,2),VLOOKUP(I77,Feuil2!$F$10:$P$28,2)))))))))))) ->  | AA77: =T77-HLOOKUP(Y77,Feuil2!$C$1:$CD$9,2,FALSE) ->  | AB77: =T77-HLOOKUP(Y77,Feuil2!$C$1:$CD$9,3,FALSE) ->  | AC77: =T77-HLOOKUP(Y77,Feuil2!$C$1:$CD$9,4,FALSE) ->  | AD77: =T77-HLOOKUP(Y77,Feuil2!$C$1:$CD$9,5,FALSE) ->  | AE77: =T77-HLOOKUP(Y77,Feuil2!$C$1:$CD$9,6,FALSE) ->  | AF77: =T77-HLOOKUP(Y77,Feuil2!$C$1:$CD$9,7,FALSE) ->  | AG77: =T77-HLOOKUP(Y77,Feuil2!$C$1:$CD$9,8,FALSE) ->  | AH77: =T77-HLOOKUP(Y77,Feuil2!$C$1:$CD$9,9,FALSE) ->  | AQ77: 2017 | AS77: =IF(AQ77,VLOOKUP(AQ77,HOM!$AS$389:$AT$444,2)) -> 4.493
A78: H | X78: FALSE | Y78: =IF(AND(H78<1920),VLOOKUP(I78,Feuil2!$F$10:$P$28,11),IF(AND(H78>=1920,H78<1939),VLOOKUP(I78,Feuil2!$F$10:$P$28,11),IF(AND(H78>=1938,H78<1943),VLOOKUP(I78,Feuil2!$F$10:$P$28,10),IF(AND(H78>=1943,H78<1948),VLOOKUP(I78,Feuil2!$F$10:$P$28,9),IF(AND(H78>=1948,H78<1953),VLOOKUP(I78,Feuil2!$F$10:$P$28,8),IF(AND(H78>=1953,H78<1958),VLOOKUP(I78,Feuil2!$F$10:$P$28,7),IF(AND(H78>=1958,H78<1963),VLOOKUP(I78,Feuil2!$F$10:$P$28,6),IF(AND(H78>=1963,H78<1968),VLOOKUP(I78,Feuil2!$F$10:$P$28,5),IF(AND(H78>=1968,H78<1973),VLOOKUP(I78,Feuil2!$F$10:$P$28,4),IF(AND(H78>=1973,H78<1978),VLOOKUP(I78,Feuil2!$F$10:$P$28,3),IF(AND(H78>=1978,H78<1983),VLOOKUP(I78,Feuil2!$F$10:$P$28,2),VLOOKUP(I78,Feuil2!$F$10:$P$28,2)))))))))))) ->  | AA78: =T78-HLOOKUP(Y78,Feuil2!$C$1:$CD$9,2,FALSE) ->  | AB78: =T78-HLOOKUP(Y78,Feuil2!$C$1:$CD$9,3,FALSE) ->  | AC78: =T78-HLOOKUP(Y78,Feuil2!$C$1:$CD$9,4,FALSE) ->  | AD78: =T78-HLOOKUP(Y78,Feuil2!$C$1:$CD$9,5,FALSE) ->  | AE78: =T78-HLOOKUP(Y78,Feuil2!$C$1:$CD$9,6,FALSE) ->  | AF78: =T78-HLOOKUP(Y78,Feuil2!$C$1:$CD$9,7,FALSE) ->  | AG78: =T78-HLOOKUP(Y78,Feuil2!$C$1:$CD$9,8,FALSE) ->  | AH78: =T78-HLOOKUP(Y78,Feuil2!$C$1:$CD$9,9,FALSE) ->  | AQ78: 2017 | AS78: =IF(AQ78,VLOOKUP(AQ78,HOM!$AS$389:$AT$444,2)) -> 4.493
A79: H | X79: FALSE | Y79: =IF(AND(H79<1920),VLOOKUP(I79,Feuil2!$F$10:$P$28,11),IF(AND(H79>=1920,H79<1939),VLOOKUP(I79,Feuil2!$F$10:$P$28,11),IF(AND(H79>=1938,H79<1943),VLOOKUP(I79,Feuil2!$F$10:$P$28,10),IF(AND(H79>=1943,H79<1948),VLOOKUP(I79,Feuil2!$F$10:$P$28,9),IF(AND(H79>=1948,H79<1953),VLOOKUP(I79,Feuil2!$F$10:$P$28,8),IF(AND(H79>=1953,H79<1958),VLOOKUP(I79,Feuil2!$F$10:$P$28,7),IF(AND(H79>=1958,H79<1963),VLOOKUP(I79,Feuil2!$F$10:$P$28,6),IF(AND(H79>=1963,H79<1968),VLOOKUP(I79,Feuil2!$F$10:$P$28,5),IF(AND(H79>=1968,H79<1973),VLOOKUP(I79,Feuil2!$F$10:$P$28,4),IF(AND(H79>=1973,H79<1978),VLOOKUP(I79,Feuil2!$F$10:$P$28,3),IF(AND(H79>=1978,H79<1983),VLOOKUP(I79,Feuil2!$F$10:$P$28,2),VLOOKUP(I79,Feuil2!$F$10:$P$28,2)))))))))))) ->  | AA79: =T79-HLOOKUP(Y79,Feuil2!$C$1:$CD$9,2,FALSE) ->  | AB79: =T79-HLOOKUP(Y79,Feuil2!$C$1:$CD$9,3,FALSE) ->  | AC79: =T79-HLOOKUP(Y79,Feuil2!$C$1:$CD$9,4,FALSE) ->  | AD79: =T79-HLOOKUP(Y79,Feuil2!$C$1:$CD$9,5,FALSE) ->  | AE79: =T79-HLOOKUP(Y79,Feuil2!$C$1:$CD$9,6,FALSE) ->  | AF79: =T79-HLOOKUP(Y79,Feuil2!$C$1:$CD$9,7,FALSE) ->  | AG79: =T79-HLOOKUP(Y79,Feuil2!$C$1:$CD$9,8,FALSE) ->  | AH79: =T79-HLOOKUP(Y79,Feuil2!$C$1:$CD$9,9,FALSE) ->  | AQ79: 2017 | AS79: =IF(AQ79,VLOOKUP(AQ79,HOM!$AS$389:$AT$444,2)) -> 4.493
A80: H | X80: FALSE | Y80: =IF(AND(H80<1920),VLOOKUP(I80,Feuil2!$F$10:$P$28,11),IF(AND(H80>=1920,H80<1939),VLOOKUP(I80,Feuil2!$F$10:$P$28,11),IF(AND(H80>=1938,H80<1943),VLOOKUP(I80,Feuil2!$F$10:$P$28,10),IF(AND(H80>=1943,H80<1948),VLOOKUP(I80,Feuil2!$F$10:$P$28,9),IF(AND(H80>=1948,H80<1953),VLOOKUP(I80,Feuil2!$F$10:$P$28,8),IF(AND(H80>=1953,H80<1958),VLOOKUP(I80,Feuil2!$F$10:$P$28,7),IF(AND(H80>=1958,H80<1963),VLOOKUP(I80,Feuil2!$F$10:$P$28,6),IF(AND(H80>=1963,H80<1968),VLOOKUP(I80,Feuil2!$F$10:$P$28,5),IF(AND(H80>=1968,H80<1973),VLOOKUP(I80,Feuil2!$F$10:$P$28,4),IF(AND(H80>=1973,H80<1978),VLOOKUP(I80,Feuil2!$F$10:$P$28,3),IF(AND(H80>=1978,H80<1983),VLOOKUP(I80,Feuil2!$F$10:$P$28,2),VLOOKUP(I80,Feuil2!$F$10:$P$28,2)))))))))))) ->  | AA80: =T80-HLOOKUP(Y80,Feuil2!$C$1:$CD$9,2,FALSE) ->  | AB80: =T80-HLOOKUP(Y80,Feuil2!$C$1:$CD$9,3,FALSE) ->  | AC80: =T80-HLOOKUP(Y80,Feuil2!$C$1:$CD$9,4,FALSE) ->  | AD80: =T80-HLOOKUP(Y80,Feuil2!$C$1:$CD$9,5,FALSE) ->  | AE80: =T80-HLOOKUP(Y80,Feuil2!$C$1:$CD$9,6,FALSE) ->  | AF80: =T80-HLOOKUP(Y80,Feuil2!$C$1:$CD$9,7,FALSE) ->  | AG80: =T80-HLOOKUP(Y80,Feuil2!$C$1:$CD$9,8,FALSE) ->  | AH80: =T80-HLOOKUP(Y80,Feuil2!$C$1:$CD$9,9,FALSE) ->  | AQ80: 2017 | AS80: =IF(AQ80,VLOOKUP(AQ80,HOM!$AS$389:$AT$444,2)) -> 4.493
A81: H | X81: FALSE | Y81: =IF(AND(H81<1920),VLOOKUP(I81,Feuil2!$F$10:$P$28,11),IF(AND(H81>=1920,H81<1939),VLOOKUP(I81,Feuil2!$F$10:$P$28,11),IF(AND(H81>=1938,H81<1943),VLOOKUP(I81,Feuil2!$F$10:$P$28,10),IF(AND(H81>=1943,H81<1948),VLOOKUP(I81,Feuil2!$F$10:$P$28,9),IF(AND(H81>=1948,H81<1953),VLOOKUP(I81,Feuil2!$F$10:$P$28,8),IF(AND(H81>=1953,H81<1958),VLOOKUP(I81,Feuil2!$F$10:$P$28,7),IF(AND(H81>=1958,H81<1963),VLOOKUP(I81,Feuil2!$F$10:$P$28,6),IF(AND(H81>=1963,H81<1968),VLOOKUP(I81,Feuil2!$F$10:$P$28,5),IF(AND(H81>=1968,H81<1973),VLOOKUP(I81,Feuil2!$F$10:$P$28,4),IF(AND(H81>=1973,H81<1978),VLOOKUP(I81,Feuil2!$F$10:$P$28,3),IF(AND(H81>=1978,H81<1983),VLOOKUP(I81,Feuil2!$F$10:$P$28,2),VLOOKUP(I81,Feuil2!$F$10:$P$28,2)))))))))))) ->  | AA81: =T81-HLOOKUP(Y81,Feuil2!$C$1:$CD$9,2,FALSE) ->  | AB81: =T81-HLOOKUP(Y81,Feuil2!$C$1:$CD$9,3,FALSE) ->  | AC81: =T81-HLOOKUP(Y81,Feuil2!$C$1:$CD$9,4,FALSE) ->  | AD81: =T81-HLOOKUP(Y81,Feuil2!$C$1:$CD$9,5,FALSE) ->  | AE81: =T81-HLOOKUP(Y81,Feuil2!$C$1:$CD$9,6,FALSE) ->  | AF81: =T81-HLOOKUP(Y81,Feuil2!$C$1:$CD$9,7,FALSE) ->  | AG81: =T81-HLOOKUP(Y81,Feuil2!$C$1:$CD$9,8,FALSE) ->  | AH81: =T81-HLOOKUP(Y81,Feuil2!$C$1:$CD$9,9,FALSE) ->  | AQ81: 2017 | AS81: =IF(AQ81,VLOOKUP(AQ81,HOM!$AS$389:$AT$444,2)) -> 4.493
A82: H | X82: FALSE | Y82: =IF(AND(H82<1920),VLOOKUP(I82,Feuil2!$F$10:$P$28,11),IF(AND(H82>=1920,H82<1939),VLOOKUP(I82,Feuil2!$F$10:$P$28,11),IF(AND(H82>=1938,H82<1943),VLOOKUP(I82,Feuil2!$F$10:$P$28,10),IF(AND(H82>=1943,H82<1948),VLOOKUP(I82,Feuil2!$F$10:$P$28,9),IF(AND(H82>=1948,H82<1953),VLOOKUP(I82,Feuil2!$F$10:$P$28,8),IF(AND(H82>=1953,H82<1958),VLOOKUP(I82,Feuil2!$F$10:$P$28,7),IF(AND(H82>=1958,H82<1963),VLOOKUP(I82,Feuil2!$F$10:$P$28,6),IF(AND(H82>=1963,H82<1968),VLOOKUP(I82,Feuil2!$F$10:$P$28,5),IF(AND(H82>=1968,H82<1973),VLOOKUP(I82,Feuil2!$F$10:$P$28,4),IF(AND(H82>=1973,H82<1978),VLOOKUP(I82,Feuil2!$F$10:$P$28,3),IF(AND(H82>=1978,H82<1983),VLOOKUP(I82,Feuil2!$F$10:$P$28,2),VLOOKUP(I82,Feuil2!$F$10:$P$28,2)))))))))))) ->  | AA82: =T82-HLOOKUP(Y82,Feuil2!$C$1:$CD$9,2,FALSE) ->  | AB82: =T82-HLOOKUP(Y82,Feuil2!$C$1:$CD$9,3,FALSE) ->  | AC82: =T82-HLOOKUP(Y82,Feuil2!$C$1:$CD$9,4,FALSE) ->  | AD82: =T82-HLOOKUP(Y82,Feuil2!$C$1:$CD$9,5,FALSE) ->  | AE82: =T82-HLOOKUP(Y82,Feuil2!$C$1:$CD$9,6,FALSE) ->  | AF82: =T82-HLOOKUP(Y82,Feuil2!$C$1:$CD$9,7,FALSE) ->  | AG82: =T82-HLOOKUP(Y82,Feuil2!$C$1:$CD$9,8,FALSE) ->  | AH82: =T82-HLOOKUP(Y82,Feuil2!$C$1:$CD$9,9,FALSE) ->  | AQ82: 2017 | AS82: =IF(AQ82,VLOOKUP(AQ82,HOM!$AS$389:$AT$444,2)) -> 4.493
A83: H | X83: FALSE | Y83: =IF(AND(H83<1920),VLOOKUP(I83,Feuil2!$F$10:$P$28,11),IF(AND(H83>=1920,H83<1939),VLOOKUP(I83,Feuil2!$F$10:$P$28,11),IF(AND(H83>=1938,H83<1943),VLOOKUP(I83,Feuil2!$F$10:$P$28,10),IF(AND(H83>=1943,H83<1948),VLOOKUP(I83,Feuil2!$F$10:$P$28,9),IF(AND(H83>=1948,H83<1953),VLOOKUP(I83,Feuil2!$F$10:$P$28,8),IF(AND(H83>=1953,H83<1958),VLOOKUP(I83,Feuil2!$F$10:$P$28,7),IF(AND(H83>=1958,H83<1963),VLOOKUP(I83,Feuil2!$F$10:$P$28,6),IF(AND(H83>=1963,H83<1968),VLOOKUP(I83,Feuil2!$F$10:$P$28,5),IF(AND(H83>=1968,H83<1973),VLOOKUP(I83,Feuil2!$F$10:$P$28,4),IF(AND(H83>=1973,H83<1978),VLOOKUP(I83,Feuil2!$F$10:$P$28,3),IF(AND(H83>=1978,H83<1983),VLOOKUP(I83,Feuil2!$F$10:$P$28,2),VLOOKUP(I83,Feuil2!$F$10:$P$28,2)))))))))))) ->  | AA83: =T83-HLOOKUP(Y83,Feuil2!$C$1:$CD$9,2,FALSE) ->  | AB83: =T83-HLOOKUP(Y83,Feuil2!$C$1:$CD$9,3,FALSE) ->  | AC83: =T83-HLOOKUP(Y83,Feuil2!$C$1:$CD$9,4,FALSE) ->  | AD83: =T83-HLOOKUP(Y83,Feuil2!$C$1:$CD$9,5,FALSE) ->  | AE83: =T83-HLOOKUP(Y83,Feuil2!$C$1:$CD$9,6,FALSE) ->  | AF83: =T83-HLOOKUP(Y83,Feuil2!$C$1:$CD$9,7,FALSE) ->  | AG83: =T83-HLOOKUP(Y83,Feuil2!$C$1:$CD$9,8,FALSE) ->  | AH83: =T83-HLOOKUP(Y83,Feuil2!$C$1:$CD$9,9,FALSE) ->  | AQ83: 2017 | AS83: =IF(AQ83,VLOOKUP(AQ83,HOM!$AS$389:$AT$444,2)) -> 4.493
A84: H | X84: FALSE | Y84: =IF(AND(H84<1920),VLOOKUP(I84,Feuil2!$F$10:$P$28,11),IF(AND(H84>=1920,H84<1939),VLOOKUP(I84,Feuil2!$F$10:$P$28,11),IF(AND(H84>=1938,H84<1943),VLOOKUP(I84,Feuil2!$F$10:$P$28,10),IF(AND(H84>=1943,H84<1948),VLOOKUP(I84,Feuil2!$F$10:$P$28,9),IF(AND(H84>=1948,H84<1953),VLOOKUP(I84,Feuil2!$F$10:$P$28,8),IF(AND(H84>=1953,H84<1958),VLOOKUP(I84,Feuil2!$F$10:$P$28,7),IF(AND(H84>=1958,H84<1963),VLOOKUP(I84,Feuil2!$F$10:$P$28,6),IF(AND(H84>=1963,H84<1968),VLOOKUP(I84,Feuil2!$F$10:$P$28,5),IF(AND(H84>=1968,H84<1973),VLOOKUP(I84,Feuil2!$F$10:$P$28,4),IF(AND(H84>=1973,H84<1978),VLOOKUP(I84,Feuil2!$F$10:$P$28,3),IF(AND(H84>=1978,H84<1983),VLOOKUP(I84,Feuil2!$F$10:$P$28,2),VLOOKUP(I84,Feuil2!$F$10:$P$28,2)))))))))))) ->  | AA84: =T84-HLOOKUP(Y84,Feuil2!$C$1:$CD$9,2,FALSE) ->  | AB84: =T84-HLOOKUP(Y84,Feuil2!$C$1:$CD$9,3,FALSE) ->  | AC84: =T84-HLOOKUP(Y84,Feuil2!$C$1:$CD$9,4,FALSE) ->  | AD84: =T84-HLOOKUP(Y84,Feuil2!$C$1:$CD$9,5,FALSE) ->  | AE84: =T84-HLOOKUP(Y84,Feuil2!$C$1:$CD$9,6,FALSE) ->  | AF84: =T84-HLOOKUP(Y84,Feuil2!$C$1:$CD$9,7,FALSE) ->  | AG84: =T84-HLOOKUP(Y84,Feuil2!$C$1:$CD$9,8,FALSE) ->  | AH84: =T84-HLOOKUP(Y84,Feuil2!$C$1:$CD$9,9,FALSE) ->  | AQ84: 2017 | AS84: =IF(AQ84,VLOOKUP(AQ84,HOM!$AS$389:$AT$444,2)) -> 4.493
A85: H | X85: FALSE | Y85: =IF(AND(H85<1920),VLOOKUP(I85,Feuil2!$F$10:$P$28,11),IF(AND(H85>=1920,H85<1939),VLOOKUP(I85,Feuil2!$F$10:$P$28,11),IF(AND(H85>=1938,H85<1943),VLOOKUP(I85,Feuil2!$F$10:$P$28,10),IF(AND(H85>=1943,H85<1948),VLOOKUP(I85,Feuil2!$F$10:$P$28,9),IF(AND(H85>=1948,H85<1953),VLOOKUP(I85,Feuil2!$F$10:$P$28,8),IF(AND(H85>=1953,H85<1958),VLOOKUP(I85,Feuil2!$F$10:$P$28,7),IF(AND(H85>=1958,H85<1963),VLOOKUP(I85,Feuil2!$F$10:$P$28,6),IF(AND(H85>=1963,H85<1968),VLOOKUP(I85,Feuil2!$F$10:$P$28,5),IF(AND(H85>=1968,H85<1973),VLOOKUP(I85,Feuil2!$F$10:$P$28,4),IF(AND(H85>=1973,H85<1978),VLOOKUP(I85,Feuil2!$F$10:$P$28,3),IF(AND(H85>=1978,H85<1983),VLOOKUP(I85,Feuil2!$F$10:$P$28,2),VLOOKUP(I85,Feuil2!$F$10:$P$28,2)))))))))))) ->  | AA85: =T85-HLOOKUP(Y85,Feuil2!$C$1:$CD$9,2,FALSE) ->  | AB85: =T85-HLOOKUP(Y85,Feuil2!$C$1:$CD$9,3,FALSE) ->  | AC85: =T85-HLOOKUP(Y85,Feuil2!$C$1:$CD$9,4,FALSE) ->  | AD85: =T85-HLOOKUP(Y85,Feuil2!$C$1:$CD$9,5,FALSE) ->  | AE85: =T85-HLOOKUP(Y85,Feuil2!$C$1:$CD$9,6,FALSE) ->  | AF85: =T85-HLOOKUP(Y85,Feuil2!$C$1:$CD$9,7,FALSE) ->  | AG85: =T85-HLOOKUP(Y85,Feuil2!$C$1:$CD$9,8,FALSE) ->  | AH85: =T85-HLOOKUP(Y85,Feuil2!$C$1:$CD$9,9,FALSE) ->  | AQ85: 2017 | AS85: =IF(AQ85,VLOOKUP(AQ85,HOM!$AS$389:$AT$444,2)) -> 4.493
A86: H | X86: FALSE | Y86: =IF(AND(H86<1920),VLOOKUP(I86,Feuil2!$F$10:$P$28,11),IF(AND(H86>=1920,H86<1939),VLOOKUP(I86,Feuil2!$F$10:$P$28,11),IF(AND(H86>=1938,H86<1943),VLOOKUP(I86,Feuil2!$F$10:$P$28,10),IF(AND(H86>=1943,H86<1948),VLOOKUP(I86,Feuil2!$F$10:$P$28,9),IF(AND(H86>=1948,H86<1953),VLOOKUP(I86,Feuil2!$F$10:$P$28,8),IF(AND(H86>=1953,H86<1958),VLOOKUP(I86,Feuil2!$F$10:$P$28,7),IF(AND(H86>=1958,H86<1963),VLOOKUP(I86,Feuil2!$F$10:$P$28,6),IF(AND(H86>=1963,H86<1968),VLOOKUP(I86,Feuil2!$F$10:$P$28,5),IF(AND(H86>=1968,H86<1973),VLOOKUP(I86,Feuil2!$F$10:$P$28,4),IF(AND(H86>=1973,H86<1978),VLOOKUP(I86,Feuil2!$F$10:$P$28,3),IF(AND(H86>=1978,H86<1983),VLOOKUP(I86,Feuil2!$F$10:$P$28,2),VLOOKUP(I86,Feuil2!$F$10:$P$28,2)))))))))))) ->  | AA86: =T86-HLOOKUP(Y86,Feuil2!$C$1:$CD$9,2,FALSE) ->  | AB86: =T86-HLOOKUP(Y86,Feuil2!$C$1:$CD$9,3,FALSE) ->  | AC86: =T86-HLOOKUP(Y86,Feuil2!$C$1:$CD$9,4,FALSE) ->  | AD86: =T86-HLOOKUP(Y86,Feuil2!$C$1:$CD$9,5,FALSE) ->  | AE86: =T86-HLOOKUP(Y86,Feuil2!$C$1:$CD$9,6,FALSE) ->  | AF86: =T86-HLOOKUP(Y86,Feuil2!$C$1:$CD$9,7,FALSE) ->  | AG86: =T86-HLOOKUP(Y86,Feuil2!$C$1:$CD$9,8,FALSE) ->  | AH86: =T86-HLOOKUP(Y86,Feuil2!$C$1:$CD$9,9,FALSE) ->  | AQ86: 2017 | AS86: =IF(AQ86,VLOOKUP(AQ86,HOM!$AS$389:$AT$444,2)) -> 4.493
A87: H | X87: FALSE | Y87: =IF(AND(H87<1920),VLOOKUP(I87,Feuil2!$F$10:$P$28,11),IF(AND(H87>=1920,H87<1939),VLOOKUP(I87,Feuil2!$F$10:$P$28,11),IF(AND(H87>=1938,H87<1943),VLOOKUP(I87,Feuil2!$F$10:$P$28,10),IF(AND(H87>=1943,H87<1948),VLOOKUP(I87,Feuil2!$F$10:$P$28,9),IF(AND(H87>=1948,H87<1953),VLOOKUP(I87,Feuil2!$F$10:$P$28,8),IF(AND(H87>=1953,H87<1958),VLOOKUP(I87,Feuil2!$F$10:$P$28,7),IF(AND(H87>=1958,H87<1963),VLOOKUP(I87,Feuil2!$F$10:$P$28,6),IF(AND(H87>=1963,H87<1968),VLOOKUP(I87,Feuil2!$F$10:$P$28,5),IF(AND(H87>=1968,H87<1973),VLOOKUP(I87,Feuil2!$F$10:$P$28,4),IF(AND(H87>=1973,H87<1978),VLOOKUP(I87,Feuil2!$F$10:$P$28,3),IF(AND(H87>=1978,H87<1983),VLOOKUP(I87,Feuil2!$F$10:$P$28,2),VLOOKUP(I87,Feuil2!$F$10:$P$28,2)))))))))))) ->  | AA87: =T87-HLOOKUP(Y87,Feuil2!$C$1:$CD$9,2,FALSE) ->  | AB87: =T87-HLOOKUP(Y87,Feuil2!$C$1:$CD$9,3,FALSE) ->  | AC87: =T87-HLOOKUP(Y87,Feuil2!$C$1:$CD$9,4,FALSE) ->  | AD87: =T87-HLOOKUP(Y87,Feuil2!$C$1:$CD$9,5,FALSE) ->  | AE87: =T87-HLOOKUP(Y87,Feuil2!$C$1:$CD$9,6,FALSE) ->  | AF87: =T87-HLOOKUP(Y87,Feuil2!$C$1:$CD$9,7,FALSE) ->  | AG87: =T87-HLOOKUP(Y87,Feuil2!$C$1:$CD$9,8,FALSE) ->  | AH87: =T87-HLOOKUP(Y87,Feuil2!$C$1:$CD$9,9,FALSE) ->  | AQ87: 2017 | AS87: =IF(AQ87,VLOOKUP(AQ87,HOM!$AS$389:$AT$444,2)) -> 4.493
A88: H | X88: FALSE | Y88: =IF(AND(H88<1920),VLOOKUP(I88,Feuil2!$F$10:$P$28,11),IF(AND(H88>=1920,H88<1939),VLOOKUP(I88,Feuil2!$F$10:$P$28,11),IF(AND(H88>=1938,H88<1943),VLOOKUP(I88,Feuil2!$F$10:$P$28,10),IF(AND(H88>=1943,H88<1948),VLOOKUP(I88,Feuil2!$F$10:$P$28,9),IF(AND(H88>=1948,H88<1953),VLOOKUP(I88,Feuil2!$F$10:$P$28,8),IF(AND(H88>=1953,H88<1958),VLOOKUP(I88,Feuil2!$F$10:$P$28,7),IF(AND(H88>=1958,H88<1963),VLOOKUP(I88,Feuil2!$F$10:$P$28,6),IF(AND(H88>=1963,H88<1968),VLOOKUP(I88,Feuil2!$F$10:$P$28,5),IF(AND(H88>=1968,H88<1973),VLOOKUP(I88,Feuil2!$F$10:$P$28,4),IF(AND(H88>=1973,H88<1978),VLOOKUP(I88,Feuil2!$F$10:$P$28,3),IF(AND(H88>=1978,H88<1983),VLOOKUP(I88,Feuil2!$F$10:$P$28,2),VLOOKUP(I88,Feuil2!$F$10:$P$28,2)))))))))))) ->  | AA88: =T88-HLOOKUP(Y88,Feuil2!$C$1:$CD$9,2,FALSE) ->  | AB88: =T88-HLOOKUP(Y88,Feuil2!$C$1:$CD$9,3,FALSE) ->  | AC88: =T88-HLOOKUP(Y88,Feuil2!$C$1:$CD$9,4,FALSE) ->  | AD88: =T88-HLOOKUP(Y88,Feuil2!$C$1:$CD$9,5,FALSE) ->  | AE88: =T88-HLOOKUP(Y88,Feuil2!$C$1:$CD$9,6,FALSE) ->  | AF88: =T88-HLOOKUP(Y88,Feuil2!$C$1:$CD$9,7,FALSE) ->  | AG88: =T88-HLOOKUP(Y88,Feuil2!$C$1:$CD$9,8,FALSE) ->  | AH88: =T88-HLOOKUP(Y88,Feuil2!$C$1:$CD$9,9,FALSE) ->  | AQ88: 2017 | AS88: =IF(AQ88,VLOOKUP(AQ88,HOM!$AS$389:$AT$444,2)) -> 4.493
A89: H | X89: FALSE | Y89: =IF(AND(H89<1920),VLOOKUP(I89,Feuil2!$F$10:$P$28,11),IF(AND(H89>=1920,H89<1939),VLOOKUP(I89,Feuil2!$F$10:$P$28,11),IF(AND(H89>=1938,H89<1943),VLOOKUP(I89,Feuil2!$F$10:$P$28,10),IF(AND(H89>=1943,H89<1948),VLOOKUP(I89,Feuil2!$F$10:$P$28,9),IF(AND(H89>=1948,H89<1953),VLOOKUP(I89,Feuil2!$F$10:$P$28,8),IF(AND(H89>=1953,H89<1958),VLOOKUP(I89,Feuil2!$F$10:$P$28,7),IF(AND(H89>=1958,H89<1963),VLOOKUP(I89,Feuil2!$F$10:$P$28,6),IF(AND(H89>=1963,H89<1968),VLOOKUP(I89,Feuil2!$F$10:$P$28,5),IF(AND(H89>=1968,H89<1973),VLOOKUP(I89,Feuil2!$F$10:$P$28,4),IF(AND(H89>=1973,H89<1978),VLOOKUP(I89,Feuil2!$F$10:$P$28,3),IF(AND(H89>=1978,H89<1983),VLOOKUP(I89,Feuil2!$F$10:$P$28,2),VLOOKUP(I89,Feuil2!$F$10:$P$28,2)))))))))))) ->  | AA89: =T89-HLOOKUP(Y89,Feuil2!$C$1:$CD$9,2,FALSE) ->  | AB89: =T89-HLOOKUP(Y89,Feuil2!$C$1:$CD$9,3,FALSE) ->  | AC89: =T89-HLOOKUP(Y89,Feuil2!$C$1:$CD$9,4,FALSE) ->  | AD89: =T89-HLOOKUP(Y89,Feuil2!$C$1:$CD$9,5,FALSE) ->  | AE89: =T89-HLOOKUP(Y89,Feuil2!$C$1:$CD$9,6,FALSE) ->  | AF89: =T89-HLOOKUP(Y89,Feuil2!$C$1:$CD$9,7,FALSE) ->  | AG89: =T89-HLOOKUP(Y89,Feuil2!$C$1:$CD$9,8,FALSE) ->  | AH89: =T89-HLOOKUP(Y89,Feuil2!$C$1:$CD$9,9,FALSE) ->  | AQ89: 2017 | AS89: =IF(AQ89,VLOOKUP(AQ89,HOM!$AS$389:$AT$444,2)) -> 4.493
A90: H | X90: FALSE | Y90: =IF(AND(H90<1920),VLOOKUP(I90,Feuil2!$F$10:$P$28,11),IF(AND(H90>=1920,H90<1939),VLOOKUP(I90,Feuil2!$F$10:$P$28,11),IF(AND(H90>=1938,H90<1943),VLOOKUP(I90,Feuil2!$F$10:$P$28,10),IF(AND(H90>=1943,H90<1948),VLOOKUP(I90,Feuil2!$F$10:$P$28,9),IF(AND(H90>=1948,H90<1953),VLOOKUP(I90,Feuil2!$F$10:$P$28,8),IF(AND(H90>=1953,H90<1958),VLOOKUP(I90,Feuil2!$F$10:$P$28,7),IF(AND(H90>=1958,H90<1963),VLOOKUP(I90,Feuil2!$F$10:$P$28,6),IF(AND(H90>=1963,H90<1968),VLOOKUP(I90,Feuil2!$F$10:$P$28,5),IF(AND(H90>=1968,H90<1973),VLOOKUP(I90,Feuil2!$F$10:$P$28,4),IF(AND(H90>=1973,H90<1978),VLOOKUP(I90,Feuil2!$F$10:$P$28,3),IF(AND(H90>=1978,H90<1983),VLOOKUP(I90,Feuil2!$F$10:$P$28,2),VLOOKUP(I90,Feuil2!$F$10:$P$28,2)))))))))))) ->  | AA90: =T90-HLOOKUP(Y90,Feuil2!$C$1:$CD$9,2,FALSE) ->  | AB90: =T90-HLOOKUP(Y90,Feuil2!$C$1:$CD$9,3,FALSE) ->  | AC90: =T90-HLOOKUP(Y90,Feuil2!$C$1:$CD$9,4,FALSE) ->  | AD90: =T90-HLOOKUP(Y90,Feuil2!$C$1:$CD$9,5,FALSE) ->  | AE90: =T90-HLOOKUP(Y90,Feuil2!$C$1:$CD$9,6,FALSE) ->  | AF90: =T90-HLOOKUP(Y90,Feuil2!$C$1:$CD$9,7,FALSE) ->  | AG90: =T90-HLOOKUP(Y90,Feuil2!$C$1:$CD$9,8,FALSE) ->  | AH90: =T90-HLOOKUP(Y90,Feuil2!$C$1:$CD$9,9,FALSE) ->  | AQ90: 2017 | AS90: =IF(AQ90,VLOOKUP(AQ90,HOM!$AS$389:$AT$444,2)) -> 4.493
A91: H | X91: FALSE | Y91: =IF(AND(H91<1920),VLOOKUP(I91,Feuil2!$F$10:$P$28,11),IF(AND(H91>=1920,H91<1939),VLOOKUP(I91,Feuil2!$F$10:$P$28,11),IF(AND(H91>=1938,H91<1943),VLOOKUP(I91,Feuil2!$F$10:$P$28,10),IF(AND(H91>=1943,H91<1948),VLOOKUP(I91,Feuil2!$F$10:$P$28,9),IF(AND(H91>=1948,H91<1953),VLOOKUP(I91,Feuil2!$F$10:$P$28,8),IF(AND(H91>=1953,H91<1958),VLOOKUP(I91,Feuil2!$F$10:$P$28,7),IF(AND(H91>=1958,H91<1963),VLOOKUP(I91,Feuil2!$F$10:$P$28,6),IF(AND(H91>=1963,H91<1968),VLOOKUP(I91,Feuil2!$F$10:$P$28,5),IF(AND(H91>=1968,H91<1973),VLOOKUP(I91,Feuil2!$F$10:$P$28,4),IF(AND(H91>=1973,H91<1978),VLOOKUP(I91,Feuil2!$F$10:$P$28,3),IF(AND(H91>=1978,H91<1983),VLOOKUP(I91,Feuil2!$F$10:$P$28,2),VLOOKUP(I91,Feuil2!$F$10:$P$28,2)))))))))))) ->  | AA91: =T91-HLOOKUP(Y91,Feuil2!$C$1:$CD$9,2,FALSE) ->  | AB91: =T91-HLOOKUP(Y91,Feuil2!$C$1:$CD$9,3,FALSE) ->  | AC91: =T91-HLOOKUP(Y91,Feuil2!$C$1:$CD$9,4,FALSE) ->  | AD91: =T91-HLOOKUP(Y91,Feuil2!$C$1:$CD$9,5,FALSE) ->  | AE91: =T91-HLOOKUP(Y91,Feuil2!$C$1:$CD$9,6,FALSE) ->  | AF91: =T91-HLOOKUP(Y91,Feuil2!$C$1:$CD$9,7,FALSE) ->  | AG91: =T91-HLOOKUP(Y91,Feuil2!$C$1:$CD$9,8,FALSE) ->  | AH91: =T91-HLOOKUP(Y91,Feuil2!$C$1:$CD$9,9,FALSE) ->  | AQ91: 2017 | AS91: =IF(AQ91,VLOOKUP(AQ91,HOM!$AS$389:$AT$444,2)) -> 4.493
A92: H | X92: FALSE | Y92: =IF(AND(H92<1920),VLOOKUP(I92,Feuil2!$F$10:$P$28,11),IF(AND(H92>=1920,H92<1939),VLOOKUP(I92,Feuil2!$F$10:$P$28,11),IF(AND(H92>=1938,H92<1943),VLOOKUP(I92,Feuil2!$F$10:$P$28,10),IF(AND(H92>=1943,H92<1948),VLOOKUP(I92,Feuil2!$F$10:$P$28,9),IF(AND(H92>=1948,H92<1953),VLOOKUP(I92,Feuil2!$F$10:$P$28,8),IF(AND(H92>=1953,H92<1958),VLOOKUP(I92,Feuil2!$F$10:$P$28,7),IF(AND(H92>=1958,H92<1963),VLOOKUP(I92,Feuil2!$F$10:$P$28,6),IF(AND(H92>=1963,H92<1968),VLOOKUP(I92,Feuil2!$F$10:$P$28,5),IF(AND(H92>=1968,H92<1973),VLOOKUP(I92,Feuil2!$F$10:$P$28,4),IF(AND(H92>=1973,H92<1978),VLOOKUP(I92,Feuil2!$F$10:$P$28,3),IF(AND(H92>=1978,H92<1983),VLOOKUP(I92,Feuil2!$F$10:$P$28,2),VLOOKUP(I92,Feuil2!$F$10:$P$28,2)))))))))))) ->  | AA92: =T92-HLOOKUP(Y92,Feuil2!$C$1:$CD$9,2,FALSE) ->  | AB92: =T92-HLOOKUP(Y92,Feuil2!$C$1:$CD$9,3,FALSE) ->  | AC92: =T92-HLOOKUP(Y92,Feuil2!$C$1:$CD$9,4,FALSE) ->  | AD92: =T92-HLOOKUP(Y92,Feuil2!$C$1:$CD$9,5,FALSE) ->  | AE92: =T92-HLOOKUP(Y92,Feuil2!$C$1:$CD$9,6,FALSE) ->  | AF92: =T92-HLOOKUP(Y92,Feuil2!$C$1:$CD$9,7,FALSE) ->  | AG92: =T92-HLOOKUP(Y92,Feuil2!$C$1:$CD$9,8,FALSE) ->  | AH92: =T92-HLOOKUP(Y92,Feuil2!$C$1:$CD$9,9,FALSE) ->  | AQ92: 2017 | AS92: =IF(AQ92,VLOOKUP(AQ92,HOM!$AS$389:$AT$444,2)) -> 4.493
A93: H | X93: FALSE | Y93: =IF(AND(H93<1920),VLOOKUP(I93,Feuil2!$F$10:$P$28,11),IF(AND(H93>=1920,H93<1939),VLOOKUP(I93,Feuil2!$F$10:$P$28,11),IF(AND(H93>=1938,H93<1943),VLOOKUP(I93,Feuil2!$F$10:$P$28,10),IF(AND(H93>=1943,H93<1948),VLOOKUP(I93,Feuil2!$F$10:$P$28,9),IF(AND(H93>=1948,H93<1953),VLOOKUP(I93,Feuil2!$F$10:$P$28,8),IF(AND(H93>=1953,H93<1958),VLOOKUP(I93,Feuil2!$F$10:$P$28,7),IF(AND(H93>=1958,H93<1963),VLOOKUP(I93,Feuil2!$F$10:$P$28,6),IF(AND(H93>=1963,H93<1968),VLOOKUP(I93,Feuil2!$F$10:$P$28,5),IF(AND(H93>=1968,H93<1973),VLOOKUP(I93,Feuil2!$F$10:$P$28,4),IF(AND(H93>=1973,H93<1978),VLOOKUP(I93,Feuil2!$F$10:$P$28,3),IF(AND(H93>=1978,H93<1983),VLOOKUP(I93,Feuil2!$F$10:$P$28,2),VLOOKUP(I93,Feuil2!$F$10:$P$28,2)))))))))))) ->  | AA93: =T93-HLOOKUP(Y93,Feuil2!$C$1:$CD$9,2,FALSE) ->  | AB93: =T93-HLOOKUP(Y93,Feuil2!$C$1:$CD$9,3,FALSE) ->  | AC93: =T93-HLOOKUP(Y93,Feuil2!$C$1:$CD$9,4,FALSE) ->  | AD93: =T93-HLOOKUP(Y93,Feuil2!$C$1:$CD$9,5,FALSE) ->  | AE93: =T93-HLOOKUP(Y93,Feuil2!$C$1:$CD$9,6,FALSE) ->  | AF93: =T93-HLOOKUP(Y93,Feuil2!$C$1:$CD$9,7,FALSE) ->  | AG93: =T93-HLOOKUP(Y93,Feuil2!$C$1:$CD$9,8,FALSE) ->  | AH93: =T93-HLOOKUP(Y93,Feuil2!$C$1:$CD$9,9,FALSE) ->  | AQ93: 2017 | AS93: =IF(AQ93,VLOOKUP(AQ93,HOM!$AS$389:$AT$444,2)) -> 4.493
A94: H | X94: FALSE | Y94: =IF(AND(H94<1920),VLOOKUP(I94,Feuil2!$F$10:$P$28,11),IF(AND(H94>=1920,H94<1939),VLOOKUP(I94,Feuil2!$F$10:$P$28,11),IF(AND(H94>=1938,H94<1943),VLOOKUP(I94,Feuil2!$F$10:$P$28,10),IF(AND(H94>=1943,H94<1948),VLOOKUP(I94,Feuil2!$F$10:$P$28,9),IF(AND(H94>=1948,H94<1953),VLOOKUP(I94,Feuil2!$F$10:$P$28,8),IF(AND(H94>=1953,H94<1958),VLOOKUP(I94,Feuil2!$F$10:$P$28,7),IF(AND(H94>=1958,H94<1963),VLOOKUP(I94,Feuil2!$F$10:$P$28,6),IF(AND(H94>=1963,H94<1968),VLOOKUP(I94,Feuil2!$F$10:$P$28,5),IF(AND(H94>=1968,H94<1973),VLOOKUP(I94,Feuil2!$F$10:$P$28,4),IF(AND(H94>=1973,H94<1978),VLOOKUP(I94,Feuil2!$F$10:$P$28,3),IF(AND(H94>=1978,H94<1983),VLOOKUP(I94,Feuil2!$F$10:$P$28,2),VLOOKUP(I94,Feuil2!$F$10:$P$28,2)))))))))))) ->  | AA94: =T94-HLOOKUP(Y94,Feuil2!$C$1:$CD$9,2,FALSE) ->  | AB94: =T94-HLOOKUP(Y94,Feuil2!$C$1:$CD$9,3,FALSE) ->  | AC94: =T94-HLOOKUP(Y94,Feuil2!$C$1:$CD$9,4,FALSE) ->  | AD94: =T94-HLOOKUP(Y94,Feuil2!$C$1:$CD$9,5,FALSE) ->  | AE94: =T94-HLOOKUP(Y94,Feuil2!$C$1:$CD$9,6,FALSE) ->  | AF94: =T94-HLOOKUP(Y94,Feuil2!$C$1:$CD$9,7,FALSE) ->  | AG94: =T94-HLOOKUP(Y94,Feuil2!$C$1:$CD$9,8,FALSE) ->  | AH94: =T94-HLOOKUP(Y94,Feuil2!$C$1:$CD$9,9,FALSE) ->  | AQ94: 2017 | AS94: =IF(AQ94,VLOOKUP(AQ94,HOM!$AS$389:$AT$444,2)) -> 4.493
A95: H | X95: FALSE | Y95: =IF(AND(H95<1920),VLOOKUP(I95,Feuil2!$F$10:$P$28,11),IF(AND(H95>=1920,H95<1939),VLOOKUP(I95,Feuil2!$F$10:$P$28,11),IF(AND(H95>=1938,H95<1943),VLOOKUP(I95,Feuil2!$F$10:$P$28,10),IF(AND(H95>=1943,H95<1948),VLOOKUP(I95,Feuil2!$F$10:$P$28,9),IF(AND(H95>=1948,H95<1953),VLOOKUP(I95,Feuil2!$F$10:$P$28,8),IF(AND(H95>=1953,H95<1958),VLOOKUP(I95,Feuil2!$F$10:$P$28,7),IF(AND(H95>=1958,H95<1963),VLOOKUP(I95,Feuil2!$F$10:$P$28,6),IF(AND(H95>=1963,H95<1968),VLOOKUP(I95,Feuil2!$F$10:$P$28,5),IF(AND(H95>=1968,H95<1973),VLOOKUP(I95,Feuil2!$F$10:$P$28,4),IF(AND(H95>=1973,H95<1978),VLOOKUP(I95,Feuil2!$F$10:$P$28,3),IF(AND(H95>=1978,H95<1983),VLOOKUP(I95,Feuil2!$F$10:$P$28,2),VLOOKUP(I95,Feuil2!$F$10:$P$28,2)))))))))))) ->  | AA95: =T95-HLOOKUP(Y95,Feuil2!$C$1:$CD$9,2,FALSE) ->  | AB95: =T95-HLOOKUP(Y95,Feuil2!$C$1:$CD$9,3,FALSE) ->  | AC95: =T95-HLOOKUP(Y95,Feuil2!$C$1:$CD$9,4,FALSE) ->  | AD95: =T95-HLOOKUP(Y95,Feuil2!$C$1:$CD$9,5,FALSE) ->  | AE95: =T95-HLOOKUP(Y95,Feuil2!$C$1:$CD$9,6,FALSE) ->  | AF95: =T95-HLOOKUP(Y95,Feuil2!$C$1:$CD$9,7,FALSE) ->  | AG95: =T95-HLOOKUP(Y95,Feuil2!$C$1:$CD$9,8,FALSE) ->  | AH95: =T95-HLOOKUP(Y95,Feuil2!$C$1:$CD$9,9,FALSE) ->  | AQ95: 2017 | AS95: =IF(AQ95,VLOOKUP(AQ95,HOM!$AS$389:$AT$444,2)) -> 4.493
A96: H | X96: FALSE | Y96: =IF(AND(H96<1920),VLOOKUP(I96,Feuil2!$F$10:$P$28,11),IF(AND(H96>=1920,H96<1939),VLOOKUP(I96,Feuil2!$F$10:$P$28,11),IF(AND(H96>=1938,H96<1943),VLOOKUP(I96,Feuil2!$F$10:$P$28,10),IF(AND(H96>=1943,H96<1948),VLOOKUP(I96,Feuil2!$F$10:$P$28,9),IF(AND(H96>=1948,H96<1953),VLOOKUP(I96,Feuil2!$F$10:$P$28,8),IF(AND(H96>=1953,H96<1958),VLOOKUP(I96,Feuil2!$F$10:$P$28,7),IF(AND(H96>=1958,H96<1963),VLOOKUP(I96,Feuil2!$F$10:$P$28,6),IF(AND(H96>=1963,H96<1968),VLOOKUP(I96,Feuil2!$F$10:$P$28,5),IF(AND(H96>=1968,H96<1973),VLOOKUP(I96,Feuil2!$F$10:$P$28,4),IF(AND(H96>=1973,H96<1978),VLOOKUP(I96,Feuil2!$F$10:$P$28,3),IF(AND(H96>=1978,H96<1983),VLOOKUP(I96,Feuil2!$F$10:$P$28,2),VLOOKUP(I96,Feuil2!$F$10:$P$28,2)))))))))))) ->  | AA96: =T96-HLOOKUP(Y96,Feuil2!$C$1:$CD$9,2,FALSE) ->  | AB96: =T96-HLOOKUP(Y96,Feuil2!$C$1:$CD$9,3,FALSE) ->  | AC96: =T96-HLOOKUP(Y96,Feuil2!$C$1:$CD$9,4,FALSE) ->  | AD96: =T96-HLOOKUP(Y96,Feuil2!$C$1:$CD$9,5,FALSE) ->  | AE96: =T96-HLOOKUP(Y96,Feuil2!$C$1:$CD$9,6,FALSE) ->  | AF96: =T96-HLOOKUP(Y96,Feuil2!$C$1:$CD$9,7,FALSE) ->  | AG96: =T96-HLOOKUP(Y96,Feuil2!$C$1:$CD$9,8,FALSE) ->  | AH96: =T96-HLOOKUP(Y96,Feuil2!$C$1:$CD$9,9,FALSE) ->  | AQ96: 2017 | AS96: =IF(AQ96,VLOOKUP(AQ96,HOM!$AS$389:$AT$444,2)) -> 4.493
A97: H | X97: FALSE | Y97: =IF(AND(H97<1920),VLOOKUP(I97,Feuil2!$F$10:$P$28,11),IF(AND(H97>=1920,H97<1939),VLOOKUP(I97,Feuil2!$F$10:$P$28,11),IF(AND(H97>=1938,H97<1943),VLOOKUP(I97,Feuil2!$F$10:$P$28,10),IF(AND(H97>=1943,H97<1948),VLOOKUP(I97,Feuil2!$F$10:$P$28,9),IF(AND(H97>=1948,H97<1953),VLOOKUP(I97,Feuil2!$F$10:$P$28,8),IF(AND(H97>=1953,H97<1958),VLOOKUP(I97,Feuil2!$F$10:$P$28,7),IF(AND(H97>=1958,H97<1963),VLOOKUP(I97,Feuil2!$F$10:$P$28,6),IF(AND(H97>=1963,H97<1968),VLOOKUP(I97,Feuil2!$F$10:$P$28,5),IF(AND(H97>=1968,H97<1973),VLOOKUP(I97,Feuil2!$F$10:$P$28,4),IF(AND(H97>=1973,H97<1978),VLOOKUP(I97,Feuil2!$F$10:$P$28,3),IF(AND(H97>=1978,H97<1983),VLOOKUP(I97,Feuil2!$F$10:$P$28,2),VLOOKUP(I97,Feuil2!$F$10:$P$28,2)))))))))))) ->  | AA97: =T97-HLOOKUP(Y97,Feuil2!$C$1:$CD$9,2,FALSE) ->  | AB97: =T97-HLOOKUP(Y97,Feuil2!$C$1:$CD$9,3,FALSE) ->  | AC97: =T97-HLOOKUP(Y97,Feuil2!$C$1:$CD$9,4,FALSE) ->  | AD97: =T97-HLOOKUP(Y97,Feuil2!$C$1:$CD$9,5,FALSE) ->  | AE97: =T97-HLOOKUP(Y97,Feuil2!$C$1:$CD$9,6,FALSE) ->  | AF97: =T97-HLOOKUP(Y97,Feuil2!$C$1:$CD$9,7,FALSE) ->  | AG97: =T97-HLOOKUP(Y97,Feuil2!$C$1:$CD$9,8,FALSE) ->  | AH97: =T97-HLOOKUP(Y97,Feuil2!$C$1:$CD$9,9,FALSE) ->  | AQ97: 2017 | AS97: =IF(AQ97,VLOOKUP(AQ97,HOM!$AS$389:$AT$444,2)) -> 4.493
A98: H | X98: FALSE | Y98: =IF(AND(H98<1920),VLOOKUP(I98,Feuil2!$F$10:$P$28,11),IF(AND(H98>=1920,H98<1939),VLOOKUP(I98,Feuil2!$F$10:$P$28,11),IF(AND(H98>=1938,H98<1943),VLOOKUP(I98,Feuil2!$F$10:$P$28,10),IF(AND(H98>=1943,H98<1948),VLOOKUP(I98,Feuil2!$F$10:$P$28,9),IF(AND(H98>=1948,H98<1953),VLOOKUP(I98,Feuil2!$F$10:$P$28,8),IF(AND(H98>=1953,H98<1958),VLOOKUP(I98,Feuil2!$F$10:$P$28,7),IF(AND(H98>=1958,H98<1963),VLOOKUP(I98,Feuil2!$F$10:$P$28,6),IF(AND(H98>=1963,H98<1968),VLOOKUP(I98,Feuil2!$F$10:$P$28,5),IF(AND(H98>=1968,H98<1973),VLOOKUP(I98,Feuil2!$F$10:$P$28,4),IF(AND(H98>=1973,H98<1978),VLOOKUP(I98,Feuil2!$F$10:$P$28,3),IF(AND(H98>=1978,H98<1983),VLOOKUP(I98,Feuil2!$F$10:$P$28,2),VLOOKUP(I98,Feuil2!$F$10:$P$28,2)))))))))))) ->  | AA98: =T98-HLOOKUP(Y98,Feuil2!$C$1:$CD$9,2,FALSE) ->  | AB98: =T98-HLOOKUP(Y98,Feuil2!$C$1:$CD$9,3,FALSE) ->  | AC98: =T98-HLOOKUP(Y98,Feuil2!$C$1:$CD$9,4,FALSE) ->  | AD98: =T98-HLOOKUP(Y98,Feuil2!$C$1:$CD$9,5,FALSE) ->  | AE98: =T98-HLOOKUP(Y98,Feuil2!$C$1:$CD$9,6,FALSE) ->  | AF98: =T98-HLOOKUP(Y98,Feuil2!$C$1:$CD$9,7,FALSE) ->  | AG98: =T98-HLOOKUP(Y98,Feuil2!$C$1:$CD$9,8,FALSE) ->  | AH98: =T98-HLOOKUP(Y98,Feuil2!$C$1:$CD$9,9,FALSE) ->  | AQ98: 2017 | AS98: =IF(AQ98,VLOOKUP(AQ98,HOM!$AS$389:$AT$444,2)) -> 4.493
A99: H | X99: FALSE | Y99: =IF(AND(H99<1920),VLOOKUP(I99,Feuil2!$F$10:$P$28,11),IF(AND(H99>=1920,H99<1939),VLOOKUP(I99,Feuil2!$F$10:$P$28,11),IF(AND(H99>=1938,H99<1943),VLOOKUP(I99,Feuil2!$F$10:$P$28,10),IF(AND(H99>=1943,H99<1948),VLOOKUP(I99,Feuil2!$F$10:$P$28,9),IF(AND(H99>=1948,H99<1953),VLOOKUP(I99,Feuil2!$F$10:$P$28,8),IF(AND(H99>=1953,H99<1958),VLOOKUP(I99,Feuil2!$F$10:$P$28,7),IF(AND(H99>=1958,H99<1963),VLOOKUP(I99,Feuil2!$F$10:$P$28,6),IF(AND(H99>=1963,H99<1968),VLOOKUP(I99,Feuil2!$F$10:$P$28,5),IF(AND(H99>=1968,H99<1973),VLOOKUP(I99,Feuil2!$F$10:$P$28,4),IF(AND(H99>=1973,H99<1978),VLOOKUP(I99,Feuil2!$F$10:$P$28,3),IF(AND(H99>=1978,H99<1983),VLOOKUP(I99,Feuil2!$F$10:$P$28,2),VLOOKUP(I99,Feuil2!$F$10:$P$28,2)))))))))))) ->  | AA99: =T99-HLOOKUP(Y99,Feuil2!$C$1:$CD$9,2,FALSE) ->  | AB99: =T99-HLOOKUP(Y99,Feuil2!$C$1:$CD$9,3,FALSE) ->  | AC99: =T99-HLOOKUP(Y99,Feuil2!$C$1:$CD$9,4,FALSE) ->  | AD99: =T99-HLOOKUP(Y99,Feuil2!$C$1:$CD$9,5,FALSE) ->  | AE99: =T99-HLOOKUP(Y99,Feuil2!$C$1:$CD$9,6,FALSE) ->  | AF99: =T99-HLOOKUP(Y99,Feuil2!$C$1:$CD$9,7,FALSE) ->  | AG99: =T99-HLOOKUP(Y99,Feuil2!$C$1:$CD$9,8,FALSE) ->  | AH99: =T99-HLOOKUP(Y99,Feuil2!$C$1:$CD$9,9,FALSE) ->  | AQ99: 2017 | AS99: =IF(AQ99,VLOOKUP(AQ99,HOM!$AS$389:$AT$444,2)) -> 4.493
A100: H | X100: FALSE | Y100: =IF(AND(H100<1920),VLOOKUP(I100,Feuil2!$F$10:$P$28,11),IF(AND(H100>=1920,H100<1939),VLOOKUP(I100,Feuil2!$F$10:$P$28,11),IF(AND(H100>=1938,H100<1943),VLOOKUP(I100,Feuil2!$F$10:$P$28,10),IF(AND(H100>=1943,H100<1948),VLOOKUP(I100,Feuil2!$F$10:$P$28,9),IF(AND(H100>=1948,H100<1953),VLOOKUP(I100,Feuil2!$F$10:$P$28,8),IF(AND(H100>=1953,H100<1958),VLOOKUP(I100,Feuil2!$F$10:$P$28,7),IF(AND(H100>=1958,H100<1963),VLOOKUP(I100,Feuil2!$F$10:$P$28,6),IF(AND(H100>=1963,H100<1968),VLOOKUP(I100,Feuil2!$F$10:$P$28,5),IF(AND(H100>=1968,H100<1973),VLOOKUP(I100,Feuil2!$F$10:$P$28,4),IF(AND(H100>=1973,H100<1978),VLOOKUP(I100,Feuil2!$F$10:$P$28,3),IF(AND(H100>=1978,H100<1983),VLOOKUP(I100,Feuil2!$F$10:$P$28,2),VLOOKUP(I100,Feuil2!$F$10:$P$28,2)))))))))))) ->  | AA100: =T100-HLOOKUP(Y100,Feuil2!$C$1:$CD$9,2,FALSE) ->  | AB100: =T100-HLOOKUP(Y100,Feuil2!$C$1:$CD$9,3,FALSE) ->  | AC100: =T100-HLOOKUP(Y100,Feuil2!$C$1:$CD$9,4,FALSE) ->  | AD100: =T100-HLOOKUP(Y100,Feuil2!$C$1:$CD$9,5,FALSE) ->  | AE100: =T100-HLOOKUP(Y100,Feuil2!$C$1:$CD$9,6,FALSE) ->  | AF100: =T100-HLOOKUP(Y100,Feuil2!$C$1:$CD$9,7,FALSE) ->  | AG100: =T100-HLOOKUP(Y100,Feuil2!$C$1:$CD$9,8,FALSE) ->  | AH100: =T100-HLOOKUP(Y100,Feuil2!$C$1:$CD$9,9,FALSE) ->  | AQ100: 2017 | AS100: =IF(AQ100,VLOOKUP(AQ100,HOM!$AS$389:$AT$444,2)) -> 4.493
A101: H | X101: FALSE | Y101: =IF(AND(H101<1920),VLOOKUP(I101,Feuil2!$F$10:$P$28,11),IF(AND(H101>=1920,H101<1939),VLOOKUP(I101,Feuil2!$F$10:$P$28,11),IF(AND(H101>=1938,H101<1943),VLOOKUP(I101,Feuil2!$F$10:$P$28,10),IF(AND(H101>=1943,H101<1948),VLOOKUP(I101,Feuil2!$F$10:$P$28,9),IF(AND(H101>=1948,H101<1953),VLOOKUP(I101,Feuil2!$F$10:$P$28,8),IF(AND(H101>=1953,H101<1958),VLOOKUP(I101,Feuil2!$F$10:$P$28,7),IF(AND(H101>=1958,H101<1963),VLOOKUP(I101,Feuil2!$F$10:$P$28,6),IF(AND(H101>=1963,H101<1968),VLOOKUP(I101,Feuil2!$F$10:$P$28,5),IF(AND(H101>=1968,H101<1973),VLOOKUP(I101,Feuil2!$F$10:$P$28,4),IF(AND(H101>=1973,H101<1978),VLOOKUP(I101,Feuil2!$F$10:$P$28,3),IF(AND(H101>=1978,H101<1983),VLOOKUP(I101,Feuil2!$F$10:$P$28,2),VLOOKUP(I101,Feuil2!$F$10:$P$28,2)))))))))))) ->  | AA101: =T101-HLOOKUP(Y101,Feuil2!$C$1:$CD$9,2,FALSE) ->  | AB101: =T101-HLOOKUP(Y101,Feuil2!$C$1:$CD$9,3,FALSE) ->  | AC101: =T101-HLOOKUP(Y101,Feuil2!$C$1:$CD$9,4,FALSE) ->  | AD101: =T101-HLOOKUP(Y101,Feuil2!$C$1:$CD$9,5,FALSE) ->  | AE101: =T101-HLOOKUP(Y101,Feuil2!$C$1:$CD$9,6,FALSE) ->  | AF101: =T101-HLOOKUP(Y101,Feuil2!$C$1:$CD$9,7,FALSE) ->  | AG101: =T101-HLOOKUP(Y101,Feuil2!$C$1:$CD$9,8,FALSE) ->  | AH101: =T101-HLOOKUP(Y101,Feuil2!$C$1:$CD$9,9,FALSE) ->  | AQ101: 2017 | AS101: =IF(AQ101,VLOOKUP(AQ101,HOM!$AS$389:$AT$444,2)) -> 4.493
A102: H | S102: =IF(I102="","",IF(MAXA(P102:R102)<=0,0,MAXA(P102:R102))) ->  | T102: =IF(I102="","",IF(OR(O102=0,S102=0),0,O102+S102)) ->  | V102: =IF(I102="","",AP102) ->  | W102: =IF(I102="","",IF(AH102>=0,AH102,IF(AG102>=0,AG102,IF(AF102>=0,AF102,IF(AE102>=0,AE102,IF(AD102>=0,AD102,IF(AC102>=0,AC102,IF(AB102>=0,AB102,AA102)))))))) ->  | X102: =IF(AQ102<95,IF(AQ102<=90,VLOOKUP(AQ102,$AQ$255:$AR$444,2))) -> FALSE | Y102: =IF(AND(H102<1920),VLOOKUP(I102,Feuil2!$F$10:$P$28,11),IF(AND(H102>=1920,H102<1939),VLOOKUP(I102,Feuil2!$F$10:$P$28,11),IF(AND(H102>=1938,H102<1943),VLOOKUP(I102,Feuil2!$F$10:$P$28,10),IF(AND(H102>=1943,H102<1948),VLOOKUP(I102,Feuil2!$F$10:$P$28,9),IF(AND(H102>=1948,H102<1953),VLOOKUP(I102,Feuil2!$F$10:$P$28,8),IF(AND(H102>=1953,H102<1958),VLOOKUP(I102,Feuil2!$F$10:$P$28,7),IF(AND(H102>=1958,H102<1963),VLOOKUP(I102,Feuil2!$F$10:$P$28,6),IF(AND(H102>=1963,H102<1968),VLOOKUP(I102,Feuil2!$F$10:$P$28,5),IF(AND(H102>=1968,H102<1973),VLOOKUP(I102,Feuil2!$F$10:$P$28,4),IF(AND(H102>=1973,H102<1978),VLOOKUP(I102,Feuil2!$F$10:$P$28,3),IF(AND(H102>=1978,H102<1983),VLOOKUP(I102,Feuil2!$F$10:$P$28,2),VLOOKUP(I102,Feuil2!$F$10:$P$28,2)))))))))))) ->  | AA102: =T102-HLOOKUP(Y102,Feuil2!$C$1:$CD$9,2,FALSE) ->  | AB102: =T102-HLOOKUP(Y102,Feuil2!$C$1:$CD$9,3,FALSE) ->  | AC102: =T102-HLOOKUP(Y102,Feuil2!$C$1:$CD$9,4,FALSE) ->  | AD102: =T102-HLOOKUP(Y102,Feuil2!$C$1:$CD$9,5,FALSE) ->  | AE102: =T102-HLOOKUP(Y102,Feuil2!$C$1:$CD$9,6,FALSE) ->  | AF102: =T102-HLOOKUP(Y102,Feuil2!$C$1:$CD$9,7,FALSE) ->  | AG102: =T102-HLOOKUP(Y102,Feuil2!$C$1:$CD$9,8,FALSE) ->  | AH102: =T102-HLOOKUP(Y102,Feuil2!$C$1:$CD$9,9,FALSE) ->  | AP102: =IF(AH102>=0,$AH$5,IF(AG102>=0,$AG$5,IF(AF102>=0,$AF$5,IF(AE102>=0,$AE$5,IF(AD102>=0,$AD$5,IF(AC102>=0,$AC$5,IF(AB102>=0,$AB$5,IF(AA102>=0,$AA$5,$AI$5)))))))) ->  | AQ102: =2017-H102 -> 2017 | AS102: =IF(AQ102,VLOOKUP(AQ102,HOM!$AS$389:$AT$444,2)) -> 4.493
A103: H | X103: FALSE | Y103: =IF(AND(H103<1920),VLOOKUP(I103,Feuil2!$F$10:$P$28,11),IF(AND(H103>=1920,H103<1939),VLOOKUP(I103,Feuil2!$F$10:$P$28,11),IF(AND(H103>=1938,H103<1943),VLOOKUP(I103,Feuil2!$F$10:$P$28,10),IF(AND(H103>=1943,H103<1948),VLOOKUP(I103,Feuil2!$F$10:$P$28,9),IF(AND(H103>=1948,H103<1953),VLOOKUP(I103,Feuil2!$F$10:$P$28,8),IF(AND(H103>=1953,H103<1958),VLOOKUP(I103,Feuil2!$F$10:$P$28,7),IF(AND(H103>=1958,H103<1963),VLOOKUP(I103,Feuil2!$F$10:$P$28,6),IF(AND(H103>=1963,H103<1968),VLOOKUP(I103,Feuil2!$F$10:$P$28,5),IF(AND(H103>=1968,H103<1973),VLOOKUP(I103,Feuil2!$F$10:$P$28,4),IF(AND(H103>=1973,H103<1978),VLOOKUP(I103,Feuil2!$F$10:$P$28,3),IF(AND(H103>=1978,H103<1983),VLOOKUP(I103,Feuil2!$F$10:$P$28,2),VLOOKUP(I103,Feuil2!$F$10:$P$28,2)))))))))))) ->  | AA103: =T103-HLOOKUP(Y103,Feuil2!$C$1:$CD$9,2,FALSE) ->  | AB103: =T103-HLOOKUP(Y103,Feuil2!$C$1:$CD$9,3,FALSE) ->  | AC103: =T103-HLOOKUP(Y103,Feuil2!$C$1:$CD$9,4,FALSE) ->  | AD103: =T103-HLOOKUP(Y103,Feuil2!$C$1:$CD$9,5,FALSE) ->  | AE103: =T103-HLOOKUP(Y103,Feuil2!$C$1:$CD$9,6,FALSE) ->  | AF103: =T103-HLOOKUP(Y103,Feuil2!$C$1:$CD$9,7,FALSE) ->  | AG103: =T103-HLOOKUP(Y103,Feuil2!$C$1:$CD$9,8,FALSE) ->  | AH103: =T103-HLOOKUP(Y103,Feuil2!$C$1:$CD$9,9,FALSE) ->  | AQ103: 2017 | AS103: =IF(AQ103,VLOOKUP(AQ103,HOM!$AS$389:$AT$444,2)) -> 4.493
A104: H | X104: FALSE | Y104: =IF(AND(H104<1920),VLOOKUP(I104,Feuil2!$F$10:$P$28,11),IF(AND(H104>=1920,H104<1939),VLOOKUP(I104,Feuil2!$F$10:$P$28,11),IF(AND(H104>=1938,H104<1943),VLOOKUP(I104,Feuil2!$F$10:$P$28,10),IF(AND(H104>=1943,H104<1948),VLOOKUP(I104,Feuil2!$F$10:$P$28,9),IF(AND(H104>=1948,H104<1953),VLOOKUP(I104,Feuil2!$F$10:$P$28,8),IF(AND(H104>=1953,H104<1958),VLOOKUP(I104,Feuil2!$F$10:$P$28,7),IF(AND(H104>=1958,H104<1963),VLOOKUP(I104,Feuil2!$F$10:$P$28,6),IF(AND(H104>=1963,H104<1968),VLOOKUP(I104,Feuil2!$F$10:$P$28,5),IF(AND(H104>=1968,H104<1973),VLOOKUP(I104,Feuil2!$F$10:$P$28,4),IF(AND(H104>=1973,H104<1978),VLOOKUP(I104,Feuil2!$F$10:$P$28,3),IF(AND(H104>=1978,H104<1983),VLOOKUP(I104,Feuil2!$F$10:$P$28,2),VLOOKUP(I104,Feuil2!$F$10:$P$28,2)))))))))))) ->  | AA104: =T104-HLOOKUP(Y104,Feuil2!$C$1:$CD$9,2,FALSE) ->  | AB104: =T104-HLOOKUP(Y104,Feuil2!$C$1:$CD$9,3,FALSE) ->  | AC104: =T104-HLOOKUP(Y104,Feuil2!$C$1:$CD$9,4,FALSE) ->  | AD104: =T104-HLOOKUP(Y104,Feuil2!$C$1:$CD$9,5,FALSE) ->  | AE104: =T104-HLOOKUP(Y104,Feuil2!$C$1:$CD$9,6,FALSE) ->  | AF104: =T104-HLOOKUP(Y104,Feuil2!$C$1:$CD$9,7,FALSE) ->  | AG104: =T104-HLOOKUP(Y104,Feuil2!$C$1:$CD$9,8,FALSE) ->  | AH104: =T104-HLOOKUP(Y104,Feuil2!$C$1:$CD$9,9,FALSE) ->  | AQ104: 2017 | AS104: =IF(AQ104,VLOOKUP(AQ104,HOM!$AS$389:$AT$444,2)) -> 4.493
A105: H | X105: FALSE | Y105: =IF(AND(H105<1920),VLOOKUP(I105,Feuil2!$F$10:$P$28,11),IF(AND(H105>=1920,H105<1939),VLOOKUP(I105,Feuil2!$F$10:$P$28,11),IF(AND(H105>=1938,H105<1943),VLOOKUP(I105,Feuil2!$F$10:$P$28,10),IF(AND(H105>=1943,H105<1948),VLOOKUP(I105,Feuil2!$F$10:$P$28,9),IF(AND(H105>=1948,H105<1953),VLOOKUP(I105,Feuil2!$F$10:$P$28,8),IF(AND(H105>=1953,H105<1958),VLOOKUP(I105,Feuil2!$F$10:$P$28,7),IF(AND(H105>=1958,H105<1963),VLOOKUP(I105,Feuil2!$F$10:$P$28,6),IF(AND(H105>=1963,H105<1968),VLOOKUP(I105,Feuil2!$F$10:$P$28,5),IF(AND(H105>=1968,H105<1973),VLOOKUP(I105,Feuil2!$F$10:$P$28,4),IF(AND(H105>=1973,H105<1978),VLOOKUP(I105,Feuil2!$F$10:$P$28,3),IF(AND(H105>=1978,H105<1983),VLOOKUP(I105,Feuil2!$F$10:$P$28,2),VLOOKUP(I105,Feuil2!$F$10:$P$28,2)))))))))))) ->  | AA105: =T105-HLOOKUP(Y105,Feuil2!$C$1:$CD$9,2,FALSE) ->  | AB105: =T105-HLOOKUP(Y105,Feuil2!$C$1:$CD$9,3,FALSE) ->  | AC105: =T105-HLOOKUP(Y105,Feuil2!$C$1:$CD$9,4,FALSE) ->  | AD105: =T105-HLOOKUP(Y105,Feuil2!$C$1:$CD$9,5,FALSE) ->  | AE105: =T105-HLOOKUP(Y105,Feuil2!$C$1:$CD$9,6,FALSE) ->  | AF105: =T105-HLOOKUP(Y105,Feuil2!$C$1:$CD$9,7,FALSE) ->  | AG105: =T105-HLOOKUP(Y105,Feuil2!$C$1:$CD$9,8,FALSE) ->  | AH105: =T105-HLOOKUP(Y105,Feuil2!$C$1:$CD$9,9,FALSE) ->  | AQ105: 2017 | AS105: =IF(AQ105,VLOOKUP(AQ105,HOM!$AS$389:$AT$444,2)) -> 4.493
A106: H | X106: FALSE | Y106: =IF(AND(H106<1920),VLOOKUP(I106,Feuil2!$F$10:$P$28,11),IF(AND(H106>=1920,H106<1939),VLOOKUP(I106,Feuil2!$F$10:$P$28,11),IF(AND(H106>=1938,H106<1943),VLOOKUP(I106,Feuil2!$F$10:$P$28,10),IF(AND(H106>=1943,H106<1948),VLOOKUP(I106,Feuil2!$F$10:$P$28,9),IF(AND(H106>=1948,H106<1953),VLOOKUP(I106,Feuil2!$F$10:$P$28,8),IF(AND(H106>=1953,H106<1958),VLOOKUP(I106,Feuil2!$F$10:$P$28,7),IF(AND(H106>=1958,H106<1963),VLOOKUP(I106,Feuil2!$F$10:$P$28,6),IF(AND(H106>=1963,H106<1968),VLOOKUP(I106,Feuil2!$F$10:$P$28,5),IF(AND(H106>=1968,H106<1973),VLOOKUP(I106,Feuil2!$F$10:$P$28,4),IF(AND(H106>=1973,H106<1978),VLOOKUP(I106,Feuil2!$F$10:$P$28,3),IF(AND(H106>=1978,H106<1983),VLOOKUP(I106,Feuil2!$F$10:$P$28,2),VLOOKUP(I106,Feuil2!$F$10:$P$28,2)))))))))))) ->  | AA106: =T106-HLOOKUP(Y106,Feuil2!$C$1:$CD$9,2,FALSE) ->  | AB106: =T106-HLOOKUP(Y106,Feuil2!$C$1:$CD$9,3,FALSE) ->  | AC106: =T106-HLOOKUP(Y106,Feuil2!$C$1:$CD$9,4,FALSE) ->  | AD106: =T106-HLOOKUP(Y106,Feuil2!$C$1:$CD$9,5,FALSE) ->  | AE106: =T106-HLOOKUP(Y106,Feuil2!$C$1:$CD$9,6,FALSE) ->  | AF106: =T106-HLOOKUP(Y106,Feuil2!$C$1:$CD$9,7,FALSE) ->  | AG106: =T106-HLOOKUP(Y106,Feuil2!$C$1:$CD$9,8,FALSE) ->  | AH106: =T106-HLOOKUP(Y106,Feuil2!$C$1:$CD$9,9,FALSE) ->  | AQ106: 2017 | AS106: =IF(AQ106,VLOOKUP(AQ106,HOM!$AS$389:$AT$444,2)) -> 4.493
A107: H | X107: FALSE | Y107: =IF(AND(H107<1920),VLOOKUP(I107,Feuil2!$F$10:$P$28,11),IF(AND(H107>=1920,H107<1939),VLOOKUP(I107,Feuil2!$F$10:$P$28,11),IF(AND(H107>=1938,H107<1943),VLOOKUP(I107,Feuil2!$F$10:$P$28,10),IF(AND(H107>=1943,H107<1948),VLOOKUP(I107,Feuil2!$F$10:$P$28,9),IF(AND(H107>=1948,H107<1953),VLOOKUP(I107,Feuil2!$F$10:$P$28,8),IF(AND(H107>=1953,H107<1958),VLOOKUP(I107,Feuil2!$F$10:$P$28,7),IF(AND(H107>=1958,H107<1963),VLOOKUP(I107,Feuil2!$F$10:$P$28,6),IF(AND(H107>=1963,H107<1968),VLOOKUP(I107,Feuil2!$F$10:$P$28,5),IF(AND(H107>=1968,H107<1973),VLOOKUP(I107,Feuil2!$F$10:$P$28,4),IF(AND(H107>=1973,H107<1978),VLOOKUP(I107,Feuil2!$F$10:$P$28,3),IF(AND(H107>=1978,H107<1983),VLOOKUP(I107,Feuil2!$F$10:$P$28,2),VLOOKUP(I107,Feuil2!$F$10:$P$28,2)))))))))))) ->  | AA107: =T107-HLOOKUP(Y107,Feuil2!$C$1:$CD$9,2,FALSE) ->  | AB107: =T107-HLOOKUP(Y107,Feuil2!$C$1:$CD$9,3,FALSE) ->  | AC107: =T107-HLOOKUP(Y107,Feuil2!$C$1:$CD$9,4,FALSE) ->  | AD107: =T107-HLOOKUP(Y107,Feuil2!$C$1:$CD$9,5,FALSE) ->  | AE107: =T107-HLOOKUP(Y107,Feuil2!$C$1:$CD$9,6,FALSE) ->  | AF107: =T107-HLOOKUP(Y107,Feuil2!$C$1:$CD$9,7,FALSE) ->  | AG107: =T107-HLOOKUP(Y107,Feuil2!$C$1:$CD$9,8,FALSE) ->  | AH107: =T107-HLOOKUP(Y107,Feuil2!$C$1:$CD$9,9,FALSE) ->  | AQ107: 2017 | AS107: =IF(AQ107,VLOOKUP(AQ107,HOM!$AS$389:$AT$444,2)) -> 4.493
A108: H | X108: FALSE | Y108: =IF(AND(H108<1920),VLOOKUP(I108,Feuil2!$F$10:$P$28,11),IF(AND(H108>=1920,H108<1939),VLOOKUP(I108,Feuil2!$F$10:$P$28,11),IF(AND(H108>=1938,H108<1943),VLOOKUP(I108,Feuil2!$F$10:$P$28,10),IF(AND(H108>=1943,H108<1948),VLOOKUP(I108,Feuil2!$F$10:$P$28,9),IF(AND(H108>=1948,H108<1953),VLOOKUP(I108,Feuil2!$F$10:$P$28,8),IF(AND(H108>=1953,H108<1958),VLOOKUP(I108,Feuil2!$F$10:$P$28,7),IF(AND(H108>=1958,H108<1963),VLOOKUP(I108,Feuil2!$F$10:$P$28,6),IF(AND(H108>=1963,H108<1968),VLOOKUP(I108,Feuil2!$F$10:$P$28,5),IF(AND(H108>=1968,H108<1973),VLOOKUP(I108,Feuil2!$F$10:$P$28,4),IF(AND(H108>=1973,H108<1978),VLOOKUP(I108,Feuil2!$F$10:$P$28,3),IF(AND(H108>=1978,H108<1983),VLOOKUP(I108,Feuil2!$F$10:$P$28,2),VLOOKUP(I108,Feuil2!$F$10:$P$28,2)))))))))))) ->  | AA108: =T108-HLOOKUP(Y108,Feuil2!$C$1:$CD$9,2,FALSE) ->  | AB108: =T108-HLOOKUP(Y108,Feuil2!$C$1:$CD$9,3,FALSE) ->  | AC108: =T108-HLOOKUP(Y108,Feuil2!$C$1:$CD$9,4,FALSE) ->  | AD108: =T108-HLOOKUP(Y108,Feuil2!$C$1:$CD$9,5,FALSE) ->  | AE108: =T108-HLOOKUP(Y108,Feuil2!$C$1:$CD$9,6,FALSE) ->  | AF108: =T108-HLOOKUP(Y108,Feuil2!$C$1:$CD$9,7,FALSE) ->  | AG108: =T108-HLOOKUP(Y108,Feuil2!$C$1:$CD$9,8,FALSE) ->  | AH108: =T108-HLOOKUP(Y108,Feuil2!$C$1:$CD$9,9,FALSE) ->  | AQ108: 2017 | AS108: =IF(AQ108,VLOOKUP(AQ108,HOM!$AS$389:$AT$444,2)) -> 4.493
A109: H | X109: FALSE | Y109: =IF(AND(H109<1920),VLOOKUP(I109,Feuil2!$F$10:$P$28,11),IF(AND(H109>=1920,H109<1939),VLOOKUP(I109,Feuil2!$F$10:$P$28,11),IF(AND(H109>=1938,H109<1943),VLOOKUP(I109,Feuil2!$F$10:$P$28,10),IF(AND(H109>=1943,H109<1948),VLOOKUP(I109,Feuil2!$F$10:$P$28,9),IF(AND(H109>=1948,H109<1953),VLOOKUP(I109,Feuil2!$F$10:$P$28,8),IF(AND(H109>=1953,H109<1958),VLOOKUP(I109,Feuil2!$F$10:$P$28,7),IF(AND(H109>=1958,H109<1963),VLOOKUP(I109,Feuil2!$F$10:$P$28,6),IF(AND(H109>=1963,H109<1968),VLOOKUP(I109,Feuil2!$F$10:$P$28,5),IF(AND(H109>=1968,H109<1973),VLOOKUP(I109,Feuil2!$F$10:$P$28,4),IF(AND(H109>=1973,H109<1978),VLOOKUP(I109,Feuil2!$F$10:$P$28,3),IF(AND(H109>=1978,H109<1983),VLOOKUP(I109,Feuil2!$F$10:$P$28,2),VLOOKUP(I109,Feuil2!$F$10:$P$28,2)))))))))))) ->  | AA109: =T109-HLOOKUP(Y109,Feuil2!$C$1:$CD$9,2,FALSE) ->  | AB109: =T109-HLOOKUP(Y109,Feuil2!$C$1:$CD$9,3,FALSE) ->  | AC109: =T109-HLOOKUP(Y109,Feuil2!$C$1:$CD$9,4,FALSE) ->  | AD109: =T109-HLOOKUP(Y109,Feuil2!$C$1:$CD$9,5,FALSE) ->  | AE109: =T109-HLOOKUP(Y109,Feuil2!$C$1:$CD$9,6,FALSE) ->  | AF109: =T109-HLOOKUP(Y109,Feuil2!$C$1:$CD$9,7,FALSE) ->  | AG109: =T109-HLOOKUP(Y109,Feuil2!$C$1:$CD$9,8,FALSE) ->  | AH109: =T109-HLOOKUP(Y109,Feuil2!$C$1:$CD$9,9,FALSE) ->  | AQ109: 2017 | AS109: =IF(AQ109,VLOOKUP(AQ109,HOM!$AS$389:$AT$444,2)) -> 4.493
A110: H | X110: FALSE | Y110: =IF(AND(H110<1920),VLOOKUP(I110,Feuil2!$F$10:$P$28,11),IF(AND(H110>=1920,H110<1939),VLOOKUP(I110,Feuil2!$F$10:$P$28,11),IF(AND(H110>=1938,H110<1943),VLOOKUP(I110,Feuil2!$F$10:$P$28,10),IF(AND(H110>=1943,H110<1948),VLOOKUP(I110,Feuil2!$F$10:$P$28,9),IF(AND(H110>=1948,H110<1953),VLOOKUP(I110,Feuil2!$F$10:$P$28,8),IF(AND(H110>=1953,H110<1958),VLOOKUP(I110,Feuil2!$F$10:$P$28,7),IF(AND(H110>=1958,H110<1963),VLOOKUP(I110,Feuil2!$F$10:$P$28,6),IF(AND(H110>=1963,H110<1968),VLOOKUP(I110,Feuil2!$F$10:$P$28,5),IF(AND(H110>=1968,H110<1973),VLOOKUP(I110,Feuil2!$F$10:$P$28,4),IF(AND(H110>=1973,H110<1978),VLOOKUP(I110,Feuil2!$F$10:$P$28,3),IF(AND(H110>=1978,H110<1983),VLOOKUP(I110,Feuil2!$F$10:$P$28,2),VLOOKUP(I110,Feuil2!$F$10:$P$28,2)))))))))))) ->  | AA110: =T110-HLOOKUP(Y110,Feuil2!$C$1:$CD$9,2,FALSE) ->  | AB110: =T110-HLOOKUP(Y110,Feuil2!$C$1:$CD$9,3,FALSE) ->  | AC110: =T110-HLOOKUP(Y110,Feuil2!$C$1:$CD$9,4,FALSE) ->  | AD110: =T110-HLOOKUP(Y110,Feuil2!$C$1:$CD$9,5,FALSE) ->  | AE110: =T110-HLOOKUP(Y110,Feuil2!$C$1:$CD$9,6,FALSE) ->  | AF110: =T110-HLOOKUP(Y110,Feuil2!$C$1:$CD$9,7,FALSE) ->  | AG110: =T110-HLOOKUP(Y110,Feuil2!$C$1:$CD$9,8,FALSE) ->  | AH110: =T110-HLOOKUP(Y110,Feuil2!$C$1:$CD$9,9,FALSE) ->  | AQ110: 2017 | AS110: =IF(AQ110,VLOOKUP(AQ110,HOM!$AS$389:$AT$444,2)) -> 4.493
A111: H | X111: FALSE | Y111: =IF(AND(H111<1920),VLOOKUP(I111,Feuil2!$F$10:$P$28,11),IF(AND(H111>=1920,H111<1939),VLOOKUP(I111,Feuil2!$F$10:$P$28,11),IF(AND(H111>=1938,H111<1943),VLOOKUP(I111,Feuil2!$F$10:$P$28,10),IF(AND(H111>=1943,H111<1948),VLOOKUP(I111,Feuil2!$F$10:$P$28,9),IF(AND(H111>=1948,H111<1953),VLOOKUP(I111,Feuil2!$F$10:$P$28,8),IF(AND(H111>=1953,H111<1958),VLOOKUP(I111,Feuil2!$F$10:$P$28,7),IF(AND(H111>=1958,H111<1963),VLOOKUP(I111,Feuil2!$F$10:$P$28,6),IF(AND(H111>=1963,H111<1968),VLOOKUP(I111,Feuil2!$F$10:$P$28,5),IF(AND(H111>=1968,H111<1973),VLOOKUP(I111,Feuil2!$F$10:$P$28,4),IF(AND(H111>=1973,H111<1978),VLOOKUP(I111,Feuil2!$F$10:$P$28,3),IF(AND(H111>=1978,H111<1983),VLOOKUP(I111,Feuil2!$F$10:$P$28,2),VLOOKUP(I111,Feuil2!$F$10:$P$28,2)))))))))))) ->  | AA111: =T111-HLOOKUP(Y111,Feuil2!$C$1:$CD$9,2,FALSE) ->  | AB111: =T111-HLOOKUP(Y111,Feuil2!$C$1:$CD$9,3,FALSE) ->  | AC111: =T111-HLOOKUP(Y111,Feuil2!$C$1:$CD$9,4,FALSE) ->  | AD111: =T111-HLOOKUP(Y111,Feuil2!$C$1:$CD$9,5,FALSE) ->  | AE111: =T111-HLOOKUP(Y111,Feuil2!$C$1:$CD$9,6,FALSE) ->  | AF111: =T111-HLOOKUP(Y111,Feuil2!$C$1:$CD$9,7,FALSE) ->  | AG111: =T111-HLOOKUP(Y111,Feuil2!$C$1:$CD$9,8,FALSE) ->  | AH111: =T111-HLOOKUP(Y111,Feuil2!$C$1:$CD$9,9,FALSE) ->  | AQ111: 2017 | AS111: =IF(AQ111,VLOOKUP(AQ111,HOM!$AS$389:$AT$444,2)) -> 4.493
A112: H | X112: FALSE | Y112: =IF(AND(H112<1920),VLOOKUP(I112,Feuil2!$F$10:$P$28,11),IF(AND(H112>=1920,H112<1939),VLOOKUP(I112,Feuil2!$F$10:$P$28,11),IF(AND(H112>=1938,H112<1943),VLOOKUP(I112,Feuil2!$F$10:$P$28,10),IF(AND(H112>=1943,H112<1948),VLOOKUP(I112,Feuil2!$F$10:$P$28,9),IF(AND(H112>=1948,H112<1953),VLOOKUP(I112,Feuil2!$F$10:$P$28,8),IF(AND(H112>=1953,H112<1958),VLOOKUP(I112,Feuil2!$F$10:$P$28,7),IF(AND(H112>=1958,H112<1963),VLOOKUP(I112,Feuil2!$F$10:$P$28,6),IF(AND(H112>=1963,H112<1968),VLOOKUP(I112,Feuil2!$F$10:$P$28,5),IF(AND(H112>=1968,H112<1973),VLOOKUP(I112,Feuil2!$F$10:$P$28,4),IF(AND(H112>=1973,H112<1978),VLOOKUP(I112,Feuil2!$F$10:$P$28,3),IF(AND(H112>=1978,H112<1983),VLOOKUP(I112,Feuil2!$F$10:$P$28,2),VLOOKUP(I112,Feuil2!$F$10:$P$28,2)))))))))))) ->  | AA112: =T112-HLOOKUP(Y112,Feuil2!$C$1:$CD$9,2,FALSE) ->  | AB112: =T112-HLOOKUP(Y112,Feuil2!$C$1:$CD$9,3,FALSE) ->  | AC112: =T112-HLOOKUP(Y112,Feuil2!$C$1:$CD$9,4,FALSE) ->  | AD112: =T112-HLOOKUP(Y112,Feuil2!$C$1:$CD$9,5,FALSE) ->  | AE112: =T112-HLOOKUP(Y112,Feuil2!$C$1:$CD$9,6,FALSE) ->  | AF112: =T112-HLOOKUP(Y112,Feuil2!$C$1:$CD$9,7,FALSE) ->  | AG112: =T112-HLOOKUP(Y112,Feuil2!$C$1:$CD$9,8,FALSE) ->  | AH112: =T112-HLOOKUP(Y112,Feuil2!$C$1:$CD$9,9,FALSE) ->  | AQ112: 2017 | AS112: =IF(AQ112,VLOOKUP(AQ112,HOM!$AS$389:$AT$444,2)) -> 4.493
A113: H | X113: FALSE | Y113: =IF(AND(H113<1920),VLOOKUP(I113,Feuil2!$F$10:$P$28,11),IF(AND(H113>=1920,H113<1939),VLOOKUP(I113,Feuil2!$F$10:$P$28,11),IF(AND(H113>=1938,H113<1943),VLOOKUP(I113,Feuil2!$F$10:$P$28,10),IF(AND(H113>=1943,H113<1948),VLOOKUP(I113,Feuil2!$F$10:$P$28,9),IF(AND(H113>=1948,H113<1953),VLOOKUP(I113,Feuil2!$F$10:$P$28,8),IF(AND(H113>=1953,H113<1958),VLOOKUP(I113,Feuil2!$F$10:$P$28,7),IF(AND(H113>=1958,H113<1963),VLOOKUP(I113,Feuil2!$F$10:$P$28,6),IF(AND(H113>=1963,H113<1968),VLOOKUP(I113,Feuil2!$F$10:$P$28,5),IF(AND(H113>=1968,H113<1973),VLOOKUP(I113,Feuil2!$F$10:$P$28,4),IF(AND(H113>=1973,H113<1978),VLOOKUP(I113,Feuil2!$F$10:$P$28,3),IF(AND(H113>=1978,H113<1983),VLOOKUP(I113,Feuil2!$F$10:$P$28,2),VLOOKUP(I113,Feuil2!$F$10:$P$28,2)))))))))))) ->  | AA113: =T113-HLOOKUP(Y113,Feuil2!$C$1:$CD$9,2,FALSE) ->  | AB113: =T113-HLOOKUP(Y113,Feuil2!$C$1:$CD$9,3,FALSE) ->  | AC113: =T113-HLOOKUP(Y113,Feuil2!$C$1:$CD$9,4,FALSE) ->  | AD113: =T113-HLOOKUP(Y113,Feuil2!$C$1:$CD$9,5,FALSE) ->  | AE113: =T113-HLOOKUP(Y113,Feuil2!$C$1:$CD$9,6,FALSE) ->  | AF113: =T113-HLOOKUP(Y113,Feuil2!$C$1:$CD$9,7,FALSE) ->  | AG113: =T113-HLOOKUP(Y113,Feuil2!$C$1:$CD$9,8,FALSE) ->  | AH113: =T113-HLOOKUP(Y113,Feuil2!$C$1:$CD$9,9,FALSE) ->  | AQ113: 2017 | AS113: =IF(AQ113,VLOOKUP(AQ113,HOM!$AS$389:$AT$444,2)) -> 4.493
A114: H | X114: FALSE | Y114: =IF(AND(H114<1920),VLOOKUP(I114,Feuil2!$F$10:$P$28,11),IF(AND(H114>=1920,H114<1939),VLOOKUP(I114,Feuil2!$F$10:$P$28,11),IF(AND(H114>=1938,H114<1943),VLOOKUP(I114,Feuil2!$F$10:$P$28,10),IF(AND(H114>=1943,H114<1948),VLOOKUP(I114,Feuil2!$F$10:$P$28,9),IF(AND(H114>=1948,H114<1953),VLOOKUP(I114,Feuil2!$F$10:$P$28,8),IF(AND(H114>=1953,H114<1958),VLOOKUP(I114,Feuil2!$F$10:$P$28,7),IF(AND(H114>=1958,H114<1963),VLOOKUP(I114,Feuil2!$F$10:$P$28,6),IF(AND(H114>=1963,H114<1968),VLOOKUP(I114,Feuil2!$F$10:$P$28,5),IF(AND(H114>=1968,H114<1973),VLOOKUP(I114,Feuil2!$F$10:$P$28,4),IF(AND(H114>=1973,H114<1978),VLOOKUP(I114,Feuil2!$F$10:$P$28,3),IF(AND(H114>=1978,H114<1983),VLOOKUP(I114,Feuil2!$F$10:$P$28,2),VLOOKUP(I114,Feuil2!$F$10:$P$28,2)))))))))))) ->  | AA114: =T114-HLOOKUP(Y114,Feuil2!$C$1:$CD$9,2,FALSE) ->  | AB114: =T114-HLOOKUP(Y114,Feuil2!$C$1:$CD$9,3,FALSE) ->  | AC114: =T114-HLOOKUP(Y114,Feuil2!$C$1:$CD$9,4,FALSE) ->  | AD114: =T114-HLOOKUP(Y114,Feuil2!$C$1:$CD$9,5,FALSE) ->  | AE114: =T114-HLOOKUP(Y114,Feuil2!$C$1:$CD$9,6,FALSE) ->  | AF114: =T114-HLOOKUP(Y114,Feuil2!$C$1:$CD$9,7,FALSE) ->  | AG114: =T114-HLOOKUP(Y114,Feuil2!$C$1:$CD$9,8,FALSE) ->  | AH114: =T114-HLOOKUP(Y114,Feuil2!$C$1:$CD$9,9,FALSE) ->  | AQ114: 2017 | AS114: =IF(AQ114,VLOOKUP(AQ114,HOM!$AS$389:$AT$444,2)) -> 4.493
A115: H | X115: FALSE | Y115: =IF(AND(H115<1920),VLOOKUP(I115,Feuil2!$F$10:$P$28,11),IF(AND(H115>=1920,H115<1939),VLOOKUP(I115,Feuil2!$F$10:$P$28,11),IF(AND(H115>=1938,H115<1943),VLOOKUP(I115,Feuil2!$F$10:$P$28,10),IF(AND(H115>=1943,H115<1948),VLOOKUP(I115,Feuil2!$F$10:$P$28,9),IF(AND(H115>=1948,H115<1953),VLOOKUP(I115,Feuil2!$F$10:$P$28,8),IF(AND(H115>=1953,H115<1958),VLOOKUP(I115,Feuil2!$F$10:$P$28,7),IF(AND(H115>=1958,H115<1963),VLOOKUP(I115,Feuil2!$F$10:$P$28,6),IF(AND(H115>=1963,H115<1968),VLOOKUP(I115,Feuil2!$F$10:$P$28,5),IF(AND(H115>=1968,H115<1973),VLOOKUP(I115,Feuil2!$F$10:$P$28,4),IF(AND(H115>=1973,H115<1978),VLOOKUP(I115,Feuil2!$F$10:$P$28,3),IF(AND(H115>=1978,H115<1983),VLOOKUP(I115,Feuil2!$F$10:$P$28,2),VLOOKUP(I115,Feuil2!$F$10:$P$28,2)))))))))))) ->  | AA115: =T115-HLOOKUP(Y115,Feuil2!$C$1:$CD$9,2,FALSE) ->  | AB115: =T115-HLOOKUP(Y115,Feuil2!$C$1:$CD$9,3,FALSE) ->  | AC115: =T115-HLOOKUP(Y115,Feuil2!$C$1:$CD$9,4,FALSE) ->  | AD115: =T115-HLOOKUP(Y115,Feuil2!$C$1:$CD$9,5,FALSE) ->  | AE115: =T115-HLOOKUP(Y115,Feuil2!$C$1:$CD$9,6,FALSE) ->  | AF115: =T115-HLOOKUP(Y115,Feuil2!$C$1:$CD$9,7,FALSE) ->  | AG115: =T115-HLOOKUP(Y115,Feuil2!$C$1:$CD$9,8,FALSE) ->  | AH115: =T115-HLOOKUP(Y115,Feuil2!$C$1:$CD$9,9,FALSE) ->  | AQ115: 2017 | AS115: =IF(AQ115,VLOOKUP(AQ115,HOM!$AS$389:$AT$444,2)) -> 4.493
A116: H | X116: FALSE | Y116: =IF(AND(H116<1920),VLOOKUP(I116,Feuil2!$F$10:$P$28,11),IF(AND(H116>=1920,H116<1939),VLOOKUP(I116,Feuil2!$F$10:$P$28,11),IF(AND(H116>=1938,H116<1943),VLOOKUP(I116,Feuil2!$F$10:$P$28,10),IF(AND(H116>=1943,H116<1948),VLOOKUP(I116,Feuil2!$F$10:$P$28,9),IF(AND(H116>=1948,H116<1953),VLOOKUP(I116,Feuil2!$F$10:$P$28,8),IF(AND(H116>=1953,H116<1958),VLOOKUP(I116,Feuil2!$F$10:$P$28,7),IF(AND(H116>=1958,H116<1963),VLOOKUP(I116,Feuil2!$F$10:$P$28,6),IF(AND(H116>=1963,H116<1968),VLOOKUP(I116,Feuil2!$F$10:$P$28,5),IF(AND(H116>=1968,H116<1973),VLOOKUP(I116,Feuil2!$F$10:$P$28,4),IF(AND(H116>=1973,H116<1978),VLOOKUP(I116,Feuil2!$F$10:$P$28,3),IF(AND(H116>=1978,H116<1983),VLOOKUP(I116,Feuil2!$F$10:$P$28,2),VLOOKUP(I116,Feuil2!$F$10:$P$28,2)))))))))))) ->  | AA116: =T116-HLOOKUP(Y116,Feuil2!$C$1:$CD$9,2,FALSE) ->  | AB116: =T116-HLOOKUP(Y116,Feuil2!$C$1:$CD$9,3,FALSE) ->  | AC116: =T116-HLOOKUP(Y116,Feuil2!$C$1:$CD$9,4,FALSE) ->  | AD116: =T116-HLOOKUP(Y116,Feuil2!$C$1:$CD$9,5,FALSE) ->  | AE116: =T116-HLOOKUP(Y116,Feuil2!$C$1:$CD$9,6,FALSE) ->  | AF116: =T116-HLOOKUP(Y116,Feuil2!$C$1:$CD$9,7,FALSE) ->  | AG116: =T116-HLOOKUP(Y116,Feuil2!$C$1:$CD$9,8,FALSE) ->  | AH116: =T116-HLOOKUP(Y116,Feuil2!$C$1:$CD$9,9,FALSE) ->  | AQ116: 2017 | AS116: =IF(AQ116,VLOOKUP(AQ116,HOM!$AS$389:$AT$444,2)) -> 4.493
A117: H | X117: FALSE | Y117: =IF(AND(H117<1920),VLOOKUP(I117,Feuil2!$F$10:$P$28,11),IF(AND(H117>=1920,H117<1939),VLOOKUP(I117,Feuil2!$F$10:$P$28,11),IF(AND(H117>=1938,H117<1943),VLOOKUP(I117,Feuil2!$F$10:$P$28,10),IF(AND(H117>=1943,H117<1948),VLOOKUP(I117,Feuil2!$F$10:$P$28,9),IF(AND(H117>=1948,H117<1953),VLOOKUP(I117,Feuil2!$F$10:$P$28,8),IF(AND(H117>=1953,H117<1958),VLOOKUP(I117,Feuil2!$F$10:$P$28,7),IF(AND(H117>=1958,H117<1963),VLOOKUP(I117,Feuil2!$F$10:$P$28,6),IF(AND(H117>=1963,H117<1968),VLOOKUP(I117,Feuil2!$F$10:$P$28,5),IF(AND(H117>=1968,H117<1973),VLOOKUP(I117,Feuil2!$F$10:$P$28,4),IF(AND(H117>=1973,H117<1978),VLOOKUP(I117,Feuil2!$F$10:$P$28,3),IF(AND(H117>=1978,H117<1983),VLOOKUP(I117,Feuil2!$F$10:$P$28,2),VLOOKUP(I117,Feuil2!$F$10:$P$28,2)))))))))))) ->  | AA117: =T117-HLOOKUP(Y117,Feuil2!$C$1:$CD$9,2,FALSE) ->  | AB117: =T117-HLOOKUP(Y117,Feuil2!$C$1:$CD$9,3,FALSE) ->  | AC117: =T117-HLOOKUP(Y117,Feuil2!$C$1:$CD$9,4,FALSE) ->  | AD117: =T117-HLOOKUP(Y117,Feuil2!$C$1:$CD$9,5,FALSE) ->  | AE117: =T117-HLOOKUP(Y117,Feuil2!$C$1:$CD$9,6,FALSE) ->  | AF117: =T117-HLOOKUP(Y117,Feuil2!$C$1:$CD$9,7,FALSE) ->  | AG117: =T117-HLOOKUP(Y117,Feuil2!$C$1:$CD$9,8,FALSE) ->  | AH117: =T117-HLOOKUP(Y117,Feuil2!$C$1:$CD$9,9,FALSE) ->  | AQ117: 2017 | AS117: =IF(AQ117,VLOOKUP(AQ117,HOM!$AS$389:$AT$444,2)) -> 4.493
A118: H | X118: FALSE | Y118: =IF(AND(H118<1920),VLOOKUP(I118,Feuil2!$F$10:$P$28,11),IF(AND(H118>=1920,H118<1939),VLOOKUP(I118,Feuil2!$F$10:$P$28,11),IF(AND(H118>=1938,H118<1943),VLOOKUP(I118,Feuil2!$F$10:$P$28,10),IF(AND(H118>=1943,H118<1948),VLOOKUP(I118,Feuil2!$F$10:$P$28,9),IF(AND(H118>=1948,H118<1953),VLOOKUP(I118,Feuil2!$F$10:$P$28,8),IF(AND(H118>=1953,H118<1958),VLOOKUP(I118,Feuil2!$F$10:$P$28,7),IF(AND(H118>=1958,H118<1963),VLOOKUP(I118,Feuil2!$F$10:$P$28,6),IF(AND(H118>=1963,H118<1968),VLOOKUP(I118,Feuil2!$F$10:$P$28,5),IF(AND(H118>=1968,H118<1973),VLOOKUP(I118,Feuil2!$F$10:$P$28,4),IF(AND(H118>=1973,H118<1978),VLOOKUP(I118,Feuil2!$F$10:$P$28,3),IF(AND(H118>=1978,H118<1983),VLOOKUP(I118,Feuil2!$F$10:$P$28,2),VLOOKUP(I118,Feuil2!$F$10:$P$28,2)))))))))))) ->  | AA118: =T118-HLOOKUP(Y118,Feuil2!$C$1:$CD$9,2,FALSE) ->  | AB118: =T118-HLOOKUP(Y118,Feuil2!$C$1:$CD$9,3,FALSE) ->  | AC118: =T118-HLOOKUP(Y118,Feuil2!$C$1:$CD$9,4,FALSE) ->  | AD118: =T118-HLOOKUP(Y118,Feuil2!$C$1:$CD$9,5,FALSE) ->  | AE118: =T118-HLOOKUP(Y118,Feuil2!$C$1:$CD$9,6,FALSE) ->  | AF118: =T118-HLOOKUP(Y118,Feuil2!$C$1:$CD$9,7,FALSE) ->  | AG118: =T118-HLOOKUP(Y118,Feuil2!$C$1:$CD$9,8,FALSE) ->  | AH118: =T118-HLOOKUP(Y118,Feuil2!$C$1:$CD$9,9,FALSE) ->  | AQ118: 2017 | AS118: =IF(AQ118,VLOOKUP(AQ118,HOM!$AS$389:$AT$444,2)) -> 4.493
A119: H | X119: FALSE | Y119: =IF(AND(H119<1920),VLOOKUP(I119,Feuil2!$F$10:$P$28,11),IF(AND(H119>=1920,H119<1939),VLOOKUP(I119,Feuil2!$F$10:$P$28,11),IF(AND(H119>=1938,H119<1943),VLOOKUP(I119,Feuil2!$F$10:$P$28,10),IF(AND(H119>=1943,H119<1948),VLOOKUP(I119,Feuil2!$F$10:$P$28,9),IF(AND(H119>=1948,H119<1953),VLOOKUP(I119,Feuil2!$F$10:$P$28,8),IF(AND(H119>=1953,H119<1958),VLOOKUP(I119,Feuil2!$F$10:$P$28,7),IF(AND(H119>=1958,H119<1963),VLOOKUP(I119,Feuil2!$F$10:$P$28,6),IF(AND(H119>=1963,H119<1968),VLOOKUP(I119,Feuil2!$F$10:$P$28,5),IF(AND(H119>=1968,H119<1973),VLOOKUP(I119,Feuil2!$F$10:$P$28,4),IF(AND(H119>=1973,H119<1978),VLOOKUP(I119,Feuil2!$F$10:$P$28,3),IF(AND(H119>=1978,H119<1983),VLOOKUP(I119,Feuil2!$F$10:$P$28,2),VLOOKUP(I119,Feuil2!$F$10:$P$28,2)))))))))))) ->  | AA119: =T119-HLOOKUP(Y119,Feuil2!$C$1:$CD$9,2,FALSE) ->  | AB119: =T119-HLOOKUP(Y119,Feuil2!$C$1:$CD$9,3,FALSE) ->  | AC119: =T119-HLOOKUP(Y119,Feuil2!$C$1:$CD$9,4,FALSE) ->  | AD119: =T119-HLOOKUP(Y119,Feuil2!$C$1:$CD$9,5,FALSE) ->  | AE119: =T119-HLOOKUP(Y119,Feuil2!$C$1:$CD$9,6,FALSE) ->  | AF119: =T119-HLOOKUP(Y119,Feuil2!$C$1:$CD$9,7,FALSE) ->  | AG119: =T119-HLOOKUP(Y119,Feuil2!$C$1:$CD$9,8,FALSE) ->  | AH119: =T119-HLOOKUP(Y119,Feuil2!$C$1:$CD$9,9,FALSE) ->  | AQ119: 2017 | AS119: =IF(AQ119,VLOOKUP(AQ119,HOM!$AS$389:$AT$444,2)) -> 4.493
A120: H | X120: FALSE | Y120: =IF(AND(H120<1920),VLOOKUP(I120,Feuil2!$F$10:$P$28,11),IF(AND(H120>=1920,H120<1939),VLOOKUP(I120,Feuil2!$F$10:$P$28,11),IF(AND(H120>=1938,H120<1943),VLOOKUP(I120,Feuil2!$F$10:$P$28,10),IF(AND(H120>=1943,H120<1948),VLOOKUP(I120,Feuil2!$F$10:$P$28,9),IF(AND(H120>=1948,H120<1953),VLOOKUP(I120,Feuil2!$F$10:$P$28,8),IF(AND(H120>=1953,H120<1958),VLOOKUP(I120,Feuil2!$F$10:$P$28,7),IF(AND(H120>=1958,H120<1963),VLOOKUP(I120,Feuil2!$F$10:$P$28,6),IF(AND(H120>=1963,H120<1968),VLOOKUP(I120,Feuil2!$F$10:$P$28,5),IF(AND(H120>=1968,H120<1973),VLOOKUP(I120,Feuil2!$F$10:$P$28,4),IF(AND(H120>=1973,H120<1978),VLOOKUP(I120,Feuil2!$F$10:$P$28,3),IF(AND(H120>=1978,H120<1983),VLOOKUP(I120,Feuil2!$F$10:$P$28,2),VLOOKUP(I120,Feuil2!$F$10:$P$28,2)))))))))))) ->  | AA120: =T120-HLOOKUP(Y120,Feuil2!$C$1:$CD$9,2,FALSE) ->  | AB120: =T120-HLOOKUP(Y120,Feuil2!$C$1:$CD$9,3,FALSE) ->  | AC120: =T120-HLOOKUP(Y120,Feuil2!$C$1:$CD$9,4,FALSE) ->  | AD120: =T120-HLOOKUP(Y120,Feuil2!$C$1:$CD$9,5,FALSE) ->  | AE120: =T120-HLOOKUP(Y120,Feuil2!$C$1:$CD$9,6,FALSE) ->  | AF120: =T120-HLOOKUP(Y120,Feuil2!$C$1:$CD$9,7,FALSE) ->  | AG120: =T120-HLOOKUP(Y120,Feuil2!$C$1:$CD$9,8,FALSE) ->  | AH120: =T120-HLOOKUP(Y120,Feuil2!$C$1:$CD$9,9,FALSE) ->  | AQ120: 2017 | AS120: =IF(AQ120,VLOOKUP(AQ120,HOM!$AS$389:$AT$444,2)) -> 4.493
A121: H | X121: FALSE | Y121: =IF(AND(H121<1920),VLOOKUP(I121,Feuil2!$F$10:$P$28,11),IF(AND(H121>=1920,H121<1939),VLOOKUP(I121,Feuil2!$F$10:$P$28,11),IF(AND(H121>=1938,H121<1943),VLOOKUP(I121,Feuil2!$F$10:$P$28,10),IF(AND(H121>=1943,H121<1948),VLOOKUP(I121,Feuil2!$F$10:$P$28,9),IF(AND(H121>=1948,H121<1953),VLOOKUP(I121,Feuil2!$F$10:$P$28,8),IF(AND(H121>=1953,H121<1958),VLOOKUP(I121,Feuil2!$F$10:$P$28,7),IF(AND(H121>=1958,H121<1963),VLOOKUP(I121,Feuil2!$F$10:$P$28,6),IF(AND(H121>=1963,H121<1968),VLOOKUP(I121,Feuil2!$F$10:$P$28,5),IF(AND(H121>=1968,H121<1973),VLOOKUP(I121,Feuil2!$F$10:$P$28,4),IF(AND(H121>=1973,H121<1978),VLOOKUP(I121,Feuil2!$F$10:$P$28,3),IF(AND(H121>=1978,H121<1983),VLOOKUP(I121,Feuil2!$F$10:$P$28,2),VLOOKUP(I121,Feuil2!$F$10:$P$28,2)))))))))))) ->  | AA121: =T121-HLOOKUP(Y121,Feuil2!$C$1:$CD$9,2,FALSE) ->  | AB121: =T121-HLOOKUP(Y121,Feuil2!$C$1:$CD$9,3,FALSE) ->  | AC121: =T121-HLOOKUP(Y121,Feuil2!$C$1:$CD$9,4,FALSE) ->  | AD121: =T121-HLOOKUP(Y121,Feuil2!$C$1:$CD$9,5,FALSE) ->  | AE121: =T121-HLOOKUP(Y121,Feuil2!$C$1:$CD$9,6,FALSE) ->  | AF121: =T121-HLOOKUP(Y121,Feuil2!$C$1:$CD$9,7,FALSE) ->  | AG121: =T121-HLOOKUP(Y121,Feuil2!$C$1:$CD$9,8,FALSE) ->  | AH121: =T121-HLOOKUP(Y121,Feuil2!$C$1:$CD$9,9,FALSE) ->  | AQ121: 2017 | AS121: =IF(AQ121,VLOOKUP(AQ121,HOM!$AS$389:$AT$444,2)) -> 4.493
A122: H | X122: FALSE | Y122: =IF(AND(H122<1920),VLOOKUP(I122,Feuil2!$F$10:$P$28,11),IF(AND(H122>=1920,H122<1939),VLOOKUP(I122,Feuil2!$F$10:$P$28,11),IF(AND(H122>=1938,H122<1943),VLOOKUP(I122,Feuil2!$F$10:$P$28,10),IF(AND(H122>=1943,H122<1948),VLOOKUP(I122,Feuil2!$F$10:$P$28,9),IF(AND(H122>=1948,H122<1953),VLOOKUP(I122,Feuil2!$F$10:$P$28,8),IF(AND(H122>=1953,H122<1958),VLOOKUP(I122,Feuil2!$F$10:$P$28,7),IF(AND(H122>=1958,H122<1963),VLOOKUP(I122,Feuil2!$F$10:$P$28,6),IF(AND(H122>=1963,H122<1968),VLOOKUP(I122,Feuil2!$F$10:$P$28,5),IF(AND(H122>=1968,H122<1973),VLOOKUP(I122,Feuil2!$F$10:$P$28,4),IF(AND(H122>=1973,H122<1978),VLOOKUP(I122,Feuil2!$F$10:$P$28,3),IF(AND(H122>=1978,H122<1983),VLOOKUP(I122,Feuil2!$F$10:$P$28,2),VLOOKUP(I122,Feuil2!$F$10:$P$28,2)))))))))))) ->  | AA122: =T122-HLOOKUP(Y122,Feuil2!$C$1:$CD$9,2,FALSE) ->  | AB122: =T122-HLOOKUP(Y122,Feuil2!$C$1:$CD$9,3,FALSE) ->  | AC122: =T122-HLOOKUP(Y122,Feuil2!$C$1:$CD$9,4,FALSE) ->  | AD122: =T122-HLOOKUP(Y122,Feuil2!$C$1:$CD$9,5,FALSE) ->  | AE122: =T122-HLOOKUP(Y122,Feuil2!$C$1:$CD$9,6,FALSE) ->  | AF122: =T122-HLOOKUP(Y122,Feuil2!$C$1:$CD$9,7,FALSE) ->  | AG122: =T122-HLOOKUP(Y122,Feuil2!$C$1:$CD$9,8,FALSE) ->  | AH122: =T122-HLOOKUP(Y122,Feuil2!$C$1:$CD$9,9,FALSE) ->  | AQ122: 2017 | AS122: =IF(AQ122,VLOOKUP(AQ122,HOM!$AS$389:$AT$444,2)) -> 4.493
A123: H | X123: FALSE | Y123: =IF(AND(H123<1920),VLOOKUP(I123,Feuil2!$F$10:$P$28,11),IF(AND(H123>=1920,H123<1939),VLOOKUP(I123,Feuil2!$F$10:$P$28,11),IF(AND(H123>=1938,H123<1943),VLOOKUP(I123,Feuil2!$F$10:$P$28,10),IF(AND(H123>=1943,H123<1948),VLOOKUP(I123,Feuil2!$F$10:$P$28,9),IF(AND(H123>=1948,H123<1953),VLOOKUP(I123,Feuil2!$F$10:$P$28,8),IF(AND(H123>=1953,H123<1958),VLOOKUP(I123,Feuil2!$F$10:$P$28,7),IF(AND(H123>=1958,H123<1963),VLOOKUP(I123,Feuil2!$F$10:$P$28,6),IF(AND(H123>=1963,H123<1968),VLOOKUP(I123,Feuil2!$F$10:$P$28,5),IF(AND(H123>=1968,H123<1973),VLOOKUP(I123,Feuil2!$F$10:$P$28,4),IF(AND(H123>=1973,H123<1978),VLOOKUP(I123,Feuil2!$F$10:$P$28,3),IF(AND(H123>=1978,H123<1983),VLOOKUP(I123,Feuil2!$F$10:$P$28,2),VLOOKUP(I123,Feuil2!$F$10:$P$28,2)))))))))))) ->  | AA123: =T123-HLOOKUP(Y123,Feuil2!$C$1:$CD$9,2,FALSE) ->  | AB123: =T123-HLOOKUP(Y123,Feuil2!$C$1:$CD$9,3,FALSE) ->  | AC123: =T123-HLOOKUP(Y123,Feuil2!$C$1:$CD$9,4,FALSE) ->  | AD123: =T123-HLOOKUP(Y123,Feuil2!$C$1:$CD$9,5,FALSE) ->  | AE123: =T123-HLOOKUP(Y123,Feuil2!$C$1:$CD$9,6,FALSE) ->  | AF123: =T123-HLOOKUP(Y123,Feuil2!$C$1:$CD$9,7,FALSE) ->  | AG123: =T123-HLOOKUP(Y123,Feuil2!$C$1:$CD$9,8,FALSE) ->  | AH123: =T123-HLOOKUP(Y123,Feuil2!$C$1:$CD$9,9,FALSE) ->  | AQ123: 2017 | AS123: =IF(AQ123,VLOOKUP(AQ123,HOM!$AS$389:$AT$444,2)) -> 4.493
A124: H | X124: FALSE | Y124: =IF(AND(H124<1920),VLOOKUP(I124,Feuil2!$F$10:$P$28,11),IF(AND(H124>=1920,H124<1939),VLOOKUP(I124,Feuil2!$F$10:$P$28,11),IF(AND(H124>=1938,H124<1943),VLOOKUP(I124,Feuil2!$F$10:$P$28,10),IF(AND(H124>=1943,H124<1948),VLOOKUP(I124,Feuil2!$F$10:$P$28,9),IF(AND(H124>=1948,H124<1953),VLOOKUP(I124,Feuil2!$F$10:$P$28,8),IF(AND(H124>=1953,H124<1958),VLOOKUP(I124,Feuil2!$F$10:$P$28,7),IF(AND(H124>=1958,H124<1963),VLOOKUP(I124,Feuil2!$F$10:$P$28,6),IF(AND(H124>=1963,H124<1968),VLOOKUP(I124,Feuil2!$F$10:$P$28,5),IF(AND(H124>=1968,H124<1973),VLOOKUP(I124,Feuil2!$F$10:$P$28,4),IF(AND(H124>=1973,H124<1978),VLOOKUP(I124,Feuil2!$F$10:$P$28,3),IF(AND(H124>=1978,H124<1983),VLOOKUP(I124,Feuil2!$F$10:$P$28,2),VLOOKUP(I124,Feuil2!$F$10:$P$28,2)))))))))))) ->  | AA124: =T124-HLOOKUP(Y124,Feuil2!$C$1:$CD$9,2,FALSE) ->  | AB124: =T124-HLOOKUP(Y124,Feuil2!$C$1:$CD$9,3,FALSE) ->  | AC124: =T124-HLOOKUP(Y124,Feuil2!$C$1:$CD$9,4,FALSE) ->  | AD124: =T124-HLOOKUP(Y124,Feuil2!$C$1:$CD$9,5,FALSE) ->  | AE124: =T124-HLOOKUP(Y124,Feuil2!$C$1:$CD$9,6,FALSE) ->  | AF124: =T124-HLOOKUP(Y124,Feuil2!$C$1:$CD$9,7,FALSE) ->  | AG124: =T124-HLOOKUP(Y124,Feuil2!$C$1:$CD$9,8,FALSE) ->  | AH124: =T124-HLOOKUP(Y124,Feuil2!$C$1:$CD$9,9,FALSE) ->  | AQ124: 2017 | AS124: =IF(AQ124,VLOOKUP(AQ124,HOM!$AS$389:$AT$444,2)) -> 4.493
A125: H | X125: FALSE | Y125: =IF(AND(H125<1920),VLOOKUP(I125,Feuil2!$F$10:$P$28,11),IF(AND(H125>=1920,H125<1939),VLOOKUP(I125,Feuil2!$F$10:$P$28,11),IF(AND(H125>=1938,H125<1943),VLOOKUP(I125,Feuil2!$F$10:$P$28,10),IF(AND(H125>=1943,H125<1948),VLOOKUP(I125,Feuil2!$F$10:$P$28,9),IF(AND(H125>=1948,H125<1953),VLOOKUP(I125,Feuil2!$F$10:$P$28,8),IF(AND(H125>=1953,H125<1958),VLOOKUP(I125,Feuil2!$F$10:$P$28,7),IF(AND(H125>=1958,H125<1963),VLOOKUP(I125,Feuil2!$F$10:$P$28,6),IF(AND(H125>=1963,H125<1968),VLOOKUP(I125,Feuil2!$F$10:$P$28,5),IF(AND(H125>=1968,H125<1973),VLOOKUP(I125,Feuil2!$F$10:$P$28,4),IF(AND(H125>=1973,H125<1978),VLOOKUP(I125,Feuil2!$F$10:$P$28,3),IF(AND(H125>=1978,H125<1983),VLOOKUP(I125,Feuil2!$F$10:$P$28,2),VLOOKUP(I125,Feuil2!$F$10:$P$28,2)))))))))))) ->  | AA125: =T125-HLOOKUP(Y125,Feuil2!$C$1:$CD$9,2,FALSE) ->  | AB125: =T125-HLOOKUP(Y125,Feuil2!$C$1:$CD$9,3,FALSE) ->  | AC125: =T125-HLOOKUP(Y125,Feuil2!$C$1:$CD$9,4,FALSE) ->  | AD125: =T125-HLOOKUP(Y125,Feuil2!$C$1:$CD$9,5,FALSE) ->  | AE125: =T125-HLOOKUP(Y125,Feuil2!$C$1:$CD$9,6,FALSE) ->  | AF125: =T125-HLOOKUP(Y125,Feuil2!$C$1:$CD$9,7,FALSE) ->  | AG125: =T125-HLOOKUP(Y125,Feuil2!$C$1:$CD$9,8,FALSE) ->  | AH125: =T125-HLOOKUP(Y125,Feuil2!$C$1:$CD$9,9,FALSE) ->  | AQ125: 2017 | AS125: =IF(AQ125,VLOOKUP(AQ125,HOM!$AS$389:$AT$444,2)) -> 4.493
A126: H | X126: FALSE | Y126: =IF(AND(H126<1920),VLOOKUP(I126,Feuil2!$F$10:$P$28,11),IF(AND(H126>=1920,H126<1939),VLOOKUP(I126,Feuil2!$F$10:$P$28,11),IF(AND(H126>=1938,H126<1943),VLOOKUP(I126,Feuil2!$F$10:$P$28,10),IF(AND(H126>=1943,H126<1948),VLOOKUP(I126,Feuil2!$F$10:$P$28,9),IF(AND(H126>=1948,H126<1953),VLOOKUP(I126,Feuil2!$F$10:$P$28,8),IF(AND(H126>=1953,H126<1958),VLOOKUP(I126,Feuil2!$F$10:$P$28,7),IF(AND(H126>=1958,H126<1963),VLOOKUP(I126,Feuil2!$F$10:$P$28,6),IF(AND(H126>=1963,H126<1968),VLOOKUP(I126,Feuil2!$F$10:$P$28,5),IF(AND(H126>=1968,H126<1973),VLOOKUP(I126,Feuil2!$F$10:$P$28,4),IF(AND(H126>=1973,H126<1978),VLOOKUP(I126,Feuil2!$F$10:$P$28,3),IF(AND(H126>=1978,H126<1983),VLOOKUP(I126,Feuil2!$F$10:$P$28,2),VLOOKUP(I126,Feuil2!$F$10:$P$28,2)))))))))))) ->  | AA126: =T126-HLOOKUP(Y126,Feuil2!$C$1:$CD$9,2,FALSE) ->  | AB126: =T126-HLOOKUP(Y126,Feuil2!$C$1:$CD$9,3,FALSE) ->  | AC126: =T126-HLOOKUP(Y126,Feuil2!$C$1:$CD$9,4,FALSE) ->  | AD126: =T126-HLOOKUP(Y126,Feuil2!$C$1:$CD$9,5,FALSE) ->  | AE126: =T126-HLOOKUP(Y126,Feuil2!$C$1:$CD$9,6,FALSE) ->  | AF126: =T126-HLOOKUP(Y126,Feuil2!$C$1:$CD$9,7,FALSE) ->  | AG126: =T126-HLOOKUP(Y126,Feuil2!$C$1:$CD$9,8,FALSE) ->  | AH126: =T126-HLOOKUP(Y126,Feuil2!$C$1:$CD$9,9,FALSE) ->  | AQ126: 2017 | AS126: =IF(AQ126,VLOOKUP(AQ126,HOM!$AS$389:$AT$444,2)) -> 4.493
A127: H | X127: FALSE | Y127: =IF(AND(H127<1920),VLOOKUP(I127,Feuil2!$F$10:$P$28,11),IF(AND(H127>=1920,H127<1939),VLOOKUP(I127,Feuil2!$F$10:$P$28,11),IF(AND(H127>=1938,H127<1943),VLOOKUP(I127,Feuil2!$F$10:$P$28,10),IF(AND(H127>=1943,H127<1948),VLOOKUP(I127,Feuil2!$F$10:$P$28,9),IF(AND(H127>=1948,H127<1953),VLOOKUP(I127,Feuil2!$F$10:$P$28,8),IF(AND(H127>=1953,H127<1958),VLOOKUP(I127,Feuil2!$F$10:$P$28,7),IF(AND(H127>=1958,H127<1963),VLOOKUP(I127,Feuil2!$F$10:$P$28,6),IF(AND(H127>=1963,H127<1968),VLOOKUP(I127,Feuil2!$F$10:$P$28,5),IF(AND(H127>=1968,H127<1973),VLOOKUP(I127,Feuil2!$F$10:$P$28,4),IF(AND(H127>=1973,H127<1978),VLOOKUP(I127,Feuil2!$F$10:$P$28,3),IF(AND(H127>=1978,H127<1983),VLOOKUP(I127,Feuil2!$F$10:$P$28,2),VLOOKUP(I127,Feuil2!$F$10:$P$28,2)))))))))))) ->  | AA127: =T127-HLOOKUP(Y127,Feuil2!$C$1:$CD$9,2,FALSE) ->  | AB127: =T127-HLOOKUP(Y127,Feuil2!$C$1:$CD$9,3,FALSE) ->  | AC127: =T127-HLOOKUP(Y127,Feuil2!$C$1:$CD$9,4,FALSE) ->  | AD127: =T127-HLOOKUP(Y127,Feuil2!$C$1:$CD$9,5,FALSE) ->  | AE127: =T127-HLOOKUP(Y127,Feuil2!$C$1:$CD$9,6,FALSE) ->  | AF127: =T127-HLOOKUP(Y127,Feuil2!$C$1:$CD$9,7,FALSE) ->  | AG127: =T127-HLOOKUP(Y127,Feuil2!$C$1:$CD$9,8,FALSE) ->  | AH127: =T127-HLOOKUP(Y127,Feuil2!$C$1:$CD$9,9,FALSE) ->  | AQ127: 2017 | AS127: =IF(AQ127,VLOOKUP(AQ127,HOM!$AS$389:$AT$444,2)) -> 4.493
A128: H | X128: FALSE | Y128: =IF(AND(H128<1920),VLOOKUP(I128,Feuil2!$F$10:$P$28,11),IF(AND(H128>=1920,H128<1939),VLOOKUP(I128,Feuil2!$F$10:$P$28,11),IF(AND(H128>=1938,H128<1943),VLOOKUP(I128,Feuil2!$F$10:$P$28,10),IF(AND(H128>=1943,H128<1948),VLOOKUP(I128,Feuil2!$F$10:$P$28,9),IF(AND(H128>=1948,H128<1953),VLOOKUP(I128,Feuil2!$F$10:$P$28,8),IF(AND(H128>=1953,H128<1958),VLOOKUP(I128,Feuil2!$F$10:$P$28,7),IF(AND(H128>=1958,H128<1963),VLOOKUP(I128,Feuil2!$F$10:$P$28,6),IF(AND(H128>=1963,H128<1968),VLOOKUP(I128,Feuil2!$F$10:$P$28,5),IF(AND(H128>=1968,H128<1973),VLOOKUP(I128,Feuil2!$F$10:$P$28,4),IF(AND(H128>=1973,H128<1978),VLOOKUP(I128,Feuil2!$F$10:$P$28,3),IF(AND(H128>=1978,H128<1983),VLOOKUP(I128,Feuil2!$F$10:$P$28,2),VLOOKUP(I128,Feuil2!$F$10:$P$28,2)))))))))))) ->  | AA128: =T128-HLOOKUP(Y128,Feuil2!$C$1:$CD$9,2,FALSE) ->  | AB128: =T128-HLOOKUP(Y128,Feuil2!$C$1:$CD$9,3,FALSE) ->  | AC128: =T128-HLOOKUP(Y128,Feuil2!$C$1:$CD$9,4,FALSE) ->  | AD128: =T128-HLOOKUP(Y128,Feuil2!$C$1:$CD$9,5,FALSE) ->  | AE128: =T128-HLOOKUP(Y128,Feuil2!$C$1:$CD$9,6,FALSE) ->  | AF128: =T128-HLOOKUP(Y128,Feuil2!$C$1:$CD$9,7,FALSE) ->  | AG128: =T128-HLOOKUP(Y128,Feuil2!$C$1:$CD$9,8,FALSE) ->  | AH128: =T128-HLOOKUP(Y128,Feuil2!$C$1:$CD$9,9,FALSE) ->  | AQ128: 2017 | AS128: =IF(AQ128,VLOOKUP(AQ128,HOM!$AS$389:$AT$444,2)) -> 4.493
A129: H | X129: FALSE | Y129: =IF(AND(H129<1920),VLOOKUP(I129,Feuil2!$F$10:$P$28,11),IF(AND(H129>=1920,H129<1939),VLOOKUP(I129,Feuil2!$F$10:$P$28,11),IF(AND(H129>=1938,H129<1943),VLOOKUP(I129,Feuil2!$F$10:$P$28,10),IF(AND(H129>=1943,H129<1948),VLOOKUP(I129,Feuil2!$F$10:$P$28,9),IF(AND(H129>=1948,H129<1953),VLOOKUP(I129,Feuil2!$F$10:$P$28,8),IF(AND(H129>=1953,H129<1958),VLOOKUP(I129,Feuil2!$F$10:$P$28,7),IF(AND(H129>=1958,H129<1963),VLOOKUP(I129,Feuil2!$F$10:$P$28,6),IF(AND(H129>=1963,H129<1968),VLOOKUP(I129,Feuil2!$F$10:$P$28,5),IF(AND(H129>=1968,H129<1973),VLOOKUP(I129,Feuil2!$F$10:$P$28,4),IF(AND(H129>=1973,H129<1978),VLOOKUP(I129,Feuil2!$F$10:$P$28,3),IF(AND(H129>=1978,H129<1983),VLOOKUP(I129,Feuil2!$F$10:$P$28,2),VLOOKUP(I129,Feuil2!$F$10:$P$28,2)))))))))))) ->  | AA129: =T129-HLOOKUP(Y129,Feuil2!$C$1:$CD$9,2,FALSE) ->  | AB129: =T129-HLOOKUP(Y129,Feuil2!$C$1:$CD$9,3,FALSE) ->  | AC129: =T129-HLOOKUP(Y129,Feuil2!$C$1:$CD$9,4,FALSE) ->  | AD129: =T129-HLOOKUP(Y129,Feuil2!$C$1:$CD$9,5,FALSE) ->  | AE129: =T129-HLOOKUP(Y129,Feuil2!$C$1:$CD$9,6,FALSE) ->  | AF129: =T129-HLOOKUP(Y129,Feuil2!$C$1:$CD$9,7,FALSE) ->  | AG129: =T129-HLOOKUP(Y129,Feuil2!$C$1:$CD$9,8,FALSE) ->  | AH129: =T129-HLOOKUP(Y129,Feuil2!$C$1:$CD$9,9,FALSE) ->  | AQ129: 2017 | AS129: =IF(AQ129,VLOOKUP(AQ129,HOM!$AS$389:$AT$444,2)) -> 4.493
A130: H | X130: FALSE | Y130: =IF(AND(H130<1920),VLOOKUP(I130,Feuil2!$F$10:$P$28,11),IF(AND(H130>=1920,H130<1939),VLOOKUP(I130,Feuil2!$F$10:$P$28,11),IF(AND(H130>=1938,H130<1943),VLOOKUP(I130,Feuil2!$F$10:$P$28,10),IF(AND(H130>=1943,H130<1948),VLOOKUP(I130,Feuil2!$F$10:$P$28,9),IF(AND(H130>=1948,H130<1953),VLOOKUP(I130,Feuil2!$F$10:$P$28,8),IF(AND(H130>=1953,H130<1958),VLOOKUP(I130,Feuil2!$F$10:$P$28,7),IF(AND(H130>=1958,H130<1963),VLOOKUP(I130,Feuil2!$F$10:$P$28,6),IF(AND(H130>=1963,H130<1968),VLOOKUP(I130,Feuil2!$F$10:$P$28,5),IF(AND(H130>=1968,H130<1973),VLOOKUP(I130,Feuil2!$F$10:$P$28,4),IF(AND(H130>=1973,H130<1978),VLOOKUP(I130,Feuil2!$F$10:$P$28,3),IF(AND(H130>=1978,H130<1983),VLOOKUP(I130,Feuil2!$F$10:$P$28,2),VLOOKUP(I130,Feuil2!$F$10:$P$28,2)))))))))))) ->  | AA130: =T130-HLOOKUP(Y130,Feuil2!$C$1:$CD$9,2,FALSE) ->  | AB130: =T130-HLOOKUP(Y130,Feuil2!$C$1:$CD$9,3,FALSE) ->  | AC130: =T130-HLOOKUP(Y130,Feuil2!$C$1:$CD$9,4,FALSE) ->  | AD130: =T130-HLOOKUP(Y130,Feuil2!$C$1:$CD$9,5,FALSE) ->  | AE130: =T130-HLOOKUP(Y130,Feuil2!$C$1:$CD$9,6,FALSE) ->  | AF130: =T130-HLOOKUP(Y130,Feuil2!$C$1:$CD$9,7,FALSE) ->  | AG130: =T130-HLOOKUP(Y130,Feuil2!$C$1:$CD$9,8,FALSE) ->  | AH130: =T130-HLOOKUP(Y130,Feuil2!$C$1:$CD$9,9,FALSE) ->  | AQ130: 2017 | AS130: =IF(AQ130,VLOOKUP(AQ130,HOM!$AS$389:$AT$444,2)) -> 4.493
A131: H | X131: FALSE | Y131: =IF(AND(H131<1920),VLOOKUP(I131,Feuil2!$F$10:$P$28,11),IF(AND(H131>=1920,H131<1939),VLOOKUP(I131,Feuil2!$F$10:$P$28,11),IF(AND(H131>=1938,H131<1943),VLOOKUP(I131,Feuil2!$F$10:$P$28,10),IF(AND(H131>=1943,H131<1948),VLOOKUP(I131,Feuil2!$F$10:$P$28,9),IF(AND(H131>=1948,H131<1953),VLOOKUP(I131,Feuil2!$F$10:$P$28,8),IF(AND(H131>=1953,H131<1958),VLOOKUP(I131,Feuil2!$F$10:$P$28,7),IF(AND(H131>=1958,H131<1963),VLOOKUP(I131,Feuil2!$F$10:$P$28,6),IF(AND(H131>=1963,H131<1968),VLOOKUP(I131,Feuil2!$F$10:$P$28,5),IF(AND(H131>=1968,H131<1973),VLOOKUP(I131,Feuil2!$F$10:$P$28,4),IF(AND(H131>=1973,H131<1978),VLOOKUP(I131,Feuil2!$F$10:$P$28,3),IF(AND(H131>=1978,H131<1983),VLOOKUP(I131,Feuil2!$F$10:$P$28,2),VLOOKUP(I131,Feuil2!$F$10:$P$28,2)))))))))))) ->  | AA131: =T131-HLOOKUP(Y131,Feuil2!$C$1:$CD$9,2,FALSE) ->  | AB131: =T131-HLOOKUP(Y131,Feuil2!$C$1:$CD$9,3,FALSE) ->  | AC131: =T131-HLOOKUP(Y131,Feuil2!$C$1:$CD$9,4,FALSE) ->  | AD131: =T131-HLOOKUP(Y131,Feuil2!$C$1:$CD$9,5,FALSE) ->  | AE131: =T131-HLOOKUP(Y131,Feuil2!$C$1:$CD$9,6,FALSE) ->  | AF131: =T131-HLOOKUP(Y131,Feuil2!$C$1:$CD$9,7,FALSE) ->  | AG131: =T131-HLOOKUP(Y131,Feuil2!$C$1:$CD$9,8,FALSE) ->  | AH131: =T131-HLOOKUP(Y131,Feuil2!$C$1:$CD$9,9,FALSE) ->  | AQ131: 2017 | AS131: =IF(AQ131,VLOOKUP(AQ131,HOM!$AS$389:$AT$444,2)) -> 4.493
A132: H | X132: FALSE | Y132: =IF(AND(H132<1920),VLOOKUP(I132,Feuil2!$F$10:$P$28,11),IF(AND(H132>=1920,H132<1939),VLOOKUP(I132,Feuil2!$F$10:$P$28,11),IF(AND(H132>=1938,H132<1943),VLOOKUP(I132,Feuil2!$F$10:$P$28,10),IF(AND(H132>=1943,H132<1948),VLOOKUP(I132,Feuil2!$F$10:$P$28,9),IF(AND(H132>=1948,H132<1953),VLOOKUP(I132,Feuil2!$F$10:$P$28,8),IF(AND(H132>=1953,H132<1958),VLOOKUP(I132,Feuil2!$F$10:$P$28,7),IF(AND(H132>=1958,H132<1963),VLOOKUP(I132,Feuil2!$F$10:$P$28,6),IF(AND(H132>=1963,H132<1968),VLOOKUP(I132,Feuil2!$F$10:$P$28,5),IF(AND(H132>=1968,H132<1973),VLOOKUP(I132,Feuil2!$F$10:$P$28,4),IF(AND(H132>=1973,H132<1978),VLOOKUP(I132,Feuil2!$F$10:$P$28,3),IF(AND(H132>=1978,H132<1983),VLOOKUP(I132,Feuil2!$F$10:$P$28,2),VLOOKUP(I132,Feuil2!$F$10:$P$28,2)))))))))))) ->  | AA132: =T132-HLOOKUP(Y132,Feuil2!$C$1:$CD$9,2,FALSE) ->  | AB132: =T132-HLOOKUP(Y132,Feuil2!$C$1:$CD$9,3,FALSE) ->  | AC132: =T132-HLOOKUP(Y132,Feuil2!$C$1:$CD$9,4,FALSE) ->  | AD132: =T132-HLOOKUP(Y132,Feuil2!$C$1:$CD$9,5,FALSE) ->  | AE132: =T132-HLOOKUP(Y132,Feuil2!$C$1:$CD$9,6,FALSE) ->  | AF132: =T132-HLOOKUP(Y132,Feuil2!$C$1:$CD$9,7,FALSE) ->  | AG132: =T132-HLOOKUP(Y132,Feuil2!$C$1:$CD$9,8,FALSE) ->  | AH132: =T132-HLOOKUP(Y132,Feuil2!$C$1:$CD$9,9,FALSE) ->  | AQ132: 2017 | AS132: =IF(AQ132,VLOOKUP(AQ132,HOM!$AS$389:$AT$444,2)) -> 4.493
A133: H | X133: FALSE | Y133: =IF(AND(H133<1920),VLOOKUP(I133,Feuil2!$F$10:$P$28,11),IF(AND(H133>=1920,H133<1939),VLOOKUP(I133,Feuil2!$F$10:$P$28,11),IF(AND(H133>=1938,H133<1943),VLOOKUP(I133,Feuil2!$F$10:$P$28,10),IF(AND(H133>=1943,H133<1948),VLOOKUP(I133,Feuil2!$F$10:$P$28,9),IF(AND(H133>=1948,H133<1953),VLOOKUP(I133,Feuil2!$F$10:$P$28,8),IF(AND(H133>=1953,H133<1958),VLOOKUP(I133,Feuil2!$F$10:$P$28,7),IF(AND(H133>=1958,H133<1963),VLOOKUP(I133,Feuil2!$F$10:$P$28,6),IF(AND(H133>=1963,H133<1968),VLOOKUP(I133,Feuil2!$F$10:$P$28,5),IF(AND(H133>=1968,H133<1973),VLOOKUP(I133,Feuil2!$F$10:$P$28,4),IF(AND(H133>=1973,H133<1978),VLOOKUP(I133,Feuil2!$F$10:$P$28,3),IF(AND(H133>=1978,H133<1983),VLOOKUP(I133,Feuil2!$F$10:$P$28,2),VLOOKUP(I133,Feuil2!$F$10:$P$28,2)))))))))))) ->  | AA133: =T133-HLOOKUP(Y133,Feuil2!$C$1:$CD$9,2,FALSE) ->  | AB133: =T133-HLOOKUP(Y133,Feuil2!$C$1:$CD$9,3,FALSE) ->  | AC133: =T133-HLOOKUP(Y133,Feuil2!$C$1:$CD$9,4,FALSE) ->  | AD133: =T133-HLOOKUP(Y133,Feuil2!$C$1:$CD$9,5,FALSE) ->  | AE133: =T133-HLOOKUP(Y133,Feuil2!$C$1:$CD$9,6,FALSE) ->  | AF133: =T133-HLOOKUP(Y133,Feuil2!$C$1:$CD$9,7,FALSE) ->  | AG133: =T133-HLOOKUP(Y133,Feuil2!$C$1:$CD$9,8,FALSE) ->  | AH133: =T133-HLOOKUP(Y133,Feuil2!$C$1:$CD$9,9,FALSE) ->  | AQ133: 2017 | AS133: =IF(AQ133,VLOOKUP(AQ133,HOM!$AS$389:$AT$444,2)) -> 4.493
A134: H | S134: =IF(I134="","",IF(MAXA(P134:R134)<=0,0,MAXA(P134:R134))) ->  | T134: =IF(I134="","",IF(OR(O134=0,S134=0),0,O134+S134)) ->  | U134: =IF(I134="","",IF(A134="H",10^(0.794358141*LOG(I134/174.393)^2)*T134*AS134,IF(A134="F",10^(0.89726074 * LOG(I134/148.026)^2)*T134*AS134,""))) ->  | V134: =IF(I134="","",AP134) ->  | W134: =IF(I134="","",IF(AH134>=0,AH134,IF(AG134>=0,AG134,IF(AF134>=0,AF134,IF(AE134>=0,AE134,IF(AD134>=0,AD134,IF(AC134>=0,AC134,IF(AB134>=0,AB134,AA134)))))))) ->  | X134: =IF(AQ134<95,IF(AQ134<=90,VLOOKUP(AQ134,$AQ$255:$AR$444,2))) -> FALSE | Y134: =IF(AND(H134<1920),VLOOKUP(I134,Feuil2!$F$10:$P$28,11),IF(AND(H134>=1920,H134<1939),VLOOKUP(I134,Feuil2!$F$10:$P$28,11),IF(AND(H134>=1938,H134<1943),VLOOKUP(I134,Feuil2!$F$10:$P$28,10),IF(AND(H134>=1943,H134<1948),VLOOKUP(I134,Feuil2!$F$10:$P$28,9),IF(AND(H134>=1948,H134<1953),VLOOKUP(I134,Feuil2!$F$10:$P$28,8),IF(AND(H134>=1953,H134<1958),VLOOKUP(I134,Feuil2!$F$10:$P$28,7),IF(AND(H134>=1958,H134<1963),VLOOKUP(I134,Feuil2!$F$10:$P$28,6),IF(AND(H134>=1963,H134<1968),VLOOKUP(I134,Feuil2!$F$10:$P$28,5),IF(AND(H134>=1968,H134<1973),VLOOKUP(I134,Feuil2!$F$10:$P$28,4),IF(AND(H134>=1973,H134<1978),VLOOKUP(I134,Feuil2!$F$10:$P$28,3),IF(AND(H134>=1978,H134<1983),VLOOKUP(I134,Feuil2!$F$10:$P$28,2),VLOOKUP(I134,Feuil2!$F$10:$P$28,2)))))))))))) ->  | AA134: =T134-HLOOKUP(Y134,Feuil2!$C$1:$CD$9,2,FALSE) ->  | AB134: =T134-HLOOKUP(Y134,Feuil2!$C$1:$CD$9,3,FALSE) ->  | AC134: =T134-HLOOKUP(Y134,Feuil2!$C$1:$CD$9,4,FALSE) ->  | AD134: =T134-HLOOKUP(Y134,Feuil2!$C$1:$CD$9,5,FALSE) ->  | AE134: =T134-HLOOKUP(Y134,Feuil2!$C$1:$CD$9,6,FALSE) ->  | AF134: =T134-HLOOKUP(Y134,Feuil2!$C$1:$CD$9,7,FALSE) ->  | AG134: =T134-HLOOKUP(Y134,Feuil2!$C$1:$CD$9,8,FALSE) ->  | AH134: =T134-HLOOKUP(Y134,Feuil2!$C$1:$CD$9,9,FALSE) ->  | AP134: =IF(AH134>=0,$AH$5,IF(AG134>=0,$AG$5,IF(AF134>=0,$AF$5,IF(AE134>=0,$AE$5,IF(AD134>=0,$AD$5,IF(AC134>=0,$AC$5,IF(AB134>=0,$AB$5,IF(AA134>=0,$AA$5,$AI$5)))))))) ->  | AQ134: =2017-H134 -> 2017 | AS134: =IF(AQ134,VLOOKUP(AQ134,HOM!$AS$389:$AT$444,2)) -> 4.493
A135: H | O135: =IF(I135="","",IF(MAXA(L135:N135)<=0,0,MAXA(L135:N135))) ->  | X135: FALSE | Y135: =IF(AND(H135<1920),VLOOKUP(I135,Feuil2!$F$10:$P$28,11),IF(AND(H135>=1920,H135<1939),VLOOKUP(I135,Feuil2!$F$10:$P$28,11),IF(AND(H135>=1938,H135<1943),VLOOKUP(I135,Feuil2!$F$10:$P$28,10),IF(AND(H135>=1943,H135<1948),VLOOKUP(I135,Feuil2!$F$10:$P$28,9),IF(AND(H135>=1948,H135<1953),VLOOKUP(I135,Feuil2!$F$10:$P$28,8),IF(AND(H135>=1953,H135<1958),VLOOKUP(I135,Feuil2!$F$10:$P$28,7),IF(AND(H135>=1958,H135<1963),VLOOKUP(I135,Feuil2!$F$10:$P$28,6),IF(AND(H135>=1963,H135<1968),VLOOKUP(I135,Feuil2!$F$10:$P$28,5),IF(AND(H135>=1968,H135<1973),VLOOKUP(I135,Feuil2!$F$10:$P$28,4),IF(AND(H135>=1973,H135<1978),VLOOKUP(I135,Feuil2!$F$10:$P$28,3),IF(AND(H135>=1978,H135<1983),VLOOKUP(I135,Feuil2!$F$10:$P$28,2),VLOOKUP(I135,Feuil2!$F$10:$P$28,2)))))))))))) ->  | AA135: =T135-HLOOKUP(Y135,Feuil2!$C$1:$CD$9,2,FALSE) ->  | AB135: =T135-HLOOKUP(Y135,Feuil2!$C$1:$CD$9,3,FALSE) ->  | AC135: =T135-HLOOKUP(Y135,Feuil2!$C$1:$CD$9,4,FALSE) ->  | AD135: =T135-HLOOKUP(Y135,Feuil2!$C$1:$CD$9,5,FALSE) ->  | AE135: =T135-HLOOKUP(Y135,Feuil2!$C$1:$CD$9,6,FALSE) ->  | AF135: =T135-HLOOKUP(Y135,Feuil2!$C$1:$CD$9,7,FALSE) ->  | AG135: =T135-HLOOKUP(Y135,Feuil2!$C$1:$CD$9,8,FALSE) ->  | AH135: =T135-HLOOKUP(Y135,Feuil2!$C$1:$CD$9,9,FALSE) ->  | AQ135: 2017 | AS135: =IF(AQ135,VLOOKUP(AQ135,HOM!$AS$389:$AT$444,2)) -> 4.493
A136: H | X136: FALSE | Y136: =IF(AND(H136<1920),VLOOKUP(I136,Feuil2!$F$10:$P$28,11),IF(AND(H136>=1920,H136<1939),VLOOKUP(I136,Feuil2!$F$10:$P$28,11),IF(AND(H136>=1938,H136<1943),VLOOKUP(I136,Feuil2!$F$10:$P$28,10),IF(AND(H136>=1943,H136<1948),VLOOKUP(I136,Feuil2!$F$10:$P$28,9),IF(AND(H136>=1948,H136<1953),VLOOKUP(I136,Feuil2!$F$10:$P$28,8),IF(AND(H136>=1953,H136<1958),VLOOKUP(I136,Feuil2!$F$10:$P$28,7),IF(AND(H136>=1958,H136<1963),VLOOKUP(I136,Feuil2!$F$10:$P$28,6),IF(AND(H136>=1963,H136<1968),VLOOKUP(I136,Feuil2!$F$10:$P$28,5),IF(AND(H136>=1968,H136<1973),VLOOKUP(I136,Feuil2!$F$10:$P$28,4),IF(AND(H136>=1973,H136<1978),VLOOKUP(I136,Feuil2!$F$10:$P$28,3),IF(AND(H136>=1978,H136<1983),VLOOKUP(I136,Feuil2!$F$10:$P$28,2),VLOOKUP(I136,Feuil2!$F$10:$P$28,2)))))))))))) ->  | AA136: =T136-HLOOKUP(Y136,Feuil2!$C$1:$CD$9,2,FALSE) ->  | AB136: =T136-HLOOKUP(Y136,Feuil2!$C$1:$CD$9,3,FALSE) ->  | AC136: =T136-HLOOKUP(Y136,Feuil2!$C$1:$CD$9,4,FALSE) ->  | AD136: =T136-HLOOKUP(Y136,Feuil2!$C$1:$CD$9,5,FALSE) ->  | AE136: =T136-HLOOKUP(Y136,Feuil2!$C$1:$CD$9,6,FALSE) ->  | AF136: =T136-HLOOKUP(Y136,Feuil2!$C$1:$CD$9,7,FALSE) ->  | AG136: =T136-HLOOKUP(Y136,Feuil2!$C$1:$CD$9,8,FALSE) ->  | AH136: =T136-HLOOKUP(Y136,Feuil2!$C$1:$CD$9,9,FALSE) ->  | AQ136: 2017 | AS136: =IF(AQ136,VLOOKUP(AQ136,HOM!$AS$389:$AT$444,2)) -> 4.493
A137: H | X137: FALSE | Y137: =IF(AND(H137<1920),VLOOKUP(I137,Feuil2!$F$10:$P$28,11),IF(AND(H137>=1920,H137<1939),VLOOKUP(I137,Feuil2!$F$10:$P$28,11),IF(AND(H137>=1938,H137<1943),VLOOKUP(I137,Feuil2!$F$10:$P$28,10),IF(AND(H137>=1943,H137<1948),VLOOKUP(I137,Feuil2!$F$10:$P$28,9),IF(AND(H137>=1948,H137<1953),VLOOKUP(I137,Feuil2!$F$10:$P$28,8),IF(AND(H137>=1953,H137<1958),VLOOKUP(I137,Feuil2!$F$10:$P$28,7),IF(AND(H137>=1958,H137<1963),VLOOKUP(I137,Feuil2!$F$10:$P$28,6),IF(AND(H137>=1963,H137<1968),VLOOKUP(I137,Feuil2!$F$10:$P$28,5),IF(AND(H137>=1968,H137<1973),VLOOKUP(I137,Feuil2!$F$10:$P$28,4),IF(AND(H137>=1973,H137<1978),VLOOKUP(I137,Feuil2!$F$10:$P$28,3),IF(AND(H137>=1978,H137<1983),VLOOKUP(I137,Feuil2!$F$10:$P$28,2),VLOOKUP(I137,Feuil2!$F$10:$P$28,2)))))))))))) ->  | AA137: =T137-HLOOKUP(Y137,Feuil2!$C$1:$CD$9,2,FALSE) ->  | AB137: =T137-HLOOKUP(Y137,Feuil2!$C$1:$CD$9,3,FALSE) ->  | AC137: =T137-HLOOKUP(Y137,Feuil2!$C$1:$CD$9,4,FALSE) ->  | AD137: =T137-HLOOKUP(Y137,Feuil2!$C$1:$CD$9,5,FALSE) ->  | AE137: =T137-HLOOKUP(Y137,Feuil2!$C$1:$CD$9,6,FALSE) ->  | AF137: =T137-HLOOKUP(Y137,Feuil2!$C$1:$CD$9,7,FALSE) ->  | AG137: =T137-HLOOKUP(Y137,Feuil2!$C$1:$CD$9,8,FALSE) ->  | AH137: =T137-HLOOKUP(Y137,Feuil2!$C$1:$CD$9,9,FALSE) ->  | AQ137: 2017 | AS137: =IF(AQ137,VLOOKUP(AQ137,HOM!$AS$389:$AT$444,2)) -> 4.493
A138: H | X138: FALSE | Y138: =IF(AND(H138<1920),VLOOKUP(I138,Feuil2!$F$10:$P$28,11),IF(AND(H138>=1920,H138<1939),VLOOKUP(I138,Feuil2!$F$10:$P$28,11),IF(AND(H138>=1938,H138<1943),VLOOKUP(I138,Feuil2!$F$10:$P$28,10),IF(AND(H138>=1943,H138<1948),VLOOKUP(I138,Feuil2!$F$10:$P$28,9),IF(AND(H138>=1948,H138<1953),VLOOKUP(I138,Feuil2!$F$10:$P$28,8),IF(AND(H138>=1953,H138<1958),VLOOKUP(I138,Feuil2!$F$10:$P$28,7),IF(AND(H138>=1958,H138<1963),VLOOKUP(I138,Feuil2!$F$10:$P$28,6),IF(AND(H138>=1963,H138<1968),VLOOKUP(I138,Feuil2!$F$10:$P$28,5),IF(AND(H138>=1968,H138<1973),VLOOKUP(I138,Feuil2!$F$10:$P$28,4),IF(AND(H138>=1973,H138<1978),VLOOKUP(I138,Feuil2!$F$10:$P$28,3),IF(AND(H138>=1978,H138<1983),VLOOKUP(I138,Feuil2!$F$10:$P$28,2),VLOOKUP(I138,Feuil2!$F$10:$P$28,2)))))))))))) ->  | AA138: =T138-HLOOKUP(Y138,Feuil2!$C$1:$CD$9,2,FALSE) ->  | AB138: =T138-HLOOKUP(Y138,Feuil2!$C$1:$CD$9,3,FALSE) ->  | AC138: =T138-HLOOKUP(Y138,Feuil2!$C$1:$CD$9,4,FALSE) ->  | AD138: =T138-HLOOKUP(Y138,Feuil2!$C$1:$CD$9,5,FALSE) ->  | AE138: =T138-HLOOKUP(Y138,Feuil2!$C$1:$CD$9,6,FALSE) ->  | AF138: =T138-HLOOKUP(Y138,Feuil2!$C$1:$CD$9,7,FALSE) ->  | AG138: =T138-HLOOKUP(Y138,Feuil2!$C$1:$CD$9,8,FALSE) ->  | AH138: =T138-HLOOKUP(Y138,Feuil2!$C$1:$CD$9,9,FALSE) ->  | AQ138: 2017 | AS138: =IF(AQ138,VLOOKUP(AQ138,HOM!$AS$389:$AT$444,2)) -> 4.493
A139: H | X139: FALSE | Y139: =IF(AND(H139<1920),VLOOKUP(I139,Feuil2!$F$10:$P$28,11),IF(AND(H139>=1920,H139<1939),VLOOKUP(I139,Feuil2!$F$10:$P$28,11),IF(AND(H139>=1938,H139<1943),VLOOKUP(I139,Feuil2!$F$10:$P$28,10),IF(AND(H139>=1943,H139<1948),VLOOKUP(I139,Feuil2!$F$10:$P$28,9),IF(AND(H139>=1948,H139<1953),VLOOKUP(I139,Feuil2!$F$10:$P$28,8),IF(AND(H139>=1953,H139<1958),VLOOKUP(I139,Feuil2!$F$10:$P$28,7),IF(AND(H139>=1958,H139<1963),VLOOKUP(I139,Feuil2!$F$10:$P$28,6),IF(AND(H139>=1963,H139<1968),VLOOKUP(I139,Feuil2!$F$10:$P$28,5),IF(AND(H139>=1968,H139<1973),VLOOKUP(I139,Feuil2!$F$10:$P$28,4),IF(AND(H139>=1973,H139<1978),VLOOKUP(I139,Feuil2!$F$10:$P$28,3),IF(AND(H139>=1978,H139<1983),VLOOKUP(I139,Feuil2!$F$10:$P$28,2),VLOOKUP(I139,Feuil2!$F$10:$P$28,2)))))))))))) ->  | AA139: =T139-HLOOKUP(Y139,Feuil2!$C$1:$CD$9,2,FALSE) ->  | AB139: =T139-HLOOKUP(Y139,Feuil2!$C$1:$CD$9,3,FALSE) ->  | AC139: =T139-HLOOKUP(Y139,Feuil2!$C$1:$CD$9,4,FALSE) ->  | AD139: =T139-HLOOKUP(Y139,Feuil2!$C$1:$CD$9,5,FALSE) ->  | AE139: =T139-HLOOKUP(Y139,Feuil2!$C$1:$CD$9,6,FALSE) ->  | AF139: =T139-HLOOKUP(Y139,Feuil2!$C$1:$CD$9,7,FALSE) ->  | AG139: =T139-HLOOKUP(Y139,Feuil2!$C$1:$CD$9,8,FALSE) ->  | AH139: =T139-HLOOKUP(Y139,Feuil2!$C$1:$CD$9,9,FALSE) ->  | AQ139: 2017 | AS139: =IF(AQ139,VLOOKUP(AQ139,HOM!$AS$389:$AT$444,2)) -> 4.493
A140: H | X140: FALSE | Y140: =IF(AND(H140<1920),VLOOKUP(I140,Feuil2!$F$10:$P$28,11),IF(AND(H140>=1920,H140<1939),VLOOKUP(I140,Feuil2!$F$10:$P$28,11),IF(AND(H140>=1938,H140<1943),VLOOKUP(I140,Feuil2!$F$10:$P$28,10),IF(AND(H140>=1943,H140<1948),VLOOKUP(I140,Feuil2!$F$10:$P$28,9),IF(AND(H140>=1948,H140<1953),VLOOKUP(I140,Feuil2!$F$10:$P$28,8),IF(AND(H140>=1953,H140<1958),VLOOKUP(I140,Feuil2!$F$10:$P$28,7),IF(AND(H140>=1958,H140<1963),VLOOKUP(I140,Feuil2!$F$10:$P$28,6),IF(AND(H140>=1963,H140<1968),VLOOKUP(I140,Feuil2!$F$10:$P$28,5),IF(AND(H140>=1968,H140<1973),VLOOKUP(I140,Feuil2!$F$10:$P$28,4),IF(AND(H140>=1973,H140<1978),VLOOKUP(I140,Feuil2!$F$10:$P$28,3),IF(AND(H140>=1978,H140<1983),VLOOKUP(I140,Feuil2!$F$10:$P$28,2),VLOOKUP(I140,Feuil2!$F$10:$P$28,2)))))))))))) ->  | AA140: =T140-HLOOKUP(Y140,Feuil2!$C$1:$CD$9,2,FALSE) ->  | AB140: =T140-HLOOKUP(Y140,Feuil2!$C$1:$CD$9,3,FALSE) ->  | AC140: =T140-HLOOKUP(Y140,Feuil2!$C$1:$CD$9,4,FALSE) ->  | AD140: =T140-HLOOKUP(Y140,Feuil2!$C$1:$CD$9,5,FALSE) ->  | AE140: =T140-HLOOKUP(Y140,Feuil2!$C$1:$CD$9,6,FALSE) ->  | AF140: =T140-HLOOKUP(Y140,Feuil2!$C$1:$CD$9,7,FALSE) ->  | AG140: =T140-HLOOKUP(Y140,Feuil2!$C$1:$CD$9,8,FALSE) ->  | AH140: =T140-HLOOKUP(Y140,Feuil2!$C$1:$CD$9,9,FALSE) ->  | AQ140: 2017 | AS140: =IF(AQ140,VLOOKUP(AQ140,HOM!$AS$389:$AT$444,2)) -> 4.493
A141: H | X141: FALSE | Y141: =IF(AND(H141<1920),VLOOKUP(I141,Feuil2!$F$10:$P$28,11),IF(AND(H141>=1920,H141<1939),VLOOKUP(I141,Feuil2!$F$10:$P$28,11),IF(AND(H141>=1938,H141<1943),VLOOKUP(I141,Feuil2!$F$10:$P$28,10),IF(AND(H141>=1943,H141<1948),VLOOKUP(I141,Feuil2!$F$10:$P$28,9),IF(AND(H141>=1948,H141<1953),VLOOKUP(I141,Feuil2!$F$10:$P$28,8),IF(AND(H141>=1953,H141<1958),VLOOKUP(I141,Feuil2!$F$10:$P$28,7),IF(AND(H141>=1958,H141<1963),VLOOKUP(I141,Feuil2!$F$10:$P$28,6),IF(AND(H141>=1963,H141<1968),VLOOKUP(I141,Feuil2!$F$10:$P$28,5),IF(AND(H141>=1968,H141<1973),VLOOKUP(I141,Feuil2!$F$10:$P$28,4),IF(AND(H141>=1973,H141<1978),VLOOKUP(I141,Feuil2!$F$10:$P$28,3),IF(AND(H141>=1978,H141<1983),VLOOKUP(I141,Feuil2!$F$10:$P$28,2),VLOOKUP(I141,Feuil2!$F$10:$P$28,2)))))))))))) ->  | AA141: =T141-HLOOKUP(Y141,Feuil2!$C$1:$CD$9,2,FALSE) ->  | AB141: =T141-HLOOKUP(Y141,Feuil2!$C$1:$CD$9,3,FALSE) ->  | AC141: =T141-HLOOKUP(Y141,Feuil2!$C$1:$CD$9,4,FALSE) ->  | AD141: =T141-HLOOKUP(Y141,Feuil2!$C$1:$CD$9,5,FALSE) ->  | AE141: =T141-HLOOKUP(Y141,Feuil2!$C$1:$CD$9,6,FALSE) ->  | AF141: =T141-HLOOKUP(Y141,Feuil2!$C$1:$CD$9,7,FALSE) ->  | AG141: =T141-HLOOKUP(Y141,Feuil2!$C$1:$CD$9,8,FALSE) ->  | AH141: =T141-HLOOKUP(Y141,Feuil2!$C$1:$CD$9,9,FALSE) ->  | AQ141: 2017 | AS141: =IF(AQ141,VLOOKUP(AQ141,HOM!$AS$389:$AT$444,2)) -> 4.493
A142: H | X142: FALSE | Y142: =IF(AND(H142<1920),VLOOKUP(I142,Feuil2!$F$10:$P$28,11),IF(AND(H142>=1920,H142<1939),VLOOKUP(I142,Feuil2!$F$10:$P$28,11),IF(AND(H142>=1938,H142<1943),VLOOKUP(I142,Feuil2!$F$10:$P$28,10),IF(AND(H142>=1943,H142<1948),VLOOKUP(I142,Feuil2!$F$10:$P$28,9),IF(AND(H142>=1948,H142<1953),VLOOKUP(I142,Feuil2!$F$10:$P$28,8),IF(AND(H142>=1953,H142<1958),VLOOKUP(I142,Feuil2!$F$10:$P$28,7),IF(AND(H142>=1958,H142<1963),VLOOKUP(I142,Feuil2!$F$10:$P$28,6),IF(AND(H142>=1963,H142<1968),VLOOKUP(I142,Feuil2!$F$10:$P$28,5),IF(AND(H142>=1968,H142<1973),VLOOKUP(I142,Feuil2!$F$10:$P$28,4),IF(AND(H142>=1973,H142<1978),VLOOKUP(I142,Feuil2!$F$10:$P$28,3),IF(AND(H142>=1978,H142<1983),VLOOKUP(I142,Feuil2!$F$10:$P$28,2),VLOOKUP(I142,Feuil2!$F$10:$P$28,2)))))))))))) ->  | AA142: =T142-HLOOKUP(Y142,Feuil2!$C$1:$CD$9,2,FALSE) ->  | AB142: =T142-HLOOKUP(Y142,Feuil2!$C$1:$CD$9,3,FALSE) ->  | AC142: =T142-HLOOKUP(Y142,Feuil2!$C$1:$CD$9,4,FALSE) ->  | AD142: =T142-HLOOKUP(Y142,Feuil2!$C$1:$CD$9,5,FALSE) ->  | AE142: =T142-HLOOKUP(Y142,Feuil2!$C$1:$CD$9,6,FALSE) ->  | AF142: =T142-HLOOKUP(Y142,Feuil2!$C$1:$CD$9,7,FALSE) ->  | AG142: =T142-HLOOKUP(Y142,Feuil2!$C$1:$CD$9,8,FALSE) ->  | AH142: =T142-HLOOKUP(Y142,Feuil2!$C$1:$CD$9,9,FALSE) ->  | AQ142: 2017 | AS142: =IF(AQ142,VLOOKUP(AQ142,HOM!$AS$389:$AT$444,2)) -> 4.493
A143: H | X143: FALSE | Y143: =IF(AND(H143<1920),VLOOKUP(I143,Feuil2!$F$10:$P$28,11),IF(AND(H143>=1920,H143<1939),VLOOKUP(I143,Feuil2!$F$10:$P$28,11),IF(AND(H143>=1938,H143<1943),VLOOKUP(I143,Feuil2!$F$10:$P$28,10),IF(AND(H143>=1943,H143<1948),VLOOKUP(I143,Feuil2!$F$10:$P$28,9),IF(AND(H143>=1948,H143<1953),VLOOKUP(I143,Feuil2!$F$10:$P$28,8),IF(AND(H143>=1953,H143<1958),VLOOKUP(I143,Feuil2!$F$10:$P$28,7),IF(AND(H143>=1958,H143<1963),VLOOKUP(I143,Feuil2!$F$10:$P$28,6),IF(AND(H143>=1963,H143<1968),VLOOKUP(I143,Feuil2!$F$10:$P$28,5),IF(AND(H143>=1968,H143<1973),VLOOKUP(I143,Feuil2!$F$10:$P$28,4),IF(AND(H143>=1973,H143<1978),VLOOKUP(I143,Feuil2!$F$10:$P$28,3),IF(AND(H143>=1978,H143<1983),VLOOKUP(I143,Feuil2!$F$10:$P$28,2),VLOOKUP(I143,Feuil2!$F$10:$P$28,2)))))))))))) ->  | AA143: =T143-HLOOKUP(Y143,Feuil2!$C$1:$CD$9,2,FALSE) ->  | AB143: =T143-HLOOKUP(Y143,Feuil2!$C$1:$CD$9,3,FALSE) ->  | AC143: =T143-HLOOKUP(Y143,Feuil2!$C$1:$CD$9,4,FALSE) ->  | AD143: =T143-HLOOKUP(Y143,Feuil2!$C$1:$CD$9,5,FALSE) ->  | AE143: =T143-HLOOKUP(Y143,Feuil2!$C$1:$CD$9,6,FALSE) ->  | AF143: =T143-HLOOKUP(Y143,Feuil2!$C$1:$CD$9,7,FALSE) ->  | AG143: =T143-HLOOKUP(Y143,Feuil2!$C$1:$CD$9,8,FALSE) ->  | AH143: =T143-HLOOKUP(Y143,Feuil2!$C$1:$CD$9,9,FALSE) ->  | AQ143: 2017 | AS143: =IF(AQ143,VLOOKUP(AQ143,HOM!$AS$389:$AT$444,2)) -> 4.493
A144: H | X144: FALSE | Y144: =IF(AND(H144<1920),VLOOKUP(I144,Feuil2!$F$10:$P$28,11),IF(AND(H144>=1920,H144<1939),VLOOKUP(I144,Feuil2!$F$10:$P$28,11),IF(AND(H144>=1938,H144<1943),VLOOKUP(I144,Feuil2!$F$10:$P$28,10),IF(AND(H144>=1943,H144<1948),VLOOKUP(I144,Feuil2!$F$10:$P$28,9),IF(AND(H144>=1948,H144<1953),VLOOKUP(I144,Feuil2!$F$10:$P$28,8),IF(AND(H144>=1953,H144<1958),VLOOKUP(I144,Feuil2!$F$10:$P$28,7),IF(AND(H144>=1958,H144<1963),VLOOKUP(I144,Feuil2!$F$10:$P$28,6),IF(AND(H144>=1963,H144<1968),VLOOKUP(I144,Feuil2!$F$10:$P$28,5),IF(AND(H144>=1968,H144<1973),VLOOKUP(I144,Feuil2!$F$10:$P$28,4),IF(AND(H144>=1973,H144<1978),VLOOKUP(I144,Feuil2!$F$10:$P$28,3),IF(AND(H144>=1978,H144<1983),VLOOKUP(I144,Feuil2!$F$10:$P$28,2),VLOOKUP(I144,Feuil2!$F$10:$P$28,2)))))))))))) ->  | AA144: =T144-HLOOKUP(Y144,Feuil2!$C$1:$CD$9,2,FALSE) ->  | AB144: =T144-HLOOKUP(Y144,Feuil2!$C$1:$CD$9,3,FALSE) ->  | AC144: =T144-HLOOKUP(Y144,Feuil2!$C$1:$CD$9,4,FALSE) ->  | AD144: =T144-HLOOKUP(Y144,Feuil2!$C$1:$CD$9,5,FALSE) ->  | AE144: =T144-HLOOKUP(Y144,Feuil2!$C$1:$CD$9,6,FALSE) ->  | AF144: =T144-HLOOKUP(Y144,Feuil2!$C$1:$CD$9,7,FALSE) ->  | AG144: =T144-HLOOKUP(Y144,Feuil2!$C$1:$CD$9,8,FALSE) ->  | AH144: =T144-HLOOKUP(Y144,Feuil2!$C$1:$CD$9,9,FALSE) ->  | AQ144: 2017 | AS144: =IF(AQ144,VLOOKUP(AQ144,HOM!$AS$389:$AT$444,2)) -> 4.493
A145: H | X145: FALSE | Y145: =IF(AND(H145<1920),VLOOKUP(I145,Feuil2!$F$10:$P$28,11),IF(AND(H145>=1920,H145<1939),VLOOKUP(I145,Feuil2!$F$10:$P$28,11),IF(AND(H145>=1938,H145<1943),VLOOKUP(I145,Feuil2!$F$10:$P$28,10),IF(AND(H145>=1943,H145<1948),VLOOKUP(I145,Feuil2!$F$10:$P$28,9),IF(AND(H145>=1948,H145<1953),VLOOKUP(I145,Feuil2!$F$10:$P$28,8),IF(AND(H145>=1953,H145<1958),VLOOKUP(I145,Feuil2!$F$10:$P$28,7),IF(AND(H145>=1958,H145<1963),VLOOKUP(I145,Feuil2!$F$10:$P$28,6),IF(AND(H145>=1963,H145<1968),VLOOKUP(I145,Feuil2!$F$10:$P$28,5),IF(AND(H145>=1968,H145<1973),VLOOKUP(I145,Feuil2!$F$10:$P$28,4),IF(AND(H145>=1973,H145<1978),VLOOKUP(I145,Feuil2!$F$10:$P$28,3),IF(AND(H145>=1978,H145<1983),VLOOKUP(I145,Feuil2!$F$10:$P$28,2),VLOOKUP(I145,Feuil2!$F$10:$P$28,2)))))))))))) ->  | AA145: =T145-HLOOKUP(Y145,Feuil2!$C$1:$CD$9,2,FALSE) ->  | AB145: =T145-HLOOKUP(Y145,Feuil2!$C$1:$CD$9,3,FALSE) ->  | AC145: =T145-HLOOKUP(Y145,Feuil2!$C$1:$CD$9,4,FALSE) ->  | AD145: =T145-HLOOKUP(Y145,Feuil2!$C$1:$CD$9,5,FALSE) ->  | AE145: =T145-HLOOKUP(Y145,Feuil2!$C$1:$CD$9,6,FALSE) ->  | AF145: =T145-HLOOKUP(Y145,Feuil2!$C$1:$CD$9,7,FALSE) ->  | AG145: =T145-HLOOKUP(Y145,Feuil2!$C$1:$CD$9,8,FALSE) ->  | AH145: =T145-HLOOKUP(Y145,Feuil2!$C$1:$CD$9,9,FALSE) ->  | AQ145: 2017 | AS145: =IF(AQ145,VLOOKUP(AQ145,HOM!$AS$389:$AT$444,2)) -> 4.493
A146: H | X146: FALSE | Y146: =IF(AND(H146<1920),VLOOKUP(I146,Feuil2!$F$10:$P$28,11),IF(AND(H146>=1920,H146<1939),VLOOKUP(I146,Feuil2!$F$10:$P$28,11),IF(AND(H146>=1938,H146<1943),VLOOKUP(I146,Feuil2!$F$10:$P$28,10),IF(AND(H146>=1943,H146<1948),VLOOKUP(I146,Feuil2!$F$10:$P$28,9),IF(AND(H146>=1948,H146<1953),VLOOKUP(I146,Feuil2!$F$10:$P$28,8),IF(AND(H146>=1953,H146<1958),VLOOKUP(I146,Feuil2!$F$10:$P$28,7),IF(AND(H146>=1958,H146<1963),VLOOKUP(I146,Feuil2!$F$10:$P$28,6),IF(AND(H146>=1963,H146<1968),VLOOKUP(I146,Feuil2!$F$10:$P$28,5),IF(AND(H146>=1968,H146<1973),VLOOKUP(I146,Feuil2!$F$10:$P$28,4),IF(AND(H146>=1973,H146<1978),VLOOKUP(I146,Feuil2!$F$10:$P$28,3),IF(AND(H146>=1978,H146<1983),VLOOKUP(I146,Feuil2!$F$10:$P$28,2),VLOOKUP(I146,Feuil2!$F$10:$P$28,2)))))))))))) ->  | AA146: =T146-HLOOKUP(Y146,Feuil2!$C$1:$CD$9,2,FALSE) ->  | AB146: =T146-HLOOKUP(Y146,Feuil2!$C$1:$CD$9,3,FALSE) ->  | AC146: =T146-HLOOKUP(Y146,Feuil2!$C$1:$CD$9,4,FALSE) ->  | AD146: =T146-HLOOKUP(Y146,Feuil2!$C$1:$CD$9,5,FALSE) ->  | AE146: =T146-HLOOKUP(Y146,Feuil2!$C$1:$CD$9,6,FALSE) ->  | AF146: =T146-HLOOKUP(Y146,Feuil2!$C$1:$CD$9,7,FALSE) ->  | AG146: =T146-HLOOKUP(Y146,Feuil2!$C$1:$CD$9,8,FALSE) ->  | AH146: =T146-HLOOKUP(Y146,Feuil2!$C$1:$CD$9,9,FALSE) ->  | AQ146: 2017 | AS146: =IF(AQ146,VLOOKUP(AQ146,HOM!$AS$389:$AT$444,2)) -> 4.493
A147: H | X147: FALSE | Y147: =IF(AND(H147<1920),VLOOKUP(I147,Feuil2!$F$10:$P$28,11),IF(AND(H147>=1920,H147<1939),VLOOKUP(I147,Feuil2!$F$10:$P$28,11),IF(AND(H147>=1938,H147<1943),VLOOKUP(I147,Feuil2!$F$10:$P$28,10),IF(AND(H147>=1943,H147<1948),VLOOKUP(I147,Feuil2!$F$10:$P$28,9),IF(AND(H147>=1948,H147<1953),VLOOKUP(I147,Feuil2!$F$10:$P$28,8),IF(AND(H147>=1953,H147<1958),VLOOKUP(I147,Feuil2!$F$10:$P$28,7),IF(AND(H147>=1958,H147<1963),VLOOKUP(I147,Feuil2!$F$10:$P$28,6),IF(AND(H147>=1963,H147<1968),VLOOKUP(I147,Feuil2!$F$10:$P$28,5),IF(AND(H147>=1968,H147<1973),VLOOKUP(I147,Feuil2!$F$10:$P$28,4),IF(AND(H147>=1973,H147<1978),VLOOKUP(I147,Feuil2!$F$10:$P$28,3),IF(AND(H147>=1978,H147<1983),VLOOKUP(I147,Feuil2!$F$10:$P$28,2),VLOOKUP(I147,Feuil2!$F$10:$P$28,2)))))))))))) ->  | AA147: =T147-HLOOKUP(Y147,Feuil2!$C$1:$CD$9,2,FALSE) ->  | AB147: =T147-HLOOKUP(Y147,Feuil2!$C$1:$CD$9,3,FALSE) ->  | AC147: =T147-HLOOKUP(Y147,Feuil2!$C$1:$CD$9,4,FALSE) ->  | AD147: =T147-HLOOKUP(Y147,Feuil2!$C$1:$CD$9,5,FALSE) ->  | AE147: =T147-HLOOKUP(Y147,Feuil2!$C$1:$CD$9,6,FALSE) ->  | AF147: =T147-HLOOKUP(Y147,Feuil2!$C$1:$CD$9,7,FALSE) ->  | AG147: =T147-HLOOKUP(Y147,Feuil2!$C$1:$CD$9,8,FALSE) ->  | AH147: =T147-HLOOKUP(Y147,Feuil2!$C$1:$CD$9,9,FALSE) ->  | AQ147: 2017 | AS147: =IF(AQ147,VLOOKUP(AQ147,HOM!$AS$389:$AT$444,2)) -> 4.493
A148: H | X148: FALSE | Y148: =IF(AND(H148<1920),VLOOKUP(I148,Feuil2!$F$10:$P$28,11),IF(AND(H148>=1920,H148<1939),VLOOKUP(I148,Feuil2!$F$10:$P$28,11),IF(AND(H148>=1938,H148<1943),VLOOKUP(I148,Feuil2!$F$10:$P$28,10),IF(AND(H148>=1943,H148<1948),VLOOKUP(I148,Feuil2!$F$10:$P$28,9),IF(AND(H148>=1948,H148<1953),VLOOKUP(I148,Feuil2!$F$10:$P$28,8),IF(AND(H148>=1953,H148<1958),VLOOKUP(I148,Feuil2!$F$10:$P$28,7),IF(AND(H148>=1958,H148<1963),VLOOKUP(I148,Feuil2!$F$10:$P$28,6),IF(AND(H148>=1963,H148<1968),VLOOKUP(I148,Feuil2!$F$10:$P$28,5),IF(AND(H148>=1968,H148<1973),VLOOKUP(I148,Feuil2!$F$10:$P$28,4),IF(AND(H148>=1973,H148<1978),VLOOKUP(I148,Feuil2!$F$10:$P$28,3),IF(AND(H148>=1978,H148<1983),VLOOKUP(I148,Feuil2!$F$10:$P$28,2),VLOOKUP(I148,Feuil2!$F$10:$P$28,2)))))))))))) ->  | AA148: =T148-HLOOKUP(Y148,Feuil2!$C$1:$CD$9,2,FALSE) ->  | AB148: =T148-HLOOKUP(Y148,Feuil2!$C$1:$CD$9,3,FALSE) ->  | AC148: =T148-HLOOKUP(Y148,Feuil2!$C$1:$CD$9,4,FALSE) ->  | AD148: =T148-HLOOKUP(Y148,Feuil2!$C$1:$CD$9,5,FALSE) ->  | AE148: =T148-HLOOKUP(Y148,Feuil2!$C$1:$CD$9,6,FALSE) ->  | AF148: =T148-HLOOKUP(Y148,Feuil2!$C$1:$CD$9,7,FALSE) ->  | AG148: =T148-HLOOKUP(Y148,Feuil2!$C$1:$CD$9,8,FALSE) ->  | AH148: =T148-HLOOKUP(Y148,Feuil2!$C$1:$CD$9,9,FALSE) ->  | AQ148: 2017 | AS148: =IF(AQ148,VLOOKUP(AQ148,HOM!$AS$389:$AT$444,2)) -> 4.493
A149: H | X149: FALSE | Y149: =IF(AND(H149<1920),VLOOKUP(I149,Feuil2!$F$10:$P$28,11),IF(AND(H149>=1920,H149<1939),VLOOKUP(I149,Feuil2!$F$10:$P$28,11),IF(AND(H149>=1938,H149<1943),VLOOKUP(I149,Feuil2!$F$10:$P$28,10),IF(AND(H149>=1943,H149<1948),VLOOKUP(I149,Feuil2!$F$10:$P$28,9),IF(AND(H149>=1948,H149<1953),VLOOKUP(I149,Feuil2!$F$10:$P$28,8),IF(AND(H149>=1953,H149<1958),VLOOKUP(I149,Feuil2!$F$10:$P$28,7),IF(AND(H149>=1958,H149<1963),VLOOKUP(I149,Feuil2!$F$10:$P$28,6),IF(AND(H149>=1963,H149<1968),VLOOKUP(I149,Feuil2!$F$10:$P$28,5),IF(AND(H149>=1968,H149<1973),VLOOKUP(I149,Feuil2!$F$10:$P$28,4),IF(AND(H149>=1973,H149<1978),VLOOKUP(I149,Feuil2!$F$10:$P$28,3),IF(AND(H149>=1978,H149<1983),VLOOKUP(I149,Feuil2!$F$10:$P$28,2),VLOOKUP(I149,Feuil2!$F$10:$P$28,2)))))))))))) ->  | AA149: =T149-HLOOKUP(Y149,Feuil2!$C$1:$CD$9,2,FALSE) ->  | AB149: =T149-HLOOKUP(Y149,Feuil2!$C$1:$CD$9,3,FALSE) ->  | AC149: =T149-HLOOKUP(Y149,Feuil2!$C$1:$CD$9,4,FALSE) ->  | AD149: =T149-HLOOKUP(Y149,Feuil2!$C$1:$CD$9,5,FALSE) ->  | AE149: =T149-HLOOKUP(Y149,Feuil2!$C$1:$CD$9,6,FALSE) ->  | AF149: =T149-HLOOKUP(Y149,Feuil2!$C$1:$CD$9,7,FALSE) ->  | AG149: =T149-HLOOKUP(Y149,Feuil2!$C$1:$CD$9,8,FALSE) ->  | AH149: =T149-HLOOKUP(Y149,Feuil2!$C$1:$CD$9,9,FALSE) ->  | AQ149: 2017 | AS149: =IF(AQ149,VLOOKUP(AQ149,HOM!$AS$389:$AT$444,2)) -> 4.493
A150: H | X150: FALSE | Y150: =IF(AND(H150<1920),VLOOKUP(I150,Feuil2!$F$10:$P$28,11),IF(AND(H150>=1920,H150<1939),VLOOKUP(I150,Feuil2!$F$10:$P$28,11),IF(AND(H150>=1938,H150<1943),VLOOKUP(I150,Feuil2!$F$10:$P$28,10),IF(AND(H150>=1943,H150<1948),VLOOKUP(I150,Feuil2!$F$10:$P$28,9),IF(AND(H150>=1948,H150<1953),VLOOKUP(I150,Feuil2!$F$10:$P$28,8),IF(AND(H150>=1953,H150<1958),VLOOKUP(I150,Feuil2!$F$10:$P$28,7),IF(AND(H150>=1958,H150<1963),VLOOKUP(I150,Feuil2!$F$10:$P$28,6),IF(AND(H150>=1963,H150<1968),VLOOKUP(I150,Feuil2!$F$10:$P$28,5),IF(AND(H150>=1968,H150<1973),VLOOKUP(I150,Feuil2!$F$10:$P$28,4),IF(AND(H150>=1973,H150<1978),VLOOKUP(I150,Feuil2!$F$10:$P$28,3),IF(AND(H150>=1978,H150<1983),VLOOKUP(I150,Feuil2!$F$10:$P$28,2),VLOOKUP(I150,Feuil2!$F$10:$P$28,2)))))))))))) ->  | AA150: =T150-HLOOKUP(Y150,Feuil2!$C$1:$CD$9,2,FALSE) ->  | AB150: =T150-HLOOKUP(Y150,Feuil2!$C$1:$CD$9,3,FALSE) ->  | AC150: =T150-HLOOKUP(Y150,Feuil2!$C$1:$CD$9,4,FALSE) ->  | AD150: =T150-HLOOKUP(Y150,Feuil2!$C$1:$CD$9,5,FALSE) ->  | AE150: =T150-HLOOKUP(Y150,Feuil2!$C$1:$CD$9,6,FALSE) ->  | AF150: =T150-HLOOKUP(Y150,Feuil2!$C$1:$CD$9,7,FALSE) ->  | AG150: =T150-HLOOKUP(Y150,Feuil2!$C$1:$CD$9,8,FALSE) ->  | AH150: =T150-HLOOKUP(Y150,Feuil2!$C$1:$CD$9,9,FALSE) ->  | AQ150: 2017 | AS150: =IF(AQ150,VLOOKUP(AQ150,HOM!$AS$389:$AT$444,2)) -> 4.493
A151: H | X151: FALSE | Y151: =IF(AND(H151<1920),VLOOKUP(I151,Feuil2!$F$10:$P$28,11),IF(AND(H151>=1920,H151<1939),VLOOKUP(I151,Feuil2!$F$10:$P$28,11),IF(AND(H151>=1938,H151<1943),VLOOKUP(I151,Feuil2!$F$10:$P$28,10),IF(AND(H151>=1943,H151<1948),VLOOKUP(I151,Feuil2!$F$10:$P$28,9),IF(AND(H151>=1948,H151<1953),VLOOKUP(I151,Feuil2!$F$10:$P$28,8),IF(AND(H151>=1953,H151<1958),VLOOKUP(I151,Feuil2!$F$10:$P$28,7),IF(AND(H151>=1958,H151<1963),VLOOKUP(I151,Feuil2!$F$10:$P$28,6),IF(AND(H151>=1963,H151<1968),VLOOKUP(I151,Feuil2!$F$10:$P$28,5),IF(AND(H151>=1968,H151<1973),VLOOKUP(I151,Feuil2!$F$10:$P$28,4),IF(AND(H151>=1973,H151<1978),VLOOKUP(I151,Feuil2!$F$10:$P$28,3),IF(AND(H151>=1978,H151<1983),VLOOKUP(I151,Feuil2!$F$10:$P$28,2),VLOOKUP(I151,Feuil2!$F$10:$P$28,2)))))))))))) ->  | AA151: =T151-HLOOKUP(Y151,Feuil2!$C$1:$CD$9,2,FALSE) ->  | AB151: =T151-HLOOKUP(Y151,Feuil2!$C$1:$CD$9,3,FALSE) ->  | AC151: =T151-HLOOKUP(Y151,Feuil2!$C$1:$CD$9,4,FALSE) ->  | AD151: =T151-HLOOKUP(Y151,Feuil2!$C$1:$CD$9,5,FALSE) ->  | AE151: =T151-HLOOKUP(Y151,Feuil2!$C$1:$CD$9,6,FALSE) ->  | AF151: =T151-HLOOKUP(Y151,Feuil2!$C$1:$CD$9,7,FALSE) ->  | AG151: =T151-HLOOKUP(Y151,Feuil2!$C$1:$CD$9,8,FALSE) ->  | AH151: =T151-HLOOKUP(Y151,Feuil2!$C$1:$CD$9,9,FALSE) ->  | AQ151: 2017 | AS151: =IF(AQ151,VLOOKUP(AQ151,HOM!$AS$389:$AT$444,2)) -> 4.493
A152: H | X152: FALSE | Y152: =IF(AND(H152<1920),VLOOKUP(I152,Feuil2!$F$10:$P$28,11),IF(AND(H152>=1920,H152<1939),VLOOKUP(I152,Feuil2!$F$10:$P$28,11),IF(AND(H152>=1938,H152<1943),VLOOKUP(I152,Feuil2!$F$10:$P$28,10),IF(AND(H152>=1943,H152<1948),VLOOKUP(I152,Feuil2!$F$10:$P$28,9),IF(AND(H152>=1948,H152<1953),VLOOKUP(I152,Feuil2!$F$10:$P$28,8),IF(AND(H152>=1953,H152<1958),VLOOKUP(I152,Feuil2!$F$10:$P$28,7),IF(AND(H152>=1958,H152<1963),VLOOKUP(I152,Feuil2!$F$10:$P$28,6),IF(AND(H152>=1963,H152<1968),VLOOKUP(I152,Feuil2!$F$10:$P$28,5),IF(AND(H152>=1968,H152<1973),VLOOKUP(I152,Feuil2!$F$10:$P$28,4),IF(AND(H152>=1973,H152<1978),VLOOKUP(I152,Feuil2!$F$10:$P$28,3),IF(AND(H152>=1978,H152<1983),VLOOKUP(I152,Feuil2!$F$10:$P$28,2),VLOOKUP(I152,Feuil2!$F$10:$P$28,2)))))))))))) ->  | AA152: =T152-HLOOKUP(Y152,Feuil2!$C$1:$CD$9,2,FALSE) ->  | AB152: =T152-HLOOKUP(Y152,Feuil2!$C$1:$CD$9,3,FALSE) ->  | AC152: =T152-HLOOKUP(Y152,Feuil2!$C$1:$CD$9,4,FALSE) ->  | AD152: =T152-HLOOKUP(Y152,Feuil2!$C$1:$CD$9,5,FALSE) ->  | AE152: =T152-HLOOKUP(Y152,Feuil2!$C$1:$CD$9,6,FALSE) ->  | AF152: =T152-HLOOKUP(Y152,Feuil2!$C$1:$CD$9,7,FALSE) ->  | AG152: =T152-HLOOKUP(Y152,Feuil2!$C$1:$CD$9,8,FALSE) ->  | AH152: =T152-HLOOKUP(Y152,Feuil2!$C$1:$CD$9,9,FALSE) ->  | AQ152: 2017 | AS152: =IF(AQ152,VLOOKUP(AQ152,HOM!$AS$389:$AT$444,2)) -> 4.493
A153: H | X153: FALSE | Y153: =IF(AND(H153<1920),VLOOKUP(I153,Feuil2!$F$10:$P$28,11),IF(AND(H153>=1920,H153<1939),VLOOKUP(I153,Feuil2!$F$10:$P$28,11),IF(AND(H153>=1938,H153<1943),VLOOKUP(I153,Feuil2!$F$10:$P$28,10),IF(AND(H153>=1943,H153<1948),VLOOKUP(I153,Feuil2!$F$10:$P$28,9),IF(AND(H153>=1948,H153<1953),VLOOKUP(I153,Feuil2!$F$10:$P$28,8),IF(AND(H153>=1953,H153<1958),VLOOKUP(I153,Feuil2!$F$10:$P$28,7),IF(AND(H153>=1958,H153<1963),VLOOKUP(I153,Feuil2!$F$10:$P$28,6),IF(AND(H153>=1963,H153<1968),VLOOKUP(I153,Feuil2!$F$10:$P$28,5),IF(AND(H153>=1968,H153<1973),VLOOKUP(I153,Feuil2!$F$10:$P$28,4),IF(AND(H153>=1973,H153<1978),VLOOKUP(I153,Feuil2!$F$10:$P$28,3),IF(AND(H153>=1978,H153<1983),VLOOKUP(I153,Feuil2!$F$10:$P$28,2),VLOOKUP(I153,Feuil2!$F$10:$P$28,2)))))))))))) ->  | AA153: =T153-HLOOKUP(Y153,Feuil2!$C$1:$CD$9,2,FALSE) ->  | AB153: =T153-HLOOKUP(Y153,Feuil2!$C$1:$CD$9,3,FALSE) ->  | AC153: =T153-HLOOKUP(Y153,Feuil2!$C$1:$CD$9,4,FALSE) ->  | AD153: =T153-HLOOKUP(Y153,Feuil2!$C$1:$CD$9,5,FALSE) ->  | AE153: =T153-HLOOKUP(Y153,Feuil2!$C$1:$CD$9,6,FALSE) ->  | AF153: =T153-HLOOKUP(Y153,Feuil2!$C$1:$CD$9,7,FALSE) ->  | AG153: =T153-HLOOKUP(Y153,Feuil2!$C$1:$CD$9,8,FALSE) ->  | AH153: =T153-HLOOKUP(Y153,Feuil2!$C$1:$CD$9,9,FALSE) ->  | AQ153: 2017 | AS153: =IF(AQ153,VLOOKUP(AQ153,HOM!$AS$389:$AT$444,2)) -> 4.493
A154: H | X154: FALSE | Y154: =IF(AND(H154<1920),VLOOKUP(I154,Feuil2!$F$10:$P$28,11),IF(AND(H154>=1920,H154<1939),VLOOKUP(I154,Feuil2!$F$10:$P$28,11),IF(AND(H154>=1938,H154<1943),VLOOKUP(I154,Feuil2!$F$10:$P$28,10),IF(AND(H154>=1943,H154<1948),VLOOKUP(I154,Feuil2!$F$10:$P$28,9),IF(AND(H154>=1948,H154<1953),VLOOKUP(I154,Feuil2!$F$10:$P$28,8),IF(AND(H154>=1953,H154<1958),VLOOKUP(I154,Feuil2!$F$10:$P$28,7),IF(AND(H154>=1958,H154<1963),VLOOKUP(I154,Feuil2!$F$10:$P$28,6),IF(AND(H154>=1963,H154<1968),VLOOKUP(I154,Feuil2!$F$10:$P$28,5),IF(AND(H154>=1968,H154<1973),VLOOKUP(I154,Feuil2!$F$10:$P$28,4),IF(AND(H154>=1973,H154<1978),VLOOKUP(I154,Feuil2!$F$10:$P$28,3),IF(AND(H154>=1978,H154<1983),VLOOKUP(I154,Feuil2!$F$10:$P$28,2),VLOOKUP(I154,Feuil2!$F$10:$P$28,2)))))))))))) ->  | AA154: =T154-HLOOKUP(Y154,Feuil2!$C$1:$CD$9,2,FALSE) ->  | AB154: =T154-HLOOKUP(Y154,Feuil2!$C$1:$CD$9,3,FALSE) ->  | AC154: =T154-HLOOKUP(Y154,Feuil2!$C$1:$CD$9,4,FALSE) ->  | AD154: =T154-HLOOKUP(Y154,Feuil2!$C$1:$CD$9,5,FALSE) ->  | AE154: =T154-HLOOKUP(Y154,Feuil2!$C$1:$CD$9,6,FALSE) ->  | AF154: =T154-HLOOKUP(Y154,Feuil2!$C$1:$CD$9,7,FALSE) ->  | AG154: =T154-HLOOKUP(Y154,Feuil2!$C$1:$CD$9,8,FALSE) ->  | AH154: =T154-HLOOKUP(Y154,Feuil2!$C$1:$CD$9,9,FALSE) ->  | AQ154: 2017 | AS154: =IF(AQ154,VLOOKUP(AQ154,HOM!$AS$389:$AT$444,2)) -> 4.493
A155: H | X155: FALSE | Y155: =IF(AND(H155<1920),VLOOKUP(I155,Feuil2!$F$10:$P$28,11),IF(AND(H155>=1920,H155<1939),VLOOKUP(I155,Feuil2!$F$10:$P$28,11),IF(AND(H155>=1938,H155<1943),VLOOKUP(I155,Feuil2!$F$10:$P$28,10),IF(AND(H155>=1943,H155<1948),VLOOKUP(I155,Feuil2!$F$10:$P$28,9),IF(AND(H155>=1948,H155<1953),VLOOKUP(I155,Feuil2!$F$10:$P$28,8),IF(AND(H155>=1953,H155<1958),VLOOKUP(I155,Feuil2!$F$10:$P$28,7),IF(AND(H155>=1958,H155<1963),VLOOKUP(I155,Feuil2!$F$10:$P$28,6),IF(AND(H155>=1963,H155<1968),VLOOKUP(I155,Feuil2!$F$10:$P$28,5),IF(AND(H155>=1968,H155<1973),VLOOKUP(I155,Feuil2!$F$10:$P$28,4),IF(AND(H155>=1973,H155<1978),VLOOKUP(I155,Feuil2!$F$10:$P$28,3),IF(AND(H155>=1978,H155<1983),VLOOKUP(I155,Feuil2!$F$10:$P$28,2),VLOOKUP(I155,Feuil2!$F$10:$P$28,2)))))))))))) ->  | AA155: =T155-HLOOKUP(Y155,Feuil2!$C$1:$CD$9,2,FALSE) ->  | AB155: =T155-HLOOKUP(Y155,Feuil2!$C$1:$CD$9,3,FALSE) ->  | AC155: =T155-HLOOKUP(Y155,Feuil2!$C$1:$CD$9,4,FALSE) ->  | AD155: =T155-HLOOKUP(Y155,Feuil2!$C$1:$CD$9,5,FALSE) ->  | AE155: =T155-HLOOKUP(Y155,Feuil2!$C$1:$CD$9,6,FALSE) ->  | AF155: =T155-HLOOKUP(Y155,Feuil2!$C$1:$CD$9,7,FALSE) ->  | AG155: =T155-HLOOKUP(Y155,Feuil2!$C$1:$CD$9,8,FALSE) ->  | AH155: =T155-HLOOKUP(Y155,Feuil2!$C$1:$CD$9,9,FALSE) ->  | AQ155: 2017 | AS155: =IF(AQ155,VLOOKUP(AQ155,HOM!$AS$389:$AT$444,2)) -> 4.493
A156: H | X156: FALSE | Y156: =IF(AND(H156<1920),VLOOKUP(I156,Feuil2!$F$10:$P$28,11),IF(AND(H156>=1920,H156<1939),VLOOKUP(I156,Feuil2!$F$10:$P$28,11),IF(AND(H156>=1938,H156<1943),VLOOKUP(I156,Feuil2!$F$10:$P$28,10),IF(AND(H156>=1943,H156<1948),VLOOKUP(I156,Feuil2!$F$10:$P$28,9),IF(AND(H156>=1948,H156<1953),VLOOKUP(I156,Feuil2!$F$10:$P$28,8),IF(AND(H156>=1953,H156<1958),VLOOKUP(I156,Feuil2!$F$10:$P$28,7),IF(AND(H156>=1958,H156<1963),VLOOKUP(I156,Feuil2!$F$10:$P$28,6),IF(AND(H156>=1963,H156<1968),VLOOKUP(I156,Feuil2!$F$10:$P$28,5),IF(AND(H156>=1968,H156<1973),VLOOKUP(I156,Feuil2!$F$10:$P$28,4),IF(AND(H156>=1973,H156<1978),VLOOKUP(I156,Feuil2!$F$10:$P$28,3),IF(AND(H156>=1978,H156<1983),VLOOKUP(I156,Feuil2!$F$10:$P$28,2),VLOOKUP(I156,Feuil2!$F$10:$P$28,2)))))))))))) ->  | AA156: =T156-HLOOKUP(Y156,Feuil2!$C$1:$CD$9,2,FALSE) ->  | AB156: =T156-HLOOKUP(Y156,Feuil2!$C$1:$CD$9,3,FALSE) ->  | AC156: =T156-HLOOKUP(Y156,Feuil2!$C$1:$CD$9,4,FALSE) ->  | AD156: =T156-HLOOKUP(Y156,Feuil2!$C$1:$CD$9,5,FALSE) ->  | AE156: =T156-HLOOKUP(Y156,Feuil2!$C$1:$CD$9,6,FALSE) ->  | AF156: =T156-HLOOKUP(Y156,Feuil2!$C$1:$CD$9,7,FALSE) ->  | AG156: =T156-HLOOKUP(Y156,Feuil2!$C$1:$CD$9,8,FALSE) ->  | AH156: =T156-HLOOKUP(Y156,Feuil2!$C$1:$CD$9,9,FALSE) ->  | AQ156: 2017 | AS156: =IF(AQ156,VLOOKUP(AQ156,HOM!$AS$389:$AT$444,2)) -> 4.493
A157: H | X157: FALSE | Y157: =IF(AND(H157<1920),VLOOKUP(I157,Feuil2!$F$10:$P$28,11),IF(AND(H157>=1920,H157<1939),VLOOKUP(I157,Feuil2!$F$10:$P$28,11),IF(AND(H157>=1938,H157<1943),VLOOKUP(I157,Feuil2!$F$10:$P$28,10),IF(AND(H157>=1943,H157<1948),VLOOKUP(I157,Feuil2!$F$10:$P$28,9),IF(AND(H157>=1948,H157<1953),VLOOKUP(I157,Feuil2!$F$10:$P$28,8),IF(AND(H157>=1953,H157<1958),VLOOKUP(I157,Feuil2!$F$10:$P$28,7),IF(AND(H157>=1958,H157<1963),VLOOKUP(I157,Feuil2!$F$10:$P$28,6),IF(AND(H157>=1963,H157<1968),VLOOKUP(I157,Feuil2!$F$10:$P$28,5),IF(AND(H157>=1968,H157<1973),VLOOKUP(I157,Feuil2!$F$10:$P$28,4),IF(AND(H157>=1973,H157<1978),VLOOKUP(I157,Feuil2!$F$10:$P$28,3),IF(AND(H157>=1978,H157<1983),VLOOKUP(I157,Feuil2!$F$10:$P$28,2),VLOOKUP(I157,Feuil2!$F$10:$P$28,2)))))))))))) ->  | AA157: =T157-HLOOKUP(Y157,Feuil2!$C$1:$CD$9,2,FALSE) ->  | AB157: =T157-HLOOKUP(Y157,Feuil2!$C$1:$CD$9,3,FALSE) ->  | AC157: =T157-HLOOKUP(Y157,Feuil2!$C$1:$CD$9,4,FALSE) ->  | AD157: =T157-HLOOKUP(Y157,Feuil2!$C$1:$CD$9,5,FALSE) ->  | AE157: =T157-HLOOKUP(Y157,Feuil2!$C$1:$CD$9,6,FALSE) ->  | AF157: =T157-HLOOKUP(Y157,Feuil2!$C$1:$CD$9,7,FALSE) ->  | AG157: =T157-HLOOKUP(Y157,Feuil2!$C$1:$CD$9,8,FALSE) ->  | AH157: =T157-HLOOKUP(Y157,Feuil2!$C$1:$CD$9,9,FALSE) ->  | AQ157: 2017 | AS157: =IF(AQ157,VLOOKUP(AQ157,HOM!$AS$389:$AT$444,2)) -> 4.493
A158: H | X158: FALSE | Y158: =IF(AND(H158<1920),VLOOKUP(I158,Feuil2!$F$10:$P$28,11),IF(AND(H158>=1920,H158<1939),VLOOKUP(I158,Feuil2!$F$10:$P$28,11),IF(AND(H158>=1938,H158<1943),VLOOKUP(I158,Feuil2!$F$10:$P$28,10),IF(AND(H158>=1943,H158<1948),VLOOKUP(I158,Feuil2!$F$10:$P$28,9),IF(AND(H158>=1948,H158<1953),VLOOKUP(I158,Feuil2!$F$10:$P$28,8),IF(AND(H158>=1953,H158<1958),VLOOKUP(I158,Feuil2!$F$10:$P$28,7),IF(AND(H158>=1958,H158<1963),VLOOKUP(I158,Feuil2!$F$10:$P$28,6),IF(AND(H158>=1963,H158<1968),VLOOKUP(I158,Feuil2!$F$10:$P$28,5),IF(AND(H158>=1968,H158<1973),VLOOKUP(I158,Feuil2!$F$10:$P$28,4),IF(AND(H158>=1973,H158<1978),VLOOKUP(I158,Feuil2!$F$10:$P$28,3),IF(AND(H158>=1978,H158<1983),VLOOKUP(I158,Feuil2!$F$10:$P$28,2),VLOOKUP(I158,Feuil2!$F$10:$P$28,2)))))))))))) ->  | AA158: =T158-HLOOKUP(Y158,Feuil2!$C$1:$CD$9,2,FALSE) ->  | AB158: =T158-HLOOKUP(Y158,Feuil2!$C$1:$CD$9,3,FALSE) ->  | AC158: =T158-HLOOKUP(Y158,Feuil2!$C$1:$CD$9,4,FALSE) ->  | AD158: =T158-HLOOKUP(Y158,Feuil2!$C$1:$CD$9,5,FALSE) ->  | AE158: =T158-HLOOKUP(Y158,Feuil2!$C$1:$CD$9,6,FALSE) ->  | AF158: =T158-HLOOKUP(Y158,Feuil2!$C$1:$CD$9,7,FALSE) ->  | AG158: =T158-HLOOKUP(Y158,Feuil2!$C$1:$CD$9,8,FALSE) ->  | AH158: =T158-HLOOKUP(Y158,Feuil2!$C$1:$CD$9,9,FALSE) ->  | AQ158: 2017 | AS158: =IF(AQ158,VLOOKUP(AQ158,HOM!$AS$389:$AT$444,2)) -> 4.493
A159: H | X159: FALSE | Y159: =IF(AND(H159<1920),VLOOKUP(I159,Feuil2!$F$10:$P$28,11),IF(AND(H159>=1920,H159<1939),VLOOKUP(I159,Feuil2!$F$10:$P$28,11),IF(AND(H159>=1938,H159<1943),VLOOKUP(I159,Feuil2!$F$10:$P$28,10),IF(AND(H159>=1943,H159<1948),VLOOKUP(I159,Feuil2!$F$10:$P$28,9),IF(AND(H159>=1948,H159<1953),VLOOKUP(I159,Feuil2!$F$10:$P$28,8),IF(AND(H159>=1953,H159<1958),VLOOKUP(I159,Feuil2!$F$10:$P$28,7),IF(AND(H159>=1958,H159<1963),VLOOKUP(I159,Feuil2!$F$10:$P$28,6),IF(AND(H159>=1963,H159<1968),VLOOKUP(I159,Feuil2!$F$10:$P$28,5),IF(AND(H159>=1968,H159<1973),VLOOKUP(I159,Feuil2!$F$10:$P$28,4),IF(AND(H159>=1973,H159<1978),VLOOKUP(I159,Feuil2!$F$10:$P$28,3),IF(AND(H159>=1978,H159<1983),VLOOKUP(I159,Feuil2!$F$10:$P$28,2),VLOOKUP(I159,Feuil2!$F$10:$P$28,2)))))))))))) ->  | AA159: =T159-HLOOKUP(Y159,Feuil2!$C$1:$CD$9,2,FALSE) ->  | AB159: =T159-HLOOKUP(Y159,Feuil2!$C$1:$CD$9,3,FALSE) ->  | AC159: =T159-HLOOKUP(Y159,Feuil2!$C$1:$CD$9,4,FALSE) ->  | AD159: =T159-HLOOKUP(Y159,Feuil2!$C$1:$CD$9,5,FALSE) ->  | AE159: =T159-HLOOKUP(Y159,Feuil2!$C$1:$CD$9,6,FALSE) ->  | AF159: =T159-HLOOKUP(Y159,Feuil2!$C$1:$CD$9,7,FALSE) ->  | AG159: =T159-HLOOKUP(Y159,Feuil2!$C$1:$CD$9,8,FALSE) ->  | AH159: =T159-HLOOKUP(Y159,Feuil2!$C$1:$CD$9,9,FALSE) ->  | AQ159: 2017 | AS159: =IF(AQ159,VLOOKUP(AQ159,HOM!$AS$389:$AT$444,2)) -> 4.493
A160: H | X160: FALSE | Y160: =IF(AND(H160<1920),VLOOKUP(I160,Feuil2!$F$10:$P$28,11),IF(AND(H160>=1920,H160<1939),VLOOKUP(I160,Feuil2!$F$10:$P$28,11),IF(AND(H160>=1938,H160<1943),VLOOKUP(I160,Feuil2!$F$10:$P$28,10),IF(AND(H160>=1943,H160<1948),VLOOKUP(I160,Feuil2!$F$10:$P$28,9),IF(AND(H160>=1948,H160<1953),VLOOKUP(I160,Feuil2!$F$10:$P$28,8),IF(AND(H160>=1953,H160<1958),VLOOKUP(I160,Feuil2!$F$10:$P$28,7),IF(AND(H160>=1958,H160<1963),VLOOKUP(I160,Feuil2!$F$10:$P$28,6),IF(AND(H160>=1963,H160<1968),VLOOKUP(I160,Feuil2!$F$10:$P$28,5),IF(AND(H160>=1968,H160<1973),VLOOKUP(I160,Feuil2!$F$10:$P$28,4),IF(AND(H160>=1973,H160<1978),VLOOKUP(I160,Feuil2!$F$10:$P$28,3),IF(AND(H160>=1978,H160<1983),VLOOKUP(I160,Feuil2!$F$10:$P$28,2),VLOOKUP(I160,Feuil2!$F$10:$P$28,2)))))))))))) ->  | AA160: =T160-HLOOKUP(Y160,Feuil2!$C$1:$CD$9,2,FALSE) ->  | AB160: =T160-HLOOKUP(Y160,Feuil2!$C$1:$CD$9,3,FALSE) ->  | AC160: =T160-HLOOKUP(Y160,Feuil2!$C$1:$CD$9,4,FALSE) ->  | AD160: =T160-HLOOKUP(Y160,Feuil2!$C$1:$CD$9,5,FALSE) ->  | AE160: =T160-HLOOKUP(Y160,Feuil2!$C$1:$CD$9,6,FALSE) ->  | AF160: =T160-HLOOKUP(Y160,Feuil2!$C$1:$CD$9,7,FALSE) ->  | AG160: =T160-HLOOKUP(Y160,Feuil2!$C$1:$CD$9,8,FALSE) ->  | AH160: =T160-HLOOKUP(Y160,Feuil2!$C$1:$CD$9,9,FALSE) ->  | AQ160: 2017 | AS160: =IF(AQ160,VLOOKUP(AQ160,HOM!$AS$389:$AT$444,2)) -> 4.493
A161: H | X161: FALSE | Y161: =IF(AND(H161<1920),VLOOKUP(I161,Feuil2!$F$10:$P$28,11),IF(AND(H161>=1920,H161<1939),VLOOKUP(I161,Feuil2!$F$10:$P$28,11),IF(AND(H161>=1938,H161<1943),VLOOKUP(I161,Feuil2!$F$10:$P$28,10),IF(AND(H161>=1943,H161<1948),VLOOKUP(I161,Feuil2!$F$10:$P$28,9),IF(AND(H161>=1948,H161<1953),VLOOKUP(I161,Feuil2!$F$10:$P$28,8),IF(AND(H161>=1953,H161<1958),VLOOKUP(I161,Feuil2!$F$10:$P$28,7),IF(AND(H161>=1958,H161<1963),VLOOKUP(I161,Feuil2!$F$10:$P$28,6),IF(AND(H161>=1963,H161<1968),VLOOKUP(I161,Feuil2!$F$10:$P$28,5),IF(AND(H161>=1968,H161<1973),VLOOKUP(I161,Feuil2!$F$10:$P$28,4),IF(AND(H161>=1973,H161<1978),VLOOKUP(I161,Feuil2!$F$10:$P$28,3),IF(AND(H161>=1978,H161<1983),VLOOKUP(I161,Feuil2!$F$10:$P$28,2),VLOOKUP(I161,Feuil2!$F$10:$P$28,2)))))))))))) ->  | AA161: =T161-HLOOKUP(Y161,Feuil2!$C$1:$CD$9,2,FALSE) ->  | AB161: =T161-HLOOKUP(Y161,Feuil2!$C$1:$CD$9,3,FALSE) ->  | AC161: =T161-HLOOKUP(Y161,Feuil2!$C$1:$CD$9,4,FALSE) ->  | AD161: =T161-HLOOKUP(Y161,Feuil2!$C$1:$CD$9,5,FALSE) ->  | AE161: =T161-HLOOKUP(Y161,Feuil2!$C$1:$CD$9,6,FALSE) ->  | AF161: =T161-HLOOKUP(Y161,Feuil2!$C$1:$CD$9,7,FALSE) ->  | AG161: =T161-HLOOKUP(Y161,Feuil2!$C$1:$CD$9,8,FALSE) ->  | AH161: =T161-HLOOKUP(Y161,Feuil2!$C$1:$CD$9,9,FALSE) ->  | AQ161: 2017 | AS161: =IF(AQ161,VLOOKUP(AQ161,HOM!$AS$389:$AT$444,2)) -> 4.493
A162: H | X162: FALSE | Y162: =IF(AND(H162<1920),VLOOKUP(I162,Feuil2!$F$10:$P$28,11),IF(AND(H162>=1920,H162<1939),VLOOKUP(I162,Feuil2!$F$10:$P$28,11),IF(AND(H162>=1938,H162<1943),VLOOKUP(I162,Feuil2!$F$10:$P$28,10),IF(AND(H162>=1943,H162<1948),VLOOKUP(I162,Feuil2!$F$10:$P$28,9),IF(AND(H162>=1948,H162<1953),VLOOKUP(I162,Feuil2!$F$10:$P$28,8),IF(AND(H162>=1953,H162<1958),VLOOKUP(I162,Feuil2!$F$10:$P$28,7),IF(AND(H162>=1958,H162<1963),VLOOKUP(I162,Feuil2!$F$10:$P$28,6),IF(AND(H162>=1963,H162<1968),VLOOKUP(I162,Feuil2!$F$10:$P$28,5),IF(AND(H162>=1968,H162<1973),VLOOKUP(I162,Feuil2!$F$10:$P$28,4),IF(AND(H162>=1973,H162<1978),VLOOKUP(I162,Feuil2!$F$10:$P$28,3),IF(AND(H162>=1978,H162<1983),VLOOKUP(I162,Feuil2!$F$10:$P$28,2),VLOOKUP(I162,Feuil2!$F$10:$P$28,2)))))))))))) ->  | AA162: =T162-HLOOKUP(Y162,Feuil2!$C$1:$CD$9,2,FALSE) ->  | AB162: =T162-HLOOKUP(Y162,Feuil2!$C$1:$CD$9,3,FALSE) ->  | AC162: =T162-HLOOKUP(Y162,Feuil2!$C$1:$CD$9,4,FALSE) ->  | AD162: =T162-HLOOKUP(Y162,Feuil2!$C$1:$CD$9,5,FALSE) ->  | AE162: =T162-HLOOKUP(Y162,Feuil2!$C$1:$CD$9,6,FALSE) ->  | AF162: =T162-HLOOKUP(Y162,Feuil2!$C$1:$CD$9,7,FALSE) ->  | AG162: =T162-HLOOKUP(Y162,Feuil2!$C$1:$CD$9,8,FALSE) ->  | AH162: =T162-HLOOKUP(Y162,Feuil2!$C$1:$CD$9,9,FALSE) ->  | AQ162: 2017 | AS162: =IF(AQ162,VLOOKUP(AQ162,HOM!$AS$389:$AT$444,2)) -> 4.493
A163: H | X163: FALSE | Y163: =IF(AND(H163<1920),VLOOKUP(I163,Feuil2!$F$10:$P$28,11),IF(AND(H163>=1920,H163<1939),VLOOKUP(I163,Feuil2!$F$10:$P$28,11),IF(AND(H163>=1938,H163<1943),VLOOKUP(I163,Feuil2!$F$10:$P$28,10),IF(AND(H163>=1943,H163<1948),VLOOKUP(I163,Feuil2!$F$10:$P$28,9),IF(AND(H163>=1948,H163<1953),VLOOKUP(I163,Feuil2!$F$10:$P$28,8),IF(AND(H163>=1953,H163<1958),VLOOKUP(I163,Feuil2!$F$10:$P$28,7),IF(AND(H163>=1958,H163<1963),VLOOKUP(I163,Feuil2!$F$10:$P$28,6),IF(AND(H163>=1963,H163<1968),VLOOKUP(I163,Feuil2!$F$10:$P$28,5),IF(AND(H163>=1968,H163<1973),VLOOKUP(I163,Feuil2!$F$10:$P$28,4),IF(AND(H163>=1973,H163<1978),VLOOKUP(I163,Feuil2!$F$10:$P$28,3),IF(AND(H163>=1978,H163<1983),VLOOKUP(I163,Feuil2!$F$10:$P$28,2),VLOOKUP(I163,Feuil2!$F$10:$P$28,2)))))))))))) ->  | AA163: =T163-HLOOKUP(Y163,Feuil2!$C$1:$CD$9,2,FALSE) ->  | AB163: =T163-HLOOKUP(Y163,Feuil2!$C$1:$CD$9,3,FALSE) ->  | AC163: =T163-HLOOKUP(Y163,Feuil2!$C$1:$CD$9,4,FALSE) ->  | AD163: =T163-HLOOKUP(Y163,Feuil2!$C$1:$CD$9,5,FALSE) ->  | AE163: =T163-HLOOKUP(Y163,Feuil2!$C$1:$CD$9,6,FALSE) ->  | AF163: =T163-HLOOKUP(Y163,Feuil2!$C$1:$CD$9,7,FALSE) ->  | AG163: =T163-HLOOKUP(Y163,Feuil2!$C$1:$CD$9,8,FALSE) ->  | AH163: =T163-HLOOKUP(Y163,Feuil2!$C$1:$CD$9,9,FALSE) ->  | AQ163: 2017 | AS163: =IF(AQ163,VLOOKUP(AQ163,HOM!$AS$389:$AT$444,2)) -> 4.493
A164: H | X164: FALSE | Y164: =IF(AND(H164<1920),VLOOKUP(I164,Feuil2!$F$10:$P$28,11),IF(AND(H164>=1920,H164<1939),VLOOKUP(I164,Feuil2!$F$10:$P$28,11),IF(AND(H164>=1938,H164<1943),VLOOKUP(I164,Feuil2!$F$10:$P$28,10),IF(AND(H164>=1943,H164<1948),VLOOKUP(I164,Feuil2!$F$10:$P$28,9),IF(AND(H164>=1948,H164<1953),VLOOKUP(I164,Feuil2!$F$10:$P$28,8),IF(AND(H164>=1953,H164<1958),VLOOKUP(I164,Feuil2!$F$10:$P$28,7),IF(AND(H164>=1958,H164<1963),VLOOKUP(I164,Feuil2!$F$10:$P$28,6),IF(AND(H164>=1963,H164<1968),VLOOKUP(I164,Feuil2!$F$10:$P$28,5),IF(AND(H164>=1968,H164<1973),VLOOKUP(I164,Feuil2!$F$10:$P$28,4),IF(AND(H164>=1973,H164<1978),VLOOKUP(I164,Feuil2!$F$10:$P$28,3),IF(AND(H164>=1978,H164<1983),VLOOKUP(I164,Feuil2!$F$10:$P$28,2),VLOOKUP(I164,Feuil2!$F$10:$P$28,2)))))))))))) ->  | AA164: =T164-HLOOKUP(Y164,Feuil2!$C$1:$CD$9,2,FALSE) ->  | AB164: =T164-HLOOKUP(Y164,Feuil2!$C$1:$CD$9,3,FALSE) ->  | AC164: =T164-HLOOKUP(Y164,Feuil2!$C$1:$CD$9,4,FALSE) ->  | AD164: =T164-HLOOKUP(Y164,Feuil2!$C$1:$CD$9,5,FALSE) ->  | AE164: =T164-HLOOKUP(Y164,Feuil2!$C$1:$CD$9,6,FALSE) ->  | AF164: =T164-HLOOKUP(Y164,Feuil2!$C$1:$CD$9,7,FALSE) ->  | AG164: =T164-HLOOKUP(Y164,Feuil2!$C$1:$CD$9,8,FALSE) ->  | AH164: =T164-HLOOKUP(Y164,Feuil2!$C$1:$CD$9,9,FALSE) ->  | AQ164: 2017 | AS164: =IF(AQ164,VLOOKUP(AQ164,HOM!$AS$389:$AT$444,2)) -> 4.493
A165: H | X165: FALSE | Y165: =IF(AND(H165<1920),VLOOKUP(I165,Feuil2!$F$10:$P$28,11),IF(AND(H165>=1920,H165<1939),VLOOKUP(I165,Feuil2!$F$10:$P$28,11),IF(AND(H165>=1938,H165<1943),VLOOKUP(I165,Feuil2!$F$10:$P$28,10),IF(AND(H165>=1943,H165<1948),VLOOKUP(I165,Feuil2!$F$10:$P$28,9),IF(AND(H165>=1948,H165<1953),VLOOKUP(I165,Feuil2!$F$10:$P$28,8),IF(AND(H165>=1953,H165<1958),VLOOKUP(I165,Feuil2!$F$10:$P$28,7),IF(AND(H165>=1958,H165<1963),VLOOKUP(I165,Feuil2!$F$10:$P$28,6),IF(AND(H165>=1963,H165<1968),VLOOKUP(I165,Feuil2!$F$10:$P$28,5),IF(AND(H165>=1968,H165<1973),VLOOKUP(I165,Feuil2!$F$10:$P$28,4),IF(AND(H165>=1973,H165<1978),VLOOKUP(I165,Feuil2!$F$10:$P$28,3),IF(AND(H165>=1978,H165<1983),VLOOKUP(I165,Feuil2!$F$10:$P$28,2),VLOOKUP(I165,Feuil2!$F$10:$P$28,2)))))))))))) ->  | AA165: =T165-HLOOKUP(Y165,Feuil2!$C$1:$CD$9,2,FALSE) ->  | AB165: =T165-HLOOKUP(Y165,Feuil2!$C$1:$CD$9,3,FALSE) ->  | AC165: =T165-HLOOKUP(Y165,Feuil2!$C$1:$CD$9,4,FALSE) ->  | AD165: =T165-HLOOKUP(Y165,Feuil2!$C$1:$CD$9,5,FALSE) ->  | AE165: =T165-HLOOKUP(Y165,Feuil2!$C$1:$CD$9,6,FALSE) ->  | AF165: =T165-HLOOKUP(Y165,Feuil2!$C$1:$CD$9,7,FALSE) ->  | AG165: =T165-HLOOKUP(Y165,Feuil2!$C$1:$CD$9,8,FALSE) ->  | AH165: =T165-HLOOKUP(Y165,Feuil2!$C$1:$CD$9,9,FALSE) ->  | AQ165: 2017 | AS165: =IF(AQ165,VLOOKUP(AQ165,HOM!$AS$389:$AT$444,2)) -> 4.493
A166: H | S166: =IF(I166="","",IF(MAXA(P166:R166)<=0,0,MAXA(P166:R166))) ->  | T166: =IF(I166="","",IF(OR(O166=0,S166=0),0,O166+S166)) ->  | V166: =IF(I166="","",AP166) ->  | W166: =IF(I166="","",IF(AH166>=0,AH166,IF(AG166>=0,AG166,IF(AF166>=0,AF166,IF(AE166>=0,AE166,IF(AD166>=0,AD166,IF(AC166>=0,AC166,IF(AB166>=0,AB166,AA166)))))))) ->  | X166: =IF(AQ166<95,IF(AQ166<=90,VLOOKUP(AQ166,$AQ$255:$AR$444,2))) -> FALSE | Y166: =IF(AND(H166<1920),VLOOKUP(I166,Feuil2!$F$10:$P$28,11),IF(AND(H166>=1920,H166<1939),VLOOKUP(I166,Feuil2!$F$10:$P$28,11),IF(AND(H166>=1938,H166<1943),VLOOKUP(I166,Feuil2!$F$10:$P$28,10),IF(AND(H166>=1943,H166<1948),VLOOKUP(I166,Feuil2!$F$10:$P$28,9),IF(AND(H166>=1948,H166<1953),VLOOKUP(I166,Feuil2!$F$10:$P$28,8),IF(AND(H166>=1953,H166<1958),VLOOKUP(I166,Feuil2!$F$10:$P$28,7),IF(AND(H166>=1958,H166<1963),VLOOKUP(I166,Feuil2!$F$10:$P$28,6),IF(AND(H166>=1963,H166<1968),VLOOKUP(I166,Feuil2!$F$10:$P$28,5),IF(AND(H166>=1968,H166<1973),VLOOKUP(I166,Feuil2!$F$10:$P$28,4),IF(AND(H166>=1973,H166<1978),VLOOKUP(I166,Feuil2!$F$10:$P$28,3),IF(AND(H166>=1978,H166<1983),VLOOKUP(I166,Feuil2!$F$10:$P$28,2),VLOOKUP(I166,Feuil2!$F$10:$P$28,2)))))))))))) ->  | AA166: =T166-HLOOKUP(Y166,Feuil2!$C$1:$CD$9,2,FALSE) ->  | AB166: =T166-HLOOKUP(Y166,Feuil2!$C$1:$CD$9,3,FALSE) ->  | AC166: =T166-HLOOKUP(Y166,Feuil2!$C$1:$CD$9,4,FALSE) ->  | AD166: =T166-HLOOKUP(Y166,Feuil2!$C$1:$CD$9,5,FALSE) ->  | AE166: =T166-HLOOKUP(Y166,Feuil2!$C$1:$CD$9,6,FALSE) ->  | AF166: =T166-HLOOKUP(Y166,Feuil2!$C$1:$CD$9,7,FALSE) ->  | AG166: =T166-HLOOKUP(Y166,Feuil2!$C$1:$CD$9,8,FALSE) ->  | AH166: =T166-HLOOKUP(Y166,Feuil2!$C$1:$CD$9,9,FALSE) ->  | AP166: =IF(AH166>=0,$AH$5,IF(AG166>=0,$AG$5,IF(AF166>=0,$AF$5,IF(AE166>=0,$AE$5,IF(AD166>=0,$AD$5,IF(AC166>=0,$AC$5,IF(AB166>=0,$AB$5,IF(AA166>=0,$AA$5,$AI$5)))))))) ->  | AQ166: =2017-H166 -> 2017 | AS166: =IF(AQ166,VLOOKUP(AQ166,HOM!$AS$389:$AT$444,2)) -> 4.493
A167: H | X167: FALSE | Y167: =IF(AND(H167<1920),VLOOKUP(I167,Feuil2!$F$10:$P$28,11),IF(AND(H167>=1920,H167<1939),VLOOKUP(I167,Feuil2!$F$10:$P$28,11),IF(AND(H167>=1938,H167<1943),VLOOKUP(I167,Feuil2!$F$10:$P$28,10),IF(AND(H167>=1943,H167<1948),VLOOKUP(I167,Feuil2!$F$10:$P$28,9),IF(AND(H167>=1948,H167<1953),VLOOKUP(I167,Feuil2!$F$10:$P$28,8),IF(AND(H167>=1953,H167<1958),VLOOKUP(I167,Feuil2!$F$10:$P$28,7),IF(AND(H167>=1958,H167<1963),VLOOKUP(I167,Feuil2!$F$10:$P$28,6),IF(AND(H167>=1963,H167<1968),VLOOKUP(I167,Feuil2!$F$10:$P$28,5),IF(AND(H167>=1968,H167<1973),VLOOKUP(I167,Feuil2!$F$10:$P$28,4),IF(AND(H167>=1973,H167<1978),VLOOKUP(I167,Feuil2!$F$10:$P$28,3),IF(AND(H167>=1978,H167<1983),VLOOKUP(I167,Feuil2!$F$10:$P$28,2),VLOOKUP(I167,Feuil2!$F$10:$P$28,2)))))))))))) ->  | AA167: =T167-HLOOKUP(Y167,Feuil2!$C$1:$CD$9,2,FALSE) ->  | AB167: =T167-HLOOKUP(Y167,Feuil2!$C$1:$CD$9,3,FALSE) ->  | AC167: =T167-HLOOKUP(Y167,Feuil2!$C$1:$CD$9,4,FALSE) ->  | AD167: =T167-HLOOKUP(Y167,Feuil2!$C$1:$CD$9,5,FALSE) ->  | AE167: =T167-HLOOKUP(Y167,Feuil2!$C$1:$CD$9,6,FALSE) ->  | AF167: =T167-HLOOKUP(Y167,Feuil2!$C$1:$CD$9,7,FALSE) ->  | AG167: =T167-HLOOKUP(Y167,Feuil2!$C$1:$CD$9,8,FALSE) ->  | AH167: =T167-HLOOKUP(Y167,Feuil2!$C$1:$CD$9,9,FALSE) ->  | AQ167: 2017 | AS167: =IF(AQ167,VLOOKUP(AQ167,HOM!$AS$389:$AT$444,2)) -> 4.493
A168: H | X168: FALSE | Y168: =IF(AND(H168<1920),VLOOKUP(I168,Feuil2!$F$10:$P$28,11),IF(AND(H168>=1920,H168<1939),VLOOKUP(I168,Feuil2!$F$10:$P$28,11),IF(AND(H168>=1938,H168<1943),VLOOKUP(I168,Feuil2!$F$10:$P$28,10),IF(AND(H168>=1943,H168<1948),VLOOKUP(I168,Feuil2!$F$10:$P$28,9),IF(AND(H168>=1948,H168<1953),VLOOKUP(I168,Feuil2!$F$10:$P$28,8),IF(AND(H168>=1953,H168<1958),VLOOKUP(I168,Feuil2!$F$10:$P$28,7),IF(AND(H168>=1958,H168<1963),VLOOKUP(I168,Feuil2!$F$10:$P$28,6),IF(AND(H168>=1963,H168<1968),VLOOKUP(I168,Feuil2!$F$10:$P$28,5),IF(AND(H168>=1968,H168<1973),VLOOKUP(I168,Feuil2!$F$10:$P$28,4),IF(AND(H168>=1973,H168<1978),VLOOKUP(I168,Feuil2!$F$10:$P$28,3),IF(AND(H168>=1978,H168<1983),VLOOKUP(I168,Feuil2!$F$10:$P$28,2),VLOOKUP(I168,Feuil2!$F$10:$P$28,2)))))))))))) ->  | AA168: =T168-HLOOKUP(Y168,Feuil2!$C$1:$CD$9,2,FALSE) ->  | AB168: =T168-HLOOKUP(Y168,Feuil2!$C$1:$CD$9,3,FALSE) ->  | AC168: =T168-HLOOKUP(Y168,Feuil2!$C$1:$CD$9,4,FALSE) ->  | AD168: =T168-HLOOKUP(Y168,Feuil2!$C$1:$CD$9,5,FALSE) ->  | AE168: =T168-HLOOKUP(Y168,Feuil2!$C$1:$CD$9,6,FALSE) ->  | AF168: =T168-HLOOKUP(Y168,Feuil2!$C$1:$CD$9,7,FALSE) ->  | AG168: =T168-HLOOKUP(Y168,Feuil2!$C$1:$CD$9,8,FALSE) ->  | AH168: =T168-HLOOKUP(Y168,Feuil2!$C$1:$CD$9,9,FALSE) ->  | AQ168: 2017 | AS168: =IF(AQ168,VLOOKUP(AQ168,HOM!$AS$389:$AT$444,2)) -> 4.493
A169: H | X169: FALSE | Y169: =IF(AND(H169<1920),VLOOKUP(I169,Feuil2!$F$10:$P$28,11),IF(AND(H169>=1920,H169<1939),VLOOKUP(I169,Feuil2!$F$10:$P$28,11),IF(AND(H169>=1938,H169<1943),VLOOKUP(I169,Feuil2!$F$10:$P$28,10),IF(AND(H169>=1943,H169<1948),VLOOKUP(I169,Feuil2!$F$10:$P$28,9),IF(AND(H169>=1948,H169<1953),VLOOKUP(I169,Feuil2!$F$10:$P$28,8),IF(AND(H169>=1953,H169<1958),VLOOKUP(I169,Feuil2!$F$10:$P$28,7),IF(AND(H169>=1958,H169<1963),VLOOKUP(I169,Feuil2!$F$10:$P$28,6),IF(AND(H169>=1963,H169<1968),VLOOKUP(I169,Feuil2!$F$10:$P$28,5),IF(AND(H169>=1968,H169<1973),VLOOKUP(I169,Feuil2!$F$10:$P$28,4),IF(AND(H169>=1973,H169<1978),VLOOKUP(I169,Feuil2!$F$10:$P$28,3),IF(AND(H169>=1978,H169<1983),VLOOKUP(I169,Feuil2!$F$10:$P$28,2),VLOOKUP(I169,Feuil2!$F$10:$P$28,2)))))))))))) ->  | AA169: =T169-HLOOKUP(Y169,Feuil2!$C$1:$CD$9,2,FALSE) ->  | AB169: =T169-HLOOKUP(Y169,Feuil2!$C$1:$CD$9,3,FALSE) ->  | AC169: =T169-HLOOKUP(Y169,Feuil2!$C$1:$CD$9,4,FALSE) ->  | AD169: =T169-HLOOKUP(Y169,Feuil2!$C$1:$CD$9,5,FALSE) ->  | AE169: =T169-HLOOKUP(Y169,Feuil2!$C$1:$CD$9,6,FALSE) ->  | AF169: =T169-HLOOKUP(Y169,Feuil2!$C$1:$CD$9,7,FALSE) ->  | AG169: =T169-HLOOKUP(Y169,Feuil2!$C$1:$CD$9,8,FALSE) ->  | AH169: =T169-HLOOKUP(Y169,Feuil2!$C$1:$CD$9,9,FALSE) ->  | AQ169: 2017 | AS169: =IF(AQ169,VLOOKUP(AQ169,HOM!$AS$389:$AT$444,2)) -> 4.493
A170: H | X170: FALSE | Y170: =IF(AND(H170<1920),VLOOKUP(I170,Feuil2!$F$10:$P$28,11),IF(AND(H170>=1920,H170<1939),VLOOKUP(I170,Feuil2!$F$10:$P$28,11),IF(AND(H170>=1938,H170<1943),VLOOKUP(I170,Feuil2!$F$10:$P$28,10),IF(AND(H170>=1943,H170<1948),VLOOKUP(I170,Feuil2!$F$10:$P$28,9),IF(AND(H170>=1948,H170<1953),VLOOKUP(I170,Feuil2!$F$10:$P$28,8),IF(AND(H170>=1953,H170<1958),VLOOKUP(I170,Feuil2!$F$10:$P$28,7),IF(AND(H170>=1958,H170<1963),VLOOKUP(I170,Feuil2!$F$10:$P$28,6),IF(AND(H170>=1963,H170<1968),VLOOKUP(I170,Feuil2!$F$10:$P$28,5),IF(AND(H170>=1968,H170<1973),VLOOKUP(I170,Feuil2!$F$10:$P$28,4),IF(AND(H170>=1973,H170<1978),VLOOKUP(I170,Feuil2!$F$10:$P$28,3),IF(AND(H170>=1978,H170<1983),VLOOKUP(I170,Feuil2!$F$10:$P$28,2),VLOOKUP(I170,Feuil2!$F$10:$P$28,2)))))))))))) ->  | AA170: =T170-HLOOKUP(Y170,Feuil2!$C$1:$CD$9,2,FALSE) ->  | AB170: =T170-HLOOKUP(Y170,Feuil2!$C$1:$CD$9,3,FALSE) ->  | AC170: =T170-HLOOKUP(Y170,Feuil2!$C$1:$CD$9,4,FALSE) ->  | AD170: =T170-HLOOKUP(Y170,Feuil2!$C$1:$CD$9,5,FALSE) ->  | AE170: =T170-HLOOKUP(Y170,Feuil2!$C$1:$CD$9,6,FALSE) ->  | AF170: =T170-HLOOKUP(Y170,Feuil2!$C$1:$CD$9,7,FALSE) ->  | AG170: =T170-HLOOKUP(Y170,Feuil2!$C$1:$CD$9,8,FALSE) ->  | AH170: =T170-HLOOKUP(Y170,Feuil2!$C$1:$CD$9,9,FALSE) ->  | AQ170: 2017 | AS170: =IF(AQ170,VLOOKUP(AQ170,HOM!$AS$389:$AT$444,2)) -> 4.493
A171: H | X171: FALSE | Y171: =IF(AND(H171<1920),VLOOKUP(I171,Feuil2!$F$10:$P$28,11),IF(AND(H171>=1920,H171<1939),VLOOKUP(I171,Feuil2!$F$10:$P$28,11),IF(AND(H171>=1938,H171<1943),VLOOKUP(I171,Feuil2!$F$10:$P$28,10),IF(AND(H171>=1943,H171<1948),VLOOKUP(I171,Feuil2!$F$10:$P$28,9),IF(AND(H171>=1948,H171<1953),VLOOKUP(I171,Feuil2!$F$10:$P$28,8),IF(AND(H171>=1953,H171<1958),VLOOKUP(I171,Feuil2!$F$10:$P$28,7),IF(AND(H171>=1958,H171<1963),VLOOKUP(I171,Feuil2!$F$10:$P$28,6),IF(AND(H171>=1963,H171<1968),VLOOKUP(I171,Feuil2!$F$10:$P$28,5),IF(AND(H171>=1968,H171<1973),VLOOKUP(I171,Feuil2!$F$10:$P$28,4),IF(AND(H171>=1973,H171<1978),VLOOKUP(I171,Feuil2!$F$10:$P$28,3),IF(AND(H171>=1978,H171<1983),VLOOKUP(I171,Feuil2!$F$10:$P$28,2),VLOOKUP(I171,Feuil2!$F$10:$P$28,2)))))))))))) ->  | AA171: =T171-HLOOKUP(Y171,Feuil2!$C$1:$CD$9,2,FALSE) ->  | AB171: =T171-HLOOKUP(Y171,Feuil2!$C$1:$CD$9,3,FALSE) ->  | AC171: =T171-HLOOKUP(Y171,Feuil2!$C$1:$CD$9,4,FALSE) ->  | AD171: =T171-HLOOKUP(Y171,Feuil2!$C$1:$CD$9,5,FALSE) ->  | AE171: =T171-HLOOKUP(Y171,Feuil2!$C$1:$CD$9,6,FALSE) ->  | AF171: =T171-HLOOKUP(Y171,Feuil2!$C$1:$CD$9,7,FALSE) ->  | AG171: =T171-HLOOKUP(Y171,Feuil2!$C$1:$CD$9,8,FALSE) ->  | AH171: =T171-HLOOKUP(Y171,Feuil2!$C$1:$CD$9,9,FALSE) ->  | AQ171: 2017 | AS171: =IF(AQ171,VLOOKUP(AQ171,HOM!$AS$389:$AT$444,2)) -> 4.493
A172: H | X172: FALSE | Y172: =IF(AND(H172<1920),VLOOKUP(I172,Feuil2!$F$10:$P$28,11),IF(AND(H172>=1920,H172<1939),VLOOKUP(I172,Feuil2!$F$10:$P$28,11),IF(AND(H172>=1938,H172<1943),VLOOKUP(I172,Feuil2!$F$10:$P$28,10),IF(AND(H172>=1943,H172<1948),VLOOKUP(I172,Feuil2!$F$10:$P$28,9),IF(AND(H172>=1948,H172<1953),VLOOKUP(I172,Feuil2!$F$10:$P$28,8),IF(AND(H172>=1953,H172<1958),VLOOKUP(I172,Feuil2!$F$10:$P$28,7),IF(AND(H172>=1958,H172<1963),VLOOKUP(I172,Feuil2!$F$10:$P$28,6),IF(AND(H172>=1963,H172<1968),VLOOKUP(I172,Feuil2!$F$10:$P$28,5),IF(AND(H172>=1968,H172<1973),VLOOKUP(I172,Feuil2!$F$10:$P$28,4),IF(AND(H172>=1973,H172<1978),VLOOKUP(I172,Feuil2!$F$10:$P$28,3),IF(AND(H172>=1978,H172<1983),VLOOKUP(I172,Feuil2!$F$10:$P$28,2),VLOOKUP(I172,Feuil2!$F$10:$P$28,2)))))))))))) ->  | AA172: =T172-HLOOKUP(Y172,Feuil2!$C$1:$CD$9,2,FALSE) ->  | AB172: =T172-HLOOKUP(Y172,Feuil2!$C$1:$CD$9,3,FALSE) ->  | AC172: =T172-HLOOKUP(Y172,Feuil2!$C$1:$CD$9,4,FALSE) ->  | AD172: =T172-HLOOKUP(Y172,Feuil2!$C$1:$CD$9,5,FALSE) ->  | AE172: =T172-HLOOKUP(Y172,Feuil2!$C$1:$CD$9,6,FALSE) ->  | AF172: =T172-HLOOKUP(Y172,Feuil2!$C$1:$CD$9,7,FALSE) ->  | AG172: =T172-HLOOKUP(Y172,Feuil2!$C$1:$CD$9,8,FALSE) ->  | AH172: =T172-HLOOKUP(Y172,Feuil2!$C$1:$CD$9,9,FALSE) ->  | AQ172: 2017 | AS172: =IF(AQ172,VLOOKUP(AQ172,HOM!$AS$389:$AT$444,2)) -> 4.493
A173: H | X173: FALSE | Y173: =IF(AND(H173<1920),VLOOKUP(I173,Feuil2!$F$10:$P$28,11),IF(AND(H173>=1920,H173<1939),VLOOKUP(I173,Feuil2!$F$10:$P$28,11),IF(AND(H173>=1938,H173<1943),VLOOKUP(I173,Feuil2!$F$10:$P$28,10),IF(AND(H173>=1943,H173<1948),VLOOKUP(I173,Feuil2!$F$10:$P$28,9),IF(AND(H173>=1948,H173<1953),VLOOKUP(I173,Feuil2!$F$10:$P$28,8),IF(AND(H173>=1953,H173<1958),VLOOKUP(I173,Feuil2!$F$10:$P$28,7),IF(AND(H173>=1958,H173<1963),VLOOKUP(I173,Feuil2!$F$10:$P$28,6),IF(AND(H173>=1963,H173<1968),VLOOKUP(I173,Feuil2!$F$10:$P$28,5),IF(AND(H173>=1968,H173<1973),VLOOKUP(I173,Feuil2!$F$10:$P$28,4),IF(AND(H173>=1973,H173<1978),VLOOKUP(I173,Feuil2!$F$10:$P$28,3),IF(AND(H173>=1978,H173<1983),VLOOKUP(I173,Feuil2!$F$10:$P$28,2),VLOOKUP(I173,Feuil2!$F$10:$P$28,2)))))))))))) ->  | AA173: =T173-HLOOKUP(Y173,Feuil2!$C$1:$CD$9,2,FALSE) ->  | AB173: =T173-HLOOKUP(Y173,Feuil2!$C$1:$CD$9,3,FALSE) ->  | AC173: =T173-HLOOKUP(Y173,Feuil2!$C$1:$CD$9,4,FALSE) ->  | AD173: =T173-HLOOKUP(Y173,Feuil2!$C$1:$CD$9,5,FALSE) ->  | AE173: =T173-HLOOKUP(Y173,Feuil2!$C$1:$CD$9,6,FALSE) ->  | AF173: =T173-HLOOKUP(Y173,Feuil2!$C$1:$CD$9,7,FALSE) ->  | AG173: =T173-HLOOKUP(Y173,Feuil2!$C$1:$CD$9,8,FALSE) ->  | AH173: =T173-HLOOKUP(Y173,Feuil2!$C$1:$CD$9,9,FALSE) ->  | AQ173: 2017 | AS173: =IF(AQ173,VLOOKUP(AQ173,HOM!$AS$389:$AT$444,2)) -> 4.493
A174: H | X174: FALSE | Y174: =IF(AND(H174<1920),VLOOKUP(I174,Feuil2!$F$10:$P$28,11),IF(AND(H174>=1920,H174<1939),VLOOKUP(I174,Feuil2!$F$10:$P$28,11),IF(AND(H174>=1938,H174<1943),VLOOKUP(I174,Feuil2!$F$10:$P$28,10),IF(AND(H174>=1943,H174<1948),VLOOKUP(I174,Feuil2!$F$10:$P$28,9),IF(AND(H174>=1948,H174<1953),VLOOKUP(I174,Feuil2!$F$10:$P$28,8),IF(AND(H174>=1953,H174<1958),VLOOKUP(I174,Feuil2!$F$10:$P$28,7),IF(AND(H174>=1958,H174<1963),VLOOKUP(I174,Feuil2!$F$10:$P$28,6),IF(AND(H174>=1963,H174<1968),VLOOKUP(I174,Feuil2!$F$10:$P$28,5),IF(AND(H174>=1968,H174<1973),VLOOKUP(I174,Feuil2!$F$10:$P$28,4),IF(AND(H174>=1973,H174<1978),VLOOKUP(I174,Feuil2!$F$10:$P$28,3),IF(AND(H174>=1978,H174<1983),VLOOKUP(I174,Feuil2!$F$10:$P$28,2),VLOOKUP(I174,Feuil2!$F$10:$P$28,2)))))))))))) ->  | AA174: =T174-HLOOKUP(Y174,Feuil2!$C$1:$CD$9,2,FALSE) ->  | AB174: =T174-HLOOKUP(Y174,Feuil2!$C$1:$CD$9,3,FALSE) ->  | AC174: =T174-HLOOKUP(Y174,Feuil2!$C$1:$CD$9,4,FALSE) ->  | AD174: =T174-HLOOKUP(Y174,Feuil2!$C$1:$CD$9,5,FALSE) ->  | AE174: =T174-HLOOKUP(Y174,Feuil2!$C$1:$CD$9,6,FALSE) ->  | AF174: =T174-HLOOKUP(Y174,Feuil2!$C$1:$CD$9,7,FALSE) ->  | AG174: =T174-HLOOKUP(Y174,Feuil2!$C$1:$CD$9,8,FALSE) ->  | AH174: =T174-HLOOKUP(Y174,Feuil2!$C$1:$CD$9,9,FALSE) ->  | AQ174: 2017 | AS174: =IF(AQ174,VLOOKUP(AQ174,HOM!$AS$389:$AT$444,2)) -> 4.493
A175: H | X175: FALSE | Y175: =IF(AND(H175<1920),VLOOKUP(I175,Feuil2!$F$10:$P$28,11),IF(AND(H175>=1920,H175<1939),VLOOKUP(I175,Feuil2!$F$10:$P$28,11),IF(AND(H175>=1938,H175<1943),VLOOKUP(I175,Feuil2!$F$10:$P$28,10),IF(AND(H175>=1943,H175<1948),VLOOKUP(I175,Feuil2!$F$10:$P$28,9),IF(AND(H175>=1948,H175<1953),VLOOKUP(I175,Feuil2!$F$10:$P$28,8),IF(AND(H175>=1953,H175<1958),VLOOKUP(I175,Feuil2!$F$10:$P$28,7),IF(AND(H175>=1958,H175<1963),VLOOKUP(I175,Feuil2!$F$10:$P$28,6),IF(AND(H175>=1963,H175<1968),VLOOKUP(I175,Feuil2!$F$10:$P$28,5),IF(AND(H175>=1968,H175<1973),VLOOKUP(I175,Feuil2!$F$10:$P$28,4),IF(AND(H175>=1973,H175<1978),VLOOKUP(I175,Feuil2!$F$10:$P$28,3),IF(AND(H175>=1978,H175<1983),VLOOKUP(I175,Feuil2!$F$10:$P$28,2),VLOOKUP(I175,Feuil2!$F$10:$P$28,2)))))))))))) ->  | AA175: =T175-HLOOKUP(Y175,Feuil2!$C$1:$CD$9,2,FALSE) ->  | AB175: =T175-HLOOKUP(Y175,Feuil2!$C$1:$CD$9,3,FALSE) ->  | AC175: =T175-HLOOKUP(Y175,Feuil2!$C$1:$CD$9,4,FALSE) ->  | AD175: =T175-HLOOKUP(Y175,Feuil2!$C$1:$CD$9,5,FALSE) ->  | AE175: =T175-HLOOKUP(Y175,Feuil2!$C$1:$CD$9,6,FALSE) ->  | AF175: =T175-HLOOKUP(Y175,Feuil2!$C$1:$CD$9,7,FALSE) ->  | AG175: =T175-HLOOKUP(Y175,Feuil2!$C$1:$CD$9,8,FALSE) ->  | AH175: =T175-HLOOKUP(Y175,Feuil2!$C$1:$CD$9,9,FALSE) ->  | AQ175: 2017 | AS175: =IF(AQ175,VLOOKUP(AQ175,HOM!$AS$389:$AT$444,2)) -> 4.493
A176: H | X176: FALSE | Y176: =IF(AND(H176<1920),VLOOKUP(I176,Feuil2!$F$10:$P$28,11),IF(AND(H176>=1920,H176<1939),VLOOKUP(I176,Feuil2!$F$10:$P$28,11),IF(AND(H176>=1938,H176<1943),VLOOKUP(I176,Feuil2!$F$10:$P$28,10),IF(AND(H176>=1943,H176<1948),VLOOKUP(I176,Feuil2!$F$10:$P$28,9),IF(AND(H176>=1948,H176<1953),VLOOKUP(I176,Feuil2!$F$10:$P$28,8),IF(AND(H176>=1953,H176<1958),VLOOKUP(I176,Feuil2!$F$10:$P$28,7),IF(AND(H176>=1958,H176<1963),VLOOKUP(I176,Feuil2!$F$10:$P$28,6),IF(AND(H176>=1963,H176<1968),VLOOKUP(I176,Feuil2!$F$10:$P$28,5),IF(AND(H176>=1968,H176<1973),VLOOKUP(I176,Feuil2!$F$10:$P$28,4),IF(AND(H176>=1973,H176<1978),VLOOKUP(I176,Feuil2!$F$10:$P$28,3),IF(AND(H176>=1978,H176<1983),VLOOKUP(I176,Feuil2!$F$10:$P$28,2),VLOOKUP(I176,Feuil2!$F$10:$P$28,2)))))))))))) ->  | AA176: =T176-HLOOKUP(Y176,Feuil2!$C$1:$CD$9,2,FALSE) ->  | AB176: =T176-HLOOKUP(Y176,Feuil2!$C$1:$CD$9,3,FALSE) ->  | AC176: =T176-HLOOKUP(Y176,Feuil2!$C$1:$CD$9,4,FALSE) ->  | AD176: =T176-HLOOKUP(Y176,Feuil2!$C$1:$CD$9,5,FALSE) ->  | AE176: =T176-HLOOKUP(Y176,Feuil2!$C$1:$CD$9,6,FALSE) ->  | AF176: =T176-HLOOKUP(Y176,Feuil2!$C$1:$CD$9,7,FALSE) ->  | AG176: =T176-HLOOKUP(Y176,Feuil2!$C$1:$CD$9,8,FALSE) ->  | AH176: =T176-HLOOKUP(Y176,Feuil2!$C$1:$CD$9,9,FALSE) ->  | AQ176: 2017 | AS176: =IF(AQ176,VLOOKUP(AQ176,HOM!$AS$389:$AT$444,2)) -> 4.493
A177: H | X177: FALSE | Y177: =IF(AND(H177<1920),VLOOKUP(I177,Feuil2!$F$10:$P$28,11),IF(AND(H177>=1920,H177<1939),VLOOKUP(I177,Feuil2!$F$10:$P$28,11),IF(AND(H177>=1938,H177<1943),VLOOKUP(I177,Feuil2!$F$10:$P$28,10),IF(AND(H177>=1943,H177<1948),VLOOKUP(I177,Feuil2!$F$10:$P$28,9),IF(AND(H177>=1948,H177<1953),VLOOKUP(I177,Feuil2!$F$10:$P$28,8),IF(AND(H177>=1953,H177<1958),VLOOKUP(I177,Feuil2!$F$10:$P$28,7),IF(AND(H177>=1958,H177<1963),VLOOKUP(I177,Feuil2!$F$10:$P$28,6),IF(AND(H177>=1963,H177<1968),VLOOKUP(I177,Feuil2!$F$10:$P$28,5),IF(AND(H177>=1968,H177<1973),VLOOKUP(I177,Feuil2!$F$10:$P$28,4),IF(AND(H177>=1973,H177<1978),VLOOKUP(I177,Feuil2!$F$10:$P$28,3),IF(AND(H177>=1978,H177<1983),VLOOKUP(I177,Feuil2!$F$10:$P$28,2),VLOOKUP(I177,Feuil2!$F$10:$P$28,2)))))))))))) ->  | AA177: =T177-HLOOKUP(Y177,Feuil2!$C$1:$CD$9,2,FALSE) ->  | AB177: =T177-HLOOKUP(Y177,Feuil2!$C$1:$CD$9,3,FALSE) ->  | AC177: =T177-HLOOKUP(Y177,Feuil2!$C$1:$CD$9,4,FALSE) ->  | AD177: =T177-HLOOKUP(Y177,Feuil2!$C$1:$CD$9,5,FALSE) ->  | AE177: =T177-HLOOKUP(Y177,Feuil2!$C$1:$CD$9,6,FALSE) ->  | AF177: =T177-HLOOKUP(Y177,Feuil2!$C$1:$CD$9,7,FALSE) ->  | AG177: =T177-HLOOKUP(Y177,Feuil2!$C$1:$CD$9,8,FALSE) ->  | AH177: =T177-HLOOKUP(Y177,Feuil2!$C$1:$CD$9,9,FALSE) ->  | AQ177: 2017 | AS177: =IF(AQ177,VLOOKUP(AQ177,HOM!$AS$389:$AT$444,2)) -> 4.493
A178: H | X178: FALSE | Y178: =IF(AND(H178<1920),VLOOKUP(I178,Feuil2!$F$10:$P$28,11),IF(AND(H178>=1920,H178<1939),VLOOKUP(I178,Feuil2!$F$10:$P$28,11),IF(AND(H178>=1938,H178<1943),VLOOKUP(I178,Feuil2!$F$10:$P$28,10),IF(AND(H178>=1943,H178<1948),VLOOKUP(I178,Feuil2!$F$10:$P$28,9),IF(AND(H178>=1948,H178<1953),VLOOKUP(I178,Feuil2!$F$10:$P$28,8),IF(AND(H178>=1953,H178<1958),VLOOKUP(I178,Feuil2!$F$10:$P$28,7),IF(AND(H178>=1958,H178<1963),VLOOKUP(I178,Feuil2!$F$10:$P$28,6),IF(AND(H178>=1963,H178<1968),VLOOKUP(I178,Feuil2!$F$10:$P$28,5),IF(AND(H178>=1968,H178<1973),VLOOKUP(I178,Feuil2!$F$10:$P$28,4),IF(AND(H178>=1973,H178<1978),VLOOKUP(I178,Feuil2!$F$10:$P$28,3),IF(AND(H178>=1978,H178<1983),VLOOKUP(I178,Feuil2!$F$10:$P$28,2),VLOOKUP(I178,Feuil2!$F$10:$P$28,2)))))))))))) ->  | AA178: =T178-HLOOKUP(Y178,Feuil2!$C$1:$CD$9,2,FALSE) ->  | AB178: =T178-HLOOKUP(Y178,Feuil2!$C$1:$CD$9,3,FALSE) ->  | AC178: =T178-HLOOKUP(Y178,Feuil2!$C$1:$CD$9,4,FALSE) ->  | AD178: =T178-HLOOKUP(Y178,Feuil2!$C$1:$CD$9,5,FALSE) ->  | AE178: =T178-HLOOKUP(Y178,Feuil2!$C$1:$CD$9,6,FALSE) ->  | AF178: =T178-HLOOKUP(Y178,Feuil2!$C$1:$CD$9,7,FALSE) ->  | AG178: =T178-HLOOKUP(Y178,Feuil2!$C$1:$CD$9,8,FALSE) ->  | AH178: =T178-HLOOKUP(Y178,Feuil2!$C$1:$CD$9,9,FALSE) ->  | AQ178: 2017 | AS178: =IF(AQ178,VLOOKUP(AQ178,HOM!$AS$389:$AT$444,2)) -> 4.493
A179: H | X179: FALSE | Y179: =IF(AND(H179<1920),VLOOKUP(I179,Feuil2!$F$10:$P$28,11),IF(AND(H179>=1920,H179<1939),VLOOKUP(I179,Feuil2!$F$10:$P$28,11),IF(AND(H179>=1938,H179<1943),VLOOKUP(I179,Feuil2!$F$10:$P$28,10),IF(AND(H179>=1943,H179<1948),VLOOKUP(I179,Feuil2!$F$10:$P$28,9),IF(AND(H179>=1948,H179<1953),VLOOKUP(I179,Feuil2!$F$10:$P$28,8),IF(AND(H179>=1953,H179<1958),VLOOKUP(I179,Feuil2!$F$10:$P$28,7),IF(AND(H179>=1958,H179<1963),VLOOKUP(I179,Feuil2!$F$10:$P$28,6),IF(AND(H179>=1963,H179<1968),VLOOKUP(I179,Feuil2!$F$10:$P$28,5),IF(AND(H179>=1968,H179<1973),VLOOKUP(I179,Feuil2!$F$10:$P$28,4),IF(AND(H179>=1973,H179<1978),VLOOKUP(I179,Feuil2!$F$10:$P$28,3),IF(AND(H179>=1978,H179<1983),VLOOKUP(I179,Feuil2!$F$10:$P$28,2),VLOOKUP(I179,Feuil2!$F$10:$P$28,2)))))))))))) ->  | AA179: =T179-HLOOKUP(Y179,Feuil2!$C$1:$CD$9,2,FALSE) ->  | AB179: =T179-HLOOKUP(Y179,Feuil2!$C$1:$CD$9,3,FALSE) ->  | AC179: =T179-HLOOKUP(Y179,Feuil2!$C$1:$CD$9,4,FALSE) ->  | AD179: =T179-HLOOKUP(Y179,Feuil2!$C$1:$CD$9,5,FALSE) ->  | AE179: =T179-HLOOKUP(Y179,Feuil2!$C$1:$CD$9,6,FALSE) ->  | AF179: =T179-HLOOKUP(Y179,Feuil2!$C$1:$CD$9,7,FALSE) ->  | AG179: =T179-HLOOKUP(Y179,Feuil2!$C$1:$CD$9,8,FALSE) ->  | AH179: =T179-HLOOKUP(Y179,Feuil2!$C$1:$CD$9,9,FALSE) ->  | AQ179: 2017 | AS179: =IF(AQ179,VLOOKUP(AQ179,HOM!$AS$389:$AT$444,2)) -> 4.493
A180: H | X180: FALSE | Y180: =IF(AND(H180<1920),VLOOKUP(I180,Feuil2!$F$10:$P$28,11),IF(AND(H180>=1920,H180<1939),VLOOKUP(I180,Feuil2!$F$10:$P$28,11),IF(AND(H180>=1938,H180<1943),VLOOKUP(I180,Feuil2!$F$10:$P$28,10),IF(AND(H180>=1943,H180<1948),VLOOKUP(I180,Feuil2!$F$10:$P$28,9),IF(AND(H180>=1948,H180<1953),VLOOKUP(I180,Feuil2!$F$10:$P$28,8),IF(AND(H180>=1953,H180<1958),VLOOKUP(I180,Feuil2!$F$10:$P$28,7),IF(AND(H180>=1958,H180<1963),VLOOKUP(I180,Feuil2!$F$10:$P$28,6),IF(AND(H180>=1963,H180<1968),VLOOKUP(I180,Feuil2!$F$10:$P$28,5),IF(AND(H180>=1968,H180<1973),VLOOKUP(I180,Feuil2!$F$10:$P$28,4),IF(AND(H180>=1973,H180<1978),VLOOKUP(I180,Feuil2!$F$10:$P$28,3),IF(AND(H180>=1978,H180<1983),VLOOKUP(I180,Feuil2!$F$10:$P$28,2),VLOOKUP(I180,Feuil2!$F$10:$P$28,2)))))))))))) ->  | AA180: =T180-HLOOKUP(Y180,Feuil2!$C$1:$CD$9,2,FALSE) ->  | AB180: =T180-HLOOKUP(Y180,Feuil2!$C$1:$CD$9,3,FALSE) ->  | AC180: =T180-HLOOKUP(Y180,Feuil2!$C$1:$CD$9,4,FALSE) ->  | AD180: =T180-HLOOKUP(Y180,Feuil2!$C$1:$CD$9,5,FALSE) ->  | AE180: =T180-HLOOKUP(Y180,Feuil2!$C$1:$CD$9,6,FALSE) ->  | AF180: =T180-HLOOKUP(Y180,Feuil2!$C$1:$CD$9,7,FALSE) ->  | AG180: =T180-HLOOKUP(Y180,Feuil2!$C$1:$CD$9,8,FALSE) ->  | AH180: =T180-HLOOKUP(Y180,Feuil2!$C$1:$CD$9,9,FALSE) ->  | AQ180: 2017 | AS180: =IF(AQ180,VLOOKUP(AQ180,HOM!$AS$389:$AT$444,2)) -> 4.493
A181: H | X181: FALSE | Y181: =IF(AND(H181<1920),VLOOKUP(I181,Feuil2!$F$10:$P$28,11),IF(AND(H181>=1920,H181<1939),VLOOKUP(I181,Feuil2!$F$10:$P$28,11),IF(AND(H181>=1938,H181<1943),VLOOKUP(I181,Feuil2!$F$10:$P$28,10),IF(AND(H181>=1943,H181<1948),VLOOKUP(I181,Feuil2!$F$10:$P$28,9),IF(AND(H181>=1948,H181<1953),VLOOKUP(I181,Feuil2!$F$10:$P$28,8),IF(AND(H181>=1953,H181<1958),VLOOKUP(I181,Feuil2!$F$10:$P$28,7),IF(AND(H181>=1958,H181<1963),VLOOKUP(I181,Feuil2!$F$10:$P$28,6),IF(AND(H181>=1963,H181<1968),VLOOKUP(I181,Feuil2!$F$10:$P$28,5),IF(AND(H181>=1968,H181<1973),VLOOKUP(I181,Feuil2!$F$10:$P$28,4),IF(AND(H181>=1973,H181<1978),VLOOKUP(I181,Feuil2!$F$10:$P$28,3),IF(AND(H181>=1978,H181<1983),VLOOKUP(I181,Feuil2!$F$10:$P$28,2),VLOOKUP(I181,Feuil2!$F$10:$P$28,2)))))))))))) ->  | AA181: =T181-HLOOKUP(Y181,Feuil2!$C$1:$CD$9,2,FALSE) ->  | AB181: =T181-HLOOKUP(Y181,Feuil2!$C$1:$CD$9,3,FALSE) ->  | AC181: =T181-HLOOKUP(Y181,Feuil2!$C$1:$CD$9,4,FALSE) ->  | AD181: =T181-HLOOKUP(Y181,Feuil2!$C$1:$CD$9,5,FALSE) ->  | AE181: =T181-HLOOKUP(Y181,Feuil2!$C$1:$CD$9,6,FALSE) ->  | AF181: =T181-HLOOKUP(Y181,Feuil2!$C$1:$CD$9,7,FALSE) ->  | AG181: =T181-HLOOKUP(Y181,Feuil2!$C$1:$CD$9,8,FALSE) ->  | AH181: =T181-HLOOKUP(Y181,Feuil2!$C$1:$CD$9,9,FALSE) ->  | AQ181: 2017 | AS181: =IF(AQ181,VLOOKUP(AQ181,HOM!$AS$389:$AT$444,2)) -> 4.493
A182: H | X182: FALSE | Y182: =IF(AND(H182<1920),VLOOKUP(I182,Feuil2!$F$10:$P$28,11),IF(AND(H182>=1920,H182<1939),VLOOKUP(I182,Feuil2!$F$10:$P$28,11),IF(AND(H182>=1938,H182<1943),VLOOKUP(I182,Feuil2!$F$10:$P$28,10),IF(AND(H182>=1943,H182<1948),VLOOKUP(I182,Feuil2!$F$10:$P$28,9),IF(AND(H182>=1948,H182<1953),VLOOKUP(I182,Feuil2!$F$10:$P$28,8),IF(AND(H182>=1953,H182<1958),VLOOKUP(I182,Feuil2!$F$10:$P$28,7),IF(AND(H182>=1958,H182<1963),VLOOKUP(I182,Feuil2!$F$10:$P$28,6),IF(AND(H182>=1963,H182<1968),VLOOKUP(I182,Feuil2!$F$10:$P$28,5),IF(AND(H182>=1968,H182<1973),VLOOKUP(I182,Feuil2!$F$10:$P$28,4),IF(AND(H182>=1973,H182<1978),VLOOKUP(I182,Feuil2!$F$10:$P$28,3),IF(AND(H182>=1978,H182<1983),VLOOKUP(I182,Feuil2!$F$10:$P$28,2),VLOOKUP(I182,Feuil2!$F$10:$P$28,2)))))))))))) ->  | AA182: =T182-HLOOKUP(Y182,Feuil2!$C$1:$CD$9,2,FALSE) ->  | AB182: =T182-HLOOKUP(Y182,Feuil2!$C$1:$CD$9,3,FALSE) ->  | AC182: =T182-HLOOKUP(Y182,Feuil2!$C$1:$CD$9,4,FALSE) ->  | AD182: =T182-HLOOKUP(Y182,Feuil2!$C$1:$CD$9,5,FALSE) ->  | AE182: =T182-HLOOKUP(Y182,Feuil2!$C$1:$CD$9,6,FALSE) ->  | AF182: =T182-HLOOKUP(Y182,Feuil2!$C$1:$CD$9,7,FALSE) ->  | AG182: =T182-HLOOKUP(Y182,Feuil2!$C$1:$CD$9,8,FALSE) ->  | AH182: =T182-HLOOKUP(Y182,Feuil2!$C$1:$CD$9,9,FALSE) ->  | AQ182: 2017 | AS182: =IF(AQ182,VLOOKUP(AQ182,HOM!$AS$389:$AT$444,2)) -> 4.493
A183: H | X183: FALSE | Y183: =IF(AND(H183<1920),VLOOKUP(I183,Feuil2!$F$10:$P$28,11),IF(AND(H183>=1920,H183<1939),VLOOKUP(I183,Feuil2!$F$10:$P$28,11),IF(AND(H183>=1938,H183<1943),VLOOKUP(I183,Feuil2!$F$10:$P$28,10),IF(AND(H183>=1943,H183<1948),VLOOKUP(I183,Feuil2!$F$10:$P$28,9),IF(AND(H183>=1948,H183<1953),VLOOKUP(I183,Feuil2!$F$10:$P$28,8),IF(AND(H183>=1953,H183<1958),VLOOKUP(I183,Feuil2!$F$10:$P$28,7),IF(AND(H183>=1958,H183<1963),VLOOKUP(I183,Feuil2!$F$10:$P$28,6),IF(AND(H183>=1963,H183<1968),VLOOKUP(I183,Feuil2!$F$10:$P$28,5),IF(AND(H183>=1968,H183<1973),VLOOKUP(I183,Feuil2!$F$10:$P$28,4),IF(AND(H183>=1973,H183<1978),VLOOKUP(I183,Feuil2!$F$10:$P$28,3),IF(AND(H183>=1978,H183<1983),VLOOKUP(I183,Feuil2!$F$10:$P$28,2),VLOOKUP(I183,Feuil2!$F$10:$P$28,2)))))))))))) ->  | AA183: =T183-HLOOKUP(Y183,Feuil2!$C$1:$CD$9,2,FALSE) ->  | AB183: =T183-HLOOKUP(Y183,Feuil2!$C$1:$CD$9,3,FALSE) ->  | AC183: =T183-HLOOKUP(Y183,Feuil2!$C$1:$CD$9,4,FALSE) ->  | AD183: =T183-HLOOKUP(Y183,Feuil2!$C$1:$CD$9,5,FALSE) ->  | AE183: =T183-HLOOKUP(Y183,Feuil2!$C$1:$CD$9,6,FALSE) ->  | AF183: =T183-HLOOKUP(Y183,Feuil2!$C$1:$CD$9,7,FALSE) ->  | AG183: =T183-HLOOKUP(Y183,Feuil2!$C$1:$CD$9,8,FALSE) ->  | AH183: =T183-HLOOKUP(Y183,Feuil2!$C$1:$CD$9,9,FALSE) ->  | AQ183: 2017 | AS183: =IF(AQ183,VLOOKUP(AQ183,HOM!$AS$389:$AT$444,2)) -> 4.493
A184: H | X184: FALSE | Y184: =IF(AND(H184<1920),VLOOKUP(I184,Feuil2!$F$10:$P$28,11),IF(AND(H184>=1920,H184<1939),VLOOKUP(I184,Feuil2!$F$10:$P$28,11),IF(AND(H184>=1938,H184<1943),VLOOKUP(I184,Feuil2!$F$10:$P$28,10),IF(AND(H184>=1943,H184<1948),VLOOKUP(I184,Feuil2!$F$10:$P$28,9),IF(AND(H184>=1948,H184<1953),VLOOKUP(I184,Feuil2!$F$10:$P$28,8),IF(AND(H184>=1953,H184<1958),VLOOKUP(I184,Feuil2!$F$10:$P$28,7),IF(AND(H184>=1958,H184<1963),VLOOKUP(I184,Feuil2!$F$10:$P$28,6),IF(AND(H184>=1963,H184<1968),VLOOKUP(I184,Feuil2!$F$10:$P$28,5),IF(AND(H184>=1968,H184<1973),VLOOKUP(I184,Feuil2!$F$10:$P$28,4),IF(AND(H184>=1973,H184<1978),VLOOKUP(I184,Feuil2!$F$10:$P$28,3),IF(AND(H184>=1978,H184<1983),VLOOKUP(I184,Feuil2!$F$10:$P$28,2),VLOOKUP(I184,Feuil2!$F$10:$P$28,2)))))))))))) ->  | AA184: =T184-HLOOKUP(Y184,Feuil2!$C$1:$CD$9,2,FALSE) ->  | AB184: =T184-HLOOKUP(Y184,Feuil2!$C$1:$CD$9,3,FALSE) ->  | AC184: =T184-HLOOKUP(Y184,Feuil2!$C$1:$CD$9,4,FALSE) ->  | AD184: =T184-HLOOKUP(Y184,Feuil2!$C$1:$CD$9,5,FALSE) ->  | AE184: =T184-HLOOKUP(Y184,Feuil2!$C$1:$CD$9,6,FALSE) ->  | AF184: =T184-HLOOKUP(Y184,Feuil2!$C$1:$CD$9,7,FALSE) ->  | AG184: =T184-HLOOKUP(Y184,Feuil2!$C$1:$CD$9,8,FALSE) ->  | AH184: =T184-HLOOKUP(Y184,Feuil2!$C$1:$CD$9,9,FALSE) ->  | AQ184: 2017 | AS184: =IF(AQ184,VLOOKUP(AQ184,HOM!$AS$389:$AT$444,2)) -> 4.493
A185: H | X185: FALSE | Y185: =IF(AND(H185<1920),VLOOKUP(I185,Feuil2!$F$10:$P$28,11),IF(AND(H185>=1920,H185<1939),VLOOKUP(I185,Feuil2!$F$10:$P$28,11),IF(AND(H185>=1938,H185<1943),VLOOKUP(I185,Feuil2!$F$10:$P$28,10),IF(AND(H185>=1943,H185<1948),VLOOKUP(I185,Feuil2!$F$10:$P$28,9),IF(AND(H185>=1948,H185<1953),VLOOKUP(I185,Feuil2!$F$10:$P$28,8),IF(AND(H185>=1953,H185<1958),VLOOKUP(I185,Feuil2!$F$10:$P$28,7),IF(AND(H185>=1958,H185<1963),VLOOKUP(I185,Feuil2!$F$10:$P$28,6),IF(AND(H185>=1963,H185<1968),VLOOKUP(I185,Feuil2!$F$10:$P$28,5),IF(AND(H185>=1968,H185<1973),VLOOKUP(I185,Feuil2!$F$10:$P$28,4),IF(AND(H185>=1973,H185<1978),VLOOKUP(I185,Feuil2!$F$10:$P$28,3),IF(AND(H185>=1978,H185<1983),VLOOKUP(I185,Feuil2!$F$10:$P$28,2),VLOOKUP(I185,Feuil2!$F$10:$P$28,2)))))))))))) ->  | AA185: =T185-HLOOKUP(Y185,Feuil2!$C$1:$CD$9,2,FALSE) ->  | AB185: =T185-HLOOKUP(Y185,Feuil2!$C$1:$CD$9,3,FALSE) ->  | AC185: =T185-HLOOKUP(Y185,Feuil2!$C$1:$CD$9,4,FALSE) ->  | AD185: =T185-HLOOKUP(Y185,Feuil2!$C$1:$CD$9,5,FALSE) ->  | AE185: =T185-HLOOKUP(Y185,Feuil2!$C$1:$CD$9,6,FALSE) ->  | AF185: =T185-HLOOKUP(Y185,Feuil2!$C$1:$CD$9,7,FALSE) ->  | AG185: =T185-HLOOKUP(Y185,Feuil2!$C$1:$CD$9,8,FALSE) ->  | AH185: =T185-HLOOKUP(Y185,Feuil2!$C$1:$CD$9,9,FALSE) ->  | AQ185: 2017 | AS185: =IF(AQ185,VLOOKUP(AQ185,HOM!$AS$389:$AT$444,2)) -> 4.493
A186: H | X186: FALSE | Y186: =IF(AND(H186<1920),VLOOKUP(I186,Feuil2!$F$10:$P$28,11),IF(AND(H186>=1920,H186<1939),VLOOKUP(I186,Feuil2!$F$10:$P$28,11),IF(AND(H186>=1938,H186<1943),VLOOKUP(I186,Feuil2!$F$10:$P$28,10),IF(AND(H186>=1943,H186<1948),VLOOKUP(I186,Feuil2!$F$10:$P$28,9),IF(AND(H186>=1948,H186<1953),VLOOKUP(I186,Feuil2!$F$10:$P$28,8),IF(AND(H186>=1953,H186<1958),VLOOKUP(I186,Feuil2!$F$10:$P$28,7),IF(AND(H186>=1958,H186<1963),VLOOKUP(I186,Feuil2!$F$10:$P$28,6),IF(AND(H186>=1963,H186<1968),VLOOKUP(I186,Feuil2!$F$10:$P$28,5),IF(AND(H186>=1968,H186<1973),VLOOKUP(I186,Feuil2!$F$10:$P$28,4),IF(AND(H186>=1973,H186<1978),VLOOKUP(I186,Feuil2!$F$10:$P$28,3),IF(AND(H186>=1978,H186<1983),VLOOKUP(I186,Feuil2!$F$10:$P$28,2),VLOOKUP(I186,Feuil2!$F$10:$P$28,2)))))))))))) ->  | AA186: =T186-HLOOKUP(Y186,Feuil2!$C$1:$CD$9,2,FALSE) ->  | AB186: =T186-HLOOKUP(Y186,Feuil2!$C$1:$CD$9,3,FALSE) ->  | AC186: =T186-HLOOKUP(Y186,Feuil2!$C$1:$CD$9,4,FALSE) ->  | AD186: =T186-HLOOKUP(Y186,Feuil2!$C$1:$CD$9,5,FALSE) ->  | AE186: =T186-HLOOKUP(Y186,Feuil2!$C$1:$CD$9,6,FALSE) ->  | AF186: =T186-HLOOKUP(Y186,Feuil2!$C$1:$CD$9,7,FALSE) ->  | AG186: =T186-HLOOKUP(Y186,Feuil2!$C$1:$CD$9,8,FALSE) ->  | AH186: =T186-HLOOKUP(Y186,Feuil2!$C$1:$CD$9,9,FALSE) ->  | AQ186: 2017 | AS186: =IF(AQ186,VLOOKUP(AQ186,HOM!$AS$389:$AT$444,2)) -> 4.493
A187: H | X187: FALSE | Y187: =IF(AND(H187<1920),VLOOKUP(I187,Feuil2!$F$10:$P$28,11),IF(AND(H187>=1920,H187<1939),VLOOKUP(I187,Feuil2!$F$10:$P$28,11),IF(AND(H187>=1938,H187<1943),VLOOKUP(I187,Feuil2!$F$10:$P$28,10),IF(AND(H187>=1943,H187<1948),VLOOKUP(I187,Feuil2!$F$10:$P$28,9),IF(AND(H187>=1948,H187<1953),VLOOKUP(I187,Feuil2!$F$10:$P$28,8),IF(AND(H187>=1953,H187<1958),VLOOKUP(I187,Feuil2!$F$10:$P$28,7),IF(AND(H187>=1958,H187<1963),VLOOKUP(I187,Feuil2!$F$10:$P$28,6),IF(AND(H187>=1963,H187<1968),VLOOKUP(I187,Feuil2!$F$10:$P$28,5),IF(AND(H187>=1968,H187<1973),VLOOKUP(I187,Feuil2!$F$10:$P$28,4),IF(AND(H187>=1973,H187<1978),VLOOKUP(I187,Feuil2!$F$10:$P$28,3),IF(AND(H187>=1978,H187<1983),VLOOKUP(I187,Feuil2!$F$10:$P$28,2),VLOOKUP(I187,Feuil2!$F$10:$P$28,2)))))))))))) ->  | AA187: =T187-HLOOKUP(Y187,Feuil2!$C$1:$CD$9,2,FALSE) ->  | AB187: =T187-HLOOKUP(Y187,Feuil2!$C$1:$CD$9,3,FALSE) ->  | AC187: =T187-HLOOKUP(Y187,Feuil2!$C$1:$CD$9,4,FALSE) ->  | AD187: =T187-HLOOKUP(Y187,Feuil2!$C$1:$CD$9,5,FALSE) ->  | AE187: =T187-HLOOKUP(Y187,Feuil2!$C$1:$CD$9,6,FALSE) ->  | AF187: =T187-HLOOKUP(Y187,Feuil2!$C$1:$CD$9,7,FALSE) ->  | AG187: =T187-HLOOKUP(Y187,Feuil2!$C$1:$CD$9,8,FALSE) ->  | AH187: =T187-HLOOKUP(Y187,Feuil2!$C$1:$CD$9,9,FALSE) ->  | AQ187: 2017 | AS187: =IF(AQ187,VLOOKUP(AQ187,HOM!$AS$389:$AT$444,2)) -> 4.493
A188: H | X188: FALSE | Y188: =IF(AND(H188<1920),VLOOKUP(I188,Feuil2!$F$10:$P$28,11),IF(AND(H188>=1920,H188<1939),VLOOKUP(I188,Feuil2!$F$10:$P$28,11),IF(AND(H188>=1938,H188<1943),VLOOKUP(I188,Feuil2!$F$10:$P$28,10),IF(AND(H188>=1943,H188<1948),VLOOKUP(I188,Feuil2!$F$10:$P$28,9),IF(AND(H188>=1948,H188<1953),VLOOKUP(I188,Feuil2!$F$10:$P$28,8),IF(AND(H188>=1953,H188<1958),VLOOKUP(I188,Feuil2!$F$10:$P$28,7),IF(AND(H188>=1958,H188<1963),VLOOKUP(I188,Feuil2!$F$10:$P$28,6),IF(AND(H188>=1963,H188<1968),VLOOKUP(I188,Feuil2!$F$10:$P$28,5),IF(AND(H188>=1968,H188<1973),VLOOKUP(I188,Feuil2!$F$10:$P$28,4),IF(AND(H188>=1973,H188<1978),VLOOKUP(I188,Feuil2!$F$10:$P$28,3),IF(AND(H188>=1978,H188<1983),VLOOKUP(I188,Feuil2!$F$10:$P$28,2),VLOOKUP(I188,Feuil2!$F$10:$P$28,2)))))))))))) ->  | AA188: =T188-HLOOKUP(Y188,Feuil2!$C$1:$CD$9,2,FALSE) ->  | AB188: =T188-HLOOKUP(Y188,Feuil2!$C$1:$CD$9,3,FALSE) ->  | AC188: =T188-HLOOKUP(Y188,Feuil2!$C$1:$CD$9,4,FALSE) ->  | AD188: =T188-HLOOKUP(Y188,Feuil2!$C$1:$CD$9,5,FALSE) ->  | AE188: =T188-HLOOKUP(Y188,Feuil2!$C$1:$CD$9,6,FALSE) ->  | AF188: =T188-HLOOKUP(Y188,Feuil2!$C$1:$CD$9,7,FALSE) ->  | AG188: =T188-HLOOKUP(Y188,Feuil2!$C$1:$CD$9,8,FALSE) ->  | AH188: =T188-HLOOKUP(Y188,Feuil2!$C$1:$CD$9,9,FALSE) ->  | AQ188: 2017 | AS188: =IF(AQ188,VLOOKUP(AQ188,HOM!$AS$389:$AT$444,2)) -> 4.493
A189: H | X189: FALSE | Y189: =IF(AND(H189<1920),VLOOKUP(I189,Feuil2!$F$10:$P$28,11),IF(AND(H189>=1920,H189<1939),VLOOKUP(I189,Feuil2!$F$10:$P$28,11),IF(AND(H189>=1938,H189<1943),VLOOKUP(I189,Feuil2!$F$10:$P$28,10),IF(AND(H189>=1943,H189<1948),VLOOKUP(I189,Feuil2!$F$10:$P$28,9),IF(AND(H189>=1948,H189<1953),VLOOKUP(I189,Feuil2!$F$10:$P$28,8),IF(AND(H189>=1953,H189<1958),VLOOKUP(I189,Feuil2!$F$10:$P$28,7),IF(AND(H189>=1958,H189<1963),VLOOKUP(I189,Feuil2!$F$10:$P$28,6),IF(AND(H189>=1963,H189<1968),VLOOKUP(I189,Feuil2!$F$10:$P$28,5),IF(AND(H189>=1968,H189<1973),VLOOKUP(I189,Feuil2!$F$10:$P$28,4),IF(AND(H189>=1973,H189<1978),VLOOKUP(I189,Feuil2!$F$10:$P$28,3),IF(AND(H189>=1978,H189<1983),VLOOKUP(I189,Feuil2!$F$10:$P$28,2),VLOOKUP(I189,Feuil2!$F$10:$P$28,2)))))))))))) ->  | AA189: =T189-HLOOKUP(Y189,Feuil2!$C$1:$CD$9,2,FALSE) ->  | AB189: =T189-HLOOKUP(Y189,Feuil2!$C$1:$CD$9,3,FALSE) ->  | AC189: =T189-HLOOKUP(Y189,Feuil2!$C$1:$CD$9,4,FALSE) ->  | AD189: =T189-HLOOKUP(Y189,Feuil2!$C$1:$CD$9,5,FALSE) ->  | AE189: =T189-HLOOKUP(Y189,Feuil2!$C$1:$CD$9,6,FALSE) ->  | AF189: =T189-HLOOKUP(Y189,Feuil2!$C$1:$CD$9,7,FALSE) ->  | AG189: =T189-HLOOKUP(Y189,Feuil2!$C$1:$CD$9,8,FALSE) ->  | AH189: =T189-HLOOKUP(Y189,Feuil2!$C$1:$CD$9,9,FALSE) ->  | AQ189: 2017 | AS189: =IF(AQ189,VLOOKUP(AQ189,HOM!$AS$389:$AT$444,2)) -> 4.493
A190: H | X190: FALSE | Y190: =IF(AND(H190<1920),VLOOKUP(I190,Feuil2!$F$10:$P$28,11),IF(AND(H190>=1920,H190<1939),VLOOKUP(I190,Feuil2!$F$10:$P$28,11),IF(AND(H190>=1938,H190<1943),VLOOKUP(I190,Feuil2!$F$10:$P$28,10),IF(AND(H190>=1943,H190<1948),VLOOKUP(I190,Feuil2!$F$10:$P$28,9),IF(AND(H190>=1948,H190<1953),VLOOKUP(I190,Feuil2!$F$10:$P$28,8),IF(AND(H190>=1953,H190<1958),VLOOKUP(I190,Feuil2!$F$10:$P$28,7),IF(AND(H190>=1958,H190<1963),VLOOKUP(I190,Feuil2!$F$10:$P$28,6),IF(AND(H190>=1963,H190<1968),VLOOKUP(I190,Feuil2!$F$10:$P$28,5),IF(AND(H190>=1968,H190<1973),VLOOKUP(I190,Feuil2!$F$10:$P$28,4),IF(AND(H190>=1973,H190<1978),VLOOKUP(I190,Feuil2!$F$10:$P$28,3),IF(AND(H190>=1978,H190<1983),VLOOKUP(I190,Feuil2!$F$10:$P$28,2),VLOOKUP(I190,Feuil2!$F$10:$P$28,2)))))))))))) ->  | AA190: =T190-HLOOKUP(Y190,Feuil2!$C$1:$CD$9,2,FALSE) ->  | AB190: =T190-HLOOKUP(Y190,Feuil2!$C$1:$CD$9,3,FALSE) ->  | AC190: =T190-HLOOKUP(Y190,Feuil2!$C$1:$CD$9,4,FALSE) ->  | AD190: =T190-HLOOKUP(Y190,Feuil2!$C$1:$CD$9,5,FALSE) ->  | AE190: =T190-HLOOKUP(Y190,Feuil2!$C$1:$CD$9,6,FALSE) ->  | AF190: =T190-HLOOKUP(Y190,Feuil2!$C$1:$CD$9,7,FALSE) ->  | AG190: =T190-HLOOKUP(Y190,Feuil2!$C$1:$CD$9,8,FALSE) ->  | AH190: =T190-HLOOKUP(Y190,Feuil2!$C$1:$CD$9,9,FALSE) ->  | AQ190: 2017 | AS190: =IF(AQ190,VLOOKUP(AQ190,HOM!$AS$389:$AT$444,2)) -> 4.493
A191: H | X191: FALSE | Y191: =IF(AND(H191<1920),VLOOKUP(I191,Feuil2!$F$10:$P$28,11),IF(AND(H191>=1920,H191<1939),VLOOKUP(I191,Feuil2!$F$10:$P$28,11),IF(AND(H191>=1938,H191<1943),VLOOKUP(I191,Feuil2!$F$10:$P$28,10),IF(AND(H191>=1943,H191<1948),VLOOKUP(I191,Feuil2!$F$10:$P$28,9),IF(AND(H191>=1948,H191<1953),VLOOKUP(I191,Feuil2!$F$10:$P$28,8),IF(AND(H191>=1953,H191<1958),VLOOKUP(I191,Feuil2!$F$10:$P$28,7),IF(AND(H191>=1958,H191<1963),VLOOKUP(I191,Feuil2!$F$10:$P$28,6),IF(AND(H191>=1963,H191<1968),VLOOKUP(I191,Feuil2!$F$10:$P$28,5),IF(AND(H191>=1968,H191<1973),VLOOKUP(I191,Feuil2!$F$10:$P$28,4),IF(AND(H191>=1973,H191<1978),VLOOKUP(I191,Feuil2!$F$10:$P$28,3),IF(AND(H191>=1978,H191<1983),VLOOKUP(I191,Feuil2!$F$10:$P$28,2),VLOOKUP(I191,Feuil2!$F$10:$P$28,2)))))))))))) ->  | AA191: =T191-HLOOKUP(Y191,Feuil2!$C$1:$CD$9,2,FALSE) ->  | AB191: =T191-HLOOKUP(Y191,Feuil2!$C$1:$CD$9,3,FALSE) ->  | AC191: =T191-HLOOKUP(Y191,Feuil2!$C$1:$CD$9,4,FALSE) ->  | AD191: =T191-HLOOKUP(Y191,Feuil2!$C$1:$CD$9,5,FALSE) ->  | AE191: =T191-HLOOKUP(Y191,Feuil2!$C$1:$CD$9,6,FALSE) ->  | AF191: =T191-HLOOKUP(Y191,Feuil2!$C$1:$CD$9,7,FALSE) ->  | AG191: =T191-HLOOKUP(Y191,Feuil2!$C$1:$CD$9,8,FALSE) ->  | AH191: =T191-HLOOKUP(Y191,Feuil2!$C$1:$CD$9,9,FALSE) ->  | AQ191: 2017 | AS191: =IF(AQ191,VLOOKUP(AQ191,HOM!$AS$389:$AT$444,2)) -> 4.493
A192: H | X192: FALSE | Y192: =IF(AND(H192<1920),VLOOKUP(I192,Feuil2!$F$10:$P$28,11),IF(AND(H192>=1920,H192<1939),VLOOKUP(I192,Feuil2!$F$10:$P$28,11),IF(AND(H192>=1938,H192<1943),VLOOKUP(I192,Feuil2!$F$10:$P$28,10),IF(AND(H192>=1943,H192<1948),VLOOKUP(I192,Feuil2!$F$10:$P$28,9),IF(AND(H192>=1948,H192<1953),VLOOKUP(I192,Feuil2!$F$10:$P$28,8),IF(AND(H192>=1953,H192<1958),VLOOKUP(I192,Feuil2!$F$10:$P$28,7),IF(AND(H192>=1958,H192<1963),VLOOKUP(I192,Feuil2!$F$10:$P$28,6),IF(AND(H192>=1963,H192<1968),VLOOKUP(I192,Feuil2!$F$10:$P$28,5),IF(AND(H192>=1968,H192<1973),VLOOKUP(I192,Feuil2!$F$10:$P$28,4),IF(AND(H192>=1973,H192<1978),VLOOKUP(I192,Feuil2!$F$10:$P$28,3),IF(AND(H192>=1978,H192<1983),VLOOKUP(I192,Feuil2!$F$10:$P$28,2),VLOOKUP(I192,Feuil2!$F$10:$P$28,2)))))))))))) ->  | AA192: =T192-HLOOKUP(Y192,Feuil2!$C$1:$CD$9,2,FALSE) ->  | AB192: =T192-HLOOKUP(Y192,Feuil2!$C$1:$CD$9,3,FALSE) ->  | AC192: =T192-HLOOKUP(Y192,Feuil2!$C$1:$CD$9,4,FALSE) ->  | AD192: =T192-HLOOKUP(Y192,Feuil2!$C$1:$CD$9,5,FALSE) ->  | AE192: =T192-HLOOKUP(Y192,Feuil2!$C$1:$CD$9,6,FALSE) ->  | AF192: =T192-HLOOKUP(Y192,Feuil2!$C$1:$CD$9,7,FALSE) ->  | AG192: =T192-HLOOKUP(Y192,Feuil2!$C$1:$CD$9,8,FALSE) ->  | AH192: =T192-HLOOKUP(Y192,Feuil2!$C$1:$CD$9,9,FALSE) ->  | AQ192: 2017 | AS192: =IF(AQ192,VLOOKUP(AQ192,HOM!$AS$389:$AT$444,2)) -> 4.493
A193: H | X193: FALSE | Y193: =IF(AND(H193<1920),VLOOKUP(I193,Feuil2!$F$10:$P$28,11),IF(AND(H193>=1920,H193<1939),VLOOKUP(I193,Feuil2!$F$10:$P$28,11),IF(AND(H193>=1938,H193<1943),VLOOKUP(I193,Feuil2!$F$10:$P$28,10),IF(AND(H193>=1943,H193<1948),VLOOKUP(I193,Feuil2!$F$10:$P$28,9),IF(AND(H193>=1948,H193<1953),VLOOKUP(I193,Feuil2!$F$10:$P$28,8),IF(AND(H193>=1953,H193<1958),VLOOKUP(I193,Feuil2!$F$10:$P$28,7),IF(AND(H193>=1958,H193<1963),VLOOKUP(I193,Feuil2!$F$10:$P$28,6),IF(AND(H193>=1963,H193<1968),VLOOKUP(I193,Feuil2!$F$10:$P$28,5),IF(AND(H193>=1968,H193<1973),VLOOKUP(I193,Feuil2!$F$10:$P$28,4),IF(AND(H193>=1973,H193<1978),VLOOKUP(I193,Feuil2!$F$10:$P$28,3),IF(AND(H193>=1978,H193<1983),VLOOKUP(I193,Feuil2!$F$10:$P$28,2),VLOOKUP(I193,Feuil2!$F$10:$P$28,2)))))))))))) ->  | AA193: =T193-HLOOKUP(Y193,Feuil2!$C$1:$CD$9,2,FALSE) ->  | AB193: =T193-HLOOKUP(Y193,Feuil2!$C$1:$CD$9,3,FALSE) ->  | AC193: =T193-HLOOKUP(Y193,Feuil2!$C$1:$CD$9,4,FALSE) ->  | AD193: =T193-HLOOKUP(Y193,Feuil2!$C$1:$CD$9,5,FALSE) ->  | AE193: =T193-HLOOKUP(Y193,Feuil2!$C$1:$CD$9,6,FALSE) ->  | AF193: =T193-HLOOKUP(Y193,Feuil2!$C$1:$CD$9,7,FALSE) ->  | AG193: =T193-HLOOKUP(Y193,Feuil2!$C$1:$CD$9,8,FALSE) ->  | AH193: =T193-HLOOKUP(Y193,Feuil2!$C$1:$CD$9,9,FALSE) ->  | AQ193: 2017 | AS193: =IF(AQ193,VLOOKUP(AQ193,HOM!$AS$389:$AT$444,2)) -> 4.493
A194: H | X194: FALSE | Y194: =IF(AND(H194<1920),VLOOKUP(I194,Feuil2!$F$10:$P$28,11),IF(AND(H194>=1920,H194<1939),VLOOKUP(I194,Feuil2!$F$10:$P$28,11),IF(AND(H194>=1938,H194<1943),VLOOKUP(I194,Feuil2!$F$10:$P$28,10),IF(AND(H194>=1943,H194<1948),VLOOKUP(I194,Feuil2!$F$10:$P$28,9),IF(AND(H194>=1948,H194<1953),VLOOKUP(I194,Feuil2!$F$10:$P$28,8),IF(AND(H194>=1953,H194<1958),VLOOKUP(I194,Feuil2!$F$10:$P$28,7),IF(AND(H194>=1958,H194<1963),VLOOKUP(I194,Feuil2!$F$10:$P$28,6),IF(AND(H194>=1963,H194<1968),VLOOKUP(I194,Feuil2!$F$10:$P$28,5),IF(AND(H194>=1968,H194<1973),VLOOKUP(I194,Feuil2!$F$10:$P$28,4),IF(AND(H194>=1973,H194<1978),VLOOKUP(I194,Feuil2!$F$10:$P$28,3),IF(AND(H194>=1978,H194<1983),VLOOKUP(I194,Feuil2!$F$10:$P$28,2),VLOOKUP(I194,Feuil2!$F$10:$P$28,2)))))))))))) ->  | AA194: =T194-HLOOKUP(Y194,Feuil2!$C$1:$CD$9,2,FALSE) ->  | AB194: =T194-HLOOKUP(Y194,Feuil2!$C$1:$CD$9,3,FALSE) ->  | AC194: =T194-HLOOKUP(Y194,Feuil2!$C$1:$CD$9,4,FALSE) ->  | AD194: =T194-HLOOKUP(Y194,Feuil2!$C$1:$CD$9,5,FALSE) ->  | AE194: =T194-HLOOKUP(Y194,Feuil2!$C$1:$CD$9,6,FALSE) ->  | AF194: =T194-HLOOKUP(Y194,Feuil2!$C$1:$CD$9,7,FALSE) ->  | AG194: =T194-HLOOKUP(Y194,Feuil2!$C$1:$CD$9,8,FALSE) ->  | AH194: =T194-HLOOKUP(Y194,Feuil2!$C$1:$CD$9,9,FALSE) ->  | AQ194: 2017 | AS194: =IF(AQ194,VLOOKUP(AQ194,HOM!$AS$389:$AT$444,2)) -> 4.493
A195: H | X195: FALSE | Y195: =IF(AND(H195<1920),VLOOKUP(I195,Feuil2!$F$10:$P$28,11),IF(AND(H195>=1920,H195<1939),VLOOKUP(I195,Feuil2!$F$10:$P$28,11),IF(AND(H195>=1938,H195<1943),VLOOKUP(I195,Feuil2!$F$10:$P$28,10),IF(AND(H195>=1943,H195<1948),VLOOKUP(I195,Feuil2!$F$10:$P$28,9),IF(AND(H195>=1948,H195<1953),VLOOKUP(I195,Feuil2!$F$10:$P$28,8),IF(AND(H195>=1953,H195<1958),VLOOKUP(I195,Feuil2!$F$10:$P$28,7),IF(AND(H195>=1958,H195<1963),VLOOKUP(I195,Feuil2!$F$10:$P$28,6),IF(AND(H195>=1963,H195<1968),VLOOKUP(I195,Feuil2!$F$10:$P$28,5),IF(AND(H195>=1968,H195<1973),VLOOKUP(I195,Feuil2!$F$10:$P$28,4),IF(AND(H195>=1973,H195<1978),VLOOKUP(I195,Feuil2!$F$10:$P$28,3),IF(AND(H195>=1978,H195<1983),VLOOKUP(I195,Feuil2!$F$10:$P$28,2),VLOOKUP(I195,Feuil2!$F$10:$P$28,2)))))))))))) ->  | AA195: =T195-HLOOKUP(Y195,Feuil2!$C$1:$CD$9,2,FALSE) ->  | AB195: =T195-HLOOKUP(Y195,Feuil2!$C$1:$CD$9,3,FALSE) ->  | AC195: =T195-HLOOKUP(Y195,Feuil2!$C$1:$CD$9,4,FALSE) ->  | AD195: =T195-HLOOKUP(Y195,Feuil2!$C$1:$CD$9,5,FALSE) ->  | AE195: =T195-HLOOKUP(Y195,Feuil2!$C$1:$CD$9,6,FALSE) ->  | AF195: =T195-HLOOKUP(Y195,Feuil2!$C$1:$CD$9,7,FALSE) ->  | AG195: =T195-HLOOKUP(Y195,Feuil2!$C$1:$CD$9,8,FALSE) ->  | AH195: =T195-HLOOKUP(Y195,Feuil2!$C$1:$CD$9,9,FALSE) ->  | AQ195: 2017 | AS195: =IF(AQ195,VLOOKUP(AQ195,HOM!$AS$389:$AT$444,2)) -> 4.493
A196: H | X196: FALSE | Y196: =IF(AND(H196<1920),VLOOKUP(I196,Feuil2!$F$10:$P$28,11),IF(AND(H196>=1920,H196<1939),VLOOKUP(I196,Feuil2!$F$10:$P$28,11),IF(AND(H196>=1938,H196<1943),VLOOKUP(I196,Feuil2!$F$10:$P$28,10),IF(AND(H196>=1943,H196<1948),VLOOKUP(I196,Feuil2!$F$10:$P$28,9),IF(AND(H196>=1948,H196<1953),VLOOKUP(I196,Feuil2!$F$10:$P$28,8),IF(AND(H196>=1953,H196<1958),VLOOKUP(I196,Feuil2!$F$10:$P$28,7),IF(AND(H196>=1958,H196<1963),VLOOKUP(I196,Feuil2!$F$10:$P$28,6),IF(AND(H196>=1963,H196<1968),VLOOKUP(I196,Feuil2!$F$10:$P$28,5),IF(AND(H196>=1968,H196<1973),VLOOKUP(I196,Feuil2!$F$10:$P$28,4),IF(AND(H196>=1973,H196<1978),VLOOKUP(I196,Feuil2!$F$10:$P$28,3),IF(AND(H196>=1978,H196<1983),VLOOKUP(I196,Feuil2!$F$10:$P$28,2),VLOOKUP(I196,Feuil2!$F$10:$P$28,2)))))))))))) ->  | AA196: =T196-HLOOKUP(Y196,Feuil2!$C$1:$CD$9,2,FALSE) ->  | AB196: =T196-HLOOKUP(Y196,Feuil2!$C$1:$CD$9,3,FALSE) ->  | AC196: =T196-HLOOKUP(Y196,Feuil2!$C$1:$CD$9,4,FALSE) ->  | AD196: =T196-HLOOKUP(Y196,Feuil2!$C$1:$CD$9,5,FALSE) ->  | AE196: =T196-HLOOKUP(Y196,Feuil2!$C$1:$CD$9,6,FALSE) ->  | AF196: =T196-HLOOKUP(Y196,Feuil2!$C$1:$CD$9,7,FALSE) ->  | AG196: =T196-HLOOKUP(Y196,Feuil2!$C$1:$CD$9,8,FALSE) ->  | AH196: =T196-HLOOKUP(Y196,Feuil2!$C$1:$CD$9,9,FALSE) ->  | AQ196: 2017 | AS196: =IF(AQ196,VLOOKUP(AQ196,HOM!$AS$389:$AT$444,2)) -> 4.493
A197: H | X197: FALSE | Y197: =IF(AND(H197<1920),VLOOKUP(I197,Feuil2!$F$10:$P$28,11),IF(AND(H197>=1920,H197<1939),VLOOKUP(I197,Feuil2!$F$10:$P$28,11),IF(AND(H197>=1938,H197<1943),VLOOKUP(I197,Feuil2!$F$10:$P$28,10),IF(AND(H197>=1943,H197<1948),VLOOKUP(I197,Feuil2!$F$10:$P$28,9),IF(AND(H197>=1948,H197<1953),VLOOKUP(I197,Feuil2!$F$10:$P$28,8),IF(AND(H197>=1953,H197<1958),VLOOKUP(I197,Feuil2!$F$10:$P$28,7),IF(AND(H197>=1958,H197<1963),VLOOKUP(I197,Feuil2!$F$10:$P$28,6),IF(AND(H197>=1963,H197<1968),VLOOKUP(I197,Feuil2!$F$10:$P$28,5),IF(AND(H197>=1968,H197<1973),VLOOKUP(I197,Feuil2!$F$10:$P$28,4),IF(AND(H197>=1973,H197<1978),VLOOKUP(I197,Feuil2!$F$10:$P$28,3),IF(AND(H197>=1978,H197<1983),VLOOKUP(I197,Feuil2!$F$10:$P$28,2),VLOOKUP(I197,Feuil2!$F$10:$P$28,2)))))))))))) ->  | AA197: =T197-HLOOKUP(Y197,Feuil2!$C$1:$CD$9,2,FALSE) ->  | AB197: =T197-HLOOKUP(Y197,Feuil2!$C$1:$CD$9,3,FALSE) ->  | AC197: =T197-HLOOKUP(Y197,Feuil2!$C$1:$CD$9,4,FALSE) ->  | AD197: =T197-HLOOKUP(Y197,Feuil2!$C$1:$CD$9,5,FALSE) ->  | AE197: =T197-HLOOKUP(Y197,Feuil2!$C$1:$CD$9,6,FALSE) ->  | AF197: =T197-HLOOKUP(Y197,Feuil2!$C$1:$CD$9,7,FALSE) ->  | AG197: =T197-HLOOKUP(Y197,Feuil2!$C$1:$CD$9,8,FALSE) ->  | AH197: =T197-HLOOKUP(Y197,Feuil2!$C$1:$CD$9,9,FALSE) ->  | AQ197: 2017 | AS197: =IF(AQ197,VLOOKUP(AQ197,HOM!$AS$389:$AT$444,2)) -> 4.493
A198: H | S198: =IF(I198="","",IF(MAXA(P198:R198)<=0,0,MAXA(P198:R198))) ->  | T198: =IF(I198="","",IF(OR(O198=0,S198=0),0,O198+S198)) ->  | U198: =IF(I198="","",IF(A198="H",10^(0.794358141*LOG(I198/174.393)^2)*T198*AS198,IF(A198="F",10^(0.89726074 * LOG(I198/148.026)^2)*T198*AS198,""))) ->  | V198: =IF(I198="","",AP198) ->  | W198: =IF(I198="","",IF(AH198>=0,AH198,IF(AG198>=0,AG198,IF(AF198>=0,AF198,IF(AE198>=0,AE198,IF(AD198>=0,AD198,IF(AC198>=0,AC198,IF(AB198>=0,AB198,AA198)))))))) ->  | X198: =IF(AQ198<95,IF(AQ198<=90,VLOOKUP(AQ198,$AQ$255:$AR$444,2))) -> FALSE | Y198: =IF(AND(H198<1920),VLOOKUP(I198,Feuil2!$F$10:$P$28,11),IF(AND(H198>=1920,H198<1939),VLOOKUP(I198,Feuil2!$F$10:$P$28,11),IF(AND(H198>=1938,H198<1943),VLOOKUP(I198,Feuil2!$F$10:$P$28,10),IF(AND(H198>=1943,H198<1948),VLOOKUP(I198,Feuil2!$F$10:$P$28,9),IF(AND(H198>=1948,H198<1953),VLOOKUP(I198,Feuil2!$F$10:$P$28,8),IF(AND(H198>=1953,H198<1958),VLOOKUP(I198,Feuil2!$F$10:$P$28,7),IF(AND(H198>=1958,H198<1963),VLOOKUP(I198,Feuil2!$F$10:$P$28,6),IF(AND(H198>=1963,H198<1968),VLOOKUP(I198,Feuil2!$F$10:$P$28,5),IF(AND(H198>=1968,H198<1973),VLOOKUP(I198,Feuil2!$F$10:$P$28,4),IF(AND(H198>=1973,H198<1978),VLOOKUP(I198,Feuil2!$F$10:$P$28,3),IF(AND(H198>=1978,H198<1983),VLOOKUP(I198,Feuil2!$F$10:$P$28,2),VLOOKUP(I198,Feuil2!$F$10:$P$28,2)))))))))))) ->  | AA198: =T198-HLOOKUP(Y198,Feuil2!$C$1:$CD$9,2,FALSE) ->  | AB198: =T198-HLOOKUP(Y198,Feuil2!$C$1:$CD$9,3,FALSE) ->  | AC198: =T198-HLOOKUP(Y198,Feuil2!$C$1:$CD$9,4,FALSE) ->  | AD198: =T198-HLOOKUP(Y198,Feuil2!$C$1:$CD$9,5,FALSE) ->  | AE198: =T198-HLOOKUP(Y198,Feuil2!$C$1:$CD$9,6,FALSE) ->  | AF198: =T198-HLOOKUP(Y198,Feuil2!$C$1:$CD$9,7,FALSE) ->  | AG198: =T198-HLOOKUP(Y198,Feuil2!$C$1:$CD$9,8,FALSE) ->  | AH198: =T198-HLOOKUP(Y198,Feuil2!$C$1:$CD$9,9,FALSE) ->  | AP198: =IF(AH198>=0,$AH$5,IF(AG198>=0,$AG$5,IF(AF198>=0,$AF$5,IF(AE198>=0,$AE$5,IF(AD198>=0,$AD$5,IF(AC198>=0,$AC$5,IF(AB198>=0,$AB$5,IF(AA198>=0,$AA$5,$AI$5)))))))) ->  | AQ198: =2017-H198 -> 2017 | AS198: =IF(AQ198,VLOOKUP(AQ198,HOM!$AS$389:$AT$444,2)) -> 4.493
A199: H | O199: =IF(I199="","",IF(MAXA(L199:N199)<=0,0,MAXA(L199:N199))) ->  | X199: FALSE | Y199: =IF(AND(H199<1920),VLOOKUP(I199,Feuil2!$F$10:$P$28,11),IF(AND(H199>=1920,H199<1939),VLOOKUP(I199,Feuil2!$F$10:$P$28,11),IF(AND(H199>=1938,H199<1943),VLOOKUP(I199,Feuil2!$F$10:$P$28,10),IF(AND(H199>=1943,H199<1948),VLOOKUP(I199,Feuil2!$F$10:$P$28,9),IF(AND(H199>=1948,H199<1953),VLOOKUP(I199,Feuil2!$F$10:$P$28,8),IF(AND(H199>=1953,H199<1958),VLOOKUP(I199,Feuil2!$F$10:$P$28,7),IF(AND(H199>=1958,H199<1963),VLOOKUP(I199,Feuil2!$F$10:$P$28,6),IF(AND(H199>=1963,H199<1968),VLOOKUP(I199,Feuil2!$F$10:$P$28,5),IF(AND(H199>=1968,H199<1973),VLOOKUP(I199,Feuil2!$F$10:$P$28,4),IF(AND(H199>=1973,H199<1978),VLOOKUP(I199,Feuil2!$F$10:$P$28,3),IF(AND(H199>=1978,H199<1983),VLOOKUP(I199,Feuil2!$F$10:$P$28,2),VLOOKUP(I199,Feuil2!$F$10:$P$28,2)))))))))))) ->  | AA199: =T199-HLOOKUP(Y199,Feuil2!$C$1:$CD$9,2,FALSE) ->  | AB199: =T199-HLOOKUP(Y199,Feuil2!$C$1:$CD$9,3,FALSE) ->  | AC199: =T199-HLOOKUP(Y199,Feuil2!$C$1:$CD$9,4,FALSE) ->  | AD199: =T199-HLOOKUP(Y199,Feuil2!$C$1:$CD$9,5,FALSE) ->  | AE199: =T199-HLOOKUP(Y199,Feuil2!$C$1:$CD$9,6,FALSE) ->  | AF199: =T199-HLOOKUP(Y199,Feuil2!$C$1:$CD$9,7,FALSE) ->  | AG199: =T199-HLOOKUP(Y199,Feuil2!$C$1:$CD$9,8,FALSE) ->  | AH199: =T199-HLOOKUP(Y199,Feuil2!$C$1:$CD$9,9,FALSE) ->  | AQ199: 2017 | AS199: =IF(AQ199,VLOOKUP(AQ199,HOM!$AS$389:$AT$444,2)) -> 4.493
A200: H | X200: FALSE | Y200: =IF(AND(H200<1920),VLOOKUP(I200,Feuil2!$F$10:$P$28,11),IF(AND(H200>=1920,H200<1939),VLOOKUP(I200,Feuil2!$F$10:$P$28,11),IF(AND(H200>=1938,H200<1943),VLOOKUP(I200,Feuil2!$F$10:$P$28,10),IF(AND(H200>=1943,H200<1948),VLOOKUP(I200,Feuil2!$F$10:$P$28,9),IF(AND(H200>=1948,H200<1953),VLOOKUP(I200,Feuil2!$F$10:$P$28,8),IF(AND(H200>=1953,H200<1958),VLOOKUP(I200,Feuil2!$F$10:$P$28,7),IF(AND(H200>=1958,H200<1963),VLOOKUP(I200,Feuil2!$F$10:$P$28,6),IF(AND(H200>=1963,H200<1968),VLOOKUP(I200,Feuil2!$F$10:$P$28,5),IF(AND(H200>=1968,H200<1973),VLOOKUP(I200,Feuil2!$F$10:$P$28,4),IF(AND(H200>=1973,H200<1978),VLOOKUP(I200,Feuil2!$F$10:$P$28,3),IF(AND(H200>=1978,H200<1983),VLOOKUP(I200,Feuil2!$F$10:$P$28,2),VLOOKUP(I200,Feuil2!$F$10:$P$28,2)))))))))))) ->  | AA200: =T200-HLOOKUP(Y200,Feuil2!$C$1:$CD$9,2,FALSE) ->  | AB200: =T200-HLOOKUP(Y200,Feuil2!$C$1:$CD$9,3,FALSE) ->  | AC200: =T200-HLOOKUP(Y200,Feuil2!$C$1:$CD$9,4,FALSE) ->  | AD200: =T200-HLOOKUP(Y200,Feuil2!$C$1:$CD$9,5,FALSE) ->  | AE200: =T200-HLOOKUP(Y200,Feuil2!$C$1:$CD$9,6,FALSE) ->  | AF200: =T200-HLOOKUP(Y200,Feuil2!$C$1:$CD$9,7,FALSE) ->  | AG200: =T200-HLOOKUP(Y200,Feuil2!$C$1:$CD$9,8,FALSE) ->  | AH200: =T200-HLOOKUP(Y200,Feuil2!$C$1:$CD$9,9,FALSE) ->  | AQ200: 2017 | AS200: =IF(AQ200,VLOOKUP(AQ200,HOM!$AS$389:$AT$444,2)) -> 4.493
A201: H | X201: FALSE | Y201: =IF(AND(H201<1920),VLOOKUP(I201,Feuil2!$F$10:$P$28,11),IF(AND(H201>=1920,H201<1939),VLOOKUP(I201,Feuil2!$F$10:$P$28,11),IF(AND(H201>=1938,H201<1943),VLOOKUP(I201,Feuil2!$F$10:$P$28,10),IF(AND(H201>=1943,H201<1948),VLOOKUP(I201,Feuil2!$F$10:$P$28,9),IF(AND(H201>=1948,H201<1953),VLOOKUP(I201,Feuil2!$F$10:$P$28,8),IF(AND(H201>=1953,H201<1958),VLOOKUP(I201,Feuil2!$F$10:$P$28,7),IF(AND(H201>=1958,H201<1963),VLOOKUP(I201,Feuil2!$F$10:$P$28,6),IF(AND(H201>=1963,H201<1968),VLOOKUP(I201,Feuil2!$F$10:$P$28,5),IF(AND(H201>=1968,H201<1973),VLOOKUP(I201,Feuil2!$F$10:$P$28,4),IF(AND(H201>=1973,H201<1978),VLOOKUP(I201,Feuil2!$F$10:$P$28,3),IF(AND(H201>=1978,H201<1983),VLOOKUP(I201,Feuil2!$F$10:$P$28,2),VLOOKUP(I201,Feuil2!$F$10:$P$28,2)))))))))))) ->  | AA201: =T201-HLOOKUP(Y201,Feuil2!$C$1:$CD$9,2,FALSE) ->  | AB201: =T201-HLOOKUP(Y201,Feuil2!$C$1:$CD$9,3,FALSE) ->  | AC201: =T201-HLOOKUP(Y201,Feuil2!$C$1:$CD$9,4,FALSE) ->  | AD201: =T201-HLOOKUP(Y201,Feuil2!$C$1:$CD$9,5,FALSE) ->  | AE201: =T201-HLOOKUP(Y201,Feuil2!$C$1:$CD$9,6,FALSE) ->  | AF201: =T201-HLOOKUP(Y201,Feuil2!$C$1:$CD$9,7,FALSE) ->  | AG201: =T201-HLOOKUP(Y201,Feuil2!$C$1:$CD$9,8,FALSE) ->  | AH201: =T201-HLOOKUP(Y201,Feuil2!$C$1:$CD$9,9,FALSE) ->  | AQ201: 2017 | AS201: =IF(AQ201,VLOOKUP(AQ201,HOM!$AS$389:$AT$444,2)) -> 4.493
A202: H | X202: FALSE | Y202: =IF(AND(H202<1920),VLOOKUP(I202,Feuil2!$F$10:$P$28,11),IF(AND(H202>=1920,H202<1939),VLOOKUP(I202,Feuil2!$F$10:$P$28,11),IF(AND(H202>=1938,H202<1943),VLOOKUP(I202,Feuil2!$F$10:$P$28,10),IF(AND(H202>=1943,H202<1948),VLOOKUP(I202,Feuil2!$F$10:$P$28,9),IF(AND(H202>=1948,H202<1953),VLOOKUP(I202,Feuil2!$F$10:$P$28,8),IF(AND(H202>=1953,H202<1958),VLOOKUP(I202,Feuil2!$F$10:$P$28,7),IF(AND(H202>=1958,H202<1963),VLOOKUP(I202,Feuil2!$F$10:$P$28,6),IF(AND(H202>=1963,H202<1968),VLOOKUP(I202,Feuil2!$F$10:$P$28,5),IF(AND(H202>=1968,H202<1973),VLOOKUP(I202,Feuil2!$F$10:$P$28,4),IF(AND(H202>=1973,H202<1978),VLOOKUP(I202,Feuil2!$F$10:$P$28,3),IF(AND(H202>=1978,H202<1983),VLOOKUP(I202,Feuil2!$F$10:$P$28,2),VLOOKUP(I202,Feuil2!$F$10:$P$28,2)))))))))))) ->  | AA202: =T202-HLOOKUP(Y202,Feuil2!$C$1:$CD$9,2,FALSE) ->  | AB202: =T202-HLOOKUP(Y202,Feuil2!$C$1:$CD$9,3,FALSE) ->  | AC202: =T202-HLOOKUP(Y202,Feuil2!$C$1:$CD$9,4,FALSE) ->  | AD202: =T202-HLOOKUP(Y202,Feuil2!$C$1:$CD$9,5,FALSE) ->  | AE202: =T202-HLOOKUP(Y202,Feuil2!$C$1:$CD$9,6,FALSE) ->  | AF202: =T202-HLOOKUP(Y202,Feuil2!$C$1:$CD$9,7,FALSE) ->  | AG202: =T202-HLOOKUP(Y202,Feuil2!$C$1:$CD$9,8,FALSE) ->  | AH202: =T202-HLOOKUP(Y202,Feuil2!$C$1:$CD$9,9,FALSE) ->  | AQ202: 2017 | AS202: =IF(AQ202,VLOOKUP(AQ202,HOM!$AS$389:$AT$444,2)) -> 4.493
A203: H | X203: FALSE | Y203: =IF(AND(H203<1920),VLOOKUP(I203,Feuil2!$F$10:$P$28,11),IF(AND(H203>=1920,H203<1939),VLOOKUP(I203,Feuil2!$F$10:$P$28,11),IF(AND(H203>=1938,H203<1943),VLOOKUP(I203,Feuil2!$F$10:$P$28,10),IF(AND(H203>=1943,H203<1948),VLOOKUP(I203,Feuil2!$F$10:$P$28,9),IF(AND(H203>=1948,H203<1953),VLOOKUP(I203,Feuil2!$F$10:$P$28,8),IF(AND(H203>=1953,H203<1958),VLOOKUP(I203,Feuil2!$F$10:$P$28,7),IF(AND(H203>=1958,H203<1963),VLOOKUP(I203,Feuil2!$F$10:$P$28,6),IF(AND(H203>=1963,H203<1968),VLOOKUP(I203,Feuil2!$F$10:$P$28,5),IF(AND(H203>=1968,H203<1973),VLOOKUP(I203,Feuil2!$F$10:$P$28,4),IF(AND(H203>=1973,H203<1978),VLOOKUP(I203,Feuil2!$F$10:$P$28,3),IF(AND(H203>=1978,H203<1983),VLOOKUP(I203,Feuil2!$F$10:$P$28,2),VLOOKUP(I203,Feuil2!$F$10:$P$28,2)))))))))))) ->  | AA203: =T203-HLOOKUP(Y203,Feuil2!$C$1:$CD$9,2,FALSE) ->  | AB203: =T203-HLOOKUP(Y203,Feuil2!$C$1:$CD$9,3,FALSE) ->  | AC203: =T203-HLOOKUP(Y203,Feuil2!$C$1:$CD$9,4,FALSE) ->  | AD203: =T203-HLOOKUP(Y203,Feuil2!$C$1:$CD$9,5,FALSE) ->  | AE203: =T203-HLOOKUP(Y203,Feuil2!$C$1:$CD$9,6,FALSE) ->  | AF203: =T203-HLOOKUP(Y203,Feuil2!$C$1:$CD$9,7,FALSE) ->  | AG203: =T203-HLOOKUP(Y203,Feuil2!$C$1:$CD$9,8,FALSE) ->  | AH203: =T203-HLOOKUP(Y203,Feuil2!$C$1:$CD$9,9,FALSE) ->  | AQ203: 2017 | AS203: =IF(AQ203,VLOOKUP(AQ203,HOM!$AS$389:$AT$444,2)) -> 4.493
... 133 more rows

Sheet Feuil1 (hidden)
C1: VF35-48 | D1: VF35-53 | E1: VF35-58 | F1: VF35-63 | G1: VF35-69 | H1: VF35-75 | I1: VF35+75 | J1: VF40-48 | K1: VF40-53 | L1: VF40-58 | M1: VF40-63 | N1: VF40-69 | O1: VF40-75 | P1: VF40+75 | Q1: VF45-48 | R1: VF45-53 | S1: VF45-58 | T1: VF45-63 | U1: VF45-69 | V1: VF45-75 | W1: VF45+75 | X1: VF50-48 | Y1: VF50-53 | Z1: VF50-58 | AA1: VF50-63 | AB1: VF50-69 | AC1: VF50-75 | AD1: VF50+75 | AE1: VF55-48 | AF1: VF55-53 | AG1: VF55-58 | AH1: VF55-63 | AI1: VF55-69 | AJ1: VF55-75 | AK1: VF55+75 | AL1: VF60-48 | AM1: VF60-53 | AN1: VF60-58 | AO1: VF60-63 | AP1: VF60-69 | AQ1: VF60-75 | AR1: VF60+75 | AS1: VF65-48 | AT1: VF65-53 | AU1: VF65-58 | AV1: VF65-63 | AW1: VF65-69 | AX1: VF65-75 | AY1: VF65+75 | AZ1: VF70+-48 | BA1: VF70+-53 | BB1: VF70+-58 | BC1: VF70+-63 | BD1: VF70+-69 | BE1: VF70+-75 | BF1: VF70++75
B3: REGION | C3: 55 | D3: 60 | E3: 62 | F3: 65 | G3: 70 | H3: 72 | I3: 80 | J3: 52 | K3: 55 | L3: 60 | M3: 62 | N3: 65 | O3: 67 | P3: 75 | Q3: 50 | R3: 52 | S3: 55 | T3: 60 | U3: 62 | V3: 65 | W3: 72 | X3: 45 | Y3: 47 | Z3: 52 | AA3: 55 | AB3: 57 | AC3: 60 | AD3: 67 | AE3: 42 | AF3: 45 | AG3: 47 | AH3: 50 | AI3: 52 | AJ3: 55 | AK3: 57 | AL3: 40 | AM3: 42 | AN3: 45 | AO3: 47 | AP3: 50 | AQ3: 52 | AR3: 55 | AS3: 38 | AT3: 40 | AU3: 42 | AV3: 45 | AW3: 48 | AX3: 50 | AY3: 52 | AZ3: 36 | BA3: 38 | BB3: 40 | BC3: 43 | BD3: 45 | BE3: 48 | BF3: 50
B4: France | C4: 60 | D4: 62 | E4: 67 | F4: 70 | G4: 75 | H4: 77 | I4: 85 | J4: 55 | K4: 60 | L4: 62 | M4: 65 | N4: 70 | O4: 72 | P4: 80 | Q4: 52 | R4: 55 | S4: 60 | T4: 62 | U4: 65 | V4: 67 | W4: 75 | X4: 50 | Y4: 52 | Z4: 55 | AA4: 60 | AB4: 62 | AC4: 65 | AD4: 72 | AE4: 45 | AF4: 47 | AG4: 52 | AH4: 55 | AI4: 57 | AJ4: 60 | AK4: 67 | AL4: 42 | AM4: 45 | AN4: 47 | AO4: 50 | AP4: 52 | AQ4: 55 | AR4: 57 | AS4: 40 | AT4: 42 | AU4: 45 | AV4: 47 | AW4: 50 | AX4: 52 | AY4: 55 | AZ4: 38 | BA4: 40 | BB4: 42 | BC4: 45 | BD4: 48 | BE4: 50 | BF4: 52
B5: EUROPE | C5: 70 | D5: 72 | E5: 77 | F5: 80 | G5: 85 | H5: 87 | I5: 95 | J5: 65 | K5: 70 | L5: 72 | M5: 75 | N5: 80 | O5: 82 | P5: 90 | Q5: 62 | R5: 65 | S5: 70 | T5: 72 | U5: 75 | V5: 77 | W5: 85 | X5: 60 | Y5: 62 | Z5: 65 | AA5: 70 | AB5: 72 | AC5: 75 | AD5: 82 | AE5: 55 | AF5: 57 | AG5: 62 | AH5: 65 | AI5: 67 | AJ5: 70 | AK5: 77 | AL5: 52 | AM5: 55 | AN5: 57 | AO5: 60 | AP5: 62 | AQ5: 65 | AR5: 67 | AS5: 50 | AT5: 52 | AU5: 55 | AV5: 57 | AW5: 60 | AX5: 62 | AY5: 65 | AZ5: 45 | BA5: 47 | BB5: 49 | BC5: 52 | BD5: 55 | BE5: 57 | BF5: 60
B6: MONDE | C6: 82 | D6: 90 | E6: 95 | F6: 100 | G6: 102 | H6: 107 | I6: 112 | J6: 80 | K6: 85 | L6: 90 | M6: 95 | N6: 97 | O6: 100 | P6: 105 | Q6: 72 | R6: 77 | S6: 82 | T6: 85 | U6: 90 | V6: 92 | W6: 97 | X6: 67 | Y6: 72 | Z6: 75 | AA6: 77 | AB6: 82 | AC6: 85 | AD6: 90 | AE6: 60 | AF6: 65 | AG6: 67 | AH6: 70 | AI6: 75 | AJ6: 77 | AK6: 82 | AL6: 55 | AM6: 57 | AN6: 62 | AO6: 65 | AP6: 67 | AQ6: 70 | AR6: 72 | AS6: 50 | AT6: 52 | AU6: 55 | AV6: 57 | AW6: 60 | AX6: 62 | AY6: 65 | AZ6: 46 | BA6: 48 | BB6: 50 | BC6: 53 | BD6: 56 | BE6: 58 | BF6: 61
B7: INTERNATIONAL B | C7: 1000 | D7: 1000 | E7: 1000 | F7: 1000 | G7: 1000 | H7: 1000 | I7: 1000 | J7: 1000 | K7: 1000 | L7: 1000 | M7: 1000 | N7: 1000 | O7: 1000 | P7: 1000 | Q7: 1000 | R7: 1000 | S7: 1000 | T7: 1000 | U7: 1000 | V7: 1000 | W7: 1000 | X7: 1000 | Y7: 1000 | Z7: 1000 | AA7: 1000 | AB7: 1000 | AC7: 1000 | AD7: 1000 | AE7: 1000 | AF7: 1000 | AG7: 1000 | AH7: 1000 | AI7: 1000 | AJ7: 1000 | AK7: 1000 | AL7: 1000 | AM7: 1000 | AN7: 1000 | AO7: 1000 | AP7: 1000 | AQ7: 1000 | AR7: 1000 | AS7: 1000 | AT7: 1000 | AU7: 1000 | AV7: 1000 | AW7: 1000 | AX7: 1000 | AY7: 1000 | AZ7: 1000 | BA7: 1000 | BB7: 1000 | BC7: 1000 | BD7: 1000 | BE7: 1000 | BF7: 1000
B8: INTERNATIONAL A | C8: 1000 | D8: 1000 | E8: 1000 | F8: 1000 | G8: 1000 | H8: 1000 | I8: 1000 | J8: 1000 | K8: 1000 | L8: 1000 | M8: 1000 | N8: 1000 | O8: 1000 | P8: 1000 | Q8: 1000 | R8: 1000 | S8: 1000 | T8: 1000 | U8: 1000 | V8: 1000 | W8: 1000 | X8: 1000 | Y8: 1000 | Z8: 1000 | AA8: 1000 | AB8: 1000 | AC8: 1000 | AD8: 1000 | AE8: 1000 | AF8: 1000 | AG8: 1000 | AH8: 1000 | AI8: 1000 | AJ8: 1000 | AK8: 1000 | AL8: 1000 | AM8: 1000 | AN8: 1000 | AO8: 1000 | AP8: 1000 | AQ8: 1000 | AR8: 1000 | AS8: 1000 | AT8: 1000 | AU8: 1000 | AV8: 1000 | AW8: 1000 | AX8: 1000 | AY8: 1000 | AZ8: 1000 | BA8: 1000 | BB8: 1000 | BC8: 1000 | BD8: 1000 | BE8: 1000 | BF8: 1000
B9: OLYMPIQUE | C9: 1000 | D9: 1000 | E9: 1000 | F9: 1000 | G9: 1000 | H9: 1000 | I9: 1000 | J9: 1000 | K9: 1000 | L9: 1000 | M9: 1000 | N9: 1000 | O9: 1000 | P9: 1000 | Q9: 1000 | R9: 1000 | S9: 1000 | T9: 1000 | U9: 1000 | V9: 1000 | W9: 1000 | X9: 1000 | Y9: 1000 | Z9: 1000 | AA9: 1000 | AB9: 1000 | AC9: 1000 | AD9: 1000 | AE9: 1000 | AF9: 1000 | AG9: 1000 | AH9: 1000 | AI9: 1000 | AJ9: 1000 | AK9: 1000 | AL9: 1000 | AM9: 1000 | AN9: 1000 | AO9: 1000 | AP9: 1000 | AQ9: 1000 | AR9: 1000 | AS9: 1000 | AT9: 1000 | AU9: 1000 | AV9: 1000 | AW9: 1000 | AX9: 1000 | AY9: 1000 | AZ9: 1000 | BA9: 1000 | BB9: 1000 | BC9: 1000 | BD9: 1000 | BE9: 1000 | BF9: 1000
G10: VF35 | H10: VF40 | I10: VF45 | J10: VF50 | K10: VF55 | L10: VF60 | M10: VF65 | N10: VF70+
F11: 20.01 | G11: VF35-48 | H11: VF40-48 | I11: VF45-48 | J11: VF50-48 | K11: VF55-48 | L11: VF60-48 | M11: VF65-48 | N11: VF70+-48
F12: 30.01 | G12: VF35-48 | H12: VF40-48 | I12: VF45-48 | J12: VF50-48 | K12: VF55-48 | L12: VF60-48 | M12: VF65-48 | N12: VF70+-48
F13: 35.01 | G13: VF35-48 | H13: VF40-48 | I13: VF45-48 | J13: VF50-48 | K13: VF55-48 | L13: VF60-48 | M13: VF65-48 | N13: VF70+-48
F14: 36.01 | G14: VF35-48 | H14: VF40-48 | I14: VF45-48 | J14: VF50-48 | K14: VF55-48 | L14: VF60-48 | M14: VF65-48 | N14: VF70+-48
F15: 40.01 | G15: VF35-48 | H15: VF40-48 | I15: VF45-48 | J15: VF50-48 | K15: VF55-48 | L15: VF60-48 | M15: VF65-48 | N15: VF70+-48
F16: 44.01 | G16: VF35-48 | H16: VF40-48 | I16: VF45-48 | J16: VF50-48 | K16: VF55-48 | L16: VF60-48 | M16: VF65-48 | N16: VF70+-48
F17: 48.01 | G17: VF35-53 | H17: VF40-53 | I17: VF45-53 | J17: VF50-53 | K17: VF55-53 | L17: VF60-53 | M17: VF65-53 | N17: VF70+-53
F18: 53.01 | G18: VF35-58 | H18: VF40-58 | I18: VF45-58 | J18: VF50-58 | K18: VF55-58 | L18: VF60-58 | M18: VF65-58 | N18: VF70+-58
F19: 58.01 | G19: VF35-63 | H19: VF40-63 | I19: VF45-63 | J19: VF50-63 | K19: VF55-63 | L19: VF60-63 | M19: VF65-63 | N19: VF70+-63
F20: 63.01 | G20: VF35-69 | H20: VF40-69 | I20: VF45-69 | J20: VF50-69 | K20: VF55-69 | L20: VF60-69 | M20: VF65-69 | N20: VF70+-69
F21: 69.01 | G21: VF35-75 | H21: VF40-75 | I21: VF45-75 | J21: VF50-75 | K21: VF55-75 | L21: VF60-75 | M21: VF65-75 | N21: VF70+-75
F22: 75.01 | G22: VF35+75 | H22: VF40+75 | I22: VF45+75 | J22: VF50+75 | K22: VF55+75 | L22: VF60+75 | M22: VF65+75 | N22: VF70++75
F23: 110 | G23: VF35+75 | H23: VF40+75 | I23: VF45+75 | J23: VF50+75 | K23: VF55+75 | L23: VF60+75 | M23: VF65+75 | N23: VF70++75
F24: 140 | G24: VF35+75 | H24: VF40+75 | I24: VF45+75 | J24: VF50+75 | K24: VF55+75 | L24: VF60+75 | M24: VF65+75 | N24: VF70++75

Sheet Feuil2 (hidden)
C1: VH35-56 | D1: VH35-62 | E1: VH35-69 | F1: VH35-77 | G1: VH35-85 | H1: VH35-94 | I1: VH35-105 | J1: VH35+105 | K1: VH40-56 | L1: VH40-62 | M1: VH40-69 | N1: VH40-77 | O1: VH40-85 | P1: VH40-94 | Q1: VH40-105 | R1: VH40+105 | S1: VH45-56 | T1: VH45-62 | U1: VH45-69 | V1: VH45-77 | W1: VH45-85 | X1: VH45-94 | Y1: VH45-105 | Z1: VH45+105 | AA1: VH50-56 | AB1: VH50-62 | AC1: VH50-69 | AD1: VH50-77 | AE1: VH50-85 | AF1: VH50-94 | AG1: VH50-105 | AH1: VH50+105 | AI1: VH55-56 | AJ1: VH55-62 | AK1: VH55-69 | AL1: VH55-77 | AM1: VH55-85 | AN1: VH55-94 | AO1: VH55-105 | AP1: VH55+105 | AQ1: VH60-56 | AR1: VH60-62 | AS1: VH60-69 | AT1: VH60-77 | AU1: VH60-85 | AV1: VH60-94 | AW1: VH60-105 | AX1: VH60+105 | AY1: VH65-56 | AZ1: VH65-62 | BA1: VH65-69 | BB1: VH65-77 | BC1: VH65-85 | BD1: VH65-94 | BE1: VH65-105 | BF1: VH65+105 | BG1: VH70-56 | BH1: VH70-62 | BI1: VH70-69 | BJ1: VH70-77 | BK1: VH70-85 | BL1: VH70-94 | BM1: VH70-105 | BN1: VH70+105 | BO1: VH75-56 | BP1: VH75-62 | BQ1: VH75-69 | BR1: VH75-77 | BS1: VH75-85 | BT1: VH75-94 | BU1: VH75-105 | BV1: VH75+105 | BW1: VH80+-56 | BX1: VH80+-62 | BY1: VH80+-69 | BZ1: VH80+-77 | CA1: VH80+-85 | CB1: VH80+-94 | CC1: VH80+-105 | CD1: VH80++105
B3: REGION | C3: 117 | D3: 132 | E3: 147 | F3: 162 | G3: 172 | H3: 182 | I3: 190 | J3: 197 | K3: 110 | L3: 125 | M3: 140 | N3: 152 | O3: 162 | P3: 172 | Q3: 180 | R3: 187 | S3: 105 | T3: 117 | U3: 130 | V3: 145 | W3: 155 | X3: 162 | Y3: 170 | Z3: 177 | AA3: 95 | AB3: 107 | AC3: 120 | AD3: 130 | AE3: 140 | AF3: 147 | AG3: 155 | AH3: 162 | AI3: 82 | AJ3: 92 | AK3: 105 | AL3: 115 | AM3: 122 | AN3: 130 | AO3: 137 | AP3: 145 | AQ3: 72 | AR3: 82 | AS3: 92 | AT3: 102 | AU3: 110 | AV3: 117 | AW3: 122 | AX3: 130 | AY3: 60 | AZ3: 70 | BA3: 77 | BB3: 87 | BC3: 92 | BD3: 100 | BE3: 102 | BF3: 107 | BG3: 47 | BH3: 55 | BI3: 62 | BJ3: 70 | BK3: 75 | BL3: 80 | BM3: 82 | BN3: 87 | BO3: 42 | BP3: 47 | BQ3: 55 | BR3: 62 | BS3: 67 | BT3: 70 | BU3: 75 | BV3: 80 | BW3: 40 | BX3: 45 | BY3: 50 | BZ3: 60 | CA3: 63 | CB3: 64 | CC3: 69 | CD3: 70 | CE3: REGIONAL
B4: France | C4: 127 | D4: 142 | E4: 157 | F4: 172 | G4: 182 | H4: 192 | I4: 200 | J4: 202 | K4: 120 | L4: 135 | M4: 150 | N4: 162 | O4: 172 | P4: 182 | Q4: 190 | R4: 197 | S4: 115 | T4: 127 | U4: 140 | V4: 155 | W4: 165 | X4: 172 | Y4: 180 | Z4: 187 | AA4: 105 | AB4: 117 | AC4: 130 | AD4: 140 | AE4: 150 | AF4: 157 | AG4: 165 | AH4: 172 | AI4: 92 | AJ4: 102 | AK4: 115 | AL4: 125 | AM4: 132 | AN4: 140 | AO4: 147 | AP4: 155 | AQ4: 82 | AR4: 92 | AS4: 102 | AT4: 112 | AU4: 120 | AV4: 127 | AW4: 132 | AX4: 140 | AY4: 70 | AZ4: 80 | BA4: 87 | BB4: 97 | BC4: 102 | BD4: 110 | BE4: 112 | BF4: 117 | BG4: 57 | BH4: 65 | BI4: 72 | BJ4: 80 | BK4: 85 | BL4: 90 | BM4: 92 | BN4: 97 | BO4: 52 | BP4: 57 | BQ4: 65 | BR4: 72 | BS4: 77 | BT4: 80 | BU4: 85 | BV4: 90 | BW4: 50 | BX4: 55 | BY4: 58 | BZ4: 62 | CA4: 64 | CB4: 65 | CC4: 70 | CD4: 75 | CE4: France
B5: EUROPE | C5: 137 | D5: 152 | E5: 167 | F5: 182 | G5: 192 | H5: 202 | I5: 210 | J5: 217 | K5: 130 | L5: 145 | M5: 160 | N5: 172 | O5: 182 | P5: 192 | Q5: 200 | R5: 207 | S5: 125 | T5: 137 | U5: 150 | V5: 165 | W5: 175 | X5: 182 | Y5: 190 | Z5: 197 | AA5: 115 | AB5: 127 | AC5: 140 | AD5: 150 | AE5: 160 | AF5: 167 | AG5: 175 | AH5: 182 | AI5: 102 | AJ5: 112 | AK5: 125 | AL5: 135 | AM5: 142 | AN5: 150 | AO5: 157 | AP5: 165 | AQ5: 92 | AR5: 102 | AS5: 112 | AT5: 122 | AU5: 130 | AV5: 137 | AW5: 142 | AX5: 150 | AY5: 80 | AZ5: 90 | BA5: 97 | BB5: 107 | BC5: 112 | BD5: 120 | BE5: 122 | BF5: 127 | BG5: 67 | BH5: 75 | BI5: 82 | BJ5: 90 | BK5: 95 | BL5: 100 | BM5: 102 | BN5: 107 | BO5: 62 | BP5: 67 | BQ5: 75 | BR5: 82 | BS5: 87 | BT5: 90 | BU5: 95 | BV5: 100 | BW5: 54 | BX5: 56 | BY5: 59 | BZ5: 64 | CA5: 69 | CB5: 71 | CC5: 76 | CD5: 79 | CE5: EUROPE
B6: MONDE | C6: 155 | D6: 172 | E6: 187 | F6: 202 | G6: 215 | H6: 227 | I6: 237 | J6: 245 | K6: 147 | L6: 162 | M6: 177 | N6: 192 | O6: 205 | P6: 215 | Q6: 225 | R6: 232 | S6: 140 | T6: 155 | U6: 170 | V6: 185 | W6: 195 | X6: 205 | Y6: 212 | Z6: 222 | AA6: 130 | AB6: 142 | AC6: 157 | AD6: 170 | AE6: 180 | AF6: 190 | AG6: 197 | AH6: 205 | AI6: 115 | AJ6: 127 | AK6: 140 | AL6: 152 | AM6: 162 | AN6: 170 | AO6: 177 | AP6: 182 | AQ6: 105 | AR6: 117 | AS6: 127 | AT6: 137 | AU6: 147 | AV6: 155 | AW6: 160 | AX6: 167 | AY6: 92 | AZ6: 102 | BA6: 112 | BB6: 120 | BC6: 127 | BD6: 135 | BE6: 140 | BF6: 145 | BG6: 75 | BH6: 82 | BI6: 90 | BJ6: 97 | BK6: 102 | BL6: 107 | BM6: 112 | BN6: 117 | BO6: 67 | BP6: 75 | BQ6: 82 | BR6: 87 | BS6: 95 | BT6: 97 | BU6: 102 | BV6: 107 | BW6: 55 | BX6: 57 | BY6: 60 | BZ6: 65 | CA6: 70 | CB6: 72 | CC6: 77 | CD6: 80 | CE6: MONDE
B7: INTERNATIONAL B | C7: 1000 | D7: 1000 | E7: 1000 | F7: 1000 | G7: 1000 | H7: 1000 | I7: 1000 | J7: 1000 | K7: 1000 | L7: 1000 | M7: 1000 | N7: 1000 | O7: 1000 | P7: 1000 | Q7: 1000 | R7: 1000 | S7: 1000 | T7: 1000 | U7: 1000 | V7: 1000 | W7: 1000 | X7: 1000 | Y7: 1000 | Z7: 1000 | AA7: 1000 | AB7: 1000 | AC7: 1000 | AD7: 1000 | AE7: 1000 | AF7: 1000 | AG7: 1000 | AH7: 1000 | AI7: 1000 | AJ7: 1000 | AK7: 1000 | AL7: 1000 | AM7: 1000 | AN7: 1000 | AO7: 1000 | AP7: 1000 | AQ7: 1000 | AR7: 1000 | AS7: 1000 | AT7: 1000 | AU7: 1000 | AV7: 1000 | AW7: 1000 | AX7: 1000 | AY7: 1000 | AZ7: 1000 | BA7: 1000 | BB7: 1000 | BC7: 1000 | BD7: 1000 | BE7: 1000 | BF7: 1000 | BG7: 1000 | BH7: 1000 | BI7: 1000 | BJ7: 1000 | BK7: 1000 | BL7: 1000 | BM7: 1000 | BN7: 1000 | BO7: 1000 | BP7: 1000 | BQ7: 1000 | BR7: 1000 | BS7: 1000 | BT7: 1000 | BU7: 1000 | BV7: 1000 | BW7: 1000 | BX7: 1000 | BY7: 1000 | BZ7: 1000 | CA7: 1000 | CB7: 1000 | CC7: 1000 | CD7: 1000
B8: INTERNATIONAL A | C8: 1000 | D8: 1000 | E8: 1000 | F8: 1000 | G8: 1000 | H8: 1000 | I8: 1000 | J8: 1000 | K8: 1000 | L8: 1000 | M8: 1000 | N8: 1000 | O8: 1000 | P8: 1000 | Q8: 1000 | R8: 1000 | S8: 1000 | T8: 1000 | U8: 1000 | V8: 1000 | W8: 1000 | X8: 1000 | Y8: 1000 | Z8: 1000 | AA8: 1000 | AB8: 1000 | AC8: 1000 | AD8: 1000 | AE8: 1000 | AF8: 1000 | AG8: 1000 | AH8: 1000 | AI8: 1000 | AJ8: 1000 | AK8: 1000 | AL8: 1000 | AM8: 1000 | AN8: 1000 | AO8: 1000 | AP8: 1000 | AQ8: 1000 | AR8: 1000 | AS8: 1000 | AT8: 1000 | AU8: 1000 | AV8: 1000 | AW8: 1000 | AX8: 1000 | AY8: 1000 | AZ8: 1000 | BA8: 1000 | BB8: 1000 | BC8: 1000 | BD8: 1000 | BE8: 1000 | BF8: 1000 | BG8: 1000 | BH8: 1000 | BI8: 1000 | BJ8: 1000 | BK8: 1000 | BL8: 1000 | BM8: 1000 | BN8: 1000 | BO8: 1000 | BP8: 1000 | BQ8: 1000 | BR8: 1000 | BS8: 1000 | BT8: 1000 | BU8: 1000 | BV8: 1000 | BW8: 1000 | BX8: 1000 | BY8: 1000 | BZ8: 1000 | CA8: 1000 | CB8: 1000 | CC8: 1000 | CD8: 1000
B9: OLYMPIQUE | C9: 1000 | D9: 1000 | E9: 1000 | F9: 1000 | G9: 1000 | H9: 1000 | I9: 1000 | J9: 1000 | K9: 1000 | L9: 1000 | M9: 1000 | N9: 1000 | O9: 1000 | P9: 1000 | Q9: 1000 | R9: 1000 | S9: 1000 | T9: 1000 | U9: 1000 | V9: 1000 | W9: 1000 | X9: 1000 | Y9: 1000 | Z9: 1000 | AA9: 1000 | AB9: 1000 | AC9: 1000 | AD9: 1000 | AE9: 1000 | AF9: 1000 | AG9: 1000 | AH9: 1000 | AI9: 1000 | AJ9: 1000 | AK9: 1000 | AL9: 1000 | AM9: 1000 | AN9: 1000 | AO9: 1000 | AP9: 1000 | AQ9: 1000 | AR9: 1000 | AS9: 1000 | AT9: 1000 | AU9: 1000 | AV9: 1000 | AW9: 1000 | AX9: 1000 | AY9: 1000 | AZ9: 1000 | BA9: 1000 | BB9: 1000 | BC9: 1000 | BD9: 1000 | BE9: 1000 | BF9: 1000 | BG9: 1000 | BH9: 1000 | BI9: 1000 | BJ9: 1000 | BK9: 1000 | BL9: 1000 | BM9: 1000 | BN9: 1000 | BO9: 1000 | BP9: 1000 | BQ9: 1000 | BR9: 1000 | BS9: 1000 | BT9: 1000 | BU9: 1000 | BV9: 1000 | BW9: 1000 | BX9: 1000 | BY9: 1000 | BZ9: 1000 | CA9: 1000 | CB9: 1000 | CC9: 1000 | CD9: 1000
G10: VH35 | H10: VH40 | I10: VH45 | J10: VH50 | K10: VH55 | L10: VH60 | M10: VH65 | N10: VH70 | O10: VH75 | P10: VH80+
F11: 20.01 | G11: VH35-56 | H11: VH40-56 | I11: VH45-56 | J11: VH50-56 | K11: VH55-56 | L11: VH60-56 | M11: VH65-56 | N11: VH70-56 | O11: VH75-56 | P11: VH80+-56
F12: 34.01 | G12: VH35-56 | H12: VH40-56 | I12: VH45-56 | J12: VH50-56 | K12: VH55-56 | L12: VH60-56 | M12: VH65-56 | N12: VH70-56 | O12: VH75-56 | P12: VH80+-56
F13: 38.01 | G13: VH35-56 | H13: VH40-56 | I13: VH45-56 | J13: VH50-56 | K13: VH55-56 | L13: VH60-56 | M13: VH65-56 | N13: VH70-56 | O13: VH75-56 | P13: VH80+-56
F14: 40.01 | G14: VH35-56 | H14: VH40-56 | I14: VH45-56 | J14: VH50-56 | K14: VH55-56 | L14: VH60-56 | M14: VH65-56 | N14: VH70-56 | O14: VH75-56 | P14: VH80+-56
F15: 45.01 | G15: VH35-56 | H15: VH40-56 | I15: VH45-56 | J15: VH50-56 | K15: VH55-56 | L15: VH60-56 | M15: VH65-56 | N15: VH70-56 | O15: VH75-56 | P15: VH80+-56
F16: 50.01 | G16: VH35-56 | H16: VH40-56 | I16: VH45-56 | J16: VH50-56 | K16: VH55-56 | L16: VH60-56 | M16: VH65-56 | N16: VH70-56 | O16: VH75-56 | P16: VH80+-56
F17: 52.05 | G17: VH35-56 | H17: VH40-56 | I17: VH45-56 | J17: VH50-56 | K17: VH55-56 | L17: VH60-56 | M17: VH65-56 | N17: VH70-56 | O17: VH75-56 | P17: VH80+-56
F18: 56.01 | G18: VH35-62 | H18: VH40-62 | I18: VH45-62 | J18: VH50-62 | K18: VH55-62 | L18: VH60-62 | M18: VH65-62 | N18: VH70-62 | O18: VH75-62 | P18: VH80+-62
F19: 62.01 | G19: VH35-69 | H19: VH40-69 | I19: VH45-69 | J19: VH50-69 | K19: VH55-69 | L19: VH60-69 | M19: VH65-69 | N19: VH70-69 | O19: VH75-69 | P19: VH80+-69
F20: 69.01 | G20: VH35-77 | H20: VH40-77 | I20: VH45-77 | J20: VH50-77 | K20: VH55-77 | L20: VH60-77 | M20: VH65-77 | N20: VH70-77 | O20: VH75-77 | P20: VH80+-77
F21: 77.01 | G21: VH35-85 | H21: VH40-85 | I21: VH45-85 | J21: VH50-85 | K21: VH55-85 | L21: VH60-85 | M21: VH65-85 | N21: VH70-85 | O21: VH75-85 | P21: VH80+-85
F22: 85.01 | G22: VH35-94 | H22: VH40-94 | I22: VH45-94 | J22: VH50-94 | K22: VH55-94 | L22: VH60-94 | M22: VH65-94 | N22: VH70-94 | O22: VH75-94 | P22: VH80+-94
F23: 94.01 | G23: VH35-105 | H23: VH40-105 | I23: VH45-105 | J23: VH50-105 | K23: VH55-105 | L23: VH60-105 | M23: VH65-105 | N23: VH70-105 | O23: VH75-105 | P23: VH80+-105
F24: 105.01 | G24: VH35+105 | H24: VH40+105 | I24: VH45+105 | J24: VH50+105 | K24: VH55+105 | L24: VH60+105 | M24: VH65+105 | N24: VH70+105 | O24: VH75+105 | P24: VH80++105
F25: 110 | G25: VH35+105 | H25: VH40+105 | I25: VH45+105 | J25: VH50+105 | K25: VH55+105 | L25: VH60+105 | M25: VH65+105 | N25: VH70+105 | O25: VH75+105 | P25: VH80++105
F26: 120 | G26: VH35+105 | H26: VH40+105 | I26: VH45+105 | J26: VH50+105 | K26: VH55+105 | L26: VH60+105 | M26: VH65+105 | N26: VH70+105 | O26: VH75+105 | P26: VH80++105
F27: 130 | G27: VH35+105 | H27: VH40+105 | I27: VH45+105 | J27: VH50+105 | K27: VH55+105 | L27: VH60+105 | M27: VH65+105 | N27: VH70+105 | O27: VH75+105 | P27: VH80++105
F28: 140 | G28: VH35+105 | H28: VH40+105 | I28: VH45+105 | J28: VH50+105 | K28: VH55+105 | L28: VH60+105 | M28: VH65+105 | N28: VH70+105 | O28: VH75+105 | P28: VH80++105
F30: 30 | G30: 1
F31: 31 | G31: 1.016
F32: 32 | G32: 1.031
F33: 33 | G33: 1.046
F34: 34 | G34: 1.059
F35: 35 | G35: 1.072 | H35: 1.072
F36: 36 | G36: 1.083 | H36: 1.083
F37: 37 | G37: 1.096 | H37: 1.096
F38: 38 | G38: 1.109 | H38: 1.109
F39: 39 | G39: 1.122 | H39: 1.122
F40: 40 | G40: 1.135 | H40: 1.135
F41: 41 | G41: 1.149 | H41: 1.149
F42: 42 | G42: 1.162 | H42: 1.162
F43: 43 | G43: 1.176 | H43: 1.176
F44: 44 | G44: 1.189 | H44: 1.189
F45: 45 | G45: 1.203 | H45: 1.203
F46: 46 | G46: 1.218 | H46: 1.218
F47: 47 | G47: 1.233 | H47: 1.233
F48: 48 | G48: 1.248 | H48: 1.248
F49: 49 | G49: 1.263 | H49: 1.263
F50: 50 | G50: 1.279 | H50: 1.279
F51: 51 | G51: 1.297 | H51: 1.297
F52: 52 | G52: 1.316 | H52: 1.316
F53: 53 | G53: 1.338 | H53: 1.338
F54: 54 | G54: 1.361 | H54: 1.361
F55: 55 | G55: 1.385 | H55: 1.385
F56: 56 | G56: 1.411 | H56: 1.411
F57: 57 | G57: 1.437 | H57: 1.437
F58: 58 | G58: 1.462 | H58: 1.462
F59: 59 | G59: 1.488 | H59: 1.488
F60: 60 | G60: 1.514 | H60: 1.514
F61: 61 | G61: 1.541 | H61: 1.541
F62: 62 | G62: 1.568 | H62: 1.568
F63: 63 | G63: 1.598 | H63: 1.598
F64: 64 | G64: 1.629 | H64: 1.629
F65: 65 | G65: 1.663 | H65: 1.663
F66: 66 | G66: 1.699 | H66: 1.699
F67: 67 | G67: 1.738 | H67: 1.738
F68: 68 | G68: 1.779 | H68: 1.779
F69: 69 | G69: 1.823 | H69: 1.823
F70: 70 | G70: 1.867 | H70: 1.867
F71: 71 | G71: 1.91 | H71: 1.91
F72: 72 | G72: 1.953 | H72: 1.953
F73: 73 | G73: 2.004 | H73: 2.004
F74: 74 | G74: 2.06 | H74: 2.06
F75: 75 | G75: 2.117 | H75: 2.117
F76: 76 | G76: 2.181 | H76: 2.181
F77: 77 | G77: 2.255 | H77: 2.255
F78: 78 | G78: 2.336 | H78: 2.336
F79: 79 | G79: 2.419 | H79: 2.419
F80: 80 | G80: 2.504 | H80: 2.504
F81: 81 | G81: 2.597 | H81: 2.597
F82: 82 | G82: 2.702 | H82: 2.702
F83: 83 | G83: 2.831 | H83: 2.831
F84: 84 | G84: 2.981 | H84: 2.981
F85: 85 | G85: 3.153 | H85: 3.153
F86: 86 | G86: 3.352 | H86: 3.352
F87: 87 | G87: 3.58 | H87: 3.58
F88: 88 | G88: 3.843 | H88: 3.843
F89: 89 | G89: 4.145 | H89: 4.145
F90: 90 | G90: 4.493 | H90: 4.493
